Workbook

Sheet GC
A1: ChromSimGC_4.0 | C1: Author: Bo Svensmark, svensmark@plen.ku.dk, Analytical Chemistry, PLEN KU 2017-2026 | P1: Most cells are proteted. To unprotect go to Review and click Unprotect sheet | AF1: Gradient profile plot | AI1: Time | AJ1: #1 LSS | AK1: #2 VBA | AL1: #3 LSS | AM1: #4 VBA | AN1: #5 Ref
C2: plen.ku.dk | L2: Do only change the white input cells! | P2: Table 4 | AE2: Time | AF2: Green | AG2: Blue | AI2: 0 | AJ2: =IF($N$29=0,-1,$N$29*($B$32*NORMDIST($AI2,$B$29,$B$33*$B$29,FALSE)+IF(B$62<>"",B$6*NORMDIST($AI2,B$62,C$62/4,FALSE),0)+IF(B$63<>"",B$7*NORMDIST($AI2,B$63,C$63/4,FALSE),0)+IF(B$64<>"",B$8*NORMDIST($AI2,B$64,C$64/4,FALSE),0)+IF(B$65<>"",B$9*NORMDIST($AI2,B$65,C$65/4,FALSE),0)+IF(B$66<>"",B$10*NORMDIST($AI2,B$66,C$66/4,FALSE),0)+IF(B$67<>"",B$11*NORMDIST($AI2,B$67,C$67/4,FALSE),0)+IF(B$68<>"",B$12*NORMDIST($AI2,B$68,C$68/4,FALSE),0)+IF(B$69<>"",B$13*NORMDIST($AI2,B$69,C$69/4,FALSE),0)+IF(B$70<>"",B$14*NORMDIST($AI2,B$70,C$70/4,FALSE),0)+IF(B$71<>"",B$15*NORMDIST($AI2,B$71,C$71/4,FALSE),0)+IF(B$72<>"",B$16*NORMDIST($AI2,B$72,C$72/4,FALSE),0)+IF(B$73<>"",B$17*NORMDIST($AI2,B$73,C$73/4,FALSE),0)+IF(B$74<>"",B$18*NORMDIST($AI2,B$74,C$74/4,FALSE),0)+IF(B$75<>"",B$19*NORMDIST($AI2,B$75,C$75/4,FALSE),0)+IF(B$76<>"",B$20*NORMDIST($AI2,B$76,C$76/4,FALSE),0)+IF(B$77<>"",B$21*NORMDIST($AI2,B$77,C$77/4,FALSE),0)+IF(B$78<>"",B$22*NORMDIST($AI2,B$78,C$78/4,FALSE),0)+IF(B$79<>"",B$23*NORMDIST($AI2,B$79,C$79/4,FALSE),0)+IF(B$80<>"",B$24*NORMDIST($AI2,B$80,C$80/4,FALSE),0)+IF(B$81<>"",B$25*NORMDIST($AI2,B$81,C$81/4,FALSE),0))+$M$29) -> 6 | AK2: =IF($N$30=0,-1,$N$30*($B$32*NORMDIST($AI2,$B$29,$B$33*$B$29,FALSE)+IF(B$86<>"",B$6*NORMDIST($AI2,B$86,C$86/4,FALSE),0)+IF(B$87<>"",B$7*NORMDIST($AI2,B$87,C$87/4,FALSE),0)+IF(B$88<>"",B$8*NORMDIST($AI2,B$88,C$88/4,FALSE),0)+IF(B$89<>"",B$9*NORMDIST($AI2,B$89,C$89/4,FALSE),0)+IF(B$90<>"",B$10*NORMDIST($AI2,B$90,C$90/4,FALSE),0)+IF(B$91<>"",B$11*NORMDIST($AI2,B$91,C$91/4,FALSE),0)+IF(B$92<>"",B$12*NORMDIST($AI2,B$92,C$92/4,FALSE),0)+IF(B$93<>"",B$13*NORMDIST($AI2,B$93,C$93/4,FALSE),0)+IF(B$94<>"",B$14*NORMDIST($AI2,B$94,C$94/4,FALSE),0)+IF(B$95<>"",B$15*NORMDIST($AI2,B$95,C$95/4,FALSE),0)+IF(B$96<>"",B$16*NORMDIST($AI2,B$96,C$96/4,FALSE),0)+IF(B$97<>"",B$17*NORMDIST($AI2,B$97,C$97/4,FALSE),0)+IF(B$98<>"",B$18*NORMDIST($AI2,B$98,C$98/4,FALSE),0)+IF(B$99<>"",B$19*NORMDIST($AI2,B$99,C$99/4,FALSE),0)+IF(B$100<>"",B$20*NORMDIST($AI2,B$100,C$100/4,FALSE),0)+IF(B$101<>"",B$21*NORMDIST($AI2,B$101,C$101/4,FALSE),0)+IF(B$102<>"",B$22*NORMDIST($AI2,B$102,C$102/4,FALSE),0)+IF(B$103<>"",B$23*NORMDIST($AI2,B$103,C$103/4,FALSE),0)+IF(B$104<>"",B$24*NORMDIST($AI2,B$104,C$104/4,FALSE),0)+IF(B$105<>"",B$25*NORMDIST($AI2,B$105,C$105/4,FALSE),0))+$M$30) -> 10 | AL2: =IF($N$31=0,-1,$N$29*($B$32*NORMDIST($AI2,$B$29,$B$33*$B$29,FALSE)+IF(F$62<>"",B$6*NORMDIST($AI2,F$62,G$62/4,FALSE),0)+IF(F$63<>"",B$7*NORMDIST($AI2,F$63,G$63/4,FALSE),0)+IF(F$64<>"",B$8*NORMDIST($AI2,F$64,G$64/4,FALSE),0)+IF(F$65<>"",B$9*NORMDIST($AI2,F$65,G$65/4,FALSE),0)+IF(F$66<>"",B$10*NORMDIST($AI2,F$66,G$66/4,FALSE),0)+IF(F$67<>"",B$11*NORMDIST($AI2,F$67,G$67/4,FALSE),0)+IF(F$68<>"",B$12*NORMDIST($AI2,F$68,G$68/4,FALSE),0)+IF(F$69<>"",B$13*NORMDIST($AI2,F$69,G$69/4,FALSE),0)+IF(F$70<>"",B$14*NORMDIST($AI2,F$70,G$70/4,FALSE),0)+IF(F$71<>"",B$15*NORMDIST($AI2,F$71,G$71/4,FALSE),0)+IF(F$72<>"",B$16*NORMDIST($AI2,F$72,G$72/4,FALSE),0)+IF(F$73<>"",B$17*NORMDIST($AI2,F$73,G$73/4,FALSE),0)+IF(F$74<>"",B$18*NORMDIST($AI2,F$74,G$74/4,FALSE),0)+IF(F$75<>"",B$19*NORMDIST($AI2,F$75,G$75/4,FALSE),0)+IF(F$76<>"",B$20*NORMDIST($AI2,F$76,G$76/4,FALSE),0)+IF(F$77<>"",B$21*NORMDIST($AI2,F$77,G$77/4,FALSE),0)+IF(F$78<>"",B$22*NORMDIST($AI2,F$78,G$78/4,FALSE),0)+IF(F$79<>"",B$23*NORMDIST($AI2,F$79,G$79/4,FALSE),0)+IF(F$80<>"",B$24*NORMDIST($AI2,F$80,G$80/4,FALSE),0)+IF(F$81<>"",B$25*NORMDIST($AI2,F$81,G$81/4,FALSE),0))+$M$31) -> 15 | AM2: =IF($N$32=0,-1,$N$32*($B$32*NORMDIST($AI2,$B$29,$B$33*$B$29,FALSE)+IF(F$86<>"",B$6*NORMDIST($AI2,F$86,G$86/4,FALSE),0)+IF(F$87<>"",B$7*NORMDIST($AI2,F$87,G$87/4,FALSE),0)+IF(F$88<>"",B$8*NORMDIST($AI2,F$88,G$88/4,FALSE),0)+IF(F$89<>"",B$9*NORMDIST($AI2,F$89,G$89/4,FALSE),0)+IF(F$90<>"",B$10*NORMDIST($AI2,F$90,G$90/4,FALSE),0)+IF(F$91<>"",B$11*NORMDIST($AI2,F$91,G$91/4,FALSE),0)+IF(F$92<>"",B$12*NORMDIST($AI2,F$92,G$92/4,FALSE),0)+IF(F$93<>"",B$13*NORMDIST($AI2,F$93,G$93/4,FALSE),0)+IF(F$94<>"",B$14*NORMDIST($AI2,F$94,G$94/4,FALSE),0)+IF(F$95<>"",B$15*NORMDIST($AI2,F$95,G$95/4,FALSE),0)+IF(F$96<>"",B$16*NORMDIST($AI2,F$96,G$96/4,FALSE),0)+IF(F$97<>"",B$17*NORMDIST($AI2,F$97,G$97/4,FALSE),0)+IF(F$98<>"",B$18*NORMDIST($AI2,F$98,G$98/4,FALSE),0)+IF(F$99<>"",B$19*NORMDIST($AI2,F$99,G$99/4,FALSE),0)+IF(F$100<>"",B$20*NORMDIST($AI2,F$100,G$100/4,FALSE),0)+IF(F$101<>"",B$21*NORMDIST($AI2,F$101,G$101/4,FALSE),0)+IF(F$102<>"",B$22*NORMDIST($AI2,F$102,G$102/4,FALSE),0)+IF(F$103<>"",B$23*NORMDIST($AI2,F$103,G$103/4,FALSE),0)+IF(F$104<>"",B$24*NORMDIST($AI2,F$104,G$105/4,FALSE),0)+IF(F$105<>"",B$25*NORMDIST($AI2,F$105,G$104/4,FALSE),0))+$M$32) -> 20 | AN2: =IF($N$33=0,-1,$N$33*($B$32*NORMDIST($AI2,$B$29,$B$33*$B$29,FALSE)+IF(J$62<>"",B$6*NORMDIST($AI2,J$62,K$62/4,FALSE),0)+IF(J$63<>"",B$7*NORMDIST($AI2,J$63,K$63/4,FALSE),0)+IF(J$64<>"",B$8*NORMDIST($AI2,J$64,K$64/4,FALSE),0)+IF(J$65<>"",B$9*NORMDIST($AI2,J$65,K$65/4,FALSE),0)+IF(J$66<>"",B$10*NORMDIST($AI2,J$66,K$66/4,FALSE),0)+IF(J$67<>"",B$11*NORMDIST($AI2,J$67,K$67/4,FALSE),0)+IF(J$68<>"",B$12*NORMDIST($AI2,J$68,K$68/4,FALSE),0)+IF(J$69<>"",B$13*NORMDIST($AI2,J$69,K$69/4,FALSE),0)+IF(J$70<>"",B$14*NORMDIST($AI2,J$70,K$70/4,FALSE),0)+IF(J$71<>"",B$15*NORMDIST($AI2,J$71,K$71/4,FALSE),0)+IF(J$72<>"",B$16*NORMDIST($AI2,J$72,K$72/4,FALSE),0)+IF(J$73<>"",B$17*NORMDIST($AI2,J$73,K$73/4,FALSE),0)+IF(J$74<>"",B$18*NORMDIST($AI2,J$74,K$74/4,FALSE),0)+IF(J$75<>"",B$19*NORMDIST($AI2,J$75,K$76/4,FALSE),0)+IF(J$76<>"",B$20*NORMDIST($AI2,J$76,K$75/4,FALSE),0)+IF(J$77<>"",B$21*NORMDIST($AI2,J$77,K$77/4,FALSE),0)+IF(J$78<>"",B$22*NORMDIST($AI2,J$78,K$78/4,FALSE),0)+IF(J$79<>"",B$23*NORMDIST($AI2,J$79,K$79/4,FALSE),0)+IF(J$80<>"",B$24*NORMDIST($AI2,J$80,K$81/4,FALSE),0)+IF(J$81<>"",B$25*NORMDIST($AI2,J$81,K$80/4,FALSE),0))+$M$33) -> 5
C3: bosvensmark.dk | H3: Short introduction: see cell T86 | P3: Column difference | AE3: 0 | AF3: =IF('Macro input'!$F$19=1,'Macro input'!C96,IF($K$29>0,IF($AE3<$I$29,$G$29,IF($AE3<$I$29+$J$29,$G$29+((H$29-G$29)*($AE3-I$29)/J$29),$H$29)),$G$29)) -> 100 | AG3: =IF('Macro input'!$Q$19=1,'Macro input'!D96,IF($K$31>0,IF($AE3<$I$31,$G$31,IF($AE3<$I$31+$J$31,$G$31+((H$31-G$31)*($AE3-I$31)/J$31),$H$31)),$G$31)) -> 150 | AI3: =AI2+$B$34 -> 0.015 | AJ3: =IF($N$29=0,-1,$N$29*($B$32*NORMDIST($AI3,$B$29,$B$33*$B$29,FALSE)+IF(B$62<>"",B$6*NORMDIST($AI3,B$62,C$62/4,FALSE),0)+IF(B$63<>"",B$7*NORMDIST($AI3,B$63,C$63/4,FALSE),0)+IF(B$64<>"",B$8*NORMDIST($AI3,B$64,C$64/4,FALSE),0)+IF(B$65<>"",B$9*NORMDIST($AI3,B$65,C$65/4,FALSE),0)+IF(B$66<>"",B$10*NORMDIST($AI3,B$66,C$66/4,FALSE),0)+IF(B$67<>"",B$11*NORMDIST($AI3,B$67,C$67/4,FALSE),0)+IF(B$68<>"",B$12*NORMDIST($AI3,B$68,C$68/4,FALSE),0)+IF(B$69<>"",B$13*NORMDIST($AI3,B$69,C$69/4,FALSE),0)+IF(B$70<>"",B$14*NORMDIST($AI3,B$70,C$70/4,FALSE),0)+IF(B$71<>"",B$15*NORMDIST($AI3,B$71,C$71/4,FALSE),0)+IF(B$72<>"",B$16*NORMDIST($AI3,B$72,C$72/4,FALSE),0)+IF(B$73<>"",B$17*NORMDIST($AI3,B$73,C$73/4,FALSE),0)+IF(B$74<>"",B$18*NORMDIST($AI3,B$74,C$74/4,FALSE),0)+IF(B$75<>"",B$19*NORMDIST($AI3,B$75,C$75/4,FALSE),0)+IF(B$76<>"",B$20*NORMDIST($AI3,B$76,C$76/4,FALSE),0)+IF(B$77<>"",B$21*NORMDIST($AI3,B$77,C$77/4,FALSE),0)+IF(B$78<>"",B$22*NORMDIST($AI3,B$78,C$78/4,FALSE),0)+IF(B$79<>"",B$23*NORMDIST($AI3,B$79,C$79/4,FALSE),0)+IF(B$80<>"",B$24*NORMDIST($AI3,B$80,C$80/4,FALSE),0)+IF(B$81<>"",B$25*NORMDIST($AI3,B$81,C$81/4,FALSE),0))+$M$29) -> 6 | AK3: =IF($N$30=0,-1,$N$30*($B$32*NORMDIST($AI3,$B$29,$B$33*$B$29,FALSE)+IF(B$86<>"",B$6*NORMDIST($AI3,B$86,C$86/4,FALSE),0)+IF(B$87<>"",B$7*NORMDIST($AI3,B$87,C$87/4,FALSE),0)+IF(B$88<>"",B$8*NORMDIST($AI3,B$88,C$88/4,FALSE),0)+IF(B$89<>"",B$9*NORMDIST($AI3,B$89,C$89/4,FALSE),0)+IF(B$90<>"",B$10*NORMDIST($AI3,B$90,C$90/4,FALSE),0)+IF(B$91<>"",B$11*NORMDIST($AI3,B$91,C$91/4,FALSE),0)+IF(B$92<>"",B$12*NORMDIST($AI3,B$92,C$92/4,FALSE),0)+IF(B$93<>"",B$13*NORMDIST($AI3,B$93,C$93/4,FALSE),0)+IF(B$94<>"",B$14*NORMDIST($AI3,B$94,C$94/4,FALSE),0)+IF(B$95<>"",B$15*NORMDIST($AI3,B$95,C$95/4,FALSE),0)+IF(B$96<>"",B$16*NORMDIST($AI3,B$96,C$96/4,FALSE),0)+IF(B$97<>"",B$17*NORMDIST($AI3,B$97,C$97/4,FALSE),0)+IF(B$98<>"",B$18*NORMDIST($AI3,B$98,C$98/4,FALSE),0)+IF(B$99<>"",B$19*NORMDIST($AI3,B$99,C$99/4,FALSE),0)+IF(B$100<>"",B$20*NORMDIST($AI3,B$100,C$100/4,FALSE),0)+IF(B$101<>"",B$21*NORMDIST($AI3,B$101,C$101/4,FALSE),0)+IF(B$102<>"",B$22*NORMDIST($AI3,B$102,C$102/4,FALSE),0)+IF(B$103<>"",B$23*NORMDIST($AI3,B$103,C$103/4,FALSE),0)+IF(B$104<>"",B$24*NORMDIST($AI3,B$104,C$104/4,FALSE),0)+IF(B$105<>"",B$25*NORMDIST($AI3,B$105,C$105/4,FALSE),0))+$M$30) -> 10 | AL3: =IF($N$31=0,-1,$N$29*($B$32*NORMDIST($AI3,$B$29,$B$33*$B$29,FALSE)+IF(F$62<>"",B$6*NORMDIST($AI3,F$62,G$62/4,FALSE),0)+IF(F$63<>"",B$7*NORMDIST($AI3,F$63,G$63/4,FALSE),0)+IF(F$64<>"",B$8*NORMDIST($AI3,F$64,G$64/4,FALSE),0)+IF(F$65<>"",B$9*NORMDIST($AI3,F$65,G$65/4,FALSE),0)+IF(F$66<>"",B$10*NORMDIST($AI3,F$66,G$66/4,FALSE),0)+IF(F$67<>"",B$11*NORMDIST($AI3,F$67,G$67/4,FALSE),0)+IF(F$68<>"",B$12*NORMDIST($AI3,F$68,G$68/4,FALSE),0)+IF(F$69<>"",B$13*NORMDIST($AI3,F$69,G$69/4,FALSE),0)+IF(F$70<>"",B$14*NORMDIST($AI3,F$70,G$70/4,FALSE),0)+IF(F$71<>"",B$15*NORMDIST($AI3,F$71,G$71/4,FALSE),0)+IF(F$72<>"",B$16*NORMDIST($AI3,F$72,G$72/4,FALSE),0)+IF(F$73<>"",B$17*NORMDIST($AI3,F$73,G$73/4,FALSE),0)+IF(F$74<>"",B$18*NORMDIST($AI3,F$74,G$74/4,FALSE),0)+IF(F$75<>"",B$19*NORMDIST($AI3,F$75,G$75/4,FALSE),0)+IF(F$76<>"",B$20*NORMDIST($AI3,F$76,G$76/4,FALSE),0)+IF(F$77<>"",B$21*NORMDIST($AI3,F$77,G$77/4,FALSE),0)+IF(F$78<>"",B$22*NORMDIST($AI3,F$78,G$78/4,FALSE),0)+IF(F$79<>"",B$23*NORMDIST($AI3,F$79,G$79/4,FALSE),0)+IF(F$80<>"",B$24*NORMDIST($AI3,F$80,G$80/4,FALSE),0)+IF(F$81<>"",B$25*NORMDIST($AI3,F$81,G$81/4,FALSE),0))+$M$31) -> 15 | AM3: =IF($N$32=0,-1,$N$32*($B$32*NORMDIST($AI3,$B$29,$B$33*$B$29,FALSE)+IF(F$86<>"",B$6*NORMDIST($AI3,F$86,G$86/4,FALSE),0)+IF(F$87<>"",B$7*NORMDIST($AI3,F$87,G$87/4,FALSE),0)+IF(F$88<>"",B$8*NORMDIST($AI3,F$88,G$88/4,FALSE),0)+IF(F$89<>"",B$9*NORMDIST($AI3,F$89,G$89/4,FALSE),0)+IF(F$90<>"",B$10*NORMDIST($AI3,F$90,G$90/4,FALSE),0)+IF(F$91<>"",B$11*NORMDIST($AI3,F$91,G$91/4,FALSE),0)+IF(F$92<>"",B$12*NORMDIST($AI3,F$92,G$92/4,FALSE),0)+IF(F$93<>"",B$13*NORMDIST($AI3,F$93,G$93/4,FALSE),0)+IF(F$94<>"",B$14*NORMDIST($AI3,F$94,G$94/4,FALSE),0)+IF(F$95<>"",B$15*NORMDIST($AI3,F$95,G$95/4,FALSE),0)+IF(F$96<>"",B$16*NORMDIST($AI3,F$96,G$96/4,FALSE),0)+IF(F$97<>"",B$17*NORMDIST($AI3,F$97,G$97/4,FALSE),0)+IF(F$98<>"",B$18*NORMDIST($AI3,F$98,G$98/4,FALSE),0)+IF(F$99<>"",B$19*NORMDIST($AI3,F$99,G$99/4,FALSE),0)+IF(F$100<>"",B$20*NORMDIST($AI3,F$100,G$100/4,FALSE),0)+IF(F$101<>"",B$21*NORMDIST($AI3,F$101,G$101/4,FALSE),0)+IF(F$102<>"",B$22*NORMDIST($AI3,F$102,G$102/4,FALSE),0)+IF(F$103<>"",B$23*NORMDIST($AI3,F$103,G$103/4,FALSE),0)+IF(F$104<>"",B$24*NORMDIST($AI3,F$104,G$105/4,FALSE),0)+IF(F$105<>"",B$25*NORMDIST($AI3,F$105,G$104/4,FALSE),0))+$M$32) -> 20 | AN3: =IF($N$33=0,-1,$N$33*($B$32*NORMDIST($AI3,$B$29,$B$33*$B$29,FALSE)+IF(J$62<>"",B$6*NORMDIST($AI3,J$62,K$62/4,FALSE),0)+IF(J$63<>"",B$7*NORMDIST($AI3,J$63,K$63/4,FALSE),0)+IF(J$64<>"",B$8*NORMDIST($AI3,J$64,K$64/4,FALSE),0)+IF(J$65<>"",B$9*NORMDIST($AI3,J$65,K$65/4,FALSE),0)+IF(J$66<>"",B$10*NORMDIST($AI3,J$66,K$66/4,FALSE),0)+IF(J$67<>"",B$11*NORMDIST($AI3,J$67,K$67/4,FALSE),0)+IF(J$68<>"",B$12*NORMDIST($AI3,J$68,K$68/4,FALSE),0)+IF(J$69<>"",B$13*NORMDIST($AI3,J$69,K$69/4,FALSE),0)+IF(J$70<>"",B$14*NORMDIST($AI3,J$70,K$70/4,FALSE),0)+IF(J$71<>"",B$15*NORMDIST($AI3,J$71,K$71/4,FALSE),0)+IF(J$72<>"",B$16*NORMDIST($AI3,J$72,K$72/4,FALSE),0)+IF(J$73<>"",B$17*NORMDIST($AI3,J$73,K$73/4,FALSE),0)+IF(J$74<>"",B$18*NORMDIST($AI3,J$74,K$74/4,FALSE),0)+IF(J$75<>"",B$19*NORMDIST($AI3,J$75,K$76/4,FALSE),0)+IF(J$76<>"",B$20*NORMDIST($AI3,J$76,K$75/4,FALSE),0)+IF(J$77<>"",B$21*NORMDIST($AI3,J$77,K$77/4,FALSE),0)+IF(J$78<>"",B$22*NORMDIST($AI3,J$78,K$78/4,FALSE),0)+IF(J$79<>"",B$23*NORMDIST($AI3,J$79,K$79/4,FALSE),0)+IF(J$80<>"",B$24*NORMDIST($AI3,J$80,K$81/4,FALSE),0)+IF(J$81<>"",B$25*NORMDIST($AI3,J$81,K$80/4,FALSE),0))+$M$33) -> 5
A4: Table 1 | M4: Chr # | N4: 1 | P4: q degrees | Q4: d | R4: Name | T4: Columns to select from | AD4: Beta | AE4: =AE3+$B$31/100 -> 0.3 | AF4: =IF('Macro input'!$F$19=1,'Macro input'!C97,IF($K$29>0,IF($AE4<$I$29,$G$29,IF($AE4<$I$29+$J$29,$G$29+((H$29-G$29)*($AE4-I$29)/J$29),$H$29)),$G$29)) -> 103 | AG4: =IF('Macro input'!$Q$19=1,'Macro input'!D97,IF($K$31>0,IF($AE4<$I$31,$G$31,IF($AE4<$I$31+$J$31,$G$31+((H$31-G$31)*($AE4-I$31)/J$31),$H$31)),$G$31)) -> 150 | AI4: 0.03 | AJ4: 6 | AK4: 10 | AL4: =IF($N$31=0,-1,$N$29*($B$32*NORMDIST($AI4,$B$29,$B$33*$B$29,FALSE)+IF(F$62<>"",B$6*NORMDIST($AI4,F$62,G$62/4,FALSE),0)+IF(F$63<>"",B$7*NORMDIST($AI4,F$63,G$63/4,FALSE),0)+IF(F$64<>"",B$8*NORMDIST($AI4,F$64,G$64/4,FALSE),0)+IF(F$65<>"",B$9*NORMDIST($AI4,F$65,G$65/4,FALSE),0)+IF(F$66<>"",B$10*NORMDIST($AI4,F$66,G$66/4,FALSE),0)+IF(F$67<>"",B$11*NORMDIST($AI4,F$67,G$67/4,FALSE),0)+IF(F$68<>"",B$12*NORMDIST($AI4,F$68,G$68/4,FALSE),0)+IF(F$69<>"",B$13*NORMDIST($AI4,F$69,G$69/4,FALSE),0)+IF(F$70<>"",B$14*NORMDIST($AI4,F$70,G$70/4,FALSE),0)+IF(F$71<>"",B$15*NORMDIST($AI4,F$71,G$71/4,FALSE),0)+IF(F$72<>"",B$16*NORMDIST($AI4,F$72,G$72/4,FALSE),0)+IF(F$73<>"",B$17*NORMDIST($AI4,F$73,G$73/4,FALSE),0)+IF(F$74<>"",B$18*NORMDIST($AI4,F$74,G$74/4,FALSE),0)+IF(F$75<>"",B$19*NORMDIST($AI4,F$75,G$75/4,FALSE),0)+IF(F$76<>"",B$20*NORMDIST($AI4,F$76,G$76/4,FALSE),0)+IF(F$77<>"",B$21*NORMDIST($AI4,F$77,G$77/4,FALSE),0)+IF(F$78<>"",B$22*NORMDIST($AI4,F$78,G$78/4,FALSE),0)+IF(F$79<>"",B$23*NORMDIST($AI4,F$79,G$79/4,FALSE),0)+IF(F$80<>"",B$24*NORMDIST($AI4,F$80,G$80/4,FALSE),0)+IF(F$81<>"",B$25*NORMDIST($AI4,F$81,G$81/4,FALSE),0))+$M$31) -> 15 | AM4: 20 | AN4: 5
B5: Conc | C5: Tetrahydrofuran | E5: tR(ref) | F5: w(ref) | H5: VBA simulation | M5: 1 - Cos q | N5: d | P5: =IF(Columns!T10<>"",Columns!T10,"") -> 9.432023273 | Q5: =IF(Columns!U10<>"",Columns!U10,"") -> 0.1644279614 | R5: =IF(Columns!X10<>"",Columns!V10,"") -> DB-1 | T5: =IF(Columns!X10<>"",Columns!X10,"") -> Poly(dimethylsiloxane) | AD5: =IF(AND(Columns!AF10<>"",Columns!AF10<>0),Columns!AF10,"") -> 0.003132339507 | AE5: 0.6 | AF5: =IF('Macro input'!$F$19=1,'Macro input'!C98,IF($K$29>0,IF($AE5<$I$29,$G$29,IF($AE5<$I$29+$J$29,$G$29+((H$29-G$29)*($AE5-I$29)/J$29),$H$29)),$G$29)) -> 106 | AG5: =IF('Macro input'!$Q$19=1,'Macro input'!D98,IF($K$31>0,IF($AE5<$I$31,$G$31,IF($AE5<$I$31+$J$31,$G$31+((H$31-G$31)*($AE5-I$31)/J$31),$H$31)),$G$31)) -> 150 | AI5: 0.045 | AJ5: 6 | AK5: 10 | AL5: 15 | AM5: 20 | AN5: 5
A6: =IF(C6<>"",IF(C6<>VLOOKUP(C6,Compounds!$B$11:'Compounds'!$G$610,1),"Name error",1),"") -> 1 | B6: 1 | C6: Phenol | E6: 3.129261441 | F6: 0.1882110357 | M6: Column difference | P6: =IF(Columns!T11<>"",Columns!T11,"") -> 5.61159332 | Q6: =IF(Columns!U11<>"",Columns!U11,"") -> 0.09789142426 | R6: =IF(Columns!X11<>"",Columns!V11,"") -> SolGel-1 | T6: =IF(Columns!X11<>"",Columns!X11,"") -> Poly(dimethylsiloxane) | AD6: =IF(AND(Columns!AF11<>"",Columns!AF11<>0),Columns!AF11,"") -> 0.01261817175 | AE6: 0.9 | AF6: =IF('Macro input'!$F$19=1,'Macro input'!C99,IF($K$29>0,IF($AE6<$I$29,$G$29,IF($AE6<$I$29+$J$29,$G$29+((H$29-G$29)*($AE6-I$29)/J$29),$H$29)),$G$29)) -> 109 | AG6: =IF('Macro input'!$Q$19=1,'Macro input'!D99,IF($K$31>0,IF($AE6<$I$31,$G$31,IF($AE6<$I$31+$J$31,$G$31+((H$31-G$31)*($AE6-I$31)/J$31),$H$31)),$G$31)) -> 150 | AI6: 0.06 | AJ6: 6 | AK6: 10 | AL6: 15 | AM6: 20 | AN6: 5
A7: =IF(C7<>"",IF(C7<>VLOOKUP(C7,Compounds!$B$11:'Compounds'!$G$610,1),"Name error",2),"") -> 2 | B7: 1 | C7: Benzonitrile | E7: 3.441032131 | F7: 0.2012807492 | J7: =IF('Macro input'!B21>0,"Please update green","ok") -> ok | P7: =IF(Columns!T12<>"",Columns!T12,"") -> 33.62502226 | Q7: =IF(Columns!U12<>"",Columns!U12,"") -> 0.5784799329 | R7: =IF(Columns!X12<>"",Columns!V12,"") -> SPB-Octyl | T7: =IF(Columns!X12<>"",Columns!X12,"") -> Poly(methyloctylsiloxane) | AD7: =IF(AND(Columns!AF12<>"",Columns!AF12<>0),Columns!AF12,"") -> 0.01261817175 | AE7: 1.2 | AF7: =IF('Macro input'!$F$19=1,'Macro input'!C100,IF($K$29>0,IF($AE7<$I$29,$G$29,IF($AE7<$I$29+$J$29,$G$29+((H$29-G$29)*($AE7-I$29)/J$29),$H$29)),$G$29)) -> 112 | AG7: =IF('Macro input'!$Q$19=1,'Macro input'!D100,IF($K$31>0,IF($AE7<$I$31,$G$31,IF($AE7<$I$31+$J$31,$G$31+((H$31-G$31)*($AE7-I$31)/J$31),$H$31)),$G$31)) -> 150 | AI7: 0.075 | AJ7: 6 | AK7: 10 | AL7: 15 | AM7: 20 | AN7: 5
A8: =IF(C8<>"",IF(C8<>VLOOKUP(C8,Compounds!$B$11:'Compounds'!$G$610,1),"Name error",3),"") -> 3 | B8: 1 | C8: Benzofuran | E8: 3.47208693 | F8: 0.2025731953 | I8: =IF('Macro input'!A2*B31>2^16,"N(Fortran) too high","") ->  | P8: =IF(Columns!T13<>"",Columns!T13,"") -> 6.850279581 | Q8: =IF(Columns!U13<>"",Columns!U13,"") -> 0.119480366 | R8: =IF(Columns!X13<>"",Columns!V13,"") -> G-PDMS | T8: =IF(Columns!X13<>"",Columns!X13,"") -> Generic-Poly(dimethylsiloxane) [c = -2.000] | AD8: =IF(AND(Columns!AF13<>"",Columns!AF13<>0),Columns!AF13,"") ->  | AE8: 1.5 | AF8: =IF('Macro input'!$F$19=1,'Macro input'!C101,IF($K$29>0,IF($AE8<$I$29,$G$29,IF($AE8<$I$29+$J$29,$G$29+((H$29-G$29)*($AE8-I$29)/J$29),$H$29)),$G$29)) -> 115 | AG8: =IF('Macro input'!$Q$19=1,'Macro input'!D101,IF($K$31>0,IF($AE8<$I$31,$G$31,IF($AE8<$I$31+$J$31,$G$31+((H$31-G$31)*($AE8-I$31)/J$31),$H$31)),$G$31)) -> 150 | AI8: 0.09 | AJ8: 6 | AK8: 10 | AL8: 15 | AM8: 20 | AN8: 5
A9: =IF(C9<>"",IF(C9<>VLOOKUP(C9,Compounds!$B$11:'Compounds'!$G$610,1),"Name error",4),"") -> 4 | B9: 1 | C9: o-Cresol | E9: 4.007065238 | F9: 0.2231766145 | J9: =IF('Macro input'!M21<>0,"Please update blue","ok") -> ok | P9: =IF(Columns!T14<>"",Columns!T14,"") -> 1.096107524 | Q9: =IF(Columns!U14<>"",Columns!U14,"") -> 0.01907804907 | R9: =IF(Columns!X14<>"",Columns!V14,"") -> G-PDMPS-5 | T9: =IF(Columns!X14<>"",Columns!X14,"") -> Generic-Poly(dimethyldiphenylsiloxane) [c = -2.000] | AD9: =IF(AND(Columns!AF14<>"",Columns!AF14<>0),Columns!AF14,"") ->  | AE9: 1.8 | AF9: =IF('Macro input'!$F$19=1,'Macro input'!C102,IF($K$29>0,IF($AE9<$I$29,$G$29,IF($AE9<$I$29+$J$29,$G$29+((H$29-G$29)*($AE9-I$29)/J$29),$H$29)),$G$29)) -> 118 | AG9: =IF('Macro input'!$Q$19=1,'Macro input'!D102,IF($K$31>0,IF($AE9<$I$31,$G$31,IF($AE9<$I$31+$J$31,$G$31+((H$31-G$31)*($AE9-I$31)/J$31),$H$31)),$G$31)) -> 150 | AI9: 0.105 | AJ9: 6 | AK9: 10 | AL9: 15 | AM9: 20 | AN9: 5
A10: =IF(C10<>"",IF(C10<>VLOOKUP(C10,Compounds!$B$11:'Compounds'!$G$610,1),"Name error",5),"") -> 5 | B10: 1 | C10: 3,5-Dimethylphenol | E10: 5.301522188 | F10: 0.2625782581 | P10: =IF(Columns!T15<>"",Columns!T15,"") -> 42.58662362 | Q10: =IF(Columns!U15<>"",Columns!U15,"") -> 0.7262835647 | R10: =IF(Columns!X15<>"",Columns!V15,"") -> G-PMPS | T10: =IF(Columns!X15<>"",Columns!X15,"") -> Generc-Poly(methylphenylsiloxane) [c = -2.000] | AD10: =IF(AND(Columns!AF15<>"",Columns!AF15<>0),Columns!AF15,"") ->  | AE10: 2.1 | AF10: =IF('Macro input'!$F$19=1,'Macro input'!C103,IF($K$29>0,IF($AE10<$I$29,$G$29,IF($AE10<$I$29+$J$29,$G$29+((H$29-G$29)*($AE10-I$29)/J$29),$H$29)),$G$29)) -> 121 | AG10: =IF('Macro input'!$Q$19=1,'Macro input'!D103,IF($K$31>0,IF($AE10<$I$31,$G$31,IF($AE10<$I$31+$J$31,$G$31+((H$31-G$31)*($AE10-I$31)/J$31),$H$31)),$G$31)) -> 150 | AI10: 0.12 | AJ10: 6 | AK10: 10 | AL10: 15 | AM10: 20 | AN10: 5
A11: =IF(C11<>"",IF(C11<>VLOOKUP(C11,Compounds!$B$11:'Compounds'!$G$610,1),"Name error",6),"") -> 6 | B11: 1 | C11: Quinoline | E11: 6.570565711 | F11: 0.2891406412 | H11: Calibration range | J11: =SPmodel!B30 -> HP-5 | K11: =SPmodel!X30 -> HP-5 | M11: Column difference | P11: =IF(Columns!T16<>"",Columns!T16,"") -> 1.31653118 | Q11: =IF(Columns!U16<>"",Columns!U16,"") -> 0.0229337358 | R11: =IF(Columns!X16<>"",Columns!V16,"") -> G-ASA-5 | T11: =IF(Columns!X16<>"",Columns!X16,"") -> Generic-Silarylene-siloxane copolymer [c = -2.000] | AD11: =IF(AND(Columns!AF16<>"",Columns!AF16<>0),Columns!AF16,"") ->  | AE11: 2.4 | AF11: =IF('Macro input'!$F$19=1,'Macro input'!C104,IF($K$29>0,IF($AE11<$I$29,$G$29,IF($AE11<$I$29+$J$29,$G$29+((H$29-G$29)*($AE11-I$29)/J$29),$H$29)),$G$29)) -> 124 | AG11: =IF('Macro input'!$Q$19=1,'Macro input'!D104,IF($K$31>0,IF($AE11<$I$31,$G$31,IF($AE11<$I$31+$J$31,$G$31+((H$31-G$31)*($AE11-I$31)/J$31),$H$31)),$G$31)) -> 150 | AI11: 0.135 | AJ11: 6 | AK11: 10 | AL11: 15 | AM11: 20 | AN11: 5
A12: =IF(C12<>"",IF(C12<>VLOOKUP(C12,Compounds!$B$11:'Compounds'!$G$610,1),"Name error",7),"") -> 7 | B12: 1 | C12: Indole | E12: 7.306370362 | F12: 0.2957031768 | H12: Min oC | J12: =MIN(SPmodel!B31:B50) -> 60 | K12: =MIN(SPmodel!X31:X50) -> 60 | M12: q | N12: d | P12: =IF(Columns!T17<>"",Columns!T17,"") -> 43.87719031 | Q12: =IF(Columns!U17<>"",Columns!U17,"") -> 0.7472240618 | R12: =IF(Columns!X17<>"",Columns!V17,"") -> G-PEG | T12: =IF(Columns!X17<>"",Columns!X17,"") -> Generic Polyethyleneglycol [c = -2.000] | AD12: =IF(AND(Columns!AF17<>"",Columns!AF17<>0),Columns!AF17,"") ->  | AE12: 2.7 | AF12: =IF('Macro input'!$F$19=1,'Macro input'!C105,IF($K$29>0,IF($AE12<$I$29,$G$29,IF($AE12<$I$29+$J$29,$G$29+((H$29-G$29)*($AE12-I$29)/J$29),$H$29)),$G$29)) -> 127 | AG12: =IF('Macro input'!$Q$19=1,'Macro input'!D105,IF($K$31>0,IF($AE12<$I$31,$G$31,IF($AE12<$I$31+$J$31,$G$31+((H$31-G$31)*($AE12-I$31)/J$31),$H$31)),$G$31)) -> 150 | AI12: 0.15 | AJ12: 6 | AK12: 10 | AL12: 15 | AM12: 20 | AN12: 5
A13: =IF(C13<>"",IF(C13<>VLOOKUP(C13,Compounds!$B$11:'Compounds'!$G$610,1),"Name error",8),"") -> 8 | B13: 1 | C13: Tetradecane | E13: 8.076387958 | F13: 0.2905782962 | H13: Max oC | J13: =MAX(SPmodel!B31:B50) -> 300 | K13: =MAX(SPmodel!X31:X50) -> 300 | M13: =SPmodel!J34 -> 0.08102847521 | N13: =SPmodel!K34 -> 0 | P13: =IF(Columns!T18<>"",Columns!T18,"") -> 0.08102847521 | Q13: =IF(Columns!U18<>"",Columns!U18,"") -> 0 | R13: =IF(Columns!X18<>"",Columns!V18,"") -> HP-5 | T13: =IF(Columns!X18<>"",Columns!X18,"") -> 5 % diphenylsiloxane | AD13: =IF(AND(Columns!AF18<>"",Columns!AF18<>0),Columns!AF18,"") -> 0.00160192205 | AE13: 3 | AF13: =IF('Macro input'!$F$19=1,'Macro input'!C106,IF($K$29>0,IF($AE13<$I$29,$G$29,IF($AE13<$I$29+$J$29,$G$29+((H$29-G$29)*($AE13-I$29)/J$29),$H$29)),$G$29)) -> 130 | AG13: =IF('Macro input'!$Q$19=1,'Macro input'!D106,IF($K$31>0,IF($AE13<$I$31,$G$31,IF($AE13<$I$31+$J$31,$G$31+((H$31-G$31)*($AE13-I$31)/J$31),$H$31)),$G$31)) -> 150 | AI13: 0.165 | AJ13: 6 | AK13: 10 | AL13: 15 | AM13: 20 | AN13: 5
A14: =IF(C14<>"",IF(C14<>VLOOKUP(C14,Compounds!$B$11:'Compounds'!$G$610,1),"Name error",9),"") -> 9 | B14: 1 | C14: Dibenzofuran | E14: 9.883915114 | F14: 0.2999105711 | P14: =IF(Columns!T19<>"",Columns!T19,"") -> 5.144160165 | Q14: =IF(Columns!U19<>"",Columns!U19,"") -> 0.08974123736 | R14: =IF(Columns!X19<>"",Columns!V19,"") -> DB-5 | T14: =IF(Columns!X19<>"",Columns!X19,"") -> 5 % diphenylsiloxane | AD14: =IF(AND(Columns!AF19<>"",Columns!AF19<>0),Columns!AF19,"") -> 0.01619406868 | AE14: 3.3 | AF14: =IF('Macro input'!$F$19=1,'Macro input'!C107,IF($K$29>0,IF($AE14<$I$29,$G$29,IF($AE14<$I$29+$J$29,$G$29+((H$29-G$29)*($AE14-I$29)/J$29),$H$29)),$G$29)) -> 133 | AG14: =IF('Macro input'!$Q$19=1,'Macro input'!D107,IF($K$31>0,IF($AE14<$I$31,$G$31,IF($AE14<$I$31+$J$31,$G$31+((H$31-G$31)*($AE14-I$31)/J$31),$H$31)),$G$31)) -> 150 | AI14: 0.18 | AJ14: 6 | AK14: 10 | AL14: 15 | AM14: 20 | AN14: 5
A15: =IF(C15<>"",IF(C15<>VLOOKUP(C15,Compounds!$B$11:'Compounds'!$G$610,1),"Name error",10),"") -> 10 | B15: 1 | C15: Diphenylamine | E15: 10.69790744 | F15: 0.2933415243 | P15: =IF(Columns!T20<>"",Columns!T20,"") -> 2.024606116 | Q15: =IF(Columns!U20<>"",Columns!U20,"") -> 0.03530589186 | R15: =IF(Columns!X20<>"",Columns!V20,"") -> OV-5 | T15: =IF(Columns!X20<>"",Columns!X20,"") -> 5 % diphenylsiloxane | AD15: =IF(AND(Columns!AF20<>"",Columns!AF20<>0),Columns!AF20,"") -> 0.01141760493 | AE15: 3.6 | AF15: =IF('Macro input'!$F$19=1,'Macro input'!C108,IF($K$29>0,IF($AE15<$I$29,$G$29,IF($AE15<$I$29+$J$29,$G$29+((H$29-G$29)*($AE15-I$29)/J$29),$H$29)),$G$29)) -> 136 | AG15: =IF('Macro input'!$Q$19=1,'Macro input'!D108,IF($K$31>0,IF($AE15<$I$31,$G$31,IF($AE15<$I$31+$J$31,$G$31+((H$31-G$31)*($AE15-I$31)/J$31),$H$31)),$G$31)) -> 150 | AI15: 0.195 | AJ15: 6 | AK15: 10 | AL15: 15 | AM15: 20 | AN15: 5
A16: =IF(C16<>"",IF(C16<>VLOOKUP(C16,Compounds!$B$11:'Compounds'!$G$610,1),"Name error",11),"") -> 11 | B16: 1 | C16: Carbazole | E16: 12.54293309 | F16: 0.2883574164 | P16: =IF(Columns!T21<>"",Columns!T21,"") -> 1.805408147 | Q16: =IF(Columns!U21<>"",Columns!U21,"") -> 0.03147725996 | R16: =IF(Columns!X21<>"",Columns!V21,"") -> PTE-5 | T16: =IF(Columns!X21<>"",Columns!X21,"") -> 5 % diphenylsiloxane | AD16: =IF(AND(Columns!AF21<>"",Columns!AF21<>0),Columns!AF21,"") -> 0.00401203208 | AE16: 3.9 | AF16: =IF('Macro input'!$F$19=1,'Macro input'!C109,IF($K$29>0,IF($AE16<$I$29,$G$29,IF($AE16<$I$29+$J$29,$G$29+((H$29-G$29)*($AE16-I$29)/J$29),$H$29)),$G$29)) -> 139 | AG16: =IF('Macro input'!$Q$19=1,'Macro input'!D109,IF($K$31>0,IF($AE16<$I$31,$G$31,IF($AE16<$I$31+$J$31,$G$31+((H$31-G$31)*($AE16-I$31)/J$31),$H$31)),$G$31)) -> 150 | AI16: 0.21 | AJ16: 6 | AK16: 10 | AL16: 15 | AM16: 20 | AN16: 5
A17: =IF(C17<>"",IF(C17<>VLOOKUP(C17,Compounds!$B$11:'Compounds'!$G$610,1),"Name error",12),"") ->  | M17: VBA temp.program. | P17: =IF(Columns!T22<>"",Columns!T22,"") -> 13.11723264 | Q17: =IF(Columns!U22<>"",Columns!U22,"") -> 0.2284348742 | R17: =IF(Columns!X22<>"",Columns!V22,"") -> Rtx-20 | T17: =IF(Columns!X22<>"",Columns!X22,"") -> 20 % diphenylsiloxane | AD17: =IF(AND(Columns!AF22<>"",Columns!AF22<>0),Columns!AF22,"") -> 0.008048257286 | AE17: 4.2 | AF17: =IF('Macro input'!$F$19=1,'Macro input'!C110,IF($K$29>0,IF($AE17<$I$29,$G$29,IF($AE17<$I$29+$J$29,$G$29+((H$29-G$29)*($AE17-I$29)/J$29),$H$29)),$G$29)) -> 142 | AG17: =IF('Macro input'!$Q$19=1,'Macro input'!D110,IF($K$31>0,IF($AE17<$I$31,$G$31,IF($AE17<$I$31+$J$31,$G$31+((H$31-G$31)*($AE17-I$31)/J$31),$H$31)),$G$31)) -> 150 | AI17: 0.225 | AJ17: 6 | AK17: 10 | AL17: 15 | AM17: 20 | AN17: 5
A18: =IF(C18<>"",IF(C18<>VLOOKUP(C18,Compounds!$B$11:'Compounds'!$G$610,1),"Name error",13),"") ->  | M18: Green: | N18: =IF('Macro input'!F19=0,"LSS","Complex") -> LSS | P18: =IF(Columns!T23<>"",Columns!T23,"") -> 18.64253096 | Q18: =IF(Columns!U23<>"",Columns!U23,"") -> 0.3239370811 | R18: =IF(Columns!X23<>"",Columns!V23,"") -> DB-35 | T18: =IF(Columns!X23<>"",Columns!X23,"") -> 35 % diphenylsiloxane | AD18: =IF(AND(Columns!AF23<>"",Columns!AF23<>0),Columns!AF23,"") -> 0.008048257286 | AE18: 4.5 | AF18: =IF('Macro input'!$F$19=1,'Macro input'!C111,IF($K$29>0,IF($AE18<$I$29,$G$29,IF($AE18<$I$29+$J$29,$G$29+((H$29-G$29)*($AE18-I$29)/J$29),$H$29)),$G$29)) -> 145 | AG18: =IF('Macro input'!$Q$19=1,'Macro input'!D111,IF($K$31>0,IF($AE18<$I$31,$G$31,IF($AE18<$I$31+$J$31,$G$31+((H$31-G$31)*($AE18-I$31)/J$31),$H$31)),$G$31)) -> 150 | AI18: 0.24 | AJ18: 6 | AK18: 10 | AL18: 15 | AM18: 20 | AN18: 5
A19: =IF(C19<>"",IF(C19<>VLOOKUP(C19,Compounds!$B$11:'Compounds'!$G$610,1),"Name error",14),"") ->  | M19: Blue: | N19: =IF('Macro input'!Q19=0,"LSS","Complex") -> LSS | P19: =IF(Columns!T24<>"",Columns!T24,"") -> 21.99417785 | Q19: =IF(Columns!U24<>"",Columns!U24,"") -> 0.3815156204 | R19: =IF(Columns!X24<>"",Columns!V24,"") -> Rxi-17 | T19: =IF(Columns!X24<>"",Columns!X24,"") -> 50 % diphenylsiloxane | AD19: =IF(AND(Columns!AF24<>"",Columns!AF24<>0),Columns!AF24,"") -> 0.008048257286 | AE19: 4.8 | AF19: =IF('Macro input'!$F$19=1,'Macro input'!C112,IF($K$29>0,IF($AE19<$I$29,$G$29,IF($AE19<$I$29+$J$29,$G$29+((H$29-G$29)*($AE19-I$29)/J$29),$H$29)),$G$29)) -> 148 | AG19: =IF('Macro input'!$Q$19=1,'Macro input'!D112,IF($K$31>0,IF($AE19<$I$31,$G$31,IF($AE19<$I$31+$J$31,$G$31+((H$31-G$31)*($AE19-I$31)/J$31),$H$31)),$G$31)) -> 150 | AI19: 0.255 | AJ19: 6 | AK19: 10 | AL19: 15 | AM19: 20 | AN19: 5
A20: =IF(C20<>"",IF(C20<>VLOOKUP(C20,Compounds!$B$11:'Compounds'!$G$610,1),"Name error",15),"") ->  | P20: =IF(Columns!T25<>"",Columns!T25,"") -> 22.25833115 | Q20: =IF(Columns!U25<>"",Columns!U25,"") -> 0.386040318 | R20: =IF(Columns!X25<>"",Columns!V25,"") -> Rxi-17-240 | T20: =IF(Columns!X25<>"",Columns!X25,"") -> 50% poly(dimethyldiphenylsiloxane) Extended temperature range | AD20: =IF(AND(Columns!AF25<>"",Columns!AF25<>0),Columns!AF25,"") ->  | AE20: 5.1 | AF20: =IF('Macro input'!$F$19=1,'Macro input'!C113,IF($K$29>0,IF($AE20<$I$29,$G$29,IF($AE20<$I$29+$J$29,$G$29+((H$29-G$29)*($AE20-I$29)/J$29),$H$29)),$G$29)) -> 151 | AG20: =IF('Macro input'!$Q$19=1,'Macro input'!D113,IF($K$31>0,IF($AE20<$I$31,$G$31,IF($AE20<$I$31+$J$31,$G$31+((H$31-G$31)*($AE20-I$31)/J$31),$H$31)),$G$31)) -> 150 | AI20: 0.27 | AJ20: 6 | AK20: 10 | AL20: 15 | AM20: 20 | AN20: 5
A21: =IF(C21<>"",IF(C21<>VLOOKUP(C21,Compounds!$B$11:'Compounds'!$G$610,1),"Name error",16),"") ->  | M21: C-term. | P21: =IF(Columns!T26<>"",Columns!T26,"") -> 25.30031737 | Q21: =IF(Columns!U26<>"",Columns!U26,"") -> 0.4379927341 | R21: =IF(Columns!X26<>"",Columns!V26,"") -> Rtx-65 | T21: =IF(Columns!X26<>"",Columns!X26,"") -> 65 % diphenylsiloxane | AD21: =IF(AND(Columns!AF26<>"",Columns!AF26<>0),Columns!AF26,"") ->  | AE21: 5.4 | AF21: =IF('Macro input'!$F$19=1,'Macro input'!C114,IF($K$29>0,IF($AE21<$I$29,$G$29,IF($AE21<$I$29+$J$29,$G$29+((H$29-G$29)*($AE21-I$29)/J$29),$H$29)),$G$29)) -> 154 | AG21: =IF('Macro input'!$Q$19=1,'Macro input'!D114,IF($K$31>0,IF($AE21<$I$31,$G$31,IF($AE21<$I$31+$J$31,$G$31+((H$31-G$31)*($AE21-I$31)/J$31),$H$31)),$G$31)) -> 150 | AI21: 0.285 | AJ21: 6 | AK21: 10 | AL21: 15 | AM21: 20 | AN21: 5
A22: =IF(C22<>"",IF(C22<>VLOOKUP(C22,Compounds!$B$11:'Compounds'!$G$610,1),"Name error",17),"") ->  | M22: Green: | N22: =IF(Columns!K7=1,"Litt.","Mean") -> Litt. | P22: =IF(Columns!T27<>"",Columns!T27,"") -> 23.78165727 | Q22: =IF(Columns!U27<>"",Columns!U27,"") -> 0.4120926781 | R22: =IF(Columns!X27<>"",Columns!V27,"") -> Rtx-50 | T22: =IF(Columns!X27<>"",Columns!X27,"") -> (iii) Poly(methylphenylsiloxane) | AD22: =IF(AND(Columns!AF27<>"",Columns!AF27<>0),Columns!AF27,"") -> 0.008048257286 | AE22: 5.7 | AF22: =IF('Macro input'!$F$19=1,'Macro input'!C115,IF($K$29>0,IF($AE22<$I$29,$G$29,IF($AE22<$I$29+$J$29,$G$29+((H$29-G$29)*($AE22-I$29)/J$29),$H$29)),$G$29)) -> 157 | AG22: =IF('Macro input'!$Q$19=1,'Macro input'!D115,IF($K$31>0,IF($AE22<$I$31,$G$31,IF($AE22<$I$31+$J$31,$G$31+((H$31-G$31)*($AE22-I$31)/J$31),$H$31)),$G$31)) -> 150 | AI22: 0.3 | AJ22: 6 | AK22: 10 | AL22: 15 | AM22: 20 | AN22: 5
A23: =IF(C23<>"",IF(C23<>VLOOKUP(C23,Compounds!$B$11:'Compounds'!$G$610,1),"Name error",18),"") ->  | M23: Blue: | N23: =IF(Columns!L7=1,"Litt.","Mean") -> Litt. | P23: =IF(Columns!T28<>"",Columns!T28,"") -> 22.86887419 | Q23: =IF(Columns!U28<>"",Columns!U28,"") -> 0.3964904529 | R23: =IF(Columns!X28<>"",Columns!V28,"") -> Rxi-50 | T23: =IF(Columns!X28<>"",Columns!X28,"") -> (iii) Poly(methylphenylsiloxane) | AD23: =IF(AND(Columns!AF28<>"",Columns!AF28<>0),Columns!AF28,"") -> 0.008048257286 | AE23: 6 | AF23: =IF('Macro input'!$F$19=1,'Macro input'!C116,IF($K$29>0,IF($AE23<$I$29,$G$29,IF($AE23<$I$29+$J$29,$G$29+((H$29-G$29)*($AE23-I$29)/J$29),$H$29)),$G$29)) -> 160 | AG23: =IF('Macro input'!$Q$19=1,'Macro input'!D116,IF($K$31>0,IF($AE23<$I$31,$G$31,IF($AE23<$I$31+$J$31,$G$31+((H$31-G$31)*($AE23-I$31)/J$31),$H$31)),$G$31)) -> 150 | AI23: 0.315 | AJ23: 6 | AK23: 10 | AL23: 15 | AM23: 20 | AN23: 5
A24: =IF(C24<>"",IF(C24<>VLOOKUP(C24,Compounds!$B$11:'Compounds'!$G$610,1),"Name error",19),"") ->  | P24: =IF(Columns!T29<>"",Columns!T29,"") -> 23.74026458 | Q24: =IF(Columns!U29<>"",Columns!U29,"") -> 0.4113857104 | R24: =IF(Columns!X29<>"",Columns!V29,"") -> Rxi-50-240 | T24: =IF(Columns!X29<>"",Columns!X29,"") -> 50% poly(dimethyldiphenylsiloxane) Extended temperature range | AD24: =IF(AND(Columns!AF29<>"",Columns!AF29<>0),Columns!AF29,"") -> 0.006279419424 | AE24: 6.3 | AF24: =IF('Macro input'!$F$19=1,'Macro input'!C117,IF($K$29>0,IF($AE24<$I$29,$G$29,IF($AE24<$I$29+$J$29,$G$29+((H$29-G$29)*($AE24-I$29)/J$29),$H$29)),$G$29)) -> 163 | AG24: =IF('Macro input'!$Q$19=1,'Macro input'!D117,IF($K$31>0,IF($AE24<$I$31,$G$31,IF($AE24<$I$31+$J$31,$G$31+((H$31-G$31)*($AE24-I$31)/J$31),$H$31)),$G$31)) -> 150 | AI24: 0.33 | AJ24: 6 | AK24: 10 | AL24: 15 | AM24: 20 | AN24: 5
A25: =IF(C25<>"",IF(C25<>VLOOKUP(C25,Compounds!$B$11:'Compounds'!$G$610,1),"Name error",20),"") ->  | P25: =IF(Columns!T30<>"",Columns!T30,"") -> 22.47636982 | Q25: =IF(Columns!U30<>"",Columns!U30,"") -> 0.3897735703 | R25: =IF(Columns!X30<>"",Columns!V30,"") -> HP-50+ | T25: =IF(Columns!X30<>"",Columns!X30,"") -> (iii) Poly(methylphenylsiloxane) | AD25: =IF(AND(Columns!AF30<>"",Columns!AF30<>0),Columns!AF30,"") ->  | AE25: 6.6 | AF25: =IF('Macro input'!$F$19=1,'Macro input'!C118,IF($K$29>0,IF($AE25<$I$29,$G$29,IF($AE25<$I$29+$J$29,$G$29+((H$29-G$29)*($AE25-I$29)/J$29),$H$29)),$G$29)) -> 166 | AG25: =IF('Macro input'!$Q$19=1,'Macro input'!D118,IF($K$31>0,IF($AE25<$I$31,$G$31,IF($AE25<$I$31+$J$31,$G$31+((H$31-G$31)*($AE25-I$31)/J$31),$H$31)),$G$31)) -> 150 | AI25: 0.345 | AJ25: 6 | AK25: 10 | AL25: 15 | AM25: 20 | AN25: 5
P26: =IF(Columns!T31<>"",Columns!T31,"") -> 0.6689785746 | Q26: =IF(Columns!U31<>"",Columns!U31,"") -> 0.01158984883 | R26: =IF(Columns!X31<>"",Columns!V31,"") -> DB-5ms | T26: =IF(Columns!X31<>"",Columns!X31,"") -> 5 % 1,4-bis(dimethylsiloxane)phenylene | AD26: =IF(AND(Columns!AF31<>"",Columns!AF31<>0),Columns!AF31,"") -> 0.01619406868 | AE26: 6.9 | AF26: =IF('Macro input'!$F$19=1,'Macro input'!C119,IF($K$29>0,IF($AE26<$I$29,$G$29,IF($AE26<$I$29+$J$29,$G$29+((H$29-G$29)*($AE26-I$29)/J$29),$H$29)),$G$29)) -> 169 | AG26: =IF('Macro input'!$Q$19=1,'Macro input'!D119,IF($K$31>0,IF($AE26<$I$31,$G$31,IF($AE26<$I$31+$J$31,$G$31+((H$31-G$31)*($AE26-I$31)/J$31),$H$31)),$G$31)) -> 150 | AI26: 0.36 | AJ26: 6 | AK26: 10 | AL26: 15 | AM26: 20 | AN26: 5
A27: Table 2 | C27: Table 3 | P27: =IF(Columns!T32<>"",Columns!T32,"") -> 0.9424154449 | Q27: =IF(Columns!U32<>"",Columns!U32,"") -> 0.01638715682 | R27: =IF(Columns!X32<>"",Columns!V32,"") -> ZB-5MS | T27: =IF(Columns!X32<>"",Columns!X32,"") -> (iv) Silarylene-siloxane and similar copolymers | AD27: =IF(AND(Columns!AF32<>"",Columns!AF32<>0),Columns!AF32,"") -> 0.008048257286 | AE27: 7.2 | AF27: =IF('Macro input'!$F$19=1,'Macro input'!C120,IF($K$29>0,IF($AE27<$I$29,$G$29,IF($AE27<$I$29+$J$29,$G$29+((H$29-G$29)*($AE27-I$29)/J$29),$H$29)),$G$29)) -> 172 | AG27: =IF('Macro input'!$Q$19=1,'Macro input'!D120,IF($K$31>0,IF($AE27<$I$31,$G$31,IF($AE27<$I$31+$J$31,$G$31+((H$31-G$31)*($AE27-I$31)/J$31),$H$31)),$G$31)) -> 150 | AI27: 0.375 | AJ27: 6 | AK27: 10 | AL27: 15 | AM27: 20 | AN27: 5
A28: GC-parameters | E28: Name* | F28: Beta-ratio | G28: To | H28: Tmax | I28: t(iso) | J28: t(pgm) | K28: dT | L28: Degree | M28: Offset | N28: Amplify | P28: =IF(Columns!T33<>"",Columns!T33,"") -> 2.268475888 | Q28: =IF(Columns!U33<>"",Columns!U33,"") -> 0.03956452023 | R28: =IF(Columns!X33<>"",Columns!V33,"") -> HP-5TA | T28: =IF(Columns!X33<>"",Columns!X33,"") -> (iv) Silarylene-siloxane and similar copolymers | AD28: =IF(AND(Columns!AF33<>"",Columns!AF33<>0),Columns!AF33,"") -> 0.00160192205 | AE28: 7.5 | AF28: =IF('Macro input'!$F$19=1,'Macro input'!C121,IF($K$29>0,IF($AE28<$I$29,$G$29,IF($AE28<$I$29+$J$29,$G$29+((H$29-G$29)*($AE28-I$29)/J$29),$H$29)),$G$29)) -> 175 | AG28: =IF('Macro input'!$Q$19=1,'Macro input'!D121,IF($K$31>0,IF($AE28<$I$31,$G$31,IF($AE28<$I$31+$J$31,$G$31+((H$31-G$31)*($AE28-I$31)/J$31),$H$31)),$G$31)) -> 150 | AI28: 0.39 | AJ28: 6 | AK28: 10 | AL28: 15 | AM28: 20 | AN28: 5
A29: tM, min | B29: 1 | C29: Green Linear | E29: HP-5 | F29: 1 | G29: 100 | H29: 300 | I29: 0 | J29: 20 | K29: =IF(H29>G29,H29-G29,0) -> 200 | L29: 1 | M29: 6 | N29: 1 | P29: =IF(Columns!T34<>"",Columns!T34,"") -> 8.076727622 | Q29: =IF(Columns!U34<>"",Columns!U34,"") -> 0.1408417036 | R29: =IF(Columns!X34<>"",Columns!V34,"") -> Rxi-5Sil MS | T29: =IF(Columns!X34<>"",Columns!X34,"") -> (iv) Silarylene-siloxane and similar copolymers | AD29: =IF(AND(Columns!AF34<>"",Columns!AF34<>0),Columns!AF34,"") -> 0.008048257286 | AE29: 7.8 | AF29: =IF('Macro input'!$F$19=1,'Macro input'!C122,IF($K$29>0,IF($AE29<$I$29,$G$29,IF($AE29<$I$29+$J$29,$G$29+((H$29-G$29)*($AE29-I$29)/J$29),$H$29)),$G$29)) -> 178 | AG29: =IF('Macro input'!$Q$19=1,'Macro input'!D122,IF($K$31>0,IF($AE29<$I$31,$G$31,IF($AE29<$I$31+$J$31,$G$31+((H$31-G$31)*($AE29-I$31)/J$31),$H$31)),$G$31)) -> 150 | AI29: 0.405 | AJ29: 6 | AK29: 10 | AL29: 15 | AM29: 20 | AN29: 5
A30: N | B30: 2000 | C30: Green Polynomial | L30: 1 | M30: 10 | N30: 1 | P30: =IF(Columns!T35<>"",Columns!T35,"") -> 18.8725435 | Q30: =IF(Columns!U35<>"",Columns!U35,"") -> 0.3278979308 | R30: =IF(Columns!X35<>"",Columns!V35,"") -> DB-35ms | T30: =IF(Columns!X35<>"",Columns!X35,"") -> 35 % 1,4-bis(dimethylsiloxane)phenylene | AD30: =IF(AND(Columns!AF35<>"",Columns!AF35<>0),Columns!AF35,"") -> 0.008048257286 | AE30: 8.1 | AF30: =IF('Macro input'!$F$19=1,'Macro input'!C123,IF($K$29>0,IF($AE30<$I$29,$G$29,IF($AE30<$I$29+$J$29,$G$29+((H$29-G$29)*($AE30-I$29)/J$29),$H$29)),$G$29)) -> 181 | AG30: =IF('Macro input'!$Q$19=1,'Macro input'!D123,IF($K$31>0,IF($AE30<$I$31,$G$31,IF($AE30<$I$31+$J$31,$G$31+((H$31-G$31)*($AE30-I$31)/J$31),$H$31)),$G$31)) -> 150 | AI30: 0.42 | AJ30: 6 | AK30: 10 | AL30: 15 | AM30: 20 | AN30: 5
A31: tmax, min | B31: 30 | C31: Blue Linear | E31: HP-5 | F31: 1 | G31: 150 | H31: 150 | I31: 0 | J31: 20 | K31: =IF(H31>G31,H31-G31,0) -> 0 | L31: 1 | M31: 15 | N31: 1 | P31: =IF(Columns!T36<>"",Columns!T36,"") -> 23.2260907 | Q31: =IF(Columns!U36<>"",Columns!U36,"") -> 0.4025994158 | R31: =IF(Columns!X36<>"",Columns!V36,"") -> DB-17ms | T31: =IF(Columns!X36<>"",Columns!X36,"") -> 50 % 1,4-bis(dimethylsiloxane)phenylene | AD31: =IF(AND(Columns!AF36<>"",Columns!AF36<>0),Columns!AF36,"") -> 0.00401203208 | AE31: 8.4 | AF31: =IF('Macro input'!$F$19=1,'Macro input'!C124,IF($K$29>0,IF($AE31<$I$29,$G$29,IF($AE31<$I$29+$J$29,$G$29+((H$29-G$29)*($AE31-I$29)/J$29),$H$29)),$G$29)) -> 184 | AG31: =IF('Macro input'!$Q$19=1,'Macro input'!D124,IF($K$31>0,IF($AE31<$I$31,$G$31,IF($AE31<$I$31+$J$31,$G$31+((H$31-G$31)*($AE31-I$31)/J$31),$H$31)),$G$31)) -> 150 | AI31: 0.435 | AJ31: 6.000000001 | AK31: 10 | AL31: 15 | AM31: 20 | AN31: 4.999999999
A32: tM intensity | B32: 0.1 | C32: Blue Polynomial | L32: 2 | M32: 20 | N32: 1 | P32: =IF(Columns!T37<>"",Columns!T37,"") -> 13.82472367 | Q32: =IF(Columns!U37<>"",Columns!U37,"") -> 0.2406979016 | R32: =IF(Columns!X37<>"",Columns!V37,"") -> Stx-500 | T32: =IF(Columns!X37<>"",Columns!X37,"") -> Carborane-siloxane copolymer containing 5 % phenyl | AD32: =IF(AND(Columns!AF37<>"",Columns!AF37<>0),Columns!AF37,"") -> 0.002404326922 | AE32: 8.7 | AF32: =IF('Macro input'!$F$19=1,'Macro input'!C125,IF($K$29>0,IF($AE32<$I$29,$G$29,IF($AE32<$I$29+$J$29,$G$29+((H$29-G$29)*($AE32-I$29)/J$29),$H$29)),$G$29)) -> 187 | AG32: =IF('Macro input'!$Q$19=1,'Macro input'!D125,IF($K$31>0,IF($AE32<$I$31,$G$31,IF($AE32<$I$31+$J$31,$G$31+((H$31-G$31)*($AE32-I$31)/J$31),$H$31)),$G$31)) -> 150 | AI32: 0.45 | AJ32: 6.000000003 | AK32: 10 | AL32: 15 | AM32: 20 | AN32: 4.999999997
A33: 4/sqrt(N) | B33: =4/SQRT(B30) -> 0.0894427191 | C33: Reference | M33: 5 | N33: -1 | P33: =IF(Columns!T38<>"",Columns!T38,"") -> 35.64839608 | Q33: =IF(Columns!U38<>"",Columns!U38,"") -> 0.6121931579 | R33: =IF(Columns!X38<>"",Columns!V38,"") -> DB-200 | T33: =IF(Columns!X38<>"",Columns!X38,"") -> 35 % 3,3,3-trifluoropropylmethylsiloxane | AD33: =IF(AND(Columns!AF38<>"",Columns!AF38<>0),Columns!AF38,"") -> 0.008048257286 | AE33: 9 | AF33: =IF('Macro input'!$F$19=1,'Macro input'!C126,IF($K$29>0,IF($AE33<$I$29,$G$29,IF($AE33<$I$29+$J$29,$G$29+((H$29-G$29)*($AE33-I$29)/J$29),$H$29)),$G$29)) -> 190 | AG33: =IF('Macro input'!$Q$19=1,'Macro input'!D126,IF($K$31>0,IF($AE33<$I$31,$G$31,IF($AE33<$I$31+$J$31,$G$31+((H$31-G$31)*($AE33-I$31)/J$31),$H$31)),$G$31)) -> 150 | AI33: 0.465 | AJ33: 6.000000008 | AK33: 10.00000001 | AL33: 15.00000001 | AM33: 20.00000001 | AN33: 4.999999992
A34: dt | B34: =B31/2000 -> 0.015 | P34: =IF(Columns!T39<>"",Columns!T39,"") -> 39.63733471 | Q34: =IF(Columns!U39<>"",Columns!U39,"") -> 0.6780874204 | R34: =IF(Columns!X39<>"",Columns!V39,"") -> DB-210 | T34: =IF(Columns!X39<>"",Columns!X39,"") -> 50 % 3,3,3-trifluoropropylmethylsiloxane | AD34: =IF(AND(Columns!AF39<>"",Columns!AF39<>0),Columns!AF39,"") -> 0.003132339507 | AE34: 9.3 | AF34: =IF('Macro input'!$F$19=1,'Macro input'!C127,IF($K$29>0,IF($AE34<$I$29,$G$29,IF($AE34<$I$29+$J$29,$G$29+((H$29-G$29)*($AE34-I$29)/J$29),$H$29)),$G$29)) -> 193 | AG34: =IF('Macro input'!$Q$19=1,'Macro input'!D127,IF($K$31>0,IF($AE34<$I$31,$G$31,IF($AE34<$I$31+$J$31,$G$31+((H$31-G$31)*($AE34-I$31)/J$31),$H$31)),$G$31)) -> 150 | AI34: 0.48 | AJ34: 6.00000002 | AK34: 10.00000002 | AL34: 15.00000002 | AM34: 20.00000002 | AN34: 4.99999998
P35: =IF(Columns!T40<>"",Columns!T40,"") -> 5.768947616 | Q35: =IF(Columns!U40<>"",Columns!U40,"") -> 0.1006346677 | R35: =IF(Columns!X40<>"",Columns!V40,"") -> DB-XLB | T35: =IF(Columns!X40<>"",Columns!X40,"") -> Proprietary (similar to DB-5 ms but more dipolar/polarizable) | AD35: =IF(AND(Columns!AF40<>"",Columns!AF40<>0),Columns!AF40,"") -> 0.008048257286 | AE35: 9.6 | AF35: =IF('Macro input'!$F$19=1,'Macro input'!C128,IF($K$29>0,IF($AE35<$I$29,$G$29,IF($AE35<$I$29+$J$29,$G$29+((H$29-G$29)*($AE35-I$29)/J$29),$H$29)),$G$29)) -> 196 | AG35: =IF('Macro input'!$Q$19=1,'Macro input'!D128,IF($K$31>0,IF($AE35<$I$31,$G$31,IF($AE35<$I$31+$J$31,$G$31+((H$31-G$31)*($AE35-I$31)/J$31),$H$31)),$G$31)) -> 150 | AI35: 0.495 | AJ35: 6.000000053 | AK35: 10.00000005 | AL35: 15.00000005 | AM35: 20.00000005 | AN35: 4.999999947
P36: =IF(Columns!T41<>"",Columns!T41,"") -> 6.967794261 | Q36: =IF(Columns!U41<>"",Columns!U41,"") -> 0.1215277982 | R36: =IF(Columns!X41<>"",Columns!V41,"") -> DB-VRX | T36: =IF(Columns!X41<>"",Columns!X41,"") -> Proprietary (similar to DB-5) | AD36: =IF(AND(Columns!AF41<>"",Columns!AF41<>0),Columns!AF41,"") -> 0.008048257286 | AE36: =AE35+$B$31/100 -> 9.9 | AF36: =IF('Macro input'!$F$19=1,'Macro input'!C129,IF($K$29>0,IF($AE36<$I$29,$G$29,IF($AE36<$I$29+$J$29,$G$29+((H$29-G$29)*($AE36-I$29)/J$29),$H$29)),$G$29)) -> 199 | AG36: =IF('Macro input'!$Q$19=1,'Macro input'!D129,IF($K$31>0,IF($AE36<$I$31,$G$31,IF($AE36<$I$31+$J$31,$G$31+((H$31-G$31)*($AE36-I$31)/J$31),$H$31)),$G$31)) -> 150 | AI36: 0.51 | AJ36: 6.000000136 | AK36: 10.00000014 | AL36: 15.00000014 | AM36: 20.00000014 | AN36: 4.999999864
P37: =IF(Columns!T42<>"",Columns!T42,"") -> 6.890102819 | Q37: =IF(Columns!U42<>"",Columns!U42,"") -> 0.1201742122 | R37: =IF(Columns!X42<>"",Columns!V42,"") -> Rtx-440 | T37: =IF(Columns!X42<>"",Columns!X42,"") -> Proprietary (for non-hydrogen-bond acids similar to DB-XLB) | AD37: =IF(AND(Columns!AF42<>"",Columns!AF42<>0),Columns!AF42,"") -> 0.008048257286 | AE37: 10.2 | AF37: =IF('Macro input'!$F$19=1,'Macro input'!C130,IF($K$29>0,IF($AE37<$I$29,$G$29,IF($AE37<$I$29+$J$29,$G$29+((H$29-G$29)*($AE37-I$29)/J$29),$H$29)),$G$29)) -> 202 | AG37: =IF('Macro input'!$Q$19=1,'Macro input'!D130,IF($K$31>0,IF($AE37<$I$31,$G$31,IF($AE37<$I$31+$J$31,$G$31+((H$31-G$31)*($AE37-I$31)/J$31),$H$31)),$G$31)) -> 150 | AI37: 0.525 | AJ37: 6.000000335 | AK37: 10.00000034 | AL37: 15.00000034 | AM37: 20.00000034 | AN37: 4.999999665
P38: =IF(Columns!T43<>"",Columns!T43,"") -> 21.24821461 | Q38: =IF(Columns!U43<>"",Columns!U43,"") -> 0.3687271004 | R38: =IF(Columns!X43<>"",Columns!V43,"") -> Rtx-VGC | T38: =IF(Columns!X43<>"",Columns!X43,"") -> Proprietary (for non-hydrogen bond acids similar to DB-1701) | AD38: =IF(AND(Columns!AF43<>"",Columns!AF43<>0),Columns!AF43,"") -> 0.02278201946 | AE38: 10.5 | AF38: =IF('Macro input'!$F$19=1,'Macro input'!C131,IF($K$29>0,IF($AE38<$I$29,$G$29,IF($AE38<$I$29+$J$29,$G$29+((H$29-G$29)*($AE38-I$29)/J$29),$H$29)),$G$29)) -> 205 | AG38: =IF('Macro input'!$Q$19=1,'Macro input'!D131,IF($K$31>0,IF($AE38<$I$31,$G$31,IF($AE38<$I$31+$J$31,$G$31+((H$31-G$31)*($AE38-I$31)/J$31),$H$31)),$G$31)) -> 150 | AI38: 0.54 | AJ38: 6.000000805 | AK38: 10.00000081 | AL38: 15.00000081 | AM38: 20.00000081 | AN38: 4.999999195
P39: =IF(Columns!T44<>"",Columns!T44,"") -> 9.142006518 | Q39: =IF(Columns!U44<>"",Columns!U44,"") -> 0.1593826372 | R39: =IF(Columns!X44<>"",Columns!V44,"") -> Rtx-Volatiles | T39: =IF(Columns!X44<>"",Columns!X44,"") -> Poly(dimethyldiphenylsiloxane) estimated to contain ÷ 15-16 % diphenylsiloxane monomer | AD39: =IF(AND(Columns!AF44<>"",Columns!AF44<>0),Columns!AF44,"") -> 0.008048257286 | AE39: 10.8 | AF39: =IF('Macro input'!$F$19=1,'Macro input'!C132,IF($K$29>0,IF($AE39<$I$29,$G$29,IF($AE39<$I$29+$J$29,$G$29+((H$29-G$29)*($AE39-I$29)/J$29),$H$29)),$G$29)) -> 208 | AG39: =IF('Macro input'!$Q$19=1,'Macro input'!D132,IF($K$31>0,IF($AE39<$I$31,$G$31,IF($AE39<$I$31+$J$31,$G$31+((H$31-G$31)*($AE39-I$31)/J$31),$H$31)),$G$31)) -> 150 | AI39: 0.555 | AJ39: 6.000001881 | AK39: 10.00000188 | AL39: 15.00000188 | AM39: 20.00000188 | AN39: 4.999998119
P40: =IF(Columns!T45<>"",Columns!T45,"") -> 22.99974682 | Q40: =IF(Columns!U45<>"",Columns!U45,"") -> 0.3987290307 | R40: =IF(Columns!X45<>"",Columns!V45,"") -> DB-608 | T40: =IF(Columns!X45<>"",Columns!X45,"") -> Poly(dimethyldiphenylsiloxane) estimated to contain ÷ 50-65 % diphenylsiloxane monomer | AD40: =IF(AND(Columns!AF45<>"",Columns!AF45<>0),Columns!AF45,"") -> 0.00401203208 | AE40: 11.1 | AF40: =IF('Macro input'!$F$19=1,'Macro input'!C133,IF($K$29>0,IF($AE40<$I$29,$G$29,IF($AE40<$I$29+$J$29,$G$29+((H$29-G$29)*($AE40-I$29)/J$29),$H$29)),$G$29)) -> 211 | AG40: =IF('Macro input'!$Q$19=1,'Macro input'!D133,IF($K$31>0,IF($AE40<$I$31,$G$31,IF($AE40<$I$31+$J$31,$G$31+((H$31-G$31)*($AE40-I$31)/J$31),$H$31)),$G$31)) -> 150 | AI40: 0.57 | AJ40: 6.000004271 | AK40: 10.00000427 | AL40: 15.00000427 | AM40: 20.00000427 | AN40: 4.999995729
P41: =IF(Columns!T46<>"",Columns!T46,"") -> 2.220082152 | Q41: =IF(Columns!U46<>"",Columns!U46,"") -> 0.03871950112 | R41: =IF(Columns!X46<>"",Columns!V46,"") -> Rtx-TNT | T41: =IF(Columns!X46<>"",Columns!X46,"") -> Poly(dimethyldiphenylsiloxane) estimated to contain 5 % | AD41: =IF(AND(Columns!AF46<>"",Columns!AF46<>0),Columns!AF46,"") -> 0.01141760493 | AE41: 11.4 | AF41: =IF('Macro input'!$F$19=1,'Macro input'!C134,IF($K$29>0,IF($AE41<$I$29,$G$29,IF($AE41<$I$29+$J$29,$G$29+((H$29-G$29)*($AE41-I$29)/J$29),$H$29)),$G$29)) -> 214 | AG41: =IF('Macro input'!$Q$19=1,'Macro input'!D134,IF($K$31>0,IF($AE41<$I$31,$G$31,IF($AE41<$I$31+$J$31,$G$31+((H$31-G$31)*($AE41-I$31)/J$31),$H$31)),$G$31)) -> 150 | AI41: 0.585 | AJ41: 6.000009432 | AK41: 10.00000943 | AL41: 15.00000943 | AM41: 20.00000943 | AN41: 4.999990568
P42: =IF(Columns!T47<>"",Columns!T47,"") -> 31.28520753 | Q42: =IF(Columns!U47<>"",Columns!U47,"") -> 0.5392700072 | R42: =IF(Columns!X47<>"",Columns!V47,"") -> Rtx-TNT2 | T42: =IF(Columns!X47<>"",Columns!X47,"") -> Poly(dimethylmethyltrifluoropropylsiloxane)-type phase | AD42: =IF(AND(Columns!AF47<>"",Columns!AF47<>0),Columns!AF47,"") -> 0.01141760493 | AE42: 11.7 | AF42: =IF('Macro input'!$F$19=1,'Macro input'!C135,IF($K$29>0,IF($AE42<$I$29,$G$29,IF($AE42<$I$29+$J$29,$G$29+((H$29-G$29)*($AE42-I$29)/J$29),$H$29)),$G$29)) -> 217 | AG42: =IF('Macro input'!$Q$19=1,'Macro input'!D135,IF($K$31>0,IF($AE42<$I$31,$G$31,IF($AE42<$I$31+$J$31,$G$31+((H$31-G$31)*($AE42-I$31)/J$31),$H$31)),$G$31)) -> 150 | AI42: 0.6 | AJ42: 6.00002025 | AK42: 10.00002025 | AL42: 15.00002025 | AM42: 20.00002025 | AN42: 4.99997975
P43: =IF(Columns!T48<>"",Columns!T48,"") -> 25.77997111 | Q43: =IF(Columns!U48<>"",Columns!U48,"") -> 0.4461572364 | R43: =IF(Columns!X48<>"",Columns!V48,"") -> Rtx-CLPesticides | T43: =IF(Columns!X48<>"",Columns!X48,"") -> Poly(dimethylmethyltrifluoropropylsiloxane)-type phase | AD43: =IF(AND(Columns!AF48<>"",Columns!AF48<>0),Columns!AF48,"") -> 0.00401203208 | AE43: 12 | AF43: =IF('Macro input'!$F$19=1,'Macro input'!C136,IF($K$29>0,IF($AE43<$I$29,$G$29,IF($AE43<$I$29+$J$29,$G$29+((H$29-G$29)*($AE43-I$29)/J$29),$H$29)),$G$29)) -> 220 | AG43: =IF('Macro input'!$Q$19=1,'Macro input'!D136,IF($K$31>0,IF($AE43<$I$31,$G$31,IF($AE43<$I$31+$J$31,$G$31+((H$31-G$31)*($AE43-I$31)/J$31),$H$31)),$G$31)) -> 150 | AI43: 0.615 | AJ43: 6.00004227 | AK43: 10.00004227 | AL43: 15.00004227 | AM43: 20.00004227 | AN43: 4.99995773
P44: =IF(Columns!T49<>"",Columns!T49,"") -> 31.01894387 | Q44: =IF(Columns!U49<>"",Columns!U49,"") -> 0.5347934829 | R44: =IF(Columns!X49<>"",Columns!V49,"") -> Rtx-OPPesticides | T44: =IF(Columns!X49<>"",Columns!X49,"") -> Poly(dimethylmethyltrifluoropropylsiloxane)-type phase | AD44: =IF(AND(Columns!AF49<>"",Columns!AF49<>0),Columns!AF49,"") -> 0.006279419424 | AE44: 12.3 | AF44: =IF('Macro input'!$F$19=1,'Macro input'!C137,IF($K$29>0,IF($AE44<$I$29,$G$29,IF($AE44<$I$29+$J$29,$G$29+((H$29-G$29)*($AE44-I$29)/J$29),$H$29)),$G$29)) -> 223 | AG44: =IF('Macro input'!$Q$19=1,'Macro input'!D137,IF($K$31>0,IF($AE44<$I$31,$G$31,IF($AE44<$I$31+$J$31,$G$31+((H$31-G$31)*($AE44-I$31)/J$31),$H$31)),$G$31)) -> 150 | AI44: 0.63 | AJ44: 6.000085789 | AK44: 10.00008579 | AL44: 15.00008579 | AM44: 20.00008579 | AN44: 4.999914211
P45: =IF(Columns!T50<>"",Columns!T50,"") -> 17.04804813 | Q45: =IF(Columns!U50<>"",Columns!U50,"") -> 0.2964448098 | R45: =IF(Columns!X50<>"",Columns!V50,"") -> Rtx-Dioxin | T45: =IF(Columns!X50<>"",Columns!X50,"") -> Similar to Stx-500 (carborane-dimethylsiloxane with 5 % phenyl) | AD45: =IF(AND(Columns!AF50<>"",Columns!AF50<>0),Columns!AF50,"") -> 0.002404326922 | AE45: 12.6 | AF45: =IF('Macro input'!$F$19=1,'Macro input'!C138,IF($K$29>0,IF($AE45<$I$29,$G$29,IF($AE45<$I$29+$J$29,$G$29+((H$29-G$29)*($AE45-I$29)/J$29),$H$29)),$G$29)) -> 226 | AG45: =IF('Macro input'!$Q$19=1,'Macro input'!D138,IF($K$31>0,IF($AE45<$I$31,$G$31,IF($AE45<$I$31+$J$31,$G$31+((H$31-G$31)*($AE45-I$31)/J$31),$H$31)),$G$31)) -> 150 | AI45: 0.645 | AJ45: 6.000169285 | AK45: 10.00016928 | AL45: 15.00016928 | AM45: 20.00016928 | AN45: 4.999830715
P46: =IF(Columns!T51<>"",Columns!T51,"") -> 6.243231761 | Q46: =IF(Columns!U51<>"",Columns!U51,"") -> 0.1089018685 | R46: =IF(Columns!X51<>"",Columns!V51,"") -> DB-Dioxin2 | T46: =IF(Columns!X51<>"",Columns!X51,"") -> Similar to DB-XLB and Rtx-Volatiles | AD46: =IF(AND(Columns!AF51<>"",Columns!AF51<>0),Columns!AF51,"") -> 0.00401203208 | AE46: 12.9 | AF46: =IF('Macro input'!$F$19=1,'Macro input'!C139,IF($K$29>0,IF($AE46<$I$29,$G$29,IF($AE46<$I$29+$J$29,$G$29+((H$29-G$29)*($AE46-I$29)/J$29),$H$29)),$G$29)) -> 229 | AG46: =IF('Macro input'!$Q$19=1,'Macro input'!D139,IF($K$31>0,IF($AE46<$I$31,$G$31,IF($AE46<$I$31+$J$31,$G$31+((H$31-G$31)*($AE46-I$31)/J$31),$H$31)),$G$31)) -> 150 | AI46: 0.66 | AJ46: 6.000324779 | AK46: 10.00032478 | AL46: 15.00032478 | AM46: 20.00032478 | AN46: 4.999675221
P47: =IF(Columns!T52<>"",Columns!T52,"") -> 38.70395734 | Q47: =IF(Columns!U52<>"",Columns!U52,"") -> 0.6627394347 | R47: =IF(Columns!X52<>"",Columns!V52,"") -> DB-23 | T47: =IF(Columns!X52<>"",Columns!X52,"") -> 100 % 3-cyanopropylmethylsiloxane | AD47: =IF(AND(Columns!AF52<>"",Columns!AF52<>0),Columns!AF52,"") -> 0.00401203208 | AE47: 13.2 | AF47: =IF('Macro input'!$F$19=1,'Macro input'!C140,IF($K$29>0,IF($AE47<$I$29,$G$29,IF($AE47<$I$29+$J$29,$G$29+((H$29-G$29)*($AE47-I$29)/J$29),$H$29)),$G$29)) -> 232 | AG47: =IF('Macro input'!$Q$19=1,'Macro input'!D140,IF($K$31>0,IF($AE47<$I$31,$G$31,IF($AE47<$I$31+$J$31,$G$31+((H$31-G$31)*($AE47-I$31)/J$31),$H$31)),$G$31)) -> 150 | AI47: 0.675 | AJ47: 6.000605819 | AK47: 10.00060582 | AL47: 15.00060582 | AM47: 20.00060582 | AN47: 4.999394181
P48: =IF(Columns!T53<>"",Columns!T53,"") -> 13.65896446 | Q48: =IF(Columns!U53<>"",Columns!U53,"") -> 0.2378255852 | R48: =IF(Columns!X53<>"",Columns!V53,"") -> DB-1301 | T48: =IF(Columns!X53<>"",Columns!X53,"") -> 6 % 3-cyanopropylphenylsiloxane | AD48: =IF(AND(Columns!AF53<>"",Columns!AF53<>0),Columns!AF53,"") -> 0.01619406868 | AE48: 13.5 | AF48: =IF('Macro input'!$F$19=1,'Macro input'!C141,IF($K$29>0,IF($AE48<$I$29,$G$29,IF($AE48<$I$29+$J$29,$G$29+((H$29-G$29)*($AE48-I$29)/J$29),$H$29)),$G$29)) -> 235 | AG48: =IF('Macro input'!$Q$19=1,'Macro input'!D141,IF($K$31>0,IF($AE48<$I$31,$G$31,IF($AE48<$I$31+$J$31,$G$31+((H$31-G$31)*($AE48-I$31)/J$31),$H$31)),$G$31)) -> 150 | AI48: 0.69 | AJ48: 6.001098712 | AK48: 10.00109871 | AL48: 15.00109871 | AM48: 20.00109871 | AN48: 4.998901288
P49: =IF(Columns!T54<>"",Columns!T54,"") -> 14.68550979 | Q49: =IF(Columns!U54<>"",Columns!U54,"") -> 0.2556055645 | R49: =IF(Columns!X54<>"",Columns!V54,"") -> DB-624 | T49: =IF(Columns!X54<>"",Columns!X54,"") -> 6 % 3-cyanopropylphenylsiloxane | AD49: =IF(AND(Columns!AF54<>"",Columns!AF54<>0),Columns!AF54,"") -> 0.02278201946 | AE49: 13.8 | AF49: =IF('Macro input'!$F$19=1,'Macro input'!C142,IF($K$29>0,IF($AE49<$I$29,$G$29,IF($AE49<$I$29+$J$29,$G$29+((H$29-G$29)*($AE49-I$29)/J$29),$H$29)),$G$29)) -> 238 | AG49: =IF('Macro input'!$Q$19=1,'Macro input'!D142,IF($K$31>0,IF($AE49<$I$31,$G$31,IF($AE49<$I$31+$J$31,$G$31+((H$31-G$31)*($AE49-I$31)/J$31),$H$31)),$G$31)) -> 150 | AI49: 0.705 | AJ49: 6.00193736 | AK49: 10.00193736 | AL49: 15.00193736 | AM49: 20.00193736 | AN49: 4.99806264
P50: =IF(Columns!T55<>"",Columns!T55,"") -> 23.39446835 | Q50: =IF(Columns!U55<>"",Columns!U55,"") -> 0.4054775845 | R50: =IF(Columns!X55<>"",Columns!V55,"") -> DB-1701 | T50: =IF(Columns!X55<>"",Columns!X55,"") -> 14 % 3-cyanopropylphenylsiloxane | AD50: =IF(AND(Columns!AF55<>"",Columns!AF55<>0),Columns!AF55,"") -> 0.003132339507 | AE50: 14.1 | AF50: =IF('Macro input'!$F$19=1,'Macro input'!C143,IF($K$29>0,IF($AE50<$I$29,$G$29,IF($AE50<$I$29+$J$29,$G$29+((H$29-G$29)*($AE50-I$29)/J$29),$H$29)),$G$29)) -> 241 | AG50: =IF('Macro input'!$Q$19=1,'Macro input'!D143,IF($K$31>0,IF($AE50<$I$31,$G$31,IF($AE50<$I$31+$J$31,$G$31+((H$31-G$31)*($AE50-I$31)/J$31),$H$31)),$G$31)) -> 150 | AI50: 0.72 | AJ50: 6.003321407 | AK50: 10.00332141 | AL50: 15.00332141 | AM50: 20.00332141 | AN50: 4.996678593
P51: =IF(Columns!T56<>"",Columns!T56,"") -> 35.50021385 | Q51: =IF(Columns!U56<>"",Columns!U56,"") -> 0.6097305127 | R51: =IF(Columns!X56<>"",Columns!V56,"") -> DB-225 | T51: =IF(Columns!X56<>"",Columns!X56,"") -> 50 % 3-cyanopropylphenylsiloxane | AD51: =IF(AND(Columns!AF56<>"",Columns!AF56<>0),Columns!AF56,"") -> 0.003132339507 | AE51: 14.4 | AF51: =IF('Macro input'!$F$19=1,'Macro input'!C144,IF($K$29>0,IF($AE51<$I$29,$G$29,IF($AE51<$I$29+$J$29,$G$29+((H$29-G$29)*($AE51-I$29)/J$29),$H$29)),$G$29)) -> 244 | AG51: =IF('Macro input'!$Q$19=1,'Macro input'!D144,IF($K$31>0,IF($AE51<$I$31,$G$31,IF($AE51<$I$31+$J$31,$G$31+((H$31-G$31)*($AE51-I$31)/J$31),$H$31)),$G$31)) -> 150 | AI51: 0.735 | AJ51: 6.005536298 | AK51: 10.0055363 | AL51: 15.0055363 | AM51: 20.0055363 | AN51: 4.994463702
P52: =IF(Columns!T57<>"",Columns!T57,"") -> 42.17157035 | Q52: =IF(Columns!U57<>"",Columns!U57,"") -> 0.7195292812 | R52: =IF(Columns!X57<>"",Columns!V57,"") -> SP-2340 | T52: =IF(Columns!X57<>"",Columns!X57,"") -> (viii) Poly(biscyanopropylsiloxane) | AD52: =IF(AND(Columns!AF57<>"",Columns!AF57<>0),Columns!AF57,"") -> 0.003207696417 | AE52: 14.7 | AF52: =IF('Macro input'!$F$19=1,'Macro input'!C145,IF($K$29>0,IF($AE52<$I$29,$G$29,IF($AE52<$I$29+$J$29,$G$29+((H$29-G$29)*($AE52-I$29)/J$29),$H$29)),$G$29)) -> 247 | AG52: =IF('Macro input'!$Q$19=1,'Macro input'!D145,IF($K$31>0,IF($AE52<$I$31,$G$31,IF($AE52<$I$31+$J$31,$G$31+((H$31-G$31)*($AE52-I$31)/J$31),$H$31)),$G$31)) -> 150 | AI52: 0.75 | AJ52: 6.008972268 | AK52: 10.00897227 | AL52: 15.00897227 | AM52: 20.00897227 | AN52: 4.991027732
P53: =IF(Columns!T58<>"",Columns!T58,"") -> 41.43775463 | Q53: =IF(Columns!U58<>"",Columns!U58,"") -> 0.7075646397 | R53: =IF(Columns!X58<>"",Columns!V58,"") -> HP-88 | T53: =IF(Columns!X58<>"",Columns!X58,"") -> 88 % biscyanopropylsiloxane | AD53: =IF(AND(Columns!AF58<>"",Columns!AF58<>0),Columns!AF58,"") -> 0.003207696417 | AE53: 15 | AF53: =IF('Macro input'!$F$19=1,'Macro input'!C146,IF($K$29>0,IF($AE53<$I$29,$G$29,IF($AE53<$I$29+$J$29,$G$29+((H$29-G$29)*($AE53-I$29)/J$29),$H$29)),$G$29)) -> 250 | AG53: =IF('Macro input'!$Q$19=1,'Macro input'!D146,IF($K$31>0,IF($AE53<$I$31,$G$31,IF($AE53<$I$31+$J$31,$G$31+((H$31-G$31)*($AE53-I$31)/J$31),$H$31)),$G$31)) -> 150 | AI53: 0.765 | AJ53: 6.014137432 | AK53: 10.01413743 | AL53: 15.01413743 | AM53: 20.01413743 | AN53: 4.985862568
P54: =IF(Columns!T59<>"",Columns!T59,"") -> 42.49687559 | Q54: =IF(Columns!U59<>"",Columns!U59,"") -> 0.724823873 | R54: =IF(Columns!X59<>"",Columns!V59,"") -> BPX-90 | T54: =IF(Columns!X59<>"",Columns!X59,"") -> 90 % biscyanopropylsiloxane | AD54: =IF(AND(Columns!AF59<>"",Columns!AF59<>0),Columns!AF59,"") -> 0.00401203208 | AE54: 15.3 | AF54: =IF('Macro input'!$F$19=1,'Macro input'!C147,IF($K$29>0,IF($AE54<$I$29,$G$29,IF($AE54<$I$29+$J$29,$G$29+((H$29-G$29)*($AE54-I$29)/J$29),$H$29)),$G$29)) -> 253 | AG54: =IF('Macro input'!$Q$19=1,'Macro input'!D147,IF($K$31>0,IF($AE54<$I$31,$G$31,IF($AE54<$I$31+$J$31,$G$31+((H$31-G$31)*($AE54-I$31)/J$31),$H$31)),$G$31)) -> 150 | AI54: 0.78 | AJ54: 6.021658295 | AK54: 10.02165829 | AL54: 15.02165829 | AM54: 20.02165829 | AN54: 4.978341705
P55: =IF(Columns!T60<>"",Columns!T60,"") -> 43.19122278 | Q55: =IF(Columns!U60<>"",Columns!U60,"") -> 0.736105311 | R55: =IF(Columns!X60<>"",Columns!V60,"") -> SolGel-Wax | T55: =IF(Columns!X60<>"",Columns!X60,"") -> (x) Poly(ethylene glycol) | AD55: =IF(AND(Columns!AF60<>"",Columns!AF60<>0),Columns!AF60,"") -> 0.00401203208 | AE55: 15.6 | AF55: =IF('Macro input'!$F$19=1,'Macro input'!C148,IF($K$29>0,IF($AE55<$I$29,$G$29,IF($AE55<$I$29+$J$29,$G$29+((H$29-G$29)*($AE55-I$29)/J$29),$H$29)),$G$29)) -> 256 | AG55: =IF('Macro input'!$Q$19=1,'Macro input'!D148,IF($K$31>0,IF($AE55<$I$31,$G$31,IF($AE55<$I$31+$J$31,$G$31+((H$31-G$31)*($AE55-I$31)/J$31),$H$31)),$G$31)) -> 150 | AI55: 0.795 | AJ55: 6.032259934 | AK55: 10.03225993 | AL55: 15.03225993 | AM55: 20.03225993 | AN55: 4.967740066
P56: =IF(Columns!T61<>"",Columns!T61,"") -> 43.66687964 | Q56: =IF(Columns!U61<>"",Columns!U61,"") -> 0.7438179937 | R56: =IF(Columns!X61<>"",Columns!V61,"") -> HP-INNOWax | T56: =IF(Columns!X61<>"",Columns!X61,"") -> (x) Poly(ethylene glycol) | AD56: =IF(AND(Columns!AF61<>"",Columns!AF61<>0),Columns!AF61,"") -> 0.008048257286 | AE56: 15.9 | AF56: =IF('Macro input'!$F$19=1,'Macro input'!C149,IF($K$29>0,IF($AE56<$I$29,$G$29,IF($AE56<$I$29+$J$29,$G$29+((H$29-G$29)*($AE56-I$29)/J$29),$H$29)),$G$29)) -> 259 | AG56: =IF('Macro input'!$Q$19=1,'Macro input'!D149,IF($K$31>0,IF($AE56<$I$31,$G$31,IF($AE56<$I$31+$J$31,$G$31+((H$31-G$31)*($AE56-I$31)/J$31),$H$31)),$G$31)) -> 150 | AI56: 0.81 | AJ56: 6.04671842 | AK56: 10.04671842 | AL56: 15.04671842 | AM56: 20.04671842 | AN56: 4.95328158
P57: =IF(Columns!T62<>"",Columns!T62,"") -> 43.89264495 | Q57: =IF(Columns!U62<>"",Columns!U62,"") -> 0.7474742568 | R57: =IF(Columns!X62<>"",Columns!V62,"") -> DB-WAXetr | T57: =IF(Columns!X62<>"",Columns!X62,"") -> (x) Poly(ethylene glycol) | AD57: =IF(AND(Columns!AF62<>"",Columns!AF62<>0),Columns!AF62,"") -> 0.008048257286 | AE57: 16.2 | AF57: =IF('Macro input'!$F$19=1,'Macro input'!C150,IF($K$29>0,IF($AE57<$I$29,$G$29,IF($AE57<$I$29+$J$29,$G$29+((H$29-G$29)*($AE57-I$29)/J$29),$H$29)),$G$29)) -> 262 | AG57: =IF('Macro input'!$Q$19=1,'Macro input'!D150,IF($K$31>0,IF($AE57<$I$31,$G$31,IF($AE57<$I$31+$J$31,$G$31+((H$31-G$31)*($AE57-I$31)/J$31),$H$31)),$G$31)) -> 150 | AI57: 0.825 | AJ57: 6.06578067 | AK57: 10.06578067 | AL57: 15.06578067 | AM57: 20.06578067 | AN57: 4.93421933
P58: =IF(Columns!T63<>"",Columns!T63,"") -> 43.99598611 | Q58: =IF(Columns!U63<>"",Columns!U63,"") -> 0.7491468971 | R58: =IF(Columns!X63<>"",Columns!V63,"") -> EC-Wax | T58: =IF(Columns!X63<>"",Columns!X63,"") -> (x) Poly(ethylene glycol) | AD58: =IF(AND(Columns!AF63<>"",Columns!AF63<>0),Columns!AF63,"") -> 0.00401203208 | AE58: 16.5 | AF58: =IF('Macro input'!$F$19=1,'Macro input'!C151,IF($K$29>0,IF($AE58<$I$29,$G$29,IF($AE58<$I$29+$J$29,$G$29+((H$29-G$29)*($AE58-I$29)/J$29),$H$29)),$G$29)) -> 265 | AG58: =IF('Macro input'!$Q$19=1,'Macro input'!D151,IF($K$31>0,IF($AE58<$I$31,$G$31,IF($AE58<$I$31+$J$31,$G$31+((H$31-G$31)*($AE58-I$31)/J$31),$H$31)),$G$31)) -> 150 | AI58: 0.84 | AJ58: 6.090052112 | AK58: 10.09005211 | AL58: 15.09005211 | AM58: 20.09005211 | AN58: 4.909947888
P59: =IF(Columns!T64<>"",Columns!T64,"") -> 43.78835257 | Q59: =IF(Columns!U64<>"",Columns!U64,"") -> 0.7457856042 | R59: =IF(Columns!X64<>"",Columns!V64,"") -> HP-20M | T59: =IF(Columns!X64<>"",Columns!X64,"") -> (x) Poly(ethylene glycol) | AD59: =IF(AND(Columns!AF64<>"",Columns!AF64<>0),Columns!AF64,"") -> 0.003760573304 | AE59: 16.8 | AF59: =IF('Macro input'!$F$19=1,'Macro input'!C152,IF($K$29>0,IF($AE59<$I$29,$G$29,IF($AE59<$I$29+$J$29,$G$29+((H$29-G$29)*($AE59-I$29)/J$29),$H$29)),$G$29)) -> 268 | AG59: =IF('Macro input'!$Q$19=1,'Macro input'!D152,IF($K$31>0,IF($AE59<$I$31,$G$31,IF($AE59<$I$31+$J$31,$G$31+((H$31-G$31)*($AE59-I$31)/J$31),$H$31)),$G$31)) -> 150 | AI59: 0.855 | AJ59: 6.119860195 | AK59: 10.11986019 | AL59: 15.11986019 | AM59: 20.11986019 | AN59: 4.880139805
A60: Peaks | B60: Chr # 1 | C60: LSS | D60: =J11 -> HP-5 | F60: Chr # 3 | G60: LSS | H60: =K11 -> HP-5 | J60: Reference | P60: =IF(Columns!T65<>"",Columns!T65,"") -> 44.73470314 | Q60: =IF(Columns!U65<>"",Columns!U65,"") -> 0.7610856607 | R60: =IF(Columns!X65<>"",Columns!V65,"") -> AT-Wax | T60: =IF(Columns!X65<>"",Columns!X65,"") -> (x) Poly(ethylene glycol) | AD60: =IF(AND(Columns!AF65<>"",Columns!AF65<>0),Columns!AF65,"") -> 0.00401203208 | AE60: 17.1 | AF60: =IF('Macro input'!$F$19=1,'Macro input'!C153,IF($K$29>0,IF($AE60<$I$29,$G$29,IF($AE60<$I$29+$J$29,$G$29+((H$29-G$29)*($AE60-I$29)/J$29),$H$29)),$G$29)) -> 271 | AG60: =IF('Macro input'!$Q$19=1,'Macro input'!D153,IF($K$31>0,IF($AE60<$I$31,$G$31,IF($AE60<$I$31+$J$31,$G$31+((H$31-G$31)*($AE60-I$31)/J$31),$H$31)),$G$31)) -> 150 | AI60: 0.87 | AJ60: 6.155110617 | AK60: 10.15511062 | AL60: 15.15511062 | AM60: 20.15511062 | AN60: 4.844889383
B61: tR | C61: w | D61: a | E61: RS | F61: tR | G61: w | H61: a | I61: RS | J61: tR | K61: w | M61: tR | N61: Retention time, min | P61: =IF(Columns!T66<>"",Columns!T66,"") -> 44.62502017 | Q61: =IF(Columns!U66<>"",Columns!U66,"") -> 0.7593150085 | R61: =IF(Columns!X66<>"",Columns!V66,"") -> DB-FFAP | T61: =IF(Columns!X66<>"",Columns!X66,"") -> Modified with nitroterephthalic acid | AD61: =IF(AND(Columns!AF66<>"",Columns!AF66<>0),Columns!AF66,"") -> 0.003132339507 | AE61: 17.4 | AF61: =IF('Macro input'!$F$19=1,'Macro input'!C154,IF($K$29>0,IF($AE61<$I$29,$G$29,IF($AE61<$I$29+$J$29,$G$29+((H$29-G$29)*($AE61-I$29)/J$29),$H$29)),$G$29)) -> 274 | AG61: =IF('Macro input'!$Q$19=1,'Macro input'!D154,IF($K$31>0,IF($AE61<$I$31,$G$31,IF($AE61<$I$31+$J$31,$G$31+((H$31-G$31)*($AE61-I$31)/J$31),$H$31)),$G$31)) -> 150 | AI61: 0.885 | AJ61: 6.195161227 | AK61: 10.19516123 | AL61: 15.19516123 | AM61: 20.19516123 | AN61: 4.804838773
A62: 1 | B62: =IF(B6>0,IF(H110*B110=0,G110-IF(E110="",0,$B$29*0.5*D110/E110),$J$29+$I$29+I110-IF(E110="",0,$B$29*0.5*D110/E110)),"") -> 3.129261441 | C62: =IF(B6>0,IF(OR(B110=0,B62<$I$29),$B$33*B62,$B$33*(SQRT(($B$29*(1+D110/2))^2+I110^2))),"") -> 0.1882110357 | D62: =IF(AND(B7>0,B63>B62),(B63-$B$29)/(B62-$B$29),"") -> 1.146421987 | E62: =IF(D62<>"",2*ABS(B63-B62)/(C63+C62),"") -> 1.600910224 | F62: =IF(B6>0,IF(B133*H133<=0,G133-IF(E133="",0,$B$29*0.5*D133/E133),$J$31+$I$31+I133-IF(E133="",0,$B$29*0.5*D133/E133)),"") -> 1.753054026 | G62: =IF(B6>0,IF(OR(B133=0,F62<$I$31),$B$33*F62,$B$33*(SQRT(($B$29*(1+D133/2))^2+I133^2))),"") -> 0.1567979188 | H62: =IF(AND(B7>0,F63>F62),(F63-$B$29)/(F62-$B$29),"") -> 1.194064218 | I62: =IF(H62<>"",2*ABS(F63-F62)/(G63+G62),"") -> 0.8947387292 | J62: =IF(E6<>"",E6,"") -> 3.129261441 | K62: =IF(J62<>"",IF(F6<>0,F6,C62),"") -> 0.1882110357 | M62: w | N62: Peak width at baseline, min | P62: =IF(Columns!T67<>"",Columns!T67,"") -> 43.31382996 | Q62: =IF(Columns!U67<>"",Columns!U67,"") -> 0.7380945809 | R62: =IF(Columns!X67<>"",Columns!V67,"") -> PAG | T62: =IF(Columns!X67<>"",Columns!X67,"") -> Ethylene glycol-propylene glycol copolymer | AD62: =IF(AND(Columns!AF67<>"",Columns!AF67<>0),Columns!AF67,"") -> 0.00401203208 | AE62: 17.7 | AF62: =IF('Macro input'!$F$19=1,'Macro input'!C155,IF($K$29>0,IF($AE62<$I$29,$G$29,IF($AE62<$I$29+$J$29,$G$29+((H$29-G$29)*($AE62-I$29)/J$29),$H$29)),$G$29)) -> 277 | AG62: =IF('Macro input'!$Q$19=1,'Macro input'!D155,IF($K$31>0,IF($AE62<$I$31,$G$31,IF($AE62<$I$31+$J$31,$G$31+((H$31-G$31)*($AE62-I$31)/J$31),$H$31)),$G$31)) -> 150 | AI62: 0.9 | AJ62: 6.238743206 | AK62: 10.23874321 | AL62: 15.23874321 | AM62: 20.23874321 | AN62: 4.761256794
A63: 2 | B63: 3.441032131 | C63: =IF(B7>0,IF(OR(B111=0,B63<$I$29),$B$33*B63,$B$33*(SQRT(($B$29*(1+D111/2))^2+I111^2))),"") -> 0.2012807492 | D63: 1.012721995 | E63: 0.1537922243 | F63: 1.899194866 | G63: =IF(B7>0,IF(OR(B134=0,F63<$I$31),$B$33*F63,$B$33*(SQRT(($B$29*(1+D134/2))^2+I134^2))),"") -> 0.1698691529 | H63: 1.022287853 | I63: 0.117360548 | J63: 3.441032131 | K63: 0.2012807492 | M63: a | N63: Relative retention | P63: =IF(Columns!T68<>"",Columns!T68,"") -> 20.82688024 | Q63: =IF(Columns!U68<>"",Columns!U68,"") -> 0.3614969556 | R63: =IF(Columns!X68<>"",Columns!V68,"") -> DX-1 | T63: =IF(Columns!X68<>"",Columns!X68,"") -> poly(dimethylsiloxane) 90 % + poly(ethylene glycol) 10 % | AD63: =IF(AND(Columns!AF68<>"",Columns!AF68<>0),Columns!AF68,"") -> 0.01619406868 | AE63: 18 | AF63: =IF('Macro input'!$F$19=1,'Macro input'!C156,IF($K$29>0,IF($AE63<$I$29,$G$29,IF($AE63<$I$29+$J$29,$G$29+((H$29-G$29)*($AE63-I$29)/J$29),$H$29)),$G$29)) -> 280 | AG63: =IF('Macro input'!$Q$19=1,'Macro input'!D156,IF($K$31>0,IF($AE63<$I$31,$G$31,IF($AE63<$I$31+$J$31,$G$31+((H$31-G$31)*($AE63-I$31)/J$31),$H$31)),$G$31)) -> 150 | AI63: 0.915 | AJ63: 6.28395791 | AK63: 10.28395791 | AL63: 15.28395791 | AM63: 20.28395791 | AN63: 4.71604209
A64: 3 | B64: 3.47208693 | C64: 0.2025731953 | D64: 1.216407563 | E64: =IF(D64<>"",2*ABS(B65-B64)/(C65+C64),"") -> 2.513111206 | F64: 1.919235989 | G64: 0.1716616855 | H64: 1.283592978 | I64: 1.42204236 | J64: 3.47208693 | K64: 0.2025731953 | M64: RS | N64: Resolution | P64: =IF(Columns!T69<>"",Columns!T69,"") -> 39.63553456 | Q64: =IF(Columns!U69<>"",Columns!U69,"") -> 0.6780578627 | R64: =IF(Columns!X69<>"",Columns!V69,"") -> DX-3 | T64: =IF(Columns!X69<>"",Columns!X69,"") -> poly(dimethylsiloxane) 50 % + poly(ethylene glycol) 50 % | AD64: =IF(AND(Columns!AF69<>"",Columns!AF69<>0),Columns!AF69,"") -> 0.00401203208 | AE64: 18.3 | AF64: =IF('Macro input'!$F$19=1,'Macro input'!C157,IF($K$29>0,IF($AE64<$I$29,$G$29,IF($AE64<$I$29+$J$29,$G$29+((H$29-G$29)*($AE64-I$29)/J$29),$H$29)),$G$29)) -> 283 | AG64: =IF('Macro input'!$Q$19=1,'Macro input'!D157,IF($K$31>0,IF($AE64<$I$31,$G$31,IF($AE64<$I$31+$J$31,$G$31+((H$31-G$31)*($AE64-I$31)/J$31),$H$31)),$G$31)) -> 150 | AI64: 0.93 | AJ64: 6.328369179 | AK64: 10.32836918 | AL64: 15.32836918 | AM64: 20.32836918 | AN64: 4.671630821
A65: 4 | B65: 4.007065238 | C65: 0.2231766145 | D65: 1.430471854 | E65: =IF(D65<>"",2*ABS(B66-B65)/(C66+C65),"") -> 5.329671496 | F65: 2.179924861 | G65: 0.194978407 | H65: 1.750523632 | I65: =IF(H65<>"",2*ABS(F66-F65)/(G66+G65),"") -> 3.775062837 | J65: 4.007065238 | K65: 0.2231766145 | P65: =IF(Columns!T70<>"",Columns!T70,"") -> 41.9711544 | Q65: =IF(Columns!U70<>"",Columns!U70,"") -> 0.7162644685 | R65: =IF(Columns!X70<>"",Columns!V70,"") -> DX-4 | T65: =IF(Columns!X70<>"",Columns!X70,"") -> poly(dimethylsiloxane) 15 % + poly(ethylene glycol) 85 % | AD65: =IF(AND(Columns!AF70<>"",Columns!AF70<>0),Columns!AF70,"") -> 0.00401203208 | AE65: 18.6 | AF65: =IF('Macro input'!$F$19=1,'Macro input'!C158,IF($K$29>0,IF($AE65<$I$29,$G$29,IF($AE65<$I$29+$J$29,$G$29+((H$29-G$29)*($AE65-I$29)/J$29),$H$29)),$G$29)) -> 286 | AG65: =IF('Macro input'!$Q$19=1,'Macro input'!D158,IF($K$31>0,IF($AE65<$I$31,$G$31,IF($AE65<$I$31+$J$31,$G$31+((H$31-G$31)*($AE65-I$31)/J$31),$H$31)),$G$31)) -> 150 | AI65: 0.945 | AJ65: 6.369195392 | AK65: 10.36919539 | AL65: 15.36919539 | AM65: 20.36919539 | AN65: 4.630804608
A66: 5 | B66: 5.301522188 | C66: 0.2625782581 | D66: 1.295021964 | E66: 4.600326453 | F66: 3.065486352 | G66: 0.2741854347 | H66: 1.698324042 | I66: =IF(H66<>"",2*ABS(F67-F66)/(G67+G66),"") -> 4.258691816 | J66: 5.301522188 | K66: 0.2625782581 | M66: OBS: If a is absent, | P66: =IF(Columns!T71<>"",Columns!T71,"") -> 34.02448033 | Q66: =IF(Columns!U71<>"",Columns!U71,"") -> 0.5851502801 | R66: =IF(Columns!X71<>"",Columns!V71,"") -> Cyclodex-B | T66: =IF(Columns!X71<>"",Columns!X71,"") -> DB-1701 89.5 % + permethylated ?-cyclodextrin 10.5 % | AD66: =IF(AND(Columns!AF71<>"",Columns!AF71<>0),Columns!AF71,"") -> 0.00401203208 | AE66: 18.9 | AF66: =IF('Macro input'!$F$19=1,'Macro input'!C159,IF($K$29>0,IF($AE66<$I$29,$G$29,IF($AE66<$I$29+$J$29,$G$29+((H$29-G$29)*($AE66-I$29)/J$29),$H$29)),$G$29)) -> 289 | AG66: =IF('Macro input'!$Q$19=1,'Macro input'!D159,IF($K$31>0,IF($AE66<$I$31,$G$31,IF($AE66<$I$31+$J$31,$G$31+((H$31-G$31)*($AE66-I$31)/J$31),$H$31)),$G$31)) -> 150 | AI66: 0.96 | AJ66: 6.403585565 | AK66: 10.40358556 | AL66: 15.40358556 | AM66: 20.40358556 | AN66: 4.596414435
A67: 6 | B67: 6.570565711 | C67: 0.2891406412 | D67: 1.132087958 | E67: 2.516243237 | F67: 4.50786513 | G67: 0.4031957146 | H67: 1.340947669 | I67: 2.61888451 | J67: 6.570565711 | K67: 0.2891406412 | M67: the order of tR does | P67: =IF(Columns!T72<>"",Columns!T72,"") -> 36.26999648 | Q67: =IF(Columns!U72<>"",Columns!U72,"") -> 0.6225123525 | R67: =IF(Columns!X72<>"",Columns!V72,"") -> CycloSil-B | T67: =IF(Columns!X72<>"",Columns!X72,"") -> DB-1701 70 % + heptakis(2,3-di-O-methyl-6-O-t-butyldimethylsilyl)-β-cyclodextrin 30 % | AD67: =IF(AND(Columns!AF72<>"",Columns!AF72<>0),Columns!AF72,"") -> 0.00401203208 | AE67: 19.2 | AF67: =IF('Macro input'!$F$19=1,'Macro input'!C160,IF($K$29>0,IF($AE67<$I$29,$G$29,IF($AE67<$I$29+$J$29,$G$29+((H$29-G$29)*($AE67-I$29)/J$29),$H$29)),$G$29)) -> 292 | AG67: =IF('Macro input'!$Q$19=1,'Macro input'!D160,IF($K$31>0,IF($AE67<$I$31,$G$31,IF($AE67<$I$31+$J$31,$G$31+((H$31-G$31)*($AE67-I$31)/J$31),$H$31)),$G$31)) -> 150 | AI67: =AI66+$B$34 -> 0.975 | AJ67: =IF($N$29=0,-1,$N$29*($B$32*NORMDIST($AI67,$B$29,$B$33*$B$29,FALSE)+IF(B$62<>"",B$6*NORMDIST($AI67,B$62,C$62/4,FALSE),0)+IF(B$63<>"",B$7*NORMDIST($AI67,B$63,C$63/4,FALSE),0)+IF(B$64<>"",B$8*NORMDIST($AI67,B$64,C$64/4,FALSE),0)+IF(B$65<>"",B$9*NORMDIST($AI67,B$65,C$65/4,FALSE),0)+IF(B$66<>"",B$10*NORMDIST($AI67,B$66,C$66/4,FALSE),0)+IF(B$67<>"",B$11*NORMDIST($AI67,B$67,C$67/4,FALSE),0)+IF(B$68<>"",B$12*NORMDIST($AI67,B$68,C$68/4,FALSE),0)+IF(B$69<>"",B$13*NORMDIST($AI67,B$69,C$69/4,FALSE),0)+IF(B$70<>"",B$14*NORMDIST($AI67,B$70,C$70/4,FALSE),0)+IF(B$71<>"",B$15*NORMDIST($AI67,B$71,C$71/4,FALSE),0)+IF(B$72<>"",B$16*NORMDIST($AI67,B$72,C$72/4,FALSE),0)+IF(B$73<>"",B$17*NORMDIST($AI67,B$73,C$73/4,FALSE),0)+IF(B$74<>"",B$18*NORMDIST($AI67,B$74,C$74/4,FALSE),0)+IF(B$75<>"",B$19*NORMDIST($AI67,B$75,C$75/4,FALSE),0)+IF(B$76<>"",B$20*NORMDIST($AI67,B$76,C$76/4,FALSE),0)+IF(B$77<>"",B$21*NORMDIST($AI67,B$77,C$77/4,FALSE),0)+IF(B$78<>"",B$22*NORMDIST($AI67,B$78,C$78/4,FALSE),0)+IF(B$79<>"",B$23*NORMDIST($AI67,B$79,C$79/4,FALSE),0)+IF(B$80<>"",B$24*NORMDIST($AI67,B$80,C$80/4,FALSE),0)+IF(B$81<>"",B$25*NORMDIST($AI67,B$81,C$81/4,FALSE),0))+$M$29) -> 6.428943849 | AK67: =IF($N$30=0,-1,$N$30*($B$32*NORMDIST($AI67,$B$29,$B$33*$B$29,FALSE)+IF(B$86<>"",B$6*NORMDIST($AI67,B$86,C$86/4,FALSE),0)+IF(B$87<>"",B$7*NORMDIST($AI67,B$87,C$87/4,FALSE),0)+IF(B$88<>"",B$8*NORMDIST($AI67,B$88,C$88/4,FALSE),0)+IF(B$89<>"",B$9*NORMDIST($AI67,B$89,C$89/4,FALSE),0)+IF(B$90<>"",B$10*NORMDIST($AI67,B$90,C$90/4,FALSE),0)+IF(B$91<>"",B$11*NORMDIST($AI67,B$91,C$91/4,FALSE),0)+IF(B$92<>"",B$12*NORMDIST($AI67,B$92,C$92/4,FALSE),0)+IF(B$93<>"",B$13*NORMDIST($AI67,B$93,C$93/4,FALSE),0)+IF(B$94<>"",B$14*NORMDIST($AI67,B$94,C$94/4,FALSE),0)+IF(B$95<>"",B$15*NORMDIST($AI67,B$95,C$95/4,FALSE),0)+IF(B$96<>"",B$16*NORMDIST($AI67,B$96,C$96/4,FALSE),0)+IF(B$97<>"",B$17*NORMDIST($AI67,B$97,C$97/4,FALSE),0)+IF(B$98<>"",B$18*NORMDIST($AI67,B$98,C$98/4,FALSE),0)+IF(B$99<>"",B$19*NORMDIST($AI67,B$99,C$99/4,FALSE),0)+IF(B$100<>"",B$20*NORMDIST($AI67,B$100,C$100/4,FALSE),0)+IF(B$101<>"",B$21*NORMDIST($AI67,B$101,C$101/4,FALSE),0)+IF(B$102<>"",B$22*NORMDIST($AI67,B$102,C$102/4,FALSE),0)+IF(B$103<>"",B$23*NORMDIST($AI67,B$103,C$103/4,FALSE),0)+IF(B$104<>"",B$24*NORMDIST($AI67,B$104,C$104/4,FALSE),0)+IF(B$105<>"",B$25*NORMDIST($AI67,B$105,C$105/4,FALSE),0))+$M$30) -> 10.42894385 | AL67: 15.42894385 | AM67: =IF($N$32=0,-1,$N$32*($B$32*NORMDIST($AI67,$B$29,$B$33*$B$29,FALSE)+IF(F$86<>"",B$6*NORMDIST($AI67,F$86,G$86/4,FALSE),0)+IF(F$87<>"",B$7*NORMDIST($AI67,F$87,G$87/4,FALSE),0)+IF(F$88<>"",B$8*NORMDIST($AI67,F$88,G$88/4,FALSE),0)+IF(F$89<>"",B$9*NORMDIST($AI67,F$89,G$89/4,FALSE),0)+IF(F$90<>"",B$10*NORMDIST($AI67,F$90,G$90/4,FALSE),0)+IF(F$91<>"",B$11*NORMDIST($AI67,F$91,G$91/4,FALSE),0)+IF(F$92<>"",B$12*NORMDIST($AI67,F$92,G$92/4,FALSE),0)+IF(F$93<>"",B$13*NORMDIST($AI67,F$93,G$93/4,FALSE),0)+IF(F$94<>"",B$14*NORMDIST($AI67,F$94,G$94/4,FALSE),0)+IF(F$95<>"",B$15*NORMDIST($AI67,F$95,G$95/4,FALSE),0)+IF(F$96<>"",B$16*NORMDIST($AI67,F$96,G$96/4,FALSE),0)+IF(F$97<>"",B$17*NORMDIST($AI67,F$97,G$97/4,FALSE),0)+IF(F$98<>"",B$18*NORMDIST($AI67,F$98,G$98/4,FALSE),0)+IF(F$99<>"",B$19*NORMDIST($AI67,F$99,G$99/4,FALSE),0)+IF(F$100<>"",B$20*NORMDIST($AI67,F$100,G$100/4,FALSE),0)+IF(F$101<>"",B$21*NORMDIST($AI67,F$101,G$101/4,FALSE),0)+IF(F$102<>"",B$22*NORMDIST($AI67,F$102,G$102/4,FALSE),0)+IF(F$103<>"",B$23*NORMDIST($AI67,F$103,G$103/4,FALSE),0)+IF(F$104<>"",B$24*NORMDIST($AI67,F$104,G$105/4,FALSE),0)+IF(F$105<>"",B$25*NORMDIST($AI67,F$105,G$104/4,FALSE),0))+$M$32) -> 20.42894385 | AN67: =IF($N$33=0,-1,$N$33*($B$32*NORMDIST($AI67,$B$29,$B$33*$B$29,FALSE)+IF(J$62<>"",B$6*NORMDIST($AI67,J$62,K$62/4,FALSE),0)+IF(J$63<>"",B$7*NORMDIST($AI67,J$63,K$63/4,FALSE),0)+IF(J$64<>"",B$8*NORMDIST($AI67,J$64,K$64/4,FALSE),0)+IF(J$65<>"",B$9*NORMDIST($AI67,J$65,K$65/4,FALSE),0)+IF(J$66<>"",B$10*NORMDIST($AI67,J$66,K$66/4,FALSE),0)+IF(J$67<>"",B$11*NORMDIST($AI67,J$67,K$67/4,FALSE),0)+IF(J$68<>"",B$12*NORMDIST($AI67,J$68,K$68/4,FALSE),0)+IF(J$69<>"",B$13*NORMDIST($AI67,J$69,K$69/4,FALSE),0)+IF(J$70<>"",B$14*NORMDIST($AI67,J$70,K$70/4,FALSE),0)+IF(J$71<>"",B$15*NORMDIST($AI67,J$71,K$71/4,FALSE),0)+IF(J$72<>"",B$16*NORMDIST($AI67,J$72,K$72/4,FALSE),0)+IF(J$73<>"",B$17*NORMDIST($AI67,J$73,K$73/4,FALSE),0)+IF(J$74<>"",B$18*NORMDIST($AI67,J$74,K$74/4,FALSE),0)+IF(J$75<>"",B$19*NORMDIST($AI67,J$75,K$76/4,FALSE),0)+IF(J$76<>"",B$20*NORMDIST($AI67,J$76,K$75/4,FALSE),0)+IF(J$77<>"",B$21*NORMDIST($AI67,J$77,K$77/4,FALSE),0)+IF(J$78<>"",B$22*NORMDIST($AI67,J$78,K$78/4,FALSE),0)+IF(J$79<>"",B$23*NORMDIST($AI67,J$79,K$79/4,FALSE),0)+IF(J$80<>"",B$24*NORMDIST($AI67,J$80,K$81/4,FALSE),0)+IF(J$81<>"",B$25*NORMDIST($AI67,J$81,K$80/4,FALSE),0))+$M$33) -> 4.571056151
A68: 7 | B68: 7.306370362 | C68: 0.2957031768 | D68: =IF(AND(B13>0,B69>B68),(B69-$B$29)/(B68-$B$29),"") -> 1.12210155 | E68: 2.626784681 | F68: 5.70386357 | G68: 0.5101690671 | H68: =IF(AND(B13>0,F69>F68),(F69-$B$29)/(F68-$B$29),"") -> 1.392980849 | I68: 3.118101452 | J68: 7.306370362 | K68: 0.2957031768 | M68: not match the order | P68: =IF(Columns!T73<>"",Columns!T73,"") -> 38.66929267 | Q68: =IF(Columns!U73<>"",Columns!U73,"") -> 0.6621685732 | R68: =IF(Columns!X73<>"",Columns!V73,"") -> SLB-IL60 | T68: =IF(Columns!X73<>"",Columns!X73,"") -> 1,12-Di(tripropylphosphonium)dodecane bis(trifluoromethylsulfonyl)imide | AD68: =IF(AND(Columns!AF73<>"",Columns!AF73<>0),Columns!AF73,"") -> 0.003207696417 | AE68: =AE67+$B$31/100 -> 19.5 | AF68: =IF('Macro input'!$F$19=1,'Macro input'!C161,IF($K$29>0,IF($AE68<$I$29,$G$29,IF($AE68<$I$29+$J$29,$G$29+((H$29-G$29)*($AE68-I$29)/J$29),$H$29)),$G$29)) -> 295 | AG68: =IF('Macro input'!$Q$19=1,'Macro input'!D161,IF($K$31>0,IF($AE68<$I$31,$G$31,IF($AE68<$I$31+$J$31,$G$31+((H$31-G$31)*($AE68-I$31)/J$31),$H$31)),$G$31)) -> 150 | AI68: 0.99 | AJ68: 6.443252029 | AK68: 10.44325203 | AL68: =IF($N$31=0,-1,$N$29*($B$32*NORMDIST($AI68,$B$29,$B$33*$B$29,FALSE)+IF(F$62<>"",B$6*NORMDIST($AI68,F$62,G$62/4,FALSE),0)+IF(F$63<>"",B$7*NORMDIST($AI68,F$63,G$63/4,FALSE),0)+IF(F$64<>"",B$8*NORMDIST($AI68,F$64,G$64/4,FALSE),0)+IF(F$65<>"",B$9*NORMDIST($AI68,F$65,G$65/4,FALSE),0)+IF(F$66<>"",B$10*NORMDIST($AI68,F$66,G$66/4,FALSE),0)+IF(F$67<>"",B$11*NORMDIST($AI68,F$67,G$67/4,FALSE),0)+IF(F$68<>"",B$12*NORMDIST($AI68,F$68,G$68/4,FALSE),0)+IF(F$69<>"",B$13*NORMDIST($AI68,F$69,G$69/4,FALSE),0)+IF(F$70<>"",B$14*NORMDIST($AI68,F$70,G$70/4,FALSE),0)+IF(F$71<>"",B$15*NORMDIST($AI68,F$71,G$71/4,FALSE),0)+IF(F$72<>"",B$16*NORMDIST($AI68,F$72,G$72/4,FALSE),0)+IF(F$73<>"",B$17*NORMDIST($AI68,F$73,G$73/4,FALSE),0)+IF(F$74<>"",B$18*NORMDIST($AI68,F$74,G$74/4,FALSE),0)+IF(F$75<>"",B$19*NORMDIST($AI68,F$75,G$75/4,FALSE),0)+IF(F$76<>"",B$20*NORMDIST($AI68,F$76,G$76/4,FALSE),0)+IF(F$77<>"",B$21*NORMDIST($AI68,F$77,G$77/4,FALSE),0)+IF(F$78<>"",B$22*NORMDIST($AI68,F$78,G$78/4,FALSE),0)+IF(F$79<>"",B$23*NORMDIST($AI68,F$79,G$79/4,FALSE),0)+IF(F$80<>"",B$24*NORMDIST($AI68,F$80,G$80/4,FALSE),0)+IF(F$81<>"",B$25*NORMDIST($AI68,F$81,G$81/4,FALSE),0))+$M$31) -> 15.44325203 | AM68: 20.44325203 | AN68: 4.556747971
A69: 8 | B69: =IF(B13>0,IF(H117*B117=0,G117-IF(E117="",0,$B$29*0.5*D117/E117),$J$29+$I$29+I117-IF(E117="",0,$B$29*0.5*D117/E117)),"") -> 8.076387958 | C69: 0.2905782962 | D69: 1.25543076 | E69: 6.122137966 | F69: =IF(B13>0,IF(B140*H140<=0,G140-IF(E140="",0,$B$29*0.5*D140/E140),$J$31+$I$31+I140-IF(E140="",0,$B$29*0.5*D140/E140)),"") -> 7.552391868 | G69: 0.6755064644 | H69: 2.161421294 | I69: 7.49142388 | J69: 8.076387958 | K69: 0.2905782962 | M69: in the input. | P69: =IF(Columns!T74<>"",Columns!T74,"") -> 39.64730279 | Q69: =IF(Columns!U74<>"",Columns!U74,"") -> 0.6782510896 | R69: =IF(Columns!X74<>"",Columns!V74,"") -> SLB-IL61 | T69: =IF(Columns!X74<>"",Columns!X74,"") -> 1,12-Di(tripropylphosphonium)dodecane bis(trifluoromethylsulfonyl)imide trifluoromethylsulfonate | AD69: =IF(AND(Columns!AF74<>"",Columns!AF74<>0),Columns!AF74,"") -> 0.003207696417 | AE69: 19.8 | AF69: =IF('Macro input'!$F$19=1,'Macro input'!C162,IF($K$29>0,IF($AE69<$I$29,$G$29,IF($AE69<$I$29+$J$29,$G$29+((H$29-G$29)*($AE69-I$29)/J$29),$H$29)),$G$29)) -> 298 | AG69: =IF('Macro input'!$Q$19=1,'Macro input'!D162,IF($K$31>0,IF($AE69<$I$31,$G$31,IF($AE69<$I$31+$J$31,$G$31+((H$31-G$31)*($AE69-I$31)/J$31),$H$31)),$G$31)) -> 150 | AI69: 1.005 | AJ69: 6.44533465 | AK69: 10.44533465 | AL69: 15.44533465 | AM69: 20.44533465 | AN69: 4.55466535
A70: 9 | B70: 9.883915114 | C70: 0.2999105711 | D70: 1.091625405 | E70: 2.744170078 | F70: 15.16247931 | G70: 1.356173378 | H70: =IF(AND(B15>0,F71>F70),(F71-$B$29)/(F70-$B$29),"") -> 1.496010248 | I70: =IF(H70<>"",2*ABS(F71-F70)/(G71+G70),"") -> 4.205599363 | J70: 9.883915114 | K70: 0.2999105711 | M70: To fix it: sort peaks | P70: =IF(Columns!T75<>"",Columns!T75,"") -> 41.70957486 | Q70: =IF(Columns!U75<>"",Columns!U75,"") -> 0.7119999954 | R70: =IF(Columns!X75<>"",Columns!V75,"") -> SLB-IL76 | T70: =IF(Columns!X75<>"",Columns!X75,"") -> Tri(tripropylphosphoniumhexamide)triethylamine bis(trifluoromethylsulfonyl)imide | AD70: =IF(AND(Columns!AF75<>"",Columns!AF75<>0),Columns!AF75,"") -> 0.003207696417 | AE70: 20.1 | AF70: =IF('Macro input'!$F$19=1,'Macro input'!C163,IF($K$29>0,IF($AE70<$I$29,$G$29,IF($AE70<$I$29+$J$29,$G$29+((H$29-G$29)*($AE70-I$29)/J$29),$H$29)),$G$29)) -> 300 | AG70: =IF('Macro input'!$Q$19=1,'Macro input'!D163,IF($K$31>0,IF($AE70<$I$31,$G$31,IF($AE70<$I$31+$J$31,$G$31+((H$31-G$31)*($AE70-I$31)/J$31),$H$31)),$G$31)) -> 150 | AI70: 1.02 | AJ70: 6.435018484 | AK70: 10.43501848 | AL70: 15.43501848 | AM70: 20.43501848 | AN70: 4.564981516
A71: 10 | B71: 10.69790744 | C71: 0.2933415243 | D71: =IF(AND(B16>0,B72>B71),(B72-$B$29)/(B71-$B$29),"") -> 1.190249872 | E71: =IF(D71<>"",2*ABS(B72-B71)/(C72+C71),"") -> 6.343575768 | F71: 22.18721419 | G71: 1.984484767 | H71: 2.424302583 | I71: 9.051178496 | J71: 10.69790744 | K71: 0.2933415243 | M71: according to tR | P71: =IF(Columns!T76<>"",Columns!T76,"") -> 43.97565683 | Q71: =IF(Columns!U76<>"",Columns!U76,"") -> 0.7488179032 | R71: =IF(Columns!X76<>"",Columns!V76,"") -> SLB-IL100 | T71: =IF(Columns!X76<>"",Columns!X76,"") -> 1,9-Di(3-vinylimidazolium)nonane bis(trifluoromethylsulfonyl)imide | AD71: =IF(AND(Columns!AF76<>"",Columns!AF76<>0),Columns!AF76,"") -> 0.003207696417 | AE71: 20.4 | AF71: =IF('Macro input'!$F$19=1,'Macro input'!C164,IF($K$29>0,IF($AE71<$I$29,$G$29,IF($AE71<$I$29+$J$29,$G$29+((H$29-G$29)*($AE71-I$29)/J$29),$H$29)),$G$29)) -> 300 | AG71: =IF('Macro input'!$Q$19=1,'Macro input'!D164,IF($K$31>0,IF($AE71<$I$31,$G$31,IF($AE71<$I$31+$J$31,$G$31+((H$31-G$31)*($AE71-I$31)/J$31),$H$31)),$G$31)) -> 150 | AI71: 1.035 | AJ71: 6.413156321 | AK71: 10.41315632 | AL71: 15.41315632 | AM71: 20.41315632 | AN71: 4.586843679
A72: 11 | B72: =IF(B16>0,IF(H120*B120=0,G120-IF(E120="",0,$B$29*0.5*D120/E120),$J$29+$I$29+I120-IF(E120="",0,$B$29*0.5*D120/E120)),"") -> 12.54293309 | C72: 0.2883574164 | F72: =IF(B16>0,IF(B143*H143<=0,G143-IF(E143="",0,$B$29*0.5*D143/E143),$J$31+$I$31+I143-IF(E143="",0,$B$29*0.5*D143/E143)),"") -> 52.36421809 | G72: 4.68359805 | J72: =IF(E16<>"",E16,"") -> 12.54293309 | K72: =IF(J72<>"",IF(F16<>0,F16,C72),"") -> 0.2883574164 | P72: =IF(Columns!T77<>"",Columns!T77,"") ->  | Q72: =IF(Columns!U77<>"",Columns!U77,"") ->  | R72: =IF(Columns!X77<>"",Columns!V77,"") ->  | T72: =IF(Columns!X77<>"",Columns!X77,"") ->  | AD72: =IF(AND(Columns!AF77<>"",Columns!AF77<>0),Columns!AF77,"") ->  | AE72: 20.7 | AF72: =IF('Macro input'!$F$19=1,'Macro input'!C165,IF($K$29>0,IF($AE72<$I$29,$G$29,IF($AE72<$I$29+$J$29,$G$29+((H$29-G$29)*($AE72-I$29)/J$29),$H$29)),$G$29)) -> 300 | AG72: =IF('Macro input'!$Q$19=1,'Macro input'!D165,IF($K$31>0,IF($AE72<$I$31,$G$31,IF($AE72<$I$31+$J$31,$G$31+((H$31-G$31)*($AE72-I$31)/J$31),$H$31)),$G$31)) -> 150 | AI72: 1.05 | AJ72: 6.381510557 | AK72: 10.38151056 | AL72: 15.38151056 | AM72: 20.38151056 | AN72: 4.618489443
A73: 12 | P73: =IF(Columns!T78<>"",Columns!T78,"") ->  | Q73: =IF(Columns!U78<>"",Columns!U78,"") ->  | R73: =IF(Columns!X78<>"",Columns!V78,"") ->  | T73: =IF(Columns!X78<>"",Columns!X78,"") ->  | AD73: =IF(AND(Columns!AF78<>"",Columns!AF78<>0),Columns!AF78,"") ->  | AE73: 21 | AF73: =IF('Macro input'!$F$19=1,'Macro input'!C166,IF($K$29>0,IF($AE73<$I$29,$G$29,IF($AE73<$I$29+$J$29,$G$29+((H$29-G$29)*($AE73-I$29)/J$29),$H$29)),$G$29)) -> 300 | AG73: =IF('Macro input'!$Q$19=1,'Macro input'!D166,IF($K$31>0,IF($AE73<$I$31,$G$31,IF($AE73<$I$31+$J$31,$G$31+((H$31-G$31)*($AE73-I$31)/J$31),$H$31)),$G$31)) -> 150 | AI73: 1.065 | AJ73: 6.34251862 | AK73: 10.34251862 | AL73: 15.34251862 | AM73: 20.34251862 | AN73: 4.65748138
A74: 13 | P74: =IF(Columns!T79<>"",Columns!T79,"") ->  | Q74: =IF(Columns!U79<>"",Columns!U79,"") ->  | R74: =IF(Columns!X79<>"",Columns!V79,"") ->  | T74: =IF(Columns!X79<>"",Columns!X79,"") ->  | AD74: =IF(AND(Columns!AF79<>"",Columns!AF79<>0),Columns!AF79,"") ->  | AE74: 21.3 | AF74: =IF('Macro input'!$F$19=1,'Macro input'!C167,IF($K$29>0,IF($AE74<$I$29,$G$29,IF($AE74<$I$29+$J$29,$G$29+((H$29-G$29)*($AE74-I$29)/J$29),$H$29)),$G$29)) -> 300 | AG74: =IF('Macro input'!$Q$19=1,'Macro input'!D167,IF($K$31>0,IF($AE74<$I$31,$G$31,IF($AE74<$I$31+$J$31,$G$31+((H$31-G$31)*($AE74-I$31)/J$31),$H$31)),$G$31)) -> 150 | AI74: 1.08 | AJ74: 6.29898354 | AK74: 10.29898354 | AL74: 15.29898354 | AM74: 20.29898354 | AN74: 4.70101646
A75: 14 | P75: =IF(Columns!T80<>"",Columns!T80,"") ->  | Q75: =IF(Columns!U80<>"",Columns!U80,"") ->  | R75: =IF(Columns!X80<>"",Columns!V80,"") ->  | T75: =IF(Columns!X80<>"",Columns!X80,"") ->  | AD75: =IF(AND(Columns!AF80<>"",Columns!AF80<>0),Columns!AF80,"") ->  | AE75: 21.6 | AF75: =IF('Macro input'!$F$19=1,'Macro input'!C168,IF($K$29>0,IF($AE75<$I$29,$G$29,IF($AE75<$I$29+$J$29,$G$29+((H$29-G$29)*($AE75-I$29)/J$29),$H$29)),$G$29)) -> 300 | AG75: =IF('Macro input'!$Q$19=1,'Macro input'!D168,IF($K$31>0,IF($AE75<$I$31,$G$31,IF($AE75<$I$31+$J$31,$G$31+((H$31-G$31)*($AE75-I$31)/J$31),$H$31)),$G$31)) -> 150 | AI75: 1.095 | AJ75: 6.253744035 | AK75: 10.25374403 | AL75: 15.25374403 | AM75: 20.25374403 | AN75: 4.746255965
A76: 15 | P76: =IF(Columns!T81<>"",Columns!T81,"") ->  | Q76: =IF(Columns!U81<>"",Columns!U81,"") ->  | R76: =IF(Columns!X81<>"",Columns!V81,"") ->  | T76: =IF(Columns!X81<>"",Columns!X81,"") ->  | AD76: =IF(AND(Columns!AF81<>"",Columns!AF81<>0),Columns!AF81,"") ->  | AE76: 21.9 | AF76: =IF('Macro input'!$F$19=1,'Macro input'!C169,IF($K$29>0,IF($AE76<$I$29,$G$29,IF($AE76<$I$29+$J$29,$G$29+((H$29-G$29)*($AE76-I$29)/J$29),$H$29)),$G$29)) -> 300 | AG76: =IF('Macro input'!$Q$19=1,'Macro input'!D169,IF($K$31>0,IF($AE76<$I$31,$G$31,IF($AE76<$I$31+$J$31,$G$31+((H$31-G$31)*($AE76-I$31)/J$31),$H$31)),$G$31)) -> 150 | AI76: 1.11 | AJ76: 6.209377433 | AK76: 10.20937743 | AL76: 15.20937743 | AM76: 20.20937743 | AN76: 4.790622567
A77: 16 | P77: =IF(Columns!T82<>"",Columns!T82,"") ->  | Q77: =IF(Columns!U82<>"",Columns!U82,"") ->  | R77: =IF(Columns!X82<>"",Columns!V82,"") ->  | T77: =IF(Columns!X82<>"",Columns!X82,"") ->  | AD77: =IF(AND(Columns!AF82<>"",Columns!AF82<>0),Columns!AF82,"") ->  | AE77: 22.2 | AF77: =IF('Macro input'!$F$19=1,'Macro input'!C170,IF($K$29>0,IF($AE77<$I$29,$G$29,IF($AE77<$I$29+$J$29,$G$29+((H$29-G$29)*($AE77-I$29)/J$29),$H$29)),$G$29)) -> 300 | AG77: =IF('Macro input'!$Q$19=1,'Macro input'!D170,IF($K$31>0,IF($AE77<$I$31,$G$31,IF($AE77<$I$31+$J$31,$G$31+((H$31-G$31)*($AE77-I$31)/J$31),$H$31)),$G$31)) -> 150 | AI77: 1.125 | AJ77: 6.167976825 | AK77: 10.16797682 | AL77: 15.16797682 | AM77: 20.16797682 | AN77: 4.832023175
A78: 17 | P78: =IF(Columns!T83<>"",Columns!T83,"") ->  | Q78: =IF(Columns!U83<>"",Columns!U83,"") ->  | R78: =IF(Columns!X83<>"",Columns!V83,"") ->  | T78: =IF(Columns!X83<>"",Columns!X83,"") ->  | AD78: =IF(AND(Columns!AF83<>"",Columns!AF83<>0),Columns!AF83,"") ->  | AE78: 22.5 | AF78: =IF('Macro input'!$F$19=1,'Macro input'!C171,IF($K$29>0,IF($AE78<$I$29,$G$29,IF($AE78<$I$29+$J$29,$G$29+((H$29-G$29)*($AE78-I$29)/J$29),$H$29)),$G$29)) -> 300 | AG78: =IF('Macro input'!$Q$19=1,'Macro input'!D171,IF($K$31>0,IF($AE78<$I$31,$G$31,IF($AE78<$I$31+$J$31,$G$31+((H$31-G$31)*($AE78-I$31)/J$31),$H$31)),$G$31)) -> 150 | AI78: 1.14 | AJ78: 6.131025049 | AK78: 10.13102505 | AL78: 15.13102505 | AM78: 20.13102505 | AN78: 4.868974951
A79: 18 | P79: =IF(Columns!T84<>"",Columns!T84,"") ->  | Q79: =IF(Columns!U84<>"",Columns!U84,"") ->  | R79: =IF(Columns!X84<>"",Columns!V84,"") ->  | T79: =IF(Columns!X84<>"",Columns!X84,"") ->  | AD79: =IF(AND(Columns!AF84<>"",Columns!AF84<>0),Columns!AF84,"") ->  | AE79: 22.8 | AF79: =IF('Macro input'!$F$19=1,'Macro input'!C172,IF($K$29>0,IF($AE79<$I$29,$G$29,IF($AE79<$I$29+$J$29,$G$29+((H$29-G$29)*($AE79-I$29)/J$29),$H$29)),$G$29)) -> 300 | AG79: =IF('Macro input'!$Q$19=1,'Macro input'!D172,IF($K$31>0,IF($AE79<$I$31,$G$31,IF($AE79<$I$31+$J$31,$G$31+((H$31-G$31)*($AE79-I$31)/J$31),$H$31)),$G$31)) -> 150 | AI79: 1.155 | AJ79: 6.099367592 | AK79: 10.09936759 | AL79: 15.09936759 | AM79: 20.09936759 | AN79: 4.900632408
A80: 19 | P80: =IF(Columns!T85<>"",Columns!T85,"") ->  | Q80: =IF(Columns!U85<>"",Columns!U85,"") ->  | R80: =IF(Columns!X85<>"",Columns!V85,"") ->  | T80: =IF(Columns!X85<>"",Columns!X85,"") ->  | AD80: =IF(AND(Columns!AF85<>"",Columns!AF85<>0),Columns!AF85,"") ->  | AE80: 23.1 | AF80: =IF('Macro input'!$F$19=1,'Macro input'!C173,IF($K$29>0,IF($AE80<$I$29,$G$29,IF($AE80<$I$29+$J$29,$G$29+((H$29-G$29)*($AE80-I$29)/J$29),$H$29)),$G$29)) -> 300 | AG80: =IF('Macro input'!$Q$19=1,'Macro input'!D173,IF($K$31>0,IF($AE80<$I$31,$G$31,IF($AE80<$I$31+$J$31,$G$31+((H$31-G$31)*($AE80-I$31)/J$31),$H$31)),$G$31)) -> 150 | AI80: 1.17 | AJ80: 6.073269068 | AK80: 10.07326907 | AL80: 15.07326907 | AM80: 20.07326907 | AN80: 4.926730932
A81: 20 | P81: =IF(Columns!T86<>"",Columns!T86,"") ->  | Q81: =IF(Columns!U86<>"",Columns!U86,"") ->  | R81: =IF(Columns!X86<>"",Columns!V86,"") ->  | T81: =IF(Columns!X86<>"",Columns!X86,"") ->  | AD81: =IF(AND(Columns!AF86<>"",Columns!AF86<>0),Columns!AF86,"") ->  | AE81: 23.4 | AF81: =IF('Macro input'!$F$19=1,'Macro input'!C174,IF($K$29>0,IF($AE81<$I$29,$G$29,IF($AE81<$I$29+$J$29,$G$29+((H$29-G$29)*($AE81-I$29)/J$29),$H$29)),$G$29)) -> 300 | AG81: =IF('Macro input'!$Q$19=1,'Macro input'!D174,IF($K$31>0,IF($AE81<$I$31,$G$31,IF($AE81<$I$31+$J$31,$G$31+((H$31-G$31)*($AE81-I$31)/J$31),$H$31)),$G$31)) -> 150 | AI81: 1.185 | AJ81: 6.052526932 | AK81: 10.05252693 | AL81: 15.05252693 | AM81: 20.05252693 | AN81: 4.947473068
A82: Max | B82: =IF(F58>0,IF(G130*C130=0,F130,$J$29+I130),"") ->  | E82: =MIN(E62:E81) -> 0.1537922243 | I82: =MIN(I62:I81) -> 0.117360548 | P82: =IF(Columns!T87<>"",Columns!T87,"") ->  | Q82: =IF(Columns!U87<>"",Columns!U87,"") ->  | R82: =IF(Columns!X87<>"",Columns!V87,"") ->  | T82: =IF(Columns!X87<>"",Columns!X87,"") ->  | AD82: =IF(AND(Columns!AF87<>"",Columns!AF87<>0),Columns!AF87,"") ->  | AE82: 23.7 | AF82: =IF('Macro input'!$F$19=1,'Macro input'!C175,IF($K$29>0,IF($AE82<$I$29,$G$29,IF($AE82<$I$29+$J$29,$G$29+((H$29-G$29)*($AE82-I$29)/J$29),$H$29)),$G$29)) -> 300 | AG82: =IF('Macro input'!$Q$19=1,'Macro input'!D175,IF($K$31>0,IF($AE82<$I$31,$G$31,IF($AE82<$I$31+$J$31,$G$31+((H$31-G$31)*($AE82-I$31)/J$31),$H$31)),$G$31)) -> 150 | AI82: 1.2 | AJ82: 6.036612456 | AK82: 10.03661246 | AL82: 15.03661246 | AM82: 20.03661246 | AN82: 4.963387544
P83: =IF(Columns!T88<>"",Columns!T88,"") ->  | Q83: =IF(Columns!U88<>"",Columns!U88,"") ->  | R83: =IF(Columns!X88<>"",Columns!V88,"") ->  | T83: =IF(Columns!X88<>"",Columns!X88,"") ->  | AD83: =IF(AND(Columns!AF88<>"",Columns!AF88<>0),Columns!AF88,"") ->  | AE83: 24 | AF83: =IF('Macro input'!$F$19=1,'Macro input'!C176,IF($K$29>0,IF($AE83<$I$29,$G$29,IF($AE83<$I$29+$J$29,$G$29+((H$29-G$29)*($AE83-I$29)/J$29),$H$29)),$G$29)) -> 300 | AG83: =IF('Macro input'!$Q$19=1,'Macro input'!D176,IF($K$31>0,IF($AE83<$I$31,$G$31,IF($AE83<$I$31+$J$31,$G$31+((H$31-G$31)*($AE83-I$31)/J$31),$H$31)),$G$31)) -> 150 | AI83: 1.215 | AJ83: 6.024811966 | AK83: 10.02481197 | AL83: 15.02481197 | AM83: 20.02481197 | AN83: 4.975188034
A84: Peaks | B84: Chr # 2 | C84: VBA | D84: =J11 -> HP-5 | F84: Chr # 4 | G84: VBA | H84: =K11 -> HP-5 | K84: DtR(1) | L84: DtR(2) | P84: =IF(Columns!T89<>"",Columns!T89,"") ->  | Q84: =IF(Columns!U89<>"",Columns!U89,"") ->  | R84: =IF(Columns!X89<>"",Columns!V89,"") ->  | T84: =IF(Columns!X89<>"",Columns!X89,"") ->  | AD84: =IF(AND(Columns!AF89<>"",Columns!AF89<>0),Columns!AF89,"") ->  | AE84: 24.3 | AF84: =IF('Macro input'!$F$19=1,'Macro input'!C177,IF($K$29>0,IF($AE84<$I$29,$G$29,IF($AE84<$I$29+$J$29,$G$29+((H$29-G$29)*($AE84-I$29)/J$29),$H$29)),$G$29)) -> 300 | AG84: =IF('Macro input'!$Q$19=1,'Macro input'!D177,IF($K$31>0,IF($AE84<$I$31,$G$31,IF($AE84<$I$31+$J$31,$G$31+((H$31-G$31)*($AE84-I$31)/J$31),$H$31)),$G$31)) -> 150 | AI84: 1.23 | AJ84: 6.016348539 | AK84: 10.01634854 | AL84: 15.01634854 | AM84: 20.01634854 | AN84: 4.983651461
B85: tR | C85: w | D85: a | E85: RS | F85: tR | G85: w | H85: a | I85: RS | K85: LSS-VBA | L85: LSS-VBA | AE85: 24.6 | AF85: =IF('Macro input'!$F$19=1,'Macro input'!C178,IF($K$29>0,IF($AE85<$I$29,$G$29,IF($AE85<$I$29+$J$29,$G$29+((H$29-G$29)*($AE85-I$29)/J$29),$H$29)),$G$29)) -> 300 | AG85: =IF('Macro input'!$Q$19=1,'Macro input'!D178,IF($K$31>0,IF($AE85<$I$31,$G$31,IF($AE85<$I$31+$J$31,$G$31+((H$31-G$31)*($AE85-I$31)/J$31),$H$31)),$G$31)) -> 150 | AI85: 1.245 | AJ85: 6.010473267 | AK85: 10.01047327 | AL85: 15.01047327 | AM85: 20.01047327 | AN85: 4.989526733
A86: 1 | B86: 3.045 | C86: 0.174637254 | D86: =IF(AND(B6>0,B87>B86),(B87-$B$29)/(B86-$B$29),"") -> 1.151589242 | E86: =IF(D86<>"",2*ABS(B87-B86)/(C87+C86),"") -> 1.722119776 | F86: 1.425 | G86: 0.0832885365 | H86: =IF(AND(B6>0,F87>F86),(F87-$B$29)/(F86-$B$29),"") -> 1.247058824 | I86: =IF(H86<>"",2*ABS(F87-F86)/(G87+G86),"") -> 1.347620981 | K86: =IF(AND(B86<>"",B86<999),B62-B86,"") -> 0.08426144117 | L86: =IF(AND(F86<>"",F86<999),F62-F86,"") -> 0.3280540258 | AE86: 24.9 | AF86: =IF('Macro input'!$F$19=1,'Macro input'!C179,IF($K$29>0,IF($AE86<$I$29,$G$29,IF($AE86<$I$29+$J$29,$G$29+((H$29-G$29)*($AE86-I$29)/J$29),$H$29)),$G$29)) -> 300 | AG86: =IF('Macro input'!$Q$19=1,'Macro input'!D179,IF($K$31>0,IF($AE86<$I$31,$G$31,IF($AE86<$I$31+$J$31,$G$31+((H$31-G$31)*($AE86-I$31)/J$31),$H$31)),$G$31)) -> 150 | AI86: 1.26 | AJ86: 6.006523353 | AK86: 10.00652335 | AL86: 15.00652335 | AM86: 20.00652335 | AN86: 4.993476647
A87: 2 | B87: 3.355 | C87: 0.1853841619 | D87: 1.012738854 | E87: 0.161826122 | F87: 1.53 | G87: 0.07254162857 | H87: =IF(AND(B7>0,F88>F87),(F88-$B$29)/(F87-$B$29),"") -> 1.028301887 | I87: 0.1925172831 | K87: 0.0860321314 | L87: 0.3691948662 | N87: Macro execution time & loops | T87: LSS: Dark green and dark blue chromatograms | AE87: 25.2 | AF87: =IF('Macro input'!$F$19=1,'Macro input'!C180,IF($K$29>0,IF($AE87<$I$29,$G$29,IF($AE87<$I$29+$J$29,$G$29+((H$29-G$29)*($AE87-I$29)/J$29),$H$29)),$G$29)) -> 300 | AG87: =IF('Macro input'!$Q$19=1,'Macro input'!D180,IF($K$31>0,IF($AE87<$I$31,$G$31,IF($AE87<$I$31+$J$31,$G$31+((H$31-G$31)*($AE87-I$31)/J$31),$H$31)),$G$31)) -> 150 | AI87: 1.275 | AJ87: 6.003950436 | AK87: 10.00395044 | AL87: 15.00395044 | AM87: 20.00395044 | AN87: 4.996049564
A88: 3 | B88: 3.385 | C88: 0.1853841619 | D88: 1.226415094 | E88: =IF(D88<>"",2*ABS(B89-B88)/(C89+C88),"") -> 2.791500605 | F88: 1.545 | G88: 0.0832885365 | H88: =IF(AND(B8>0,F89>F88),(F89-$B$29)/(F88-$B$29),"") -> 1.211009174 | I88: 1.297060887 | K88: 0.08708692961 | L88: 0.3742359893 | O88: Non 1 | P88: Non 2 | T88: Calulations in Excel using the Linear Solvent Strength model. | AE88: 25.5 | AF88: =IF('Macro input'!$F$19=1,'Macro input'!C181,IF($K$29>0,IF($AE88<$I$29,$G$29,IF($AE88<$I$29+$J$29,$G$29+((H$29-G$29)*($AE88-I$29)/J$29),$H$29)),$G$29)) -> 300 | AG88: =IF('Macro input'!$Q$19=1,'Macro input'!D181,IF($K$31>0,IF($AE88<$I$31,$G$31,IF($AE88<$I$31+$J$31,$G$31+((H$31-G$31)*($AE88-I$31)/J$31),$H$31)),$G$31)) -> 150 | AI88: 1.29 | AJ88: 6.002325973 | AK88: 10.00232597 | AL88: 15.00232597 | AM88: 20.00232599 | AN88: 4.997674027
A89: 4 | B89: 3.925 | C89: 0.2015045238 | D89: 1.447863248 | E89: =IF(D89<>"",2*ABS(B90-B89)/(C90+C89),"") -> 6.09477632 | F89: 1.66 | G89: 0.09403544444 | K89: 0.08206523847 | L89: 0.5199248606 | N89: CPU, s | O89: 1.828125 | P89: 3.94140625 | T89: Calculated immediately, but not accurate | AE89: 25.8 | AF89: =IF('Macro input'!$F$19=1,'Macro input'!C182,IF($K$29>0,IF($AE89<$I$29,$G$29,IF($AE89<$I$29+$J$29,$G$29+((H$29-G$29)*($AE89-I$29)/J$29),$H$29)),$G$29)) -> 300 | AG89: =IF('Macro input'!$Q$19=1,'Macro input'!D182,IF($K$31>0,IF($AE89<$I$31,$G$31,IF($AE89<$I$31+$J$31,$G$31+((H$31-G$31)*($AE89-I$31)/J$31),$H$31)),$G$31)) -> 150 | AI89: 1.305 | AJ89: 6.001331526 | AK89: 10.00133153 | AL89: 15.00133153 | AM89: 20.0013327 | AN89: 4.998668474
A90: 5 | B90: 5.235 | C90: 0.2283717936 | D90: 1.304604486 | E90: =IF(D90<>"",2*ABS(B91-B90)/(C91+C90),"") -> 5.456114818 | F90: 2.11 | G90: 0.1423965302 | H90: =IF(AND(B10>0,F91>F90),(F91-$B$29)/(F90-$B$29),"") -> 1.747747748 | I90: =IF(H90<>"",2*ABS(F91-F90)/(G91+G90),"") -> 4.543030396 | K90: 0.06652218768 | L90: 0.9554863521 | N90: Loops | O90: 13202200 | P90: 17602200 | T90: Error in retention times will typically be less than tM/2. | AE90: 26.1 | AF90: =IF('Macro input'!$F$19=1,'Macro input'!C183,IF($K$29>0,IF($AE90<$I$29,$G$29,IF($AE90<$I$29+$J$29,$G$29+((H$29-G$29)*($AE90-I$29)/J$29),$H$29)),$G$29)) -> 300 | AG90: =IF('Macro input'!$Q$19=1,'Macro input'!D183,IF($K$31>0,IF($AE90<$I$31,$G$31,IF($AE90<$I$31+$J$31,$G$31+((H$31-G$31)*($AE90-I$31)/J$31),$H$31)),$G$31)) -> 150 | AI90: 1.32 | AJ90: 6.000741106 | AK90: 10.00074111 | AL90: 15.00074111 | AM90: 20.00079872 | AN90: 4.999258894
A91: 6 | B91: 6.525 | C91: 0.2444921555 | D91: 1.135746606 | E91: 3.101667338 | F91: 2.94 | G91: 0.2229983397 | H91: =IF(AND(B11>0,F92>F91),(F92-$B$29)/(F91-$B$29),"") -> 1.275773196 | I91: 2.164424382 | K91: 0.04556571106 | L91: 1.56786513 | AE91: 26.4 | AF91: =IF('Macro input'!$F$19=1,'Macro input'!C184,IF($K$29>0,IF($AE91<$I$29,$G$29,IF($AE91<$I$29+$J$29,$G$29+((H$29-G$29)*($AE91-I$29)/J$29),$H$29)),$G$29)) -> 300 | AG91: =IF('Macro input'!$Q$19=1,'Macro input'!D184,IF($K$31>0,IF($AE91<$I$31,$G$31,IF($AE91<$I$31+$J$31,$G$31+((H$31-G$31)*($AE91-I$31)/J$31),$H$31)),$G$31)) -> 150 | AI91: 1.335 | AJ91: 6.000401048 | AK91: 10.00040105 | AL91: 15.00040105 | AM91: 20.00208192 | AN91: 4.999598952
A92: 7 | B92: 7.275 | C92: 0.2391187016 | D92: 1.125099602 | E92: 3.358357049 | F92: 3.475 | G92: 0.2713594254 | H92: =IF(AND(B12>0,F93>F92),(F93-$B$29)/(F92-$B$29),"") -> 1.337373737 | I92: 1.698289985 | K92: 0.03137036192 | L92: 2.22886357 | N92: OBS: | O92: A retention time tR =999.99 means that this | T92: VBA: Light green and light blue chromatograms | AE92: 26.7 | AF92: =IF('Macro input'!$F$19=1,'Macro input'!C185,IF($K$29>0,IF($AE92<$I$29,$G$29,IF($AE92<$I$29+$J$29,$G$29+((H$29-G$29)*($AE92-I$29)/J$29),$H$29)),$G$29)) -> 300 | AG92: =IF('Macro input'!$Q$19=1,'Macro input'!D185,IF($K$31>0,IF($AE92<$I$31,$G$31,IF($AE92<$I$31+$J$31,$G$31+((H$31-G$31)*($AE92-I$31)/J$31),$H$31)),$G$31)) -> 150 | AI92: 1.35 | AJ92: 6.000211008 | AK92: 10.00021101 | AL92: 15.00021101 | AM92: 20.02939391 | AN92: 4.999788992
A93: 8 | B93: 8.06 | C93: 0.2283717936 | D93: =IF(AND(B13>0,B94>B93),(B94-$B$29)/(B93-$B$29),"") -> 1.257790368 | E93: 7.876792403 | F93: 4.31 | G93: 0.7119826508 | H93: =IF(AND(B13>0,F94>F93),(F94-$B$29)/(F93-$B$29),"") -> 2.178247734 | I93: 4.550408509 | K93: 0.01638795788 | L93: 3.242391868 | O93: cmpound was not eluted within tmax. | T93: Simulation in Visual Basic for Applications using the Plate Theory | AE93: 27 | AF93: =IF('Macro input'!$F$19=1,'Macro input'!C186,IF($K$29>0,IF($AE93<$I$29,$G$29,IF($AE93<$I$29+$J$29,$G$29+((H$29-G$29)*($AE93-I$29)/J$29),$H$29)),$G$29)) -> 300 | AG93: =IF('Macro input'!$Q$19=1,'Macro input'!D186,IF($K$31>0,IF($AE93<$I$31,$G$31,IF($AE93<$I$31+$J$31,$G$31+((H$31-G$31)*($AE93-I$31)/J$31),$H$31)),$G$31)) -> 150 | AI93: 1.365 | AJ93: 6.000107941 | AK93: 10.00010794 | AL93: 15.00010794 | AM93: 20.30164506 | AN93: 4.999892059
A94: 9 | B94: 9.88 | C94: 0.2337452476 | D94: 1.091779279 | E94: 3.52724495 | F94: 8.21 | G94: 1.002149165 | H94: =IF(AND(B14>0,F95>F94),(F95-$B$29)/(F94-$B$29),"") -> 1.429958391 | I94: 1.882251631 | K94: 0.00391511443 | L94: 6.952479312 | T94: Press the button Update green or Update blue to start the simulation | AE94: 27.3 | AF94: =IF('Macro input'!$F$19=1,'Macro input'!C187,IF($K$29>0,IF($AE94<$I$29,$G$29,IF($AE94<$I$29+$J$29,$G$29+((H$29-G$29)*($AE94-I$29)/J$29),$H$29)),$G$29)) -> 300 | AG94: =IF('Macro input'!$Q$19=1,'Macro input'!D187,IF($K$31>0,IF($AE94<$I$31,$G$31,IF($AE94<$I$31+$J$31,$G$31+((H$31-G$31)*($AE94-I$31)/J$31),$H$31)),$G$31)) -> 150 | AI94: 1.38 | AJ94: 6.000053686 | AK94: 10.00005369 | AL94: 15.00005369 | AM94: 21.85432188 | AN94: 4.999946314
A95: 10 | B95: 10.695 | C95: 0.2283717936 | D95: =IF(AND(B15>0,B96>B95),(B96-$B$29)/(B95-$B$29),"") -> 1.19082001 | E95: =IF(D95<>"",2*ABS(B96-B95)/(C96+C95),"") -> 8.19726368 | F95: 11.31 | G95: 2.291778117 | H95: =IF(AND(B15>0,F96>F95),(F96-$B$29)/(F95-$B$29),"") -> 2.353540252 | I95: =IF(H95<>"",2*ABS(F96-F95)/(G96+G95),"") -> 10.55701651 | K95: 0.002907438764 | L95: 10.87721419 | T95: One simulation takes a few seconds - follow the progress in the status bar lower left | AE95: 27.6 | AF95: =IF('Macro input'!$F$19=1,'Macro input'!C188,IF($K$29>0,IF($AE95<$I$29,$G$29,IF($AE95<$I$29+$J$29,$G$29+((H$29-G$29)*($AE95-I$29)/J$29),$H$29)),$G$29)) -> 300 | AG95: =IF('Macro input'!$Q$19=1,'Macro input'!D188,IF($K$31>0,IF($AE95<$I$31,$G$31,IF($AE95<$I$31+$J$31,$G$31+((H$31-G$31)*($AE95-I$31)/J$31),$H$31)),$G$31)) -> 150 | AI95: 1.395 | AJ95: 6.000025961 | AK95: 10.00002596 | AL95: 15.00002596 | AM95: 26.78618156 | AN95: 4.999974039
A96: 11 | B96: 12.545 | C96: 0.2229983397 | F96: 25.265 | G96: 0.3519612349 | K96: =IF(AND(B96<>"",B96<999),B72-B96,"") -> -0.002066908891 | L96: =IF(AND(F96<>"",F96<999),F72-F96,"") -> 27.09921809 | T96: Results are always correct, but may include small rounding errors. | AE96: 27.9 | AF96: =IF('Macro input'!$F$19=1,'Macro input'!C189,IF($K$29>0,IF($AE96<$I$29,$G$29,IF($AE96<$I$29+$J$29,$G$29+((H$29-G$29)*($AE96-I$29)/J$29),$H$29)),$G$29)) -> 300 | AG96: =IF('Macro input'!$Q$19=1,'Macro input'!D189,IF($K$31>0,IF($AE96<$I$31,$G$31,IF($AE96<$I$31+$J$31,$G$31+((H$31-G$31)*($AE96-I$31)/J$31),$H$31)),$G$31)) -> 150 | AI96: 1.41 | AJ96: 6.000012206 | AK96: 10.00001221 | AL96: 15.00001221 | AM96: 34.78069762 | AN96: 4.999987794
A97: 12 | AE97: 28.2 | AF97: =IF('Macro input'!$F$19=1,'Macro input'!C190,IF($K$29>0,IF($AE97<$I$29,$G$29,IF($AE97<$I$29+$J$29,$G$29+((H$29-G$29)*($AE97-I$29)/J$29),$H$29)),$G$29)) -> 300 | AG97: =IF('Macro input'!$Q$19=1,'Macro input'!D190,IF($K$31>0,IF($AE97<$I$31,$G$31,IF($AE97<$I$31+$J$31,$G$31+((H$31-G$31)*($AE97-I$31)/J$31),$H$31)),$G$31)) -> 150 | AI97: 1.425 | AJ97: 6.000005579 | AK97: 10.00000558 | AL97: 15.00000558 | AM97: 39.1595368 | AN97: 4.999994421
A98: 13 | T98: Complex temperature programs (input in sheet Macro input) | AE98: 28.5 | AF98: =IF('Macro input'!$F$19=1,'Macro input'!C191,IF($K$29>0,IF($AE98<$I$29,$G$29,IF($AE98<$I$29+$J$29,$G$29+((H$29-G$29)*($AE98-I$29)/J$29),$H$29)),$G$29)) -> 300 | AG98: =IF('Macro input'!$Q$19=1,'Macro input'!D191,IF($K$31>0,IF($AE98<$I$31,$G$31,IF($AE98<$I$31+$J$31,$G$31+((H$31-G$31)*($AE98-I$31)/J$31),$H$31)),$G$31)) -> 150 | AI98: 1.44 | AJ98: 6.00000248 | AK98: 10.00000248 | AL98: 15.00000248 | AM98: 34.78084422 | AN98: 4.99999752
A99: 14 | T99: LSS does not use the complex program. LSS is always for the program in sheet GC. | AE99: 28.8 | AF99: =IF('Macro input'!$F$19=1,'Macro input'!C192,IF($K$29>0,IF($AE99<$I$29,$G$29,IF($AE99<$I$29+$J$29,$G$29+((H$29-G$29)*($AE99-I$29)/J$29),$H$29)),$G$29)) -> 300 | AG99: =IF('Macro input'!$Q$19=1,'Macro input'!D192,IF($K$31>0,IF($AE99<$I$31,$G$31,IF($AE99<$I$31+$J$31,$G$31+((H$31-G$31)*($AE99-I$31)/J$31),$H$31)),$G$31)) -> 150 | AI99: 1.455 | AJ99: 6.000001072 | AK99: 10.00000107 | AL99: 15.00000107 | AM99: 26.79208914 | AN99: 4.999998928
A100: 15 | T100: Only VBA can use the complex program. Choose LSS or Complex program in sheet Macro input. | AE100: 29.1 | AF100: =IF('Macro input'!$F$19=1,'Macro input'!C193,IF($K$29>0,IF($AE100<$I$29,$G$29,IF($AE100<$I$29+$J$29,$G$29+((H$29-G$29)*($AE100-I$29)/J$29),$H$29)),$G$29)) -> 300 | AG100: =IF('Macro input'!$Q$19=1,'Macro input'!D193,IF($K$31>0,IF($AE100<$I$31,$G$31,IF($AE100<$I$31+$J$31,$G$31+((H$31-G$31)*($AE100-I$31)/J$31),$H$31)),$G$31)) -> 150 | AI100: 1.47 | AJ100: 6.00000045 | AK100: 10.00000045 | AL100: 15.00000045 | AM100: 21.97582144 | AN100: 4.99999955
A101: 16 | AE101: 29.4 | AF101: =IF('Macro input'!$F$19=1,'Macro input'!C194,IF($K$29>0,IF($AE101<$I$29,$G$29,IF($AE101<$I$29+$J$29,$G$29+((H$29-G$29)*($AE101-I$29)/J$29),$H$29)),$G$29)) -> 300 | AG101: =IF('Macro input'!$Q$19=1,'Macro input'!D194,IF($K$31>0,IF($AE101<$I$31,$G$31,IF($AE101<$I$31+$J$31,$G$31+((H$31-G$31)*($AE101-I$31)/J$31),$H$31)),$G$31)) -> 150 | AI101: 1.485 | AJ101: 6.000000184 | AK101: 10.00000018 | AL101: 15.00000018 | AM101: 21.61559377 | AN101: 4.999999816
A102: 17 | T102: C-term for columns (input in sheet Columns) | AE102: 29.7 | AF102: =IF('Macro input'!$F$19=1,'Macro input'!C195,IF($K$29>0,IF($AE102<$I$29,$G$29,IF($AE102<$I$29+$J$29,$G$29+((H$29-G$29)*($AE102-I$29)/J$29),$H$29)),$G$29)) -> 300 | AG102: =IF('Macro input'!$Q$19=1,'Macro input'!D195,IF($K$31>0,IF($AE102<$I$31,$G$31,IF($AE102<$I$31+$J$31,$G$31+((H$31-G$31)*($AE102-I$31)/J$31),$H$31)),$G$31)) -> 150 | AI102: 1.5 | AJ102: 6.000000073 | AK102: 10.00000007 | AL102: 15.00000008 | AM102: 27.48321458 | AN102: 4.999999927
A103: 18 | T103: Due to discontinueties in the literature data a mean may be used | AE103: 30 | AF103: =IF('Macro input'!$F$19=1,'Macro input'!C196,IF($K$29>0,IF($AE103<$I$29,$G$29,IF($AE103<$I$29+$J$29,$G$29+((H$29-G$29)*($AE103-I$29)/J$29),$H$29)),$G$29)) -> 300 | AG103: =IF('Macro input'!$Q$19=1,'Macro input'!D196,IF($K$31>0,IF($AE103<$I$31,$G$31,IF($AE103<$I$31+$J$31,$G$31+((H$31-G$31)*($AE103-I$31)/J$31),$H$31)),$G$31)) -> 150 | AI103: 1.515 | AJ103: 6.000000028 | AK103: 10.00000003 | AL103: 15.00000013 | AM103: 42.41317698 | AN103: 4.999999972
A104: 19 | T104: Which method is best (litterature or mean) is not established yet. | AI104: 1.53 | AJ104: 6.000000011 | AK104: 10.00000001 | AL104: 15.00000096 | AM104: 56.77872452 | AN104: 4.999999989
A105: 20 | AI105: 1.545 | AJ105: 6.000000004 | AK105: 10 | AL105: 15.00000778 | AM105: 54.78497846 | AN105: 4.999999996
A106: Min | E106: =MIN(E86:E105) -> 0.161826122 | I106: =MIN(I86:I105) -> 0.1925172831 | J106: Max | K106: =MAX(K86:K105,-MIN(K86:K105)) -> 0.08708692961 | L106: =MAX(L86:L105,-MIN(L86:L105)) -> 27.09921809 | AI106: 1.56 | AJ106: 6.000000001 | AK106: 10 | AL106: 15.00005505 | AM106: 40.38244682 | AN106: 4.999999999
AI107: 1.575 | AJ107: 6 | AK107: 10 | AL107: 15.00033685 | AM107: 27.8232739 | AN107: 5
A108: Calc | D108: =C60 -> LSS | K108: Column 1 | O108: ko | P108: k' at start of program | AI108: 1.59 | AJ108: 6 | AK108: 10 | AL108: 15.00178031 | AM108: 22.14820911 | AN108: 5
A109: Param | B109: b | C109: ko | D109: =IF(B110=0,"k'","k*") -> k* | E109: =IF(B110=0,"","k**") -> k** | F109: ke | G109: tRuncorr | H109: tR-tD-tG | I109: tadd | K109: ko | L109: log(ko) | M109: Slope | O109: b | P109: program steepness | AI109: 1.605 | AJ109: 6 | AK109: 10 | AL109: 15.00812769 | AM109: 21.40512623 | AN109: 5
A110: 1 | B110: =IF(B6>0,IF($K$29>0,$B$29*$K$29*M110/$J$29,0),"") -> 0.1274855577 | C110: =IF(B6>0,K$110*10^(-M$110*$G$29),"") -> 3.267788372 | D110: =IF(B6>0,IF($D$109="k'",C110,1/(LN(10)*B110*0.5+1/C110)),"") -> 2.2085267 | E110: =IF(AND(B6>0,B110>0),1/(1.15*B110),"") -> 6.820891975 | F110: =IF(B6>0,K110*10^(-M110*$H$29),"") -> 0.009216006433 | G110: =IF(B6>0,IF(B110>0,IF($I$29<$B$29*C110,($B$29/B110)*LOG(LN(10)*C110*B110*(1-$I$29/($B$29*C110))+1)+$B$29+$I$29,$B$29*(1+C110)),$B$29*(1+C110)),"") -> 3.291155715 | H110: =IF(B6>0,IF(G110>$J$29+$I$29,G110-$J$29-$I$29,0),"") -> 0 | I110: =IF(AND(B6>0,B110>0),(1+F110)*MIN(H110*B110/(LOG(LN(10)*F110*B110+1)+B110),$B$29),"") -> 0 | K110: =IF($B6>0,10^L110,"") -> 61.53319987 | L110: =IF(C6<>"",SPmodel!J7+LOG($F$29),"") -> 1.7891095 | M110: =SPmodel!K7 -> 0.01274855577 | O110: k* | P110: k' at the center of the column for a program | AI110: 1.62 | AJ110: 6 | AK110: 10 | AL110: 15.03205134 | AM110: 24.01976307 | AN110: 5
A111: 2 | B111: 0.1292827857 | C111: =IF(B7>0,K$111*10^(-M$111*$G$29),"") -> 3.983526836 | D111: =IF(B7>0,IF($D$109="k'",C111,1/(LN(10)*B111*0.5+1/C111)),"") -> 2.500774378 | E111: 6.726071167 | F111: 0.01034217859 | G111: =IF(B7>0,IF(B111>0,IF($I$29<$B$29*C111,($B$29/B111)*LOG(LN(10)*C111*B111*(1-$I$29/($B$29*C111))+1)+$B$29+$I$29,$B$29*(1+C111)),$B$29*(1+D111)),"") -> 3.626933701 | H111: 0 | I111: 0 | K111: 78.17998889 | L111: =IF(C7<>"",SPmodel!J8+LOG($F$29),"") -> 1.893095604 | M111: =SPmodel!K8 -> 0.01292827857 | O111: k**: | P111: k* without correction for ko | AI111: 1.635 | AJ111: 6 | AK111: 10 | AL111: 15.10917745 | AM111: 29.64243215 | AN111: 5
A112: 3 | B112: 0.12874575 | C112: =IF(B8>0,K$112*10^(-M$112*$G$29),"") -> 4.047210277 | D112: 2.529674352 | E112: 6.754127553 | F112: 0.01077062162 | G112: 3.659355702 | H112: 0 | I112: 0 | K112: 78.45367088 | L112: =IF(C8<>"",SPmodel!J9+LOG($F$29),"") -> 1.894613269 | M112: =SPmodel!K9 -> 0.012874575 | O112: tRuncorr | P112: tR for an unlimited program | AI112: 1.65 | AJ112: 6 | AK112: 10 | AL112: 15.32123837 | AM112: 35.50205474 | AN112: 5
A113: 4 | B113: 0.1351535275 | C113: =IF(B9>0,K$113*10^(-M$113*$G$29),"") -> 5.592705991 | D113: 2.990380809 | E113: 6.433906933 | F113: 0.01108029797 | G113: 4.239457535 | H113: 0 | I113: 0 | K113: 125.6484871 | L113: =IF(C9<>"",SPmodel!J10+LOG($F$29),"") -> 2.099157264 | M113: =SPmodel!K10 -> 0.01351535275 | P113: time after program hold | AI113: 1.665 | AJ113: 6 | AK113: 10 | AL113: 15.81645059 | AM113: 36.59035963 | AN113: 5
A114: 5 | B114: 0.146527033 | C114: =IF(B10>0,K$114*10^(-M$114*$G$29),"") -> 11.15982783 | D114: 3.871428346 | E114: 5.934503687 | F114: 0.0130953417 | G114: 5.62770181 | H114: 0 | I114: 0 | K114: 325.7825544 | L114: =IF(C10<>"",SPmodel!J11+LOG($F$29),"") -> 2.512927824 | M114: =SPmodel!K11 -> 0.0146527033 | O114: ke | P114: k' at end of program | AI114: 1.68 | AJ114: 6 | AK114: 10 | AL114: 16.79242805 | AM114: 31.81721619 | AN114: 5
A115: 6 | B115: 0.150975783 | C115: =IF(B11>0,K$115*10^(-M$115*$G$29),"") -> 19.94903086 | D115: 4.465381287 | E115: 5.759633766 | F115: 0.01907243497 | G115: 6.958210262 | H115: 0 | I115: 0 | K115: 645.1781218 | L115: =IF(C11<>"",SPmodel!J12+LOG($F$29),"") -> 2.809679632 | M115: =SPmodel!K12 -> 0.0150975783 | O115: tadd | P115: time to add to program end | AI115: 1.695 | AJ115: 6 | AK115: 10 | AL115: 18.39912354 | AM115: 25.60229383 | AN115: 5
A116: 7 | B116: 0.1585787775 | C116: =IF(B12>0,K116*10^(-M116*$G$29),"") -> 29.19769747 | D116: 4.612124045 | E116: 5.483490485 | F116: 0.01966858219 | G116: 7.726916733 | H116: 0 | I116: 0 | K116: 1124.958183 | L116: =IF(C12<>"",SPmodel!J13+LOG($F$29),"") -> 3.051136379 | M116: =SPmodel!K13 -> 0.01585787775 | AI116: 1.71 | AJ116: 6 | AK116: 10 | AL116: 20.56825278 | AM116: 21.76769722 | AN116: 5
A117: 8 | B117: =IF(B13>0,IF($K$29>0,$B$29*$K$29*M117/$J$29,0),"") -> 0.1755627747 | C117: =IF(B13>0,K117*10^(-M117*$G$29),"") -> 49.45540199 | D117: 4.49752823 | E117: =IF(AND(B13>0,B117>0),1/(1.15*B117),"") -> 4.953015916 | F117: =IF(B13>0,K117*10^(-M117*$H$29),"") -> 0.0152390622 | G117: =IF(B13>0,IF(B117>0,IF($I$29<$B$29*C117,($B$29/B117)*LOG(LN(10)*C117*B117*(1-$I$29/($B$29*C117))+1)+$B$29+$I$29,$B$29*(1+C117)),$B$29*(1+D117)),"") -> 8.530407116 | H117: =IF(B13>0,IF(G117>$J$29+$I$29,G117-$J$29-$I$29,0),"") -> 0 | I117: =IF(AND(B13>0,B117>0),(1+F117)*MIN(H117*B117/(LOG(LN(10)*F117*B117+1)+B117),$B$29),"") -> 0 | K117: =IF($B13>0,10^L117,"") -> 2817.354416 | L117: =IF(C13<>"",SPmodel!J14+LOG($F$29),"") -> 3.449841484 | M117: =SPmodel!K14 -> 0.01755627747 | AI117: 1.725 | AJ117: 6 | AK117: 10 | AL117: 22.8802988 | AM117: 20.37122838 | AN117: 5
A118: 9 | B118: 0.1765264808 | C118: =IF(B14>0,K118*10^(-M118*$G$29),"") -> 108.0865593 | D118: 4.706204242 | E118: 4.925976055 | F118: 0.03185972897 | G118: 10.36160768 | H118: 0 | I118: 0 | K118: 6295.590915 | L118: =IF(C14<>"",SPmodel!J15+LOG($F$29),"") -> 3.7990365 | M118: =SPmodel!K15 -> 0.01765264808 | AI118: 1.74 | AJ118: 6 | AK118: 10 | AL118: 24.63813171 | AM118: 20.05188786 | AN118: 5
A119: 10 | B119: 0.1856739011 | C119: =IF(B15>0,K119*10^(-M119*$G$29),"") -> 179.656677 | D119: 4.559315889 | E119: 4.683292656 | F119: 0.03475084271 | G119: 11.18467137 | H119: 0 | I119: 0 | K119: 12917.6161 | L119: =IF(C15<>"",SPmodel!J16+LOG($F$29),"") -> 4.111182374 | M119: =SPmodel!K16 -> 0.01856739011 | AI119: 1.755 | AJ119: 6 | AK119: 10 | AL119: 25.20030872 | AM119: 20.00482705 | AN119: 5
A120: 11 | B120: =IF(B16>0,IF($K$29>0,$B$29*$K$29*M120/$J$29,0),"") -> 0.1934587912 | C120: =IF(B16>0,K120*10^(-M120*$G$29),"") -> 476.3812256 | D120: 4.44786785 | E120: =IF(AND(B16>0,B120>0),1/(1.15*B120),"") -> 4.494834336 | F120: =IF(B16>0,K120*10^(-M120*$H$29),"") -> 0.06438412727 | G120: =IF(B16>0,IF(B120>0,IF($I$29<$B$29*C120,($B$29/B120)*LOG(LN(10)*C120*B120*(1-$I$29/($B$29*C120))+1)+$B$29+$I$29,$B$29*(1+C120)),$B$29*(1+D120)),"") -> 13.0377086 | H120: =IF(B16>0,IF(G120>$J$29+$I$29,G120-$J$29-$I$29,0),"") -> 0 | I120: =IF(AND(B16>0,B120>0),(1+F120)*MIN(H120*B120/(LOG(LN(10)*F120*B120+1)+B120),$B$29),"") -> 0 | K120: =IF($B16>0,10^L120,"") -> 40977.22548 | L120: =IF(C16<>"",SPmodel!J17+LOG($F$29),"") -> 4.612542549 | M120: =SPmodel!K17 -> 0.01934587912 | AI120: 1.77 | AJ120: 6 | AK120: 10 | AL120: 24.38319235 | AM120: 20.00029887 | AN120: 5
A121: 12 | L121: =IF(C17<>"",SPmodel!J18+LOG($F$29),"") ->  | M121: =SPmodel!K18 ->  | AI121: 1.785 | AJ121: 6 | AK121: 10 | AL121: 22.62400593 | AM121: 20.00001232 | AN121: 5
A122: 13 | L122: =IF(C18<>"",SPmodel!J19+LOG($F$29),"") ->  | M122: =SPmodel!K19 ->  | AI122: 1.8 | AJ122: 6 | AK122: 10 | AL122: 20.7777845 | AM122: 20.00000034 | AN122: 5
A123: 14 | L123: =IF(C19<>"",SPmodel!J20+LOG($F$29),"") ->  | M123: =SPmodel!K20 ->  | AI123: 1.815 | AJ123: 6 | AK123: 10 | AL123: 19.72272741 | AM123: 20.00000001 | AN123: 5
A124: 15 | L124: =IF(C20<>"",SPmodel!J21+LOG($F$29),"") ->  | M124: =SPmodel!K21 ->  | AI124: 1.83 | AJ124: 6 | AK124: 10 | AL124: 20.04334413 | AM124: 20 | AN124: 5
A125: 16 | L125: =IF(C21<>"",SPmodel!J22+LOG($F$29),"") ->  | M125: =SPmodel!K22 ->  | AI125: 1.845 | AJ125: 6 | AK125: 10 | AL125: 21.89343539 | AM125: 20 | AN125: 5
A126: 17 | L126: =IF(C22<>"",SPmodel!J23+LOG($F$29),"") ->  | M126: =SPmodel!K23 ->  | AI126: 1.86 | AJ126: 6 | AK126: 10 | AL126: 24.96799383 | AM126: 20 | AN126: 5
A127: 18 | L127: =IF(C23<>"",SPmodel!J24+LOG($F$29),"") ->  | M127: =SPmodel!K24 ->  | V127: Copy for sorting Macro 4 | AI127: 1.875 | AJ127: 6 | AK127: 10 | AL127: 28.53220753 | AM127: 20 | AN127: 5
A128: 19 | L128: =IF(C24<>"",SPmodel!J25+LOG($F$29),"") ->  | M128: =SPmodel!K25 ->  | V128: Lin 1 | W128: tR ref | X128: W ref | Y128: Nonlinear 1 | AA128: Nonlinear 2 | AI128: 1.89 | AJ128: 6 | AK128: 10 | AL128: 31.5701218 | AM128: 20.00000006 | AN128: 5
A129: 20 | L129: =IF(C25<>"",SPmodel!J26+LOG($F$29),"") ->  | M129: =SPmodel!K26 ->  | V129: Phenol | W129: 3.129261441 | X129: 0.1882110357 | Y129: 3.045 | Z129: 0.174637254 | AA129: 1.425 | AB129: 0.0832885365 | AI129: 1.905 | AJ129: 6 | AK129: 10 | AL129: 33.11067092 | AM129: 20.00000071 | AN129: 5
V130: Benzonitrile | W130: 3.441032131 | X130: 0.2012807492 | Y130: 3.355 | Z130: 0.1853841619 | AA130: 1.53 | AB130: 0.07254162857 | AI130: 1.92 | AJ130: 6 | AK130: 10 | AL130: 32.62749526 | AM130: 20.00000731 | AN130: 5
A131: Calc | D131: =G60 -> LSS | K131: Column 2 | V131: Benzofuran | W131: 3.47208693 | X131: 0.2025731953 | Y131: 3.385 | Z131: 0.1853841619 | AA131: 1.545 | AB131: 0.0832885365 | AI131: =AI130+$B$34 -> 1.935 | AJ131: =IF($N$29=0,-1,$N$29*($B$32*NORMDIST($AI131,$B$29,$B$33*$B$29,FALSE)+IF(B$62<>"",B$6*NORMDIST($AI131,B$62,C$62/4,FALSE),0)+IF(B$63<>"",B$7*NORMDIST($AI131,B$63,C$63/4,FALSE),0)+IF(B$64<>"",B$8*NORMDIST($AI131,B$64,C$64/4,FALSE),0)+IF(B$65<>"",B$9*NORMDIST($AI131,B$65,C$65/4,FALSE),0)+IF(B$66<>"",B$10*NORMDIST($AI131,B$66,C$66/4,FALSE),0)+IF(B$67<>"",B$11*NORMDIST($AI131,B$67,C$67/4,FALSE),0)+IF(B$68<>"",B$12*NORMDIST($AI131,B$68,C$68/4,FALSE),0)+IF(B$69<>"",B$13*NORMDIST($AI131,B$69,C$69/4,FALSE),0)+IF(B$70<>"",B$14*NORMDIST($AI131,B$70,C$70/4,FALSE),0)+IF(B$71<>"",B$15*NORMDIST($AI131,B$71,C$71/4,FALSE),0)+IF(B$72<>"",B$16*NORMDIST($AI131,B$72,C$72/4,FALSE),0)+IF(B$73<>"",B$17*NORMDIST($AI131,B$73,C$73/4,FALSE),0)+IF(B$74<>"",B$18*NORMDIST($AI131,B$74,C$74/4,FALSE),0)+IF(B$75<>"",B$19*NORMDIST($AI131,B$75,C$75/4,FALSE),0)+IF(B$76<>"",B$20*NORMDIST($AI131,B$76,C$76/4,FALSE),0)+IF(B$77<>"",B$21*NORMDIST($AI131,B$77,C$77/4,FALSE),0)+IF(B$78<>"",B$22*NORMDIST($AI131,B$78,C$78/4,FALSE),0)+IF(B$79<>"",B$23*NORMDIST($AI131,B$79,C$79/4,FALSE),0)+IF(B$80<>"",B$24*NORMDIST($AI131,B$80,C$80/4,FALSE),0)+IF(B$81<>"",B$25*NORMDIST($AI131,B$81,C$81/4,FALSE),0))+$M$29) -> 6 | AK131: =IF($N$30=0,-1,$N$30*($B$32*NORMDIST($AI131,$B$29,$B$33*$B$29,FALSE)+IF(B$86<>"",B$6*NORMDIST($AI131,B$86,C$86/4,FALSE),0)+IF(B$87<>"",B$7*NORMDIST($AI131,B$87,C$87/4,FALSE),0)+IF(B$88<>"",B$8*NORMDIST($AI131,B$88,C$88/4,FALSE),0)+IF(B$89<>"",B$9*NORMDIST($AI131,B$89,C$89/4,FALSE),0)+IF(B$90<>"",B$10*NORMDIST($AI131,B$90,C$90/4,FALSE),0)+IF(B$91<>"",B$11*NORMDIST($AI131,B$91,C$91/4,FALSE),0)+IF(B$92<>"",B$12*NORMDIST($AI131,B$92,C$92/4,FALSE),0)+IF(B$93<>"",B$13*NORMDIST($AI131,B$93,C$93/4,FALSE),0)+IF(B$94<>"",B$14*NORMDIST($AI131,B$94,C$94/4,FALSE),0)+IF(B$95<>"",B$15*NORMDIST($AI131,B$95,C$95/4,FALSE),0)+IF(B$96<>"",B$16*NORMDIST($AI131,B$96,C$96/4,FALSE),0)+IF(B$97<>"",B$17*NORMDIST($AI131,B$97,C$97/4,FALSE),0)+IF(B$98<>"",B$18*NORMDIST($AI131,B$98,C$98/4,FALSE),0)+IF(B$99<>"",B$19*NORMDIST($AI131,B$99,C$99/4,FALSE),0)+IF(B$100<>"",B$20*NORMDIST($AI131,B$100,C$100/4,FALSE),0)+IF(B$101<>"",B$21*NORMDIST($AI131,B$101,C$101/4,FALSE),0)+IF(B$102<>"",B$22*NORMDIST($AI131,B$102,C$102/4,FALSE),0)+IF(B$103<>"",B$23*NORMDIST($AI131,B$103,C$103/4,FALSE),0)+IF(B$104<>"",B$24*NORMDIST($AI131,B$104,C$104/4,FALSE),0)+IF(B$105<>"",B$25*NORMDIST($AI131,B$105,C$105/4,FALSE),0))+$M$30) -> 10 | AL131: 30.27386813 | AM131: =IF($N$32=0,-1,$N$32*($B$32*NORMDIST($AI131,$B$29,$B$33*$B$29,FALSE)+IF(F$86<>"",B$6*NORMDIST($AI131,F$86,G$86/4,FALSE),0)+IF(F$87<>"",B$7*NORMDIST($AI131,F$87,G$87/4,FALSE),0)+IF(F$88<>"",B$8*NORMDIST($AI131,F$88,G$88/4,FALSE),0)+IF(F$89<>"",B$9*NORMDIST($AI131,F$89,G$89/4,FALSE),0)+IF(F$90<>"",B$10*NORMDIST($AI131,F$90,G$90/4,FALSE),0)+IF(F$91<>"",B$11*NORMDIST($AI131,F$91,G$91/4,FALSE),0)+IF(F$92<>"",B$12*NORMDIST($AI131,F$92,G$92/4,FALSE),0)+IF(F$93<>"",B$13*NORMDIST($AI131,F$93,G$93/4,FALSE),0)+IF(F$94<>"",B$14*NORMDIST($AI131,F$94,G$94/4,FALSE),0)+IF(F$95<>"",B$15*NORMDIST($AI131,F$95,G$95/4,FALSE),0)+IF(F$96<>"",B$16*NORMDIST($AI131,F$96,G$96/4,FALSE),0)+IF(F$97<>"",B$17*NORMDIST($AI131,F$97,G$97/4,FALSE),0)+IF(F$98<>"",B$18*NORMDIST($AI131,F$98,G$98/4,FALSE),0)+IF(F$99<>"",B$19*NORMDIST($AI131,F$99,G$99/4,FALSE),0)+IF(F$100<>"",B$20*NORMDIST($AI131,F$100,G$100/4,FALSE),0)+IF(F$101<>"",B$21*NORMDIST($AI131,F$101,G$101/4,FALSE),0)+IF(F$102<>"",B$22*NORMDIST($AI131,F$102,G$102/4,FALSE),0)+IF(F$103<>"",B$23*NORMDIST($AI131,F$103,G$103/4,FALSE),0)+IF(F$104<>"",B$24*NORMDIST($AI131,F$104,G$105/4,FALSE),0)+IF(F$105<>"",B$25*NORMDIST($AI131,F$105,G$104/4,FALSE),0))+$M$32) -> 20.00006338 | AN131: =IF($N$33=0,-1,$N$33*($B$32*NORMDIST($AI131,$B$29,$B$33*$B$29,FALSE)+IF(J$62<>"",B$6*NORMDIST($AI131,J$62,K$62/4,FALSE),0)+IF(J$63<>"",B$7*NORMDIST($AI131,J$63,K$63/4,FALSE),0)+IF(J$64<>"",B$8*NORMDIST($AI131,J$64,K$64/4,FALSE),0)+IF(J$65<>"",B$9*NORMDIST($AI131,J$65,K$65/4,FALSE),0)+IF(J$66<>"",B$10*NORMDIST($AI131,J$66,K$66/4,FALSE),0)+IF(J$67<>"",B$11*NORMDIST($AI131,J$67,K$67/4,FALSE),0)+IF(J$68<>"",B$12*NORMDIST($AI131,J$68,K$68/4,FALSE),0)+IF(J$69<>"",B$13*NORMDIST($AI131,J$69,K$69/4,FALSE),0)+IF(J$70<>"",B$14*NORMDIST($AI131,J$70,K$70/4,FALSE),0)+IF(J$71<>"",B$15*NORMDIST($AI131,J$71,K$71/4,FALSE),0)+IF(J$72<>"",B$16*NORMDIST($AI131,J$72,K$72/4,FALSE),0)+IF(J$73<>"",B$17*NORMDIST($AI131,J$73,K$73/4,FALSE),0)+IF(J$74<>"",B$18*NORMDIST($AI131,J$74,K$74/4,FALSE),0)+IF(J$75<>"",B$19*NORMDIST($AI131,J$75,K$76/4,FALSE),0)+IF(J$76<>"",B$20*NORMDIST($AI131,J$76,K$75/4,FALSE),0)+IF(J$77<>"",B$21*NORMDIST($AI131,J$77,K$77/4,FALSE),0)+IF(J$78<>"",B$22*NORMDIST($AI131,J$78,K$78/4,FALSE),0)+IF(J$79<>"",B$23*NORMDIST($AI131,J$79,K$79/4,FALSE),0)+IF(J$80<>"",B$24*NORMDIST($AI131,J$80,K$81/4,FALSE),0)+IF(J$81<>"",B$25*NORMDIST($AI131,J$81,K$80/4,FALSE),0))+$M$33) -> 5
A132: Param | B132: b | C132: ko | D132: =IF(B133=0,"k'","k*") -> k' | E132: =IF(B133=0,"","k**") ->  | F132: ke | G132: tRuncorr | H132: tR-tD-tG | I132: tadd | K132: ko | L132: log(ko) | M132: Slope | V132: o-Cresol | W132: 4.007065238 | X132: 0.2231766145 | Y132: 3.925 | Z132: 0.2015045238 | AA132: 1.66 | AB132: 0.09403544444 | AI132: 1.95 | AJ132: 6 | AK132: 10 | AL132: =IF($N$31=0,-1,$N$29*($B$32*NORMDIST($AI132,$B$29,$B$33*$B$29,FALSE)+IF(F$62<>"",B$6*NORMDIST($AI132,F$62,G$62/4,FALSE),0)+IF(F$63<>"",B$7*NORMDIST($AI132,F$63,G$63/4,FALSE),0)+IF(F$64<>"",B$8*NORMDIST($AI132,F$64,G$64/4,FALSE),0)+IF(F$65<>"",B$9*NORMDIST($AI132,F$65,G$65/4,FALSE),0)+IF(F$66<>"",B$10*NORMDIST($AI132,F$66,G$66/4,FALSE),0)+IF(F$67<>"",B$11*NORMDIST($AI132,F$67,G$67/4,FALSE),0)+IF(F$68<>"",B$12*NORMDIST($AI132,F$68,G$68/4,FALSE),0)+IF(F$69<>"",B$13*NORMDIST($AI132,F$69,G$69/4,FALSE),0)+IF(F$70<>"",B$14*NORMDIST($AI132,F$70,G$70/4,FALSE),0)+IF(F$71<>"",B$15*NORMDIST($AI132,F$71,G$71/4,FALSE),0)+IF(F$72<>"",B$16*NORMDIST($AI132,F$72,G$72/4,FALSE),0)+IF(F$73<>"",B$17*NORMDIST($AI132,F$73,G$73/4,FALSE),0)+IF(F$74<>"",B$18*NORMDIST($AI132,F$74,G$74/4,FALSE),0)+IF(F$75<>"",B$19*NORMDIST($AI132,F$75,G$75/4,FALSE),0)+IF(F$76<>"",B$20*NORMDIST($AI132,F$76,G$76/4,FALSE),0)+IF(F$77<>"",B$21*NORMDIST($AI132,F$77,G$77/4,FALSE),0)+IF(F$78<>"",B$22*NORMDIST($AI132,F$78,G$78/4,FALSE),0)+IF(F$79<>"",B$23*NORMDIST($AI132,F$79,G$79/4,FALSE),0)+IF(F$80<>"",B$24*NORMDIST($AI132,F$80,G$80/4,FALSE),0)+IF(F$81<>"",B$25*NORMDIST($AI132,F$81,G$81/4,FALSE),0))+$M$31) -> 26.78255983 | AM132: 20.00046025 | AN132: 5
A133: 1 | B133: =IF(B6>0,IF($K$31>0,$B$29*$K$31*M133/$J$31,0),"") -> 0 | C133: =IF(B6>0,K133*10^(-M133*$G$31),"") -> 0.7530540258 | D133: =IF(B6>0,IF($D$132="k'",C133,1/(LN(10)*B133*0.5+1/C133)),"") -> 0.7530540258 | E133: =IF(AND(B6>0,B133>0),1/(1.15*B133),"") ->  | F133: =IF(B6>0,K133*10^(-M133*$H$31),"") -> 0.7530540258 | G133: =IF(B6>0,IF(B133>0,IF($I$31<$B$29*C133,($B$29/B133)*LOG(LN(10)*C133*B133*(1-$I$31/($B$29*C133))+1)+$B$29+$I$31,$B$29*(1+C133)),$B$29*(1+C133)),"") -> 1.753054026 | H133: =IF(B6>0,IF(G133>$J$31+$I$31,G133-$J$31-$I$31,0),"") -> 0 | I133: =IF(AND(B6>0,B133>0),(1+F133)*MIN(H133*B133/(LOG(LN(10)*F133*B133+1)+B133),B$29),"") ->  | K133: =IF($B6>0,10^L133,"") -> 61.53319987 | L133: =IF(C6<>"",SPmodel!W7+LOG($F$31),"") -> 1.7891095 | M133: =SPmodel!X7 -> 0.01274855577 | V133: 3,5-Dimethylphenol | W133: 5.301522188 | X133: 0.2625782581 | Y133: 5.235 | Z133: 0.2283717936 | AA133: 2.11 | AB133: 0.1423965302 | AI133: 1.965 | AJ133: 6 | AK133: 10 | AL133: 23.09299216 | AM133: 20.00279839 | AN133: 5
A134: 2 | B134: 0 | C134: 0.8991948662 | D134: =IF(B7>0,IF($D$132="k'",C134,1/(LN(10)*B134*0.5+1/C134)),"") -> 0.8991948662 | F134: 0.8991948662 | G134: =IF(B7>0,IF(B134>0,IF($I$31<$B$29*C134,($B$29/B134)*LOG(LN(10)*C134*B134*(1-$I$31/($B$29*C134))+1)+$B$29+$I$31,$B$29*(1+C134)),$B$29*(1+C134)),"") -> 1.899194866 | H134: 0 | K134: 78.17998889 | L134: =IF(C7<>"",SPmodel!W8+LOG($F$31),"") -> 1.893095604 | M134: =SPmodel!X8 -> 0.01292827857 | V134: Quinoline | W134: 6.570565711 | X134: 0.2891406412 | Y134: 6.525 | Z134: 0.2444921555 | AA134: 2.94 | AB134: 0.2229983397 | AI134: 1.98 | AJ134: 6 | AK134: 10 | AL134: 19.95047215 | AM134: 20.01424666 | AN134: 5
A135: 3 | B135: 0 | C135: 0.9192359893 | D135: 0.9192359893 | F135: 0.9192359893 | G135: 1.919235989 | H135: 0 | K135: 78.45367088 | L135: =IF(C8<>"",SPmodel!W9+LOG($F$31),"") -> 1.894613269 | M135: =SPmodel!X9 -> 0.012874575 | V135: Indole | W135: 7.306370362 | X135: 0.2957031768 | Y135: 7.275 | Z135: 0.2391187016 | AA135: 3.475 | AB135: 0.2713594254 | AI135: 1.995 | AJ135: 6 | AK135: 10 | AL135: 17.70015455 | AM135: 20.06073121 | AN135: 5
A136: 4 | B136: 0 | C136: 1.179924861 | D136: 1.179924861 | F136: 1.179924861 | G136: 2.179924861 | H136: 0 | K136: 125.6484871 | L136: =IF(C9<>"",SPmodel!W10+LOG($F$31),"") -> 2.099157264 | M136: =SPmodel!X10 -> 0.01351535275 | V136: Tetradecane | W136: 8.076387958 | X136: 0.2905782962 | Y136: 8.06 | Z136: 0.2283717936 | AA136: 4.31 | AB136: 0.7119826508 | AI136: 2.01 | AJ136: 6 | AK136: 10 | AL136: 16.32418172 | AM136: 20.21677274 | AN136: 5
A137: 5 | B137: 0 | C137: 2.065486352 | D137: 2.065486352 | F137: 2.065486352 | G137: 3.065486352 | H137: 0 | K137: 325.7825544 | L137: =IF(C10<>"",SPmodel!W11+LOG($F$31),"") -> 2.512927824 | M137: =SPmodel!X11 -> 0.0146527033 | V137: Dibenzofuran | W137: 9.883915114 | X137: 0.2999105711 | Y137: 9.88 | Z137: 0.2337452476 | AA137: 8.21 | AB137: 1.002149165 | AI137: 2.025 | AJ137: 6 | AK137: 10 | AL137: 15.61524235 | AM137: 20.64787539 | AN137: 5
A138: 6 | B138: 0 | C138: 3.50786513 | D138: 3.50786513 | F138: 3.50786513 | G138: 4.50786513 | H138: 0 | K138: 645.1781218 | L138: =IF(C11<>"",SPmodel!W12+LOG($F$31),"") -> 2.809679632 | M138: =SPmodel!X12 -> 0.0150975783 | V138: Diphenylamine | W138: 10.69790744 | X138: 0.2933415243 | Y138: 10.695 | Z138: 0.2283717936 | AA138: 11.31 | AB138: 2.291778117 | AI138: 2.04 | AJ138: 6 | AK138: 10 | AL138: 15.3487943 | AM138: 21.62133338 | AN138: 5
A139: 7 | B139: 0 | C139: 4.70386357 | D139: 4.70386357 | F139: 4.70386357 | G139: 5.70386357 | H139: 0 | K139: 1124.958183 | L139: =IF(C12<>"",SPmodel!W13+LOG($F$31),"") -> 3.051136379 | M139: =SPmodel!X13 -> 0.01585787775 | V139: Carbazole | W139: 12.54293309 | X139: 0.2883574164 | Y139: 12.545 | Z139: 0.2229983397 | AA139: 25.265 | AB139: 0.3519612349 | AI139: 2.055 | AJ139: 6 | AK139: 10 | AL139: 15.38031552 | AM139: 23.39740399 | AN139: 5
A140: 8 | B140: =IF(B13>0,IF($K$31>0,$B$29*$K$31*M140/$J$31,0),"") -> 0 | C140: =IF(B13>0,K140*10^(-M140*$G$31),"") -> 6.552391868 | D140: 6.552391868 | E140: =IF(AND(B13>0,B140>0),1/(1.15*B140),"") ->  | F140: =IF(B13>0,K140*10^(-M140*$H$31),"") -> 6.552391868 | G140: 7.552391868 | H140: =IF(B13>0,IF(G140>$J$31+$I$31,G140-$J$31-$I$31,0),"") -> 0 | I140: =IF(AND(B13>0,B140>0),(1+F140)*MIN(H140*B140/(LOG(LN(10)*F140*B140+1)+B140),B$29),"") ->  | K140: =IF($B13>0,10^L140,"") -> 2817.354416 | L140: =IF(C13<>"",SPmodel!W14+LOG($F$31),"") -> 3.449841484 | M140: =SPmodel!X14 -> 0.01755627747 | AI140: 2.07 | AJ140: 6 | AK140: 10 | AL140: 15.66598743 | AM140: 25.96095845 | AN140: 5
A141: 9 | B141: 0 | C141: 14.16247931 | D141: 14.16247931 | F141: 14.16247931 | G141: 15.16247931 | H141: 0 | K141: 6295.590915 | L141: =IF(C14<>"",SPmodel!W15+LOG($F$31),"") -> 3.7990365 | M141: =SPmodel!X15 -> 0.01765264808 | AI141: 2.085 | AJ141: 6 | AK141: 10 | AL141: 16.23482691 | AM141: 28.75747744 | AN141: 5
A142: 10 | B142: 0 | C142: 21.18721419 | D142: 21.18721419 | F142: 21.18721419 | G142: 22.18721419 | H142: 2.187214194 | K142: 12917.6161 | L142: =IF(C15<>"",SPmodel!W16+LOG($F$31),"") -> 4.111182374 | M142: =SPmodel!X16 -> 0.01856739011 | AI142: 2.1 | AJ142: 6 | AK142: 10 | AL142: 17.13537679 | AM142: 30.7729834 | AN142: 5
A143: 11 | B143: =IF(B16>0,IF($K$31>0,$B$29*$K$31*M143/$J$31,0),"") -> 0 | C143: =IF(B16>0,K143*10^(-M143*$G$31),"") -> 51.36421809 | D143: 51.36421809 | E143: =IF(AND(B16>0,B143>0),1/(1.15*B143),"") ->  | F143: =IF(B16>0,K143*10^(-M143*$H$31),"") -> 51.36421809 | G143: 52.36421809 | H143: =IF(B16>0,IF(G143>$J$31+$I$31,G143-$J$31-$I$31,0),"") -> 32.36421809 | K143: =IF($B16>0,10^L143,"") -> 40977.22548 | L143: =IF(C16<>"",SPmodel!W17+LOG($F$31),"") -> 4.612542549 | M143: =SPmodel!X17 -> 0.01934587912 | AI143: 2.115 | AJ143: 6 | AK143: 10 | AL143: 18.37124232 | AM143: 31.09652473 | AN143: 5
A144: 12 | L144: =IF(C17<>"",SPmodel!W18+LOG($F$31),"") ->  | M144: =SPmodel!X18 ->  | AI144: 2.13 | AJ144: 6 | AK144: 10 | AL144: 19.84393733 | AM144: 29.57044235 | AN144: 5
A145: 13 | L145: =IF(C18<>"",SPmodel!W19+LOG($F$31),"") ->  | M145: =SPmodel!X19 ->  | AI145: 2.145 | AJ145: 6 | AK145: 10 | AL145: 21.33156336 | AM145: 26.91148021 | AN145: 5
A146: 14 | L146: =IF(C19<>"",SPmodel!W20+LOG($F$31),"") ->  | M146: =SPmodel!X20 ->  | AI146: 2.16 | AJ146: 6 | AK146: 10 | AL146: 22.52838064 | AM146: 24.17930587 | AN146: 5
A147: 15 | L147: =IF(C20<>"",SPmodel!W21+LOG($F$31),"") ->  | M147: =SPmodel!X21 ->  | AI147: 2.175 | AJ147: 6 | AK147: 10 | AL147: 23.14267198 | AM147: 22.11607607 | AN147: 5
A148: 16 | L148: =IF(C21<>"",SPmodel!W22+LOG($F$31),"") ->  | M148: =SPmodel!X22 ->  | AI148: 2.19 | AJ148: 6 | AK148: 10 | AL148: 23.01136704 | AM148: 20.8971239 | AN148: 5
A149: 17 | L149: =IF(C22<>"",SPmodel!W23+LOG($F$31),"") ->  | M149: =SPmodel!X23 ->  | AI149: 2.205 | AJ149: 6 | AK149: 10 | AL149: 22.17002355 | AM149: 20.31846933 | AN149: 5
A150: 18 | L150: =IF(C23<>"",SPmodel!W24+LOG($F$31),"") ->  | M150: =SPmodel!X24 ->  | AI150: 2.22 | AJ150: 6 | AK150: 10 | AL150: 20.83725667 | AM150: 20.09466225 | AN150: 5
A151: 19 | L151: =IF(C24<>"",SPmodel!W25+LOG($F$31),"") ->  | M151: =SPmodel!X25 ->  | AI151: 2.235 | AJ151: 6 | AK151: 10 | AL151: 19.32286083 | AM151: 20.02356026 | AN151: 5
A152: 20 | L152: =IF(C25<>"",SPmodel!W26+LOG($F$31),"") ->  | M152: =SPmodel!X26 ->  | AI152: 2.25 | AJ152: 6 | AK152: 10 | AL152: 17.91211132 | AM152: 20.00490995 | AN152: 5
AI153: 2.265 | AJ153: 6 | AK153: 10 | AL153: 16.78450984 | AM153: 20.00085678 | AN153: 5
AI154: 2.28 | AJ154: 6 | AK154: 10 | AL154: 15.99472762 | AM154: 20.00012519 | AN154: 5
A155: What-If Analysis: | F155: Cells: | AI155: 2.295 | AJ155: 6 | AK155: 10 | AL155: 15.50438674 | AM155: 20.00001532 | AN155: 5
A156: 0) If the table exists, just correct the input as wanted | AI156: 2.31 | AJ156: 6 | AK156: 10 | AL156: 15.23264697 | AM156: 20.00000157 | AN156: 5
A157: 1) Type the input values in a column | F157: B169:B176 | AI157: 2.325 | AJ157: 6 | AK157: 10 | AL157: 15.09761249 | AM157: 20.00000013 | AN157: 5
A158: 2) Type the formula for the output in a row starting one | F158: C168:E168 | AI158: 2.34 | AJ158: 6 | AK158: 10 | AL158: 15.03725526 | AM158: 20.00000001 | AN158: 5
A159: column to the right and one row higher than the input | AI159: 2.355 | AJ159: 6 | AK159: 10 | AL159: 15.01293434 | AM159: 20 | AN159: 5
A160: 3) Write the target cell name for your own information | F160: B168 | AI160: 2.37 | AJ160: 6 | AK160: 10 | AL160: 15.00408484 | AM160: 20 | AN160: 5
A161: 4) Mark the whole rectangle | F161: B168:E177 | AI161: 2.385 | AJ161: 6 | AK161: 10 | AL161: 15.00117349 | AM161: 20 | AN161: 5
A162: 5) Klik on Data->What-If-Analysis->Data Table | AI162: 2.4 | AJ162: 6 | AK162: 10 | AL162: 15.00030666 | AM162: 20 | AN162: 5
A163: 6) Set the Column Cell to the target cell for the input values | AI163: 2.415 | AJ163: 6 | AK163: 10 | AL163: 15.0000729 | AM163: 20 | AN163: 5
A164: 7) Write the name of the output variables | F164: C167:E167 | AI164: 2.43 | AJ164: 6 | AK164: 10 | AL164: 15.00001576 | AM164: 20 | AN164: 5
A165: 8) Formula and input valuescan be changed without calling the function again | AI165: 2.445 | AJ165: 6 | AK165: 10 | AL165: 15.0000031 | AM165: 20 | AN165: 5
AI166: 2.46 | AJ166: 6 | AK166: 10 | AL166: 15.00000055 | AM166: 20 | AN166: 5
C167: tR(1) | D167: tR(5) | E167: tR(10) | AI167: 2.475 | AJ167: 6 | AK167: 10 | AL167: 15.00000009 | AM167: 20 | AN167: 5
A168: Input cell: | B168: To = G29 | C168: =B62 -> 3.129261441 | D168: =B66 -> 5.301522188 | E168: =B70 -> 9.883915114 | AI168: 2.49 | AJ168: 6 | AK168: 10 | AL168: 15.00000001 | AM168: 20 | AN168: 5
B169: 10 | C169: 7.646381247 | D169: 10.20354972 | E169: 13.75707653 | AI169: 2.505 | AJ169: 6 | AK169: 10 | AL169: 15 | AM169: 20 | AN169: 5
B170: 20 | C170: 7.161749109 | D170: 9.773309538 | E170: 13.4551758 | AI170: 2.52 | AJ170: 6 | AK170: 10 | AL170: 15 | AM170: 20 | AN170: 5
B171: 30 | C171: 6.658600233 | D171: 9.313630318 | E171: 13.1289239 | AI171: 2.535 | AJ171: 6 | AK171: 10 | AL171: 15 | AM171: 20 | AN171: 5
B172: 40 | C172: 6.140603361 | D172: 8.823160265 | E172: 12.7755195 | AI172: 2.55 | AJ172: 6 | AK172: 10 | AL172: 15 | AM172: 20 | AN172: 5
B173: 50 | C173: 5.61306092 | D173: 8.301209426 | E173: 12.39179945 | AI173: 2.565 | AJ173: 6 | AK173: 10 | AL173: 15 | AM173: 20 | AN173: 5
B174: 60 | C174: 5.083038878 | D174: 7.748162964 | E174: 11.97422169 | AI174: 2.58 | AJ174: 6 | AK174: 10 | AL174: 15 | AM174: 20.00000001 | AN174: 5
B175: 70 | C175: 4.55930774 | D175: 7.166010532 | E175: 11.51887781 | AI175: 2.595 | AJ175: 6 | AK175: 10 | AL175: 15 | AM175: 20.00000003 | AN175: 5
B176: 100 | C176: 3.129261441 | D176: 5.301522188 | E176: 9.883915114 | AI176: 2.61 | AJ176: 6 | AK176: 10 | AL176: 15 | AM176: 20.00000018 | AN176: 5
AI177: 2.625 | AJ177: 6 | AK177: 10 | AL177: 15.00000001 | AM177: 20.00000084 | AN177: 5
AI178: 2.64 | AJ178: 6 | AK178: 10 | AL178: 15.00000003 | AM178: 20.00000369 | AN178: 5
AI179: 2.655 | AJ179: 6 | AK179: 10 | AL179: 15.00000009 | AM179: 20.00001513 | AN179: 5
AI180: 2.67 | AJ180: 6 | AK180: 10 | AL180: 15.00000034 | AM180: 20.00005773 | AN180: 5
AI181: 2.685 | AJ181: 6 | AK181: 10 | AL181: 15.00000119 | AM181: 20.00020492 | AN181: 5
AI182: 2.7 | AJ182: 6 | AK182: 10 | AL182: 15.0000039 | AM182: 20.00067661 | AN182: 5
AI183: 2.715 | AJ183: 6 | AK183: 10 | AL183: 15.00001224 | AM183: 20.00207807 | AN183: 5
AI184: 2.73 | AJ184: 6 | AK184: 10 | AL184: 15.00003659 | AM184: 20.00593665 | AN184: 5
AI185: 2.745 | AJ185: 6 | AK185: 10 | AL185: 15.00010425 | AM185: 20.01577547 | AN185: 5
AI186: 2.76 | AJ186: 6 | AK186: 10.00000001 | AL186: 15.00028316 | AM186: 20.03899268 | AN186: 5
AI187: 2.775 | AJ187: 6 | AK187: 10.00000005 | AL187: 15.00073312 | AM187: 20.0896487 | AN187: 5
AI188: 2.79 | AJ188: 6 | AK188: 10.00000036 | AL188: 15.00180935 | AM188: 20.19171882 | AN188: 5
AI189: 2.805 | AJ189: 6 | AK189: 10.00000251 | AL189: 15.00425671 | AM189: 20.38136905 | AN189: 5
AI190: 2.82 | AJ190: 6.000000004 | AK190: 10.00001562 | AL190: 15.00954617 | AM190: 20.70564469 | AN190: 4.999999996
AI191: 2.835 | AJ191: 6.000000027 | AK191: 10.00008649 | AL191: 15.02040738 | AM191: 21.21446954 | AN191: 4.999999973
AI192: 2.85 | AJ192: 6.00000019 | AK192: 10.00042562 | AL192: 15.04158614 | AM192: 21.9442276 | AN192: 4.99999981
AI193: 2.865 | AJ193: 6.000001199 | AK193: 10.00186132 | AL193: 15.0807817 | AM193: 22.89512626 | AN193: 4.999998801
AI194: 2.88 | AJ194: 6.00000683 | AK194: 10.00723365 | AL194: 15.14958241 | AM194: 24.01003201 | AN194: 4.99999317
AI195: =AI194+$B$34 -> 2.895 | AJ195: =IF($N$29=0,-1,$N$29*($B$32*NORMDIST($AI195,$B$29,$B$33*$B$29,FALSE)+IF(B$62<>"",B$6*NORMDIST($AI195,B$62,C$62/4,FALSE),0)+IF(B$63<>"",B$7*NORMDIST($AI195,B$63,C$63/4,FALSE),0)+IF(B$64<>"",B$8*NORMDIST($AI195,B$64,C$64/4,FALSE),0)+IF(B$65<>"",B$9*NORMDIST($AI195,B$65,C$65/4,FALSE),0)+IF(B$66<>"",B$10*NORMDIST($AI195,B$66,C$66/4,FALSE),0)+IF(B$67<>"",B$11*NORMDIST($AI195,B$67,C$67/4,FALSE),0)+IF(B$68<>"",B$12*NORMDIST($AI195,B$68,C$68/4,FALSE),0)+IF(B$69<>"",B$13*NORMDIST($AI195,B$69,C$69/4,FALSE),0)+IF(B$70<>"",B$14*NORMDIST($AI195,B$70,C$70/4,FALSE),0)+IF(B$71<>"",B$15*NORMDIST($AI195,B$71,C$71/4,FALSE),0)+IF(B$72<>"",B$16*NORMDIST($AI195,B$72,C$72/4,FALSE),0)+IF(B$73<>"",B$17*NORMDIST($AI195,B$73,C$73/4,FALSE),0)+IF(B$74<>"",B$18*NORMDIST($AI195,B$74,C$74/4,FALSE),0)+IF(B$75<>"",B$19*NORMDIST($AI195,B$75,C$75/4,FALSE),0)+IF(B$76<>"",B$20*NORMDIST($AI195,B$76,C$76/4,FALSE),0)+IF(B$77<>"",B$21*NORMDIST($AI195,B$77,C$77/4,FALSE),0)+IF(B$78<>"",B$22*NORMDIST($AI195,B$78,C$78/4,FALSE),0)+IF(B$79<>"",B$23*NORMDIST($AI195,B$79,C$79/4,FALSE),0)+IF(B$80<>"",B$24*NORMDIST($AI195,B$80,C$80/4,FALSE),0)+IF(B$81<>"",B$25*NORMDIST($AI195,B$81,C$81/4,FALSE),0))+$M$29) -> 6.00003514 | AK195: =IF($N$30=0,-1,$N$30*($B$32*NORMDIST($AI195,$B$29,$B$33*$B$29,FALSE)+IF(B$86<>"",B$6*NORMDIST($AI195,B$86,C$86/4,FALSE),0)+IF(B$87<>"",B$7*NORMDIST($AI195,B$87,C$87/4,FALSE),0)+IF(B$88<>"",B$8*NORMDIST($AI195,B$88,C$88/4,FALSE),0)+IF(B$89<>"",B$9*NORMDIST($AI195,B$89,C$89/4,FALSE),0)+IF(B$90<>"",B$10*NORMDIST($AI195,B$90,C$90/4,FALSE),0)+IF(B$91<>"",B$11*NORMDIST($AI195,B$91,C$91/4,FALSE),0)+IF(B$92<>"",B$12*NORMDIST($AI195,B$92,C$92/4,FALSE),0)+IF(B$93<>"",B$13*NORMDIST($AI195,B$93,C$93/4,FALSE),0)+IF(B$94<>"",B$14*NORMDIST($AI195,B$94,C$94/4,FALSE),0)+IF(B$95<>"",B$15*NORMDIST($AI195,B$95,C$95/4,FALSE),0)+IF(B$96<>"",B$16*NORMDIST($AI195,B$96,C$96/4,FALSE),0)+IF(B$97<>"",B$17*NORMDIST($AI195,B$97,C$97/4,FALSE),0)+IF(B$98<>"",B$18*NORMDIST($AI195,B$98,C$98/4,FALSE),0)+IF(B$99<>"",B$19*NORMDIST($AI195,B$99,C$99/4,FALSE),0)+IF(B$100<>"",B$20*NORMDIST($AI195,B$100,C$100/4,FALSE),0)+IF(B$101<>"",B$21*NORMDIST($AI195,B$101,C$101/4,FALSE),0)+IF(B$102<>"",B$22*NORMDIST($AI195,B$102,C$102/4,FALSE),0)+IF(B$103<>"",B$23*NORMDIST($AI195,B$103,C$103/4,FALSE),0)+IF(B$104<>"",B$24*NORMDIST($AI195,B$104,C$104/4,FALSE),0)+IF(B$105<>"",B$25*NORMDIST($AI195,B$105,C$105/4,FALSE),0))+$M$30) -> 10.02498216 | AL195: 15.26402872 | AM195: =IF($N$32=0,-1,$N$32*($B$32*NORMDIST($AI195,$B$29,$B$33*$B$29,FALSE)+IF(F$86<>"",B$6*NORMDIST($AI195,F$86,G$86/4,FALSE),0)+IF(F$87<>"",B$7*NORMDIST($AI195,F$87,G$87/4,FALSE),0)+IF(F$88<>"",B$8*NORMDIST($AI195,F$88,G$88/4,FALSE),0)+IF(F$89<>"",B$9*NORMDIST($AI195,F$89,G$89/4,FALSE),0)+IF(F$90<>"",B$10*NORMDIST($AI195,F$90,G$90/4,FALSE),0)+IF(F$91<>"",B$11*NORMDIST($AI195,F$91,G$91/4,FALSE),0)+IF(F$92<>"",B$12*NORMDIST($AI195,F$92,G$92/4,FALSE),0)+IF(F$93<>"",B$13*NORMDIST($AI195,F$93,G$93/4,FALSE),0)+IF(F$94<>"",B$14*NORMDIST($AI195,F$94,G$94/4,FALSE),0)+IF(F$95<>"",B$15*NORMDIST($AI195,F$95,G$95/4,FALSE),0)+IF(F$96<>"",B$16*NORMDIST($AI195,F$96,G$96/4,FALSE),0)+IF(F$97<>"",B$17*NORMDIST($AI195,F$97,G$97/4,FALSE),0)+IF(F$98<>"",B$18*NORMDIST($AI195,F$98,G$98/4,FALSE),0)+IF(F$99<>"",B$19*NORMDIST($AI195,F$99,G$99/4,FALSE),0)+IF(F$100<>"",B$20*NORMDIST($AI195,F$100,G$100/4,FALSE),0)+IF(F$101<>"",B$21*NORMDIST($AI195,F$101,G$101/4,FALSE),0)+IF(F$102<>"",B$22*NORMDIST($AI195,F$102,G$102/4,FALSE),0)+IF(F$103<>"",B$23*NORMDIST($AI195,F$103,G$103/4,FALSE),0)+IF(F$104<>"",B$24*NORMDIST($AI195,F$104,G$105/4,FALSE),0)+IF(F$105<>"",B$25*NORMDIST($AI195,F$105,G$104/4,FALSE),0))+$M$32) -> 25.16640082 | AN195: =IF($N$33=0,-1,$N$33*($B$32*NORMDIST($AI195,$B$29,$B$33*$B$29,FALSE)+IF(J$62<>"",B$6*NORMDIST($AI195,J$62,K$62/4,FALSE),0)+IF(J$63<>"",B$7*NORMDIST($AI195,J$63,K$63/4,FALSE),0)+IF(J$64<>"",B$8*NORMDIST($AI195,J$64,K$64/4,FALSE),0)+IF(J$65<>"",B$9*NORMDIST($AI195,J$65,K$65/4,FALSE),0)+IF(J$66<>"",B$10*NORMDIST($AI195,J$66,K$66/4,FALSE),0)+IF(J$67<>"",B$11*NORMDIST($AI195,J$67,K$67/4,FALSE),0)+IF(J$68<>"",B$12*NORMDIST($AI195,J$68,K$68/4,FALSE),0)+IF(J$69<>"",B$13*NORMDIST($AI195,J$69,K$69/4,FALSE),0)+IF(J$70<>"",B$14*NORMDIST($AI195,J$70,K$70/4,FALSE),0)+IF(J$71<>"",B$15*NORMDIST($AI195,J$71,K$71/4,FALSE),0)+IF(J$72<>"",B$16*NORMDIST($AI195,J$72,K$72/4,FALSE),0)+IF(J$73<>"",B$17*NORMDIST($AI195,J$73,K$73/4,FALSE),0)+IF(J$74<>"",B$18*NORMDIST($AI195,J$74,K$74/4,FALSE),0)+IF(J$75<>"",B$19*NORMDIST($AI195,J$75,K$76/4,FALSE),0)+IF(J$76<>"",B$20*NORMDIST($AI195,J$76,K$75/4,FALSE),0)+IF(J$77<>"",B$21*NORMDIST($AI195,J$77,K$77/4,FALSE),0)+IF(J$78<>"",B$22*NORMDIST($AI195,J$78,K$78/4,FALSE),0)+IF(J$79<>"",B$23*NORMDIST($AI195,J$79,K$79/4,FALSE),0)+IF(J$80<>"",B$24*NORMDIST($AI195,J$80,K$81/4,FALSE),0)+IF(J$81<>"",B$25*NORMDIST($AI195,J$81,K$80/4,FALSE),0))+$M$33) -> 4.99996486
AI196: 2.91 | AJ196: 6.000163317 | AK196: 10.07667232 | AL196: =IF($N$31=0,-1,$N$29*($B$32*NORMDIST($AI196,$B$29,$B$33*$B$29,FALSE)+IF(F$62<>"",B$6*NORMDIST($AI196,F$62,G$62/4,FALSE),0)+IF(F$63<>"",B$7*NORMDIST($AI196,F$63,G$63/4,FALSE),0)+IF(F$64<>"",B$8*NORMDIST($AI196,F$64,G$64/4,FALSE),0)+IF(F$65<>"",B$9*NORMDIST($AI196,F$65,G$65/4,FALSE),0)+IF(F$66<>"",B$10*NORMDIST($AI196,F$66,G$66/4,FALSE),0)+IF(F$67<>"",B$11*NORMDIST($AI196,F$67,G$67/4,FALSE),0)+IF(F$68<>"",B$12*NORMDIST($AI196,F$68,G$68/4,FALSE),0)+IF(F$69<>"",B$13*NORMDIST($AI196,F$69,G$69/4,FALSE),0)+IF(F$70<>"",B$14*NORMDIST($AI196,F$70,G$70/4,FALSE),0)+IF(F$71<>"",B$15*NORMDIST($AI196,F$71,G$71/4,FALSE),0)+IF(F$72<>"",B$16*NORMDIST($AI196,F$72,G$72/4,FALSE),0)+IF(F$73<>"",B$17*NORMDIST($AI196,F$73,G$73/4,FALSE),0)+IF(F$74<>"",B$18*NORMDIST($AI196,F$74,G$74/4,FALSE),0)+IF(F$75<>"",B$19*NORMDIST($AI196,F$75,G$75/4,FALSE),0)+IF(F$76<>"",B$20*NORMDIST($AI196,F$76,G$76/4,FALSE),0)+IF(F$77<>"",B$21*NORMDIST($AI196,F$77,G$77/4,FALSE),0)+IF(F$78<>"",B$22*NORMDIST($AI196,F$78,G$78/4,FALSE),0)+IF(F$79<>"",B$23*NORMDIST($AI196,F$79,G$79/4,FALSE),0)+IF(F$80<>"",B$24*NORMDIST($AI196,F$80,G$80/4,FALSE),0)+IF(F$81<>"",B$25*NORMDIST($AI196,F$81,G$81/4,FALSE),0))+$M$31) -> 15.44424744 | AM196: 26.1913917 | AN196: 4.999836683
AI197: 2.925 | AJ197: 6.000685685 | AK197: 10.20911402 | AL197: 15.71252783 | AM197: 26.90157784 | AN197: 4.999314315
AI198: 2.94 | AJ198: 6.002600639 | AK198: 10.50683152 | AL198: 16.08938617 | AM198: 27.15596862 | AN198: 4.997399361
AI199: 2.955 | AJ199: 6.008910448 | AK199: 11.09164148 | AL199: 16.58768743 | AM199: 26.90157784 | AN199: 4.991089552
AI200: 2.97 | AJ200: 6.027579256 | AK200: 12.08945188 | AL200: 17.20572458 | AM200: 26.1913917 | AN200: 4.972420744
... 1802 more rows

Sheet SPmodel
A1: =GC!A1 -> ChromSimGC_4.0 | C1: =GC!C1 -> Author: Bo Svensmark, svensmark@plen.ku.dk, Analytical Chemistry, PLEN KU 2017-2026 | M1: This sheet is proteted. To unprotect go to Review and click Unprotect sheet
B3: Do not change any cells in this sheet!
B5: Compound name | J5: Column 1 | K5: =B30 -> HP-5 | W5: Column 2 | X5: =X30 -> HP-5
D6: E | E6: S | F6: A | G6: B | H6: L | J6: Log(ko) | K6: Slope | W6: Log(ko) | X6: Slope
A7: 1 | B7: =IF(GC!C6<>"",GC!C6,"") -> Phenol | D7: =IF($B7<>"",VLOOKUP($B7,Compounds!$B$11:'Compounds'!$G$610,2),"") -> 0.754 | E7: =IF($B7<>"",VLOOKUP($B7,Compounds!$B$11:'Compounds'!$G$610,3),"") -> 0.778 | F7: =IF($B7<>"",VLOOKUP($B7,Compounds!$B$11:'Compounds'!$G$610,4),"") -> 0.727 | G7: =IF($B7<>"",VLOOKUP($B7,Compounds!$B$11:'Compounds'!$G$610,5),"") -> 0.311 | H7: =IF($B7<>"",VLOOKUP($B7,Compounds!$B$11:'Compounds'!$H$610,7),"") -> 3.797 | J7: =IF(B7<>"",L147,"") -> 1.7891095 | K7: =IF(B7<>"",-K147,"") -> 0.01274855577 | W7: =IF(B7<>"",AH147,"") -> 1.7891095 | X7: =IF(B7<>"",-AG147,"") -> 0.01274855577
A8: 2 | B8: =IF(GC!C7<>"",GC!C7,"") -> Benzonitrile | D8: =IF($B8<>"",VLOOKUP($B8,Compounds!$B$11:'Compounds'!$G$610,2),"") -> 0.745 | E8: =IF($B8<>"",VLOOKUP($B8,Compounds!$B$11:'Compounds'!$G$610,3),"") -> 1.133 | F8: =IF($B8<>"",VLOOKUP($B8,Compounds!$B$11:'Compounds'!$G$610,4),"") -> 0 | G8: =IF($B8<>"",VLOOKUP($B8,Compounds!$B$11:'Compounds'!$G$610,5),"") -> 0.334 | H8: =IF($B8<>"",VLOOKUP($B8,Compounds!$B$11:'Compounds'!$H$610,7),"") -> 4.055 | J8: =IF(B8<>"",L148,"") -> 1.893095604 | K8: =IF(B8<>"",-K148,"") -> 0.01292827857 | W8: =IF(B8<>"",AH148,"") -> 1.893095604 | X8: =IF(B8<>"",-AG148,"") -> 0.01292827857
A9: 3 | B9: =IF(GC!C8<>"",GC!C8,"") -> Benzofuran | D9: =IF($B9<>"",VLOOKUP($B9,Compounds!$B$11:'Compounds'!$G$610,2),"") -> 0.926 | E9: =IF($B9<>"",VLOOKUP($B9,Compounds!$B$11:'Compounds'!$G$610,3),"") -> 0.844 | F9: =IF($B9<>"",VLOOKUP($B9,Compounds!$B$11:'Compounds'!$G$610,4),"") -> 0 | G9: =IF($B9<>"",VLOOKUP($B9,Compounds!$B$11:'Compounds'!$G$610,5),"") -> 0.182 | H9: =IF($B9<>"",VLOOKUP($B9,Compounds!$B$11:'Compounds'!$H$610,7),"") -> 4.255 | J9: 1.894613269 | K9: 0.012874575 | W9: 1.894613269 | X9: 0.012874575
A10: 4 | B10: =IF(GC!C9<>"",GC!C9,"") -> o-Cresol | D10: =IF($B10<>"",VLOOKUP($B10,Compounds!$B$11:'Compounds'!$G$610,2),"") -> 0.853 | E10: =IF($B10<>"",VLOOKUP($B10,Compounds!$B$11:'Compounds'!$G$610,3),"") -> 0.744 | F10: =IF($B10<>"",VLOOKUP($B10,Compounds!$B$11:'Compounds'!$G$610,4),"") -> 0.613 | G10: =IF($B10<>"",VLOOKUP($B10,Compounds!$B$11:'Compounds'!$G$610,5),"") -> 0.3 | H10: =IF($B10<>"",VLOOKUP($B10,Compounds!$B$11:'Compounds'!$H$610,7),"") -> 4.289 | J10: 2.099157264 | K10: 0.01351535275 | W10: 2.099157264 | X10: 0.01351535275
A11: 5 | B11: =IF(GC!C10<>"",GC!C10,"") -> 3,5-Dimethylphenol | D11: =IF($B11<>"",VLOOKUP($B11,Compounds!$B$11:'Compounds'!$G$610,2),"") -> 0.768 | E11: =IF($B11<>"",VLOOKUP($B11,Compounds!$B$11:'Compounds'!$G$610,3),"") -> 0.793 | F11: =IF($B11<>"",VLOOKUP($B11,Compounds!$B$11:'Compounds'!$G$610,4),"") -> 0.656 | G11: =IF($B11<>"",VLOOKUP($B11,Compounds!$B$11:'Compounds'!$G$610,5),"") -> 0.348 | H11: =IF($B11<>"",VLOOKUP($B11,Compounds!$B$11:'Compounds'!$H$610,7),"") -> 4.768 | J11: 2.512927824 | K11: 0.0146527033 | W11: 2.512927824 | X11: 0.0146527033
A12: 6 | B12: =IF(GC!C11<>"",GC!C11,"") -> Quinoline | D12: =IF($B12<>"",VLOOKUP($B12,Compounds!$B$11:'Compounds'!$G$610,2),"") -> 1.269 | E12: =IF($B12<>"",VLOOKUP($B12,Compounds!$B$11:'Compounds'!$G$610,3),"") -> 1.118 | F12: =IF($B12<>"",VLOOKUP($B12,Compounds!$B$11:'Compounds'!$G$610,4),"") -> 0 | G12: =IF($B12<>"",VLOOKUP($B12,Compounds!$B$11:'Compounds'!$G$610,5),"") -> 0.605 | H12: =IF($B12<>"",VLOOKUP($B12,Compounds!$B$11:'Compounds'!$H$610,7),"") -> 5.338 | J12: 2.809679632 | K12: 0.0150975783 | W12: 2.809679632 | X12: 0.0150975783
A13: 7 | B13: =IF(GC!C12<>"",GC!C12,"") -> Indole | D13: =IF($B13<>"",VLOOKUP($B13,Compounds!$B$11:'Compounds'!$G$610,2),"") -> 1.058 | E13: =IF($B13<>"",VLOOKUP($B13,Compounds!$B$11:'Compounds'!$G$610,3),"") -> 1.304 | F13: =IF($B13<>"",VLOOKUP($B13,Compounds!$B$11:'Compounds'!$G$610,4),"") -> 0.433 | G13: =IF($B13<>"",VLOOKUP($B13,Compounds!$B$11:'Compounds'!$G$610,5),"") -> 0.159 | H13: =IF($B13<>"",VLOOKUP($B13,Compounds!$B$11:'Compounds'!$H$610,7),"") -> 5.313 | J13: 3.051136379 | K13: 0.01585787775 | W13: 3.051136379 | X13: 0.01585787775
A14: 8 | B14: =IF(GC!C13<>"",GC!C13,"") -> Tetradecane | D14: =IF($B14<>"",VLOOKUP($B14,Compounds!$B$11:'Compounds'!$G$610,2),"") -> 0 | E14: =IF($B14<>"",VLOOKUP($B14,Compounds!$B$11:'Compounds'!$G$610,3),"") -> 0 | F14: =IF($B14<>"",VLOOKUP($B14,Compounds!$B$11:'Compounds'!$G$610,4),"") -> 0 | G14: =IF($B14<>"",VLOOKUP($B14,Compounds!$B$11:'Compounds'!$G$610,5),"") -> 0 | H14: =IF($B14<>"",VLOOKUP($B14,Compounds!$B$11:'Compounds'!$H$610,7),"") -> 6.65 | J14: 3.449841484 | K14: 0.01755627747 | W14: 3.449841484 | X14: 0.01755627747
A15: 9 | B15: =IF(GC!C14<>"",GC!C14,"") -> Dibenzofuran | D15: =IF($B15<>"",VLOOKUP($B15,Compounds!$B$11:'Compounds'!$G$610,2),"") -> 1.407 | E15: =IF($B15<>"",VLOOKUP($B15,Compounds!$B$11:'Compounds'!$G$610,3),"") -> 1.105 | F15: =IF($B15<>"",VLOOKUP($B15,Compounds!$B$11:'Compounds'!$G$610,4),"") -> 0 | G15: =IF($B15<>"",VLOOKUP($B15,Compounds!$B$11:'Compounds'!$G$610,5),"") -> 0.17 | H15: =IF($B15<>"",VLOOKUP($B15,Compounds!$B$11:'Compounds'!$H$610,7),"") -> 6.658 | J15: 3.7990365 | K15: 0.01765264808 | W15: 3.7990365 | X15: 0.01765264808
A16: 10 | B16: =IF(GC!C15<>"",GC!C15,"") -> Diphenylamine | D16: =IF($B16<>"",VLOOKUP($B16,Compounds!$B$11:'Compounds'!$G$610,2),"") -> 1.244 | E16: =IF($B16<>"",VLOOKUP($B16,Compounds!$B$11:'Compounds'!$G$610,3),"") -> 1.224 | F16: =IF($B16<>"",VLOOKUP($B16,Compounds!$B$11:'Compounds'!$G$610,4),"") -> 0.233 | G16: =IF($B16<>"",VLOOKUP($B16,Compounds!$B$11:'Compounds'!$G$610,5),"") -> 0.361 | H16: =IF($B16<>"",VLOOKUP($B16,Compounds!$B$11:'Compounds'!$H$610,7),"") -> 6.864 | J16: 4.111182374 | K16: 0.01856739011 | W16: 4.111182374 | X16: 0.01856739011
A17: 11 | B17: =IF(GC!C16<>"",GC!C16,"") -> Carbazole | D17: =IF($B17<>"",VLOOKUP($B17,Compounds!$B$11:'Compounds'!$G$610,2),"") -> 2.278 | E17: =IF($B17<>"",VLOOKUP($B17,Compounds!$B$11:'Compounds'!$G$610,3),"") -> 1.644 | F17: =IF($B17<>"",VLOOKUP($B17,Compounds!$B$11:'Compounds'!$G$610,4),"") -> 0.407 | G17: =IF($B17<>"",VLOOKUP($B17,Compounds!$B$11:'Compounds'!$G$610,5),"") -> 0.132 | H17: =IF($B17<>"",VLOOKUP($B17,Compounds!$B$11:'Compounds'!$H$610,7),"") -> 7.342 | J17: 4.612542549 | K17: 0.01934587912 | W17: 4.612542549 | X17: 0.01934587912
A18: 12 | B18: =IF(GC!C17<>"",GC!C17,"") ->  | D18: =IF($B18<>"",VLOOKUP($B18,Compounds!$B$11:'Compounds'!$G$610,2),"") ->  | E18: =IF($B18<>"",VLOOKUP($B18,Compounds!$B$11:'Compounds'!$G$610,3),"") ->  | F18: =IF($B18<>"",VLOOKUP($B18,Compounds!$B$11:'Compounds'!$G$610,4),"") ->  | G18: =IF($B18<>"",VLOOKUP($B18,Compounds!$B$11:'Compounds'!$G$610,5),"") ->  | H18: =IF($B18<>"",VLOOKUP($B18,Compounds!$B$11:'Compounds'!$H$610,7),"") -> 
A19: 13 | B19: =IF(GC!C18<>"",GC!C18,"") ->  | D19: =IF($B19<>"",VLOOKUP($B19,Compounds!$B$11:'Compounds'!$G$610,2),"") ->  | E19: =IF($B19<>"",VLOOKUP($B19,Compounds!$B$11:'Compounds'!$G$610,3),"") ->  | F19: =IF($B19<>"",VLOOKUP($B19,Compounds!$B$11:'Compounds'!$G$610,4),"") ->  | G19: =IF($B19<>"",VLOOKUP($B19,Compounds!$B$11:'Compounds'!$G$610,5),"") ->  | H19: =IF($B19<>"",VLOOKUP($B19,Compounds!$B$11:'Compounds'!$H$610,7),"") -> 
A20: 14 | B20: =IF(GC!C19<>"",GC!C19,"") ->  | D20: =IF($B20<>"",VLOOKUP($B20,Compounds!$B$11:'Compounds'!$G$610,2),"") ->  | E20: =IF($B20<>"",VLOOKUP($B20,Compounds!$B$11:'Compounds'!$G$610,3),"") ->  | F20: =IF($B20<>"",VLOOKUP($B20,Compounds!$B$11:'Compounds'!$G$610,4),"") ->  | G20: =IF($B20<>"",VLOOKUP($B20,Compounds!$B$11:'Compounds'!$G$610,5),"") ->  | H20: =IF($B20<>"",VLOOKUP($B20,Compounds!$B$11:'Compounds'!$H$610,7),"") -> 
A21: 15 | B21: =IF(GC!C20<>"",GC!C20,"") ->  | D21: =IF($B21<>"",VLOOKUP($B21,Compounds!$B$11:'Compounds'!$G$610,2),"") ->  | E21: =IF($B21<>"",VLOOKUP($B21,Compounds!$B$11:'Compounds'!$G$610,3),"") ->  | F21: =IF($B21<>"",VLOOKUP($B21,Compounds!$B$11:'Compounds'!$G$610,4),"") ->  | G21: =IF($B21<>"",VLOOKUP($B21,Compounds!$B$11:'Compounds'!$G$610,5),"") ->  | H21: =IF($B21<>"",VLOOKUP($B21,Compounds!$B$11:'Compounds'!$H$610,7),"") -> 
A22: 16 | B22: =IF(GC!C21<>"",GC!C21,"") ->  | D22: =IF($B22<>"",VLOOKUP($B22,Compounds!$B$11:'Compounds'!$G$610,2),"") ->  | E22: =IF($B22<>"",VLOOKUP($B22,Compounds!$B$11:'Compounds'!$G$610,3),"") ->  | F22: =IF($B22<>"",VLOOKUP($B22,Compounds!$B$11:'Compounds'!$G$610,4),"") ->  | G22: =IF($B22<>"",VLOOKUP($B22,Compounds!$B$11:'Compounds'!$G$610,5),"") ->  | H22: =IF($B22<>"",VLOOKUP($B22,Compounds!$B$11:'Compounds'!$H$610,7),"") -> 
A23: 17 | B23: =IF(GC!C22<>"",GC!C22,"") ->  | D23: =IF($B23<>"",VLOOKUP($B23,Compounds!$B$11:'Compounds'!$G$610,2),"") ->  | E23: =IF($B23<>"",VLOOKUP($B23,Compounds!$B$11:'Compounds'!$G$610,3),"") ->  | F23: =IF($B23<>"",VLOOKUP($B23,Compounds!$B$11:'Compounds'!$G$610,4),"") ->  | G23: =IF($B23<>"",VLOOKUP($B23,Compounds!$B$11:'Compounds'!$G$610,5),"") ->  | H23: =IF($B23<>"",VLOOKUP($B23,Compounds!$B$11:'Compounds'!$H$610,7),"") -> 
A24: 18 | B24: =IF(GC!C23<>"",GC!C23,"") ->  | D24: =IF($B24<>"",VLOOKUP($B24,Compounds!$B$11:'Compounds'!$G$610,2),"") ->  | E24: =IF($B24<>"",VLOOKUP($B24,Compounds!$B$11:'Compounds'!$G$610,3),"") ->  | F24: =IF($B24<>"",VLOOKUP($B24,Compounds!$B$11:'Compounds'!$G$610,4),"") ->  | G24: =IF($B24<>"",VLOOKUP($B24,Compounds!$B$11:'Compounds'!$G$610,5),"") ->  | H24: =IF($B24<>"",VLOOKUP($B24,Compounds!$B$11:'Compounds'!$H$610,7),"") -> 
A25: 19 | B25: =IF(GC!C24<>"",GC!C24,"") ->  | D25: =IF($B25<>"",VLOOKUP($B25,Compounds!$B$11:'Compounds'!$G$610,2),"") ->  | E25: =IF($B25<>"",VLOOKUP($B25,Compounds!$B$11:'Compounds'!$G$610,3),"") ->  | F25: =IF($B25<>"",VLOOKUP($B25,Compounds!$B$11:'Compounds'!$G$610,4),"") ->  | G25: =IF($B25<>"",VLOOKUP($B25,Compounds!$B$11:'Compounds'!$G$610,5),"") ->  | H25: =IF($B25<>"",VLOOKUP($B25,Compounds!$B$11:'Compounds'!$H$610,7),"") -> 
A26: 20 | B26: =IF(GC!C25<>"",GC!C25,"") ->  | D26: =IF($B26<>"",VLOOKUP($B26,Compounds!$B$11:'Compounds'!$G$610,2),"") ->  | E26: =IF($B26<>"",VLOOKUP($B26,Compounds!$B$11:'Compounds'!$G$610,3),"") ->  | F26: =IF($B26<>"",VLOOKUP($B26,Compounds!$B$11:'Compounds'!$G$610,4),"") ->  | G26: =IF($B26<>"",VLOOKUP($B26,Compounds!$B$11:'Compounds'!$G$610,5),"") ->  | H26: =IF($B26<>"",VLOOKUP($B26,Compounds!$B$11:'Compounds'!$H$610,7),"") -> 
A29: Column 1 | B29: T | C29: e | D29: s | E29: a | F29: b | G29: l | H29: c | W29: Column 2 | X29: T | Y29: e | Z29: s | AA29: a | AB29: b | AC29: l | AD29: c
B30: =Columns!B11 -> HP-5 | C30: =Columns!C11 -> 0 | D30: =Columns!D11 -> 5 % diphenylsiloxane | E30: =Columns!E11 -> 0 | F30: =Columns!F11 -> 0 | G30: =Columns!G11 -> 0 | H30: =Columns!H11 -> 0 | X30: =Columns!K11 -> HP-5 | Y30: =Columns!L11 -> 0 | Z30: =Columns!M11 -> 5 % diphenylsiloxane | AA30: =Columns!N11 -> 0 | AB30: =Columns!O11 -> 0 | AC30: =Columns!P11 -> 0 | AD30: =Columns!Q11 -> 0
A31: 1 | B31: =Columns!B12 -> 60 | C31: =Columns!C12 -> -0.103 | D31: =Columns!D12 -> 0.432 | E31: =Columns!E12 -> 0.375 | F31: =Columns!F12 -> 0 | G31: =Columns!G12 -> 0.709 | H31: =Columns!H12 -> -1.879 | W31: 1 | X31: =Columns!K12 -> 60 | Y31: =Columns!L12 -> -0.103 | Z31: =Columns!M12 -> 0.432 | AA31: =Columns!N12 -> 0.375 | AB31: =Columns!O12 -> 0 | AC31: =Columns!P12 -> 0.709 | AD31: =Columns!Q12 -> -1.879
A32: 2 | B32: =Columns!B13 -> 80 | C32: =Columns!C13 -> -0.06 | D32: =Columns!D13 -> 0.379 | E32: =Columns!E13 -> 0.317 | F32: =Columns!F13 -> 0 | G32: =Columns!G13 -> 0.628 | H32: =Columns!H13 -> -1.905 | W32: 2 | X32: =Columns!K13 -> 80 | Y32: =Columns!L13 -> -0.06 | Z32: =Columns!M13 -> 0.379 | AA32: =Columns!N13 -> 0.317 | AB32: =Columns!O13 -> 0 | AC32: =Columns!P13 -> 0.628 | AD32: =Columns!Q13 -> -1.905
A33: 3 | B33: =Columns!B14 -> 100 | C33: =Columns!C14 -> -0.033 | D33: =Columns!D14 -> 0.34 | E33: =Columns!E14 -> 0.254 | F33: =Columns!F14 -> 0 | G33: =Columns!G14 -> 0.556 | H33: =Columns!H14 -> -1.913 | J33: q | K33: d | W33: 3 | X33: =Columns!K14 -> 100 | Y33: =Columns!L14 -> -0.033 | Z33: =Columns!M14 -> 0.34 | AA33: =Columns!N14 -> 0.254 | AB33: =Columns!O14 -> 0 | AC33: =Columns!P14 -> 0.556 | AD33: =Columns!Q14 -> -1.913
A34: 4 | B34: =Columns!B15 -> 120 | C34: =Columns!C15 -> 0 | D34: =Columns!D15 -> 0.314 | E34: =Columns!E15 -> 0.19 | F34: =Columns!F15 -> 0 | G34: =Columns!G15 -> 0.512 | H34: =Columns!H15 -> -1.987 | J34: =ACOS((C31*Y31+D31*Z31+E31*AA31+F31*AB31+G31*AC31)/(J37*K37)-0.000001)*180/PI() -> 0.08102847521 | K34: =SQRT((C31/J37-Y31/K37)^2+(D31/J37-Z31/K37)^2+(E31/J37-AA31/K37)^2+(F31/J37-AB31/K37)^2+(G31/J37-AC31/K37)^2) -> 0 | W34: 4 | X34: =Columns!K15 -> 120 | Y34: =Columns!L15 -> 0 | Z34: =Columns!M15 -> 0.314 | AA34: =Columns!N15 -> 0.19 | AB34: =Columns!O15 -> 0 | AC34: =Columns!P15 -> 0.512 | AD34: =Columns!Q15 -> -1.987
A35: 5 | B35: =Columns!B16 -> 140 | C35: =Columns!C16 -> 0.033 | D35: =Columns!D16 -> 0.273 | E35: =Columns!E16 -> 0.167 | F35: =Columns!F16 -> 0 | G35: =Columns!G16 -> 0.46 | H35: =Columns!H16 -> -2.001 | W35: 5 | X35: =Columns!K16 -> 140 | Y35: =Columns!L16 -> 0.033 | Z35: =Columns!M16 -> 0.273 | AA35: =Columns!N16 -> 0.167 | AB35: =Columns!O16 -> 0 | AC35: =Columns!P16 -> 0.46 | AD35: =Columns!Q16 -> -2.001
A36: 6 | B36: =Columns!B17 -> 160 | C36: =Columns!C17 -> 0.018 | D36: =Columns!D17 -> 0.266 | E36: =Columns!E17 -> 0.142 | F36: =Columns!F17 -> 0 | G36: =Columns!G17 -> 0.404 | H36: =Columns!H17 -> -2.625 | J36: n1 | K36: n2 | W36: 6 | X36: =Columns!K17 -> 160 | Y36: =Columns!L17 -> 0.018 | Z36: =Columns!M17 -> 0.266 | AA36: =Columns!N17 -> 0.142 | AB36: =Columns!O17 -> 0 | AC36: =Columns!P17 -> 0.404 | AD36: =Columns!Q17 -> -2.625
A37: 7 | B37: =Columns!B18 -> 180 | C37: =Columns!C18 -> 0.037 | D37: =Columns!D18 -> 0.237 | E37: =Columns!E18 -> 0.129 | F37: =Columns!F18 -> 0 | G37: =Columns!G18 -> 0.364 | H37: =Columns!H18 -> -2.628 | J37: =SQRT(C31^2+D31^2+E31^2+F31^2+G31^2) -> 0.9168091404 | K37: =SQRT(Y31^2+Z31^2+AA31^2+AB31^2+AC31^2) -> 0.9168091404 | W37: 7 | X37: =Columns!K18 -> 180 | Y37: =Columns!L18 -> 0.037 | Z37: =Columns!M18 -> 0.237 | AA37: =Columns!N18 -> 0.129 | AB37: =Columns!O18 -> 0 | AC37: =Columns!P18 -> 0.364 | AD37: =Columns!Q18 -> -2.628
A38: 8 | B38: =Columns!B19 -> 200 | C38: =Columns!C19 -> 0.064 | D38: =Columns!D19 -> 0.214 | E38: =Columns!E19 -> 0.108 | F38: =Columns!F19 -> 0 | G38: =Columns!G19 -> 0.329 | H38: =Columns!H19 -> -2.635 | W38: 8 | X38: =Columns!K19 -> 200 | Y38: =Columns!L19 -> 0.064 | Z38: =Columns!M19 -> 0.214 | AA38: =Columns!N19 -> 0.108 | AB38: =Columns!O19 -> 0 | AC38: =Columns!P19 -> 0.329 | AD38: =Columns!Q19 -> -2.635
A39: 9 | B39: =Columns!B20 -> 220 | C39: =Columns!C20 -> 0.069 | D39: =Columns!D20 -> 0.207 | E39: =Columns!E20 -> 0.097 | F39: =Columns!F20 -> 0 | G39: =Columns!G20 -> 0.295 | H39: =Columns!H20 -> -2.632 | W39: 9 | X39: =Columns!K20 -> 220 | Y39: =Columns!L20 -> 0.069 | Z39: =Columns!M20 -> 0.207 | AA39: =Columns!N20 -> 0.097 | AB39: =Columns!O20 -> 0 | AC39: =Columns!P20 -> 0.295 | AD39: =Columns!Q20 -> -2.632
A40: 10 | B40: =Columns!B21 -> 240 | C40: =Columns!C21 -> 0.082 | D40: =Columns!D21 -> 0.191 | E40: =Columns!E21 -> 0.093 | F40: =Columns!F21 -> 0 | G40: =Columns!G21 -> 0.267 | H40: =Columns!H21 -> -2.629 | W40: 10 | X40: =Columns!K21 -> 240 | Y40: =Columns!L21 -> 0.082 | Z40: =Columns!M21 -> 0.191 | AA40: =Columns!N21 -> 0.093 | AB40: =Columns!O21 -> 0 | AC40: =Columns!P21 -> 0.267 | AD40: =Columns!Q21 -> -2.629
A41: 11 | B41: =Columns!B22 -> 260 | C41: =Columns!C22 -> 0.091 | D41: =Columns!D22 -> 0.2 | E41: =Columns!E22 -> 0.112 | F41: =Columns!F22 -> 0 | G41: =Columns!G22 -> 0.246 | H41: =Columns!H22 -> -2.689 | W41: 11 | X41: =Columns!K22 -> 260 | Y41: =Columns!L22 -> 0.091 | Z41: =Columns!M22 -> 0.2 | AA41: =Columns!N22 -> 0.112 | AB41: =Columns!O22 -> 0 | AC41: =Columns!P22 -> 0.246 | AD41: =Columns!Q22 -> -2.689
A42: 12 | B42: =Columns!B23 -> 280 | C42: =Columns!C23 -> 0.105 | D42: =Columns!D23 -> 0.162 | E42: =Columns!E23 -> 0.112 | F42: =Columns!F23 -> 0 | G42: =Columns!G23 -> 0.225 | H42: =Columns!H23 -> -2.679 | W42: 12 | X42: =Columns!K23 -> 280 | Y42: =Columns!L23 -> 0.105 | Z42: =Columns!M23 -> 0.162 | AA42: =Columns!N23 -> 0.112 | AB42: =Columns!O23 -> 0 | AC42: =Columns!P23 -> 0.225 | AD42: =Columns!Q23 -> -2.679
A43: 13 | B43: =Columns!B24 -> 300 | C43: =Columns!C24 -> 0.101 | D43: =Columns!D24 -> 0.137 | E43: =Columns!E24 -> 0.102 | F43: =Columns!F24 -> 0 | G43: =Columns!G24 -> 0.21 | H43: =Columns!H24 -> -2.645 | W43: 13 | X43: =Columns!K24 -> 300 | Y43: =Columns!L24 -> 0.101 | Z43: =Columns!M24 -> 0.137 | AA43: =Columns!N24 -> 0.102 | AB43: =Columns!O24 -> 0 | AC43: =Columns!P24 -> 0.21 | AD43: =Columns!Q24 -> -2.645
A44: 14 | B44: =Columns!B25 ->  | C44: =Columns!C25 ->  | D44: =Columns!D25 ->  | E44: =Columns!E25 ->  | F44: =Columns!F25 ->  | G44: =Columns!G25 ->  | H44: =Columns!H25 ->  | W44: 14 | X44: =Columns!K25 ->  | Y44: =Columns!L25 ->  | Z44: =Columns!M25 ->  | AA44: =Columns!N25 ->  | AB44: =Columns!O25 ->  | AC44: =Columns!P25 ->  | AD44: =Columns!Q25 -> 
A45: 15 | B45: =Columns!B26 ->  | C45: =Columns!C26 ->  | D45: =Columns!D26 ->  | E45: =Columns!E26 ->  | F45: =Columns!F26 ->  | G45: =Columns!G26 ->  | H45: =Columns!H26 ->  | W45: 15 | X45: =Columns!K26 ->  | Y45: =Columns!L26 ->  | Z45: =Columns!M26 ->  | AA45: =Columns!N26 ->  | AB45: =Columns!O26 ->  | AC45: =Columns!P26 ->  | AD45: =Columns!Q26 -> 
A46: 16 | B46: =Columns!B27 ->  | C46: =Columns!C27 ->  | D46: =Columns!D27 ->  | E46: =Columns!E27 ->  | F46: =Columns!F27 ->  | G46: =Columns!G27 ->  | H46: =Columns!H27 ->  | W46: 16 | X46: =Columns!K27 ->  | Y46: =Columns!L27 ->  | Z46: =Columns!M27 ->  | AA46: =Columns!N27 ->  | AB46: =Columns!O27 ->  | AC46: =Columns!P27 ->  | AD46: =Columns!Q27 -> 
A47: 17 | B47: =Columns!B28 ->  | C47: =Columns!C28 ->  | D47: =Columns!D28 ->  | E47: =Columns!E28 ->  | F47: =Columns!F28 ->  | G47: =Columns!G28 ->  | H47: =Columns!H28 ->  | W47: 17 | X47: =Columns!K28 ->  | Y47: =Columns!L28 ->  | Z47: =Columns!M28 ->  | AA47: =Columns!N28 ->  | AB47: =Columns!O28 ->  | AC47: =Columns!P28 ->  | AD47: =Columns!Q28 -> 
A48: 18 | B48: =Columns!B29 ->  | C48: =Columns!C29 ->  | D48: =Columns!D29 ->  | E48: =Columns!E29 ->  | F48: =Columns!F29 ->  | G48: =Columns!G29 ->  | H48: =Columns!H29 ->  | W48: 18 | X48: =Columns!K29 ->  | Y48: =Columns!L29 ->  | Z48: =Columns!M29 ->  | AA48: =Columns!N29 ->  | AB48: =Columns!O29 ->  | AC48: =Columns!P29 ->  | AD48: =Columns!Q29 -> 
A49: 19 | B49: =Columns!B30 ->  | C49: =Columns!C30 ->  | D49: =Columns!D30 ->  | E49: =Columns!E30 ->  | F49: =Columns!F30 ->  | G49: =Columns!G30 ->  | H49: =Columns!H30 ->  | W49: 19 | X49: =Columns!K30 ->  | Y49: =Columns!L30 ->  | Z49: =Columns!M30 ->  | AA49: =Columns!N30 ->  | AB49: =Columns!O30 ->  | AC49: =Columns!P30 ->  | AD49: =Columns!Q30 -> 
A50: 20 | B50: =Columns!B31 ->  | C50: =Columns!C31 ->  | D50: =Columns!D31 ->  | E50: =Columns!E31 ->  | F50: =Columns!F31 ->  | G50: =Columns!G31 ->  | H50: =Columns!H31 ->  | W50: 20 | X50: =Columns!K31 ->  | Y50: =Columns!L31 ->  | Z50: =Columns!M31 ->  | AA50: =Columns!N31 ->  | AB50: =Columns!O31 ->  | AC50: =Columns!P31 ->  | AD50: =Columns!Q31 -> 
A52: T | B52: =IF($B31<>"",$B31,NA()) -> 60 | C52: =IF($B32<>"",$B32,NA()) -> 80 | D52: =IF($B33<>"",$B33,NA()) -> 100 | E52: =IF($B34<>"",$B34,NA()) -> 120 | F52: =IF($B35<>"",$B35,NA()) -> 140 | G52: =IF($B36<>"",$B36,NA()) -> 160 | H52: =IF($B37<>"",$B37,NA()) -> 180 | I52: =IF($B38<>"",$B38,NA()) -> 200 | J52: =IF($B39<>"",$B39,NA()) -> 220 | K52: =IF($B40<>"",$B40,NA()) -> 240 | L52: =IF($B41<>"",$B41,NA()) -> 260 | M52: =IF($B42<>"",$B42,NA()) -> 280 | N52: =IF($B43<>"",$B43,NA()) -> 300 | O52: =IF($B44<>"",$B44,NA()) ->  | P52: =IF($B45<>"",$B45,NA()) ->  | Q52: =IF($B46<>"",$B46,NA()) ->  | R52: =IF($B47<>"",$B47,NA()) ->  | S52: =IF($B48<>"",$B48,NA()) ->  | T52: =IF($B49<>"",$B49,NA()) ->  | U52: =IF($B50<>"",$B50,NA()) ->  | W52: T | X52: =IF($X31<>"",$X31,NA()) -> 60 | Y52: =IF($X32<>"",$X32,NA()) -> 80 | Z52: =IF($X33<>"",$X33,NA()) -> 100 | AA52: =IF($X34<>"",$X34,NA()) -> 120 | AB52: =IF($X35<>"",$X35,NA()) -> 140 | AC52: =IF($X36<>"",$X36,NA()) -> 160 | AD52: =IF($X37<>"",$X37,NA()) -> 180 | AE52: =IF($X38<>"",$X38,NA()) -> 200 | AF52: =IF($X39<>"",$X39,NA()) -> 220 | AG52: =IF($X40<>"",$X40,NA()) -> 240 | AH52: =IF($X41<>"",$X41,NA()) -> 260 | AI52: =IF($X42<>"",$X42,NA()) -> 280 | AJ52: =IF($X43<>"",$X43,NA()) -> 300 | AK52: =IF($X44<>"",$X44,NA()) ->  | AL52: =IF($X45<>"",$X45,NA()) ->  | AM52: =IF($X46<>"",$X46,NA()) ->  | AN52: =IF($X47<>"",$X47,NA()) ->  | AO52: =IF($X48<>"",$X48,NA()) ->  | AP52: =IF($X49<>"",$X49,NA()) ->  | AQ52: =IF($X50<>"",$X50,NA()) -> 
A53: 1 | B53: =IF($B$7<>"",IF($B$31<>"",$D7*$C$31+$E7*$D$31+$F7*$E$31+$G7*$F$31+$H7*$G$31+$H$31,""),"") -> 1.344132 | C53: =IF($B$7<>"",IF($B$32<>"",$D7*$C$32+$E7*$D$32+$F7*$E$32+$G7*$F$32+$H7*$G$32+$H$32,""),"") -> 0.959597 | D53: =IF($B$7<>"",IF($B$33<>"",$D7*$C$33+$E7*$D$33+$F7*$E$33+$G7*$F$33+$H7*$G$33+$H$33,""),"") -> 0.622428 | E53: =IF($B$7<>"",IF($B$34<>"",$D7*$C$34+$E7*$D$34+$F7*$E$34+$G7*$F$34+$H7*$G$34+$H$34,""),"") -> 0.339486 | F53: =IF($B$7<>"",IF($B$35<>"",$D7*$C$35+$E7*$D$35+$F7*$E$35+$G7*$F$35+$H7*$G$35+$H$35,""),"") -> 0.104305 | G53: =IF($B$7<>"",IF($B$36<>"",$D7*$C$36+$E7*$D$36+$F7*$E$36+$G7*$F$36+$H7*$G$36+$H$36,""),"") -> -0.767258 | H53: =IF($B$7<>"",IF($B$37<>"",$D7*$C$37+$E7*$D$37+$F7*$E$37+$G7*$F$37+$H7*$G$37+$H$37,""),"") -> -0.939825 | I53: =IF($B$7<>"",IF($B$38<>"",$D7*$C$38+$E7*$D$38+$F7*$E$38+$G7*$F$38+$H7*$G$38+$H$38,""),"") -> -1.092523 | J53: =IF($B$7<>"",IF($B$39<>"",$D7*$C$39+$E7*$D$39+$F7*$E$39+$G7*$F$39+$H7*$G$39+$H$39,""),"") -> -1.228294 | K53: =IF($B$7<>"",IF($B$40<>"",$D7*$C$40+$E7*$D$40+$F7*$E$40+$G7*$F$40+$H7*$G$40+$H$40,""),"") -> -1.337164 | L53: =IF($B$7<>"",IF($B$41<>"",$D7*$C$41+$E7*$D$41+$F7*$E$41+$G7*$F$41+$H7*$G$41+$H$41,""),"") -> -1.4493 | M53: =IF($B$7<>"",IF($B$42<>"",$D7*$C$42+$E7*$D$42+$F7*$E$42+$G7*$F$42+$H7*$G$42+$H$42,""),"") -> -1.538045 | N53: =IF($B$7<>"",IF($B$43<>"",$D7*$C$43+$E7*$D$43+$F7*$E$43+$G7*$F$43+$H7*$G$43+$H$43,""),"") -> -1.590736 | O53: =IF($B$7<>"",IF($B$44<>"",$D7*$C$44+$E7*$D$44+$F7*$E$44+$G7*$F$44+$H7*$G$44+$H$44,""),"") ->  | P53: =IF($B$7<>"",IF($B$45<>"",$D7*$C$45+$E7*$D$45+$F7*$E$45+$G7*$F$45+$H7*$G$45+$H$45,""),"") ->  | Q53: =IF($B$7<>"",IF($B$46<>"",$D7*$C$46+$E7*$D$46+$F7*$E$46+$G7*$F$46+$H7*$G$46+$H$46,""),"") ->  | R53: =IF($B$7<>"",IF($B$47<>"",$D7*$C$47+$E7*$D$47+$F7*$E$47+$G7*$F$47+$H7*$G$47+$H$47,""),"") ->  | S53: =IF($B$7<>"",IF($B$48<>"",$D7*$C$48+$E7*$D$48+$F7*$E$48+$G7*$F$48+$H7*$G$48+$H$48,""),"") ->  | T53: =IF($B$7<>"",IF($B$49<>"",$D7*$C$49+$E7*$D$49+$F7*$E$49+$G7*$F$49+$H7*$G$49+$H$49,""),"") ->  | U53: =IF($B$7<>"",IF($B$50<>"",$D7*$C$50+$E7*$D$50+$F7*$E$50+$G7*$F$50+$H7*$G$50+$H$50,""),"") ->  | W53: 1 | X53: =IF($B7<>"",IF($X$31<>"",$D7*$Y$31+$E7*$Z$31+$F7*$AA$31+$G7*$AB$31+$H7*$AC$31+$AD$31,""),"") -> 1.344132 | Y53: =IF($B7<>"",IF($X$32<>"",$D7*$Y$32+$E7*$Z$32+$F7*$AA$32+$G7*$AB$32+$H7*$AC$32+$AD$32,""),"") -> 0.959597 | Z53: =IF($B7<>"",IF($X$33<>"",$D7*$Y$33+$E7*$Z$33+$F7*$AA$33+$G7*$AB$33+$H7*$AC$33+$AD$33,""),"") -> 0.622428 | AA53: =IF($B7<>"",IF($X$34<>"",$D7*$Y$34+$E7*$Z$34+$F7*$AA$34+$G7*$AB$34+$H7*$AC$34+$AD$34,""),"") -> 0.339486 | AB53: =IF($B7<>"",IF($X$35<>"",$D7*$Y$35+$E7*$Z$35+$F7*$AA$35+$G7*$AB$35+$H7*$AC$35+$AD$35,""),"") -> 0.104305 | AC53: =IF($B7<>"",IF($X$36<>"",$D7*$Y$36+$E7*$Z$36+$F7*$AA$36+$G7*$AB$36+$H7*$AC$36+$AD$36,""),"") -> -0.767258 | AD53: =IF($B7<>"",IF($X$37<>"",$D7*$Y$37+$E7*$Z$37+$F7*$AA$37+$G7*$AB$37+$H7*$AC$37+$AD$37,""),"") -> -0.939825 | AE53: =IF($B7<>"",IF($X$38<>"",$D7*$Y$38+$E7*$Z$38+$F7*$AA$38+$G7*$AB$38+$H7*$AC$38+$AD$38,""),"") -> -1.092523 | AF53: =IF($B7<>"",IF($X$39<>"",$D7*$Y$39+$E7*$Z$39+$F7*$AA$39+$G7*$AB$39+$H7*$AC$39+$AD$39,""),"") -> -1.228294 | AG53: =IF($B7<>"",IF($X$40<>"",$D7*$Y$40+$E7*$Z$40+$F7*$AA$40+$G7*$AB$40+$H7*$AC$40+$AD$40,""),"") -> -1.337164 | AH53: =IF($B7<>"",IF($X$41<>"",$D7*$Y$41+$E7*$Z$41+$F7*$AA$41+$G7*$AB$41+$H7*$AC$41+$AD$41,""),"") -> -1.4493 | AI53: =IF($B7<>"",IF($X$42<>"",$D7*$Y$42+$E7*$Z$42+$F7*$AA$42+$G7*$AB$42+$H7*$AC$42+$AD$42,""),"") -> -1.538045 | AJ53: =IF($B7<>"",IF($X$43<>"",$D7*$Y$43+$E7*$Z$43+$F7*$AA$43+$G7*$AB$43+$H7*$AC$43+$AD$43,""),"") -> -1.590736 | AK53: =IF($B7<>"",IF($X$44<>"",$D7*$Y$44+$E7*$Z$44+$F7*$AA$44+$G7*$AB$44+$H7*$AC$44+$AD$44,""),"") ->  | AL53: =IF($B7<>"",IF($X$45<>"",$D7*$Y$45+$E7*$Z$45+$F7*$AA$45+$G7*$AB$45+$H7*$AC$45+$AD$45,""),"") ->  | AM53: =IF($B7<>"",IF($X$46<>"",$D7*$Y$46+$E7*$Z$46+$F7*$AA$46+$G7*$AB$46+$H7*$AC$46+$AD$46,""),"") ->  | AN53: =IF($B7<>"",IF($X$47<>"",$D7*$Y$47+$E7*$Z$47+$F7*$AA$47+$G7*$AB$47+$H7*$AC$47+$AD$47,""),"") ->  | AO53: =IF($B7<>"",IF($X$48<>"",$D7*$Y$48+$E7*$Z$48+$F7*$AA$48+$G7*$AB$48+$H7*$AC$48+$AD$48,""),"") ->  | AP53: =IF($B7<>"",IF($X$49<>"",$D7*$Y$49+$E7*$Z$49+$F7*$AA$49+$G7*$AB$49+$H7*$AC$49+$AD$49,""),"") ->  | AQ53: =IF($B7<>"",IF($X$50<>"",$D7*$Y$50+$E7*$Z$50+$F7*$AA$50+$G7*$AB$50+$H7*$AC$50+$AD$50,""),"") -> 
A54: 2 | B54: =IF($B$7<>"",IF($B$31<>0,$D8*$C$31+$E8*$D$31+$F8*$E$31+$G8*$F$31+$H8*$G$31+$H$31,""),"") -> 1.408716 | C54: =IF($B$7<>"",IF($B$32<>0,$D8*$C$32+$E8*$D$32+$F8*$E$32+$G8*$F$32+$H8*$G$32+$H$32,""),"") -> 1.026247 | D54: =IF($B$7<>"",IF($B$33<>0,$D8*$C$33+$E8*$D$33+$F8*$E$33+$G8*$F$33+$H8*$G$33+$H$33,""),"") -> 0.702215 | E54: =IF($B$7<>"",IF($B$34<>0,$D8*$C$34+$E8*$D$34+$F8*$E$34+$G8*$F$34+$H8*$G$34+$H$34,""),"") -> 0.444922 | F54: =IF($B$7<>"",IF($B$35<>0,$D8*$C$35+$E8*$D$35+$F8*$E$35+$G8*$F$35+$H8*$G$35+$H$35,""),"") -> 0.198194 | G54: =IF($B$7<>"",IF($B$36<>0,$D8*$C$36+$E8*$D$36+$F8*$E$36+$G8*$F$36+$H8*$G$36+$H$36,""),"") -> -0.671992 | H54: =IF($B$7<>"",IF($B$37<>0,$D8*$C$37+$E8*$D$37+$F8*$E$37+$G8*$F$37+$H8*$G$37+$H$37,""),"") -> -0.855894 | I54: =IF($B$7<>"",IF($B$38<>0,$D8*$C$38+$E8*$D$38+$F8*$E$38+$G8*$F$38+$H8*$G$38+$H$38,""),"") -> -1.010763 | J54: =IF($B$7<>"",IF($B$39<>0,$D8*$C$39+$E8*$D$39+$F8*$E$39+$G8*$F$39+$H8*$G$39+$H$39,""),"") -> -1.149839 | K54: =IF($B$7<>"",IF($B$40<>0,$D8*$C$40+$E8*$D$40+$F8*$E$40+$G8*$F$40+$H8*$G$40+$H$40,""),"") -> -1.268822 | L54: -1.397075 | M54: -1.504854 | N54: -1.562984 | W54: 2 | X54: 1.408716 | Y54: 1.026247 | Z54: 0.702215 | AA54: 0.444922 | AB54: 0.198194 | AC54: -0.671992 | AD54: -0.855894 | AE54: -1.010763 | AF54: -1.149839 | AG54: -1.268822 | AH54: -1.397075 | AI54: -1.504854 | AJ54: -1.562984
A55: 3 | B55: 1.407025 | C55: 1.031456 | D55: 0.709182 | E55: 0.456576 | F55: 0.21727 | G55: -0.664808 | H55: -0.84489 | I55: -0.995225 | J55: -1.138173 | K55: -1.255779 | L55: -1.389204 | M55: -1.487667 | N55: -1.542296 | W55: 3 | X55: 1.407025 | Y55: 1.031456 | Z55: 0.709182 | AA55: 0.456576 | AB55: 0.21727 | AC55: -0.664808 | AD55: -0.84489 | AE55: -0.995225 | AF55: -1.138173 | AG55: -1.255779 | AH55: -1.389204 | AI55: -1.487667 | AJ55: -1.542296
A56: 4 | B56: 1.625325 | C56: 1.213609 | D56: 0.852197 | E56: 0.559054 | F56: 0.305572 | G56: -0.59194 | H56: -0.779838 | I56: -0.943907 | J56: -1.094419 | K56: -1.214778 | L56: -1.338827 | M56: -1.435226 | N56: -1.493703 | W56: 4 | X56: 1.625325 | Y56: 1.213609 | Z56: 0.852197 | AA56: 0.559054 | AB56: 0.305572 | AC56: -0.59194 | AD56: -0.779838 | AE56: -0.943907 | AF56: -1.094419 | AG56: -1.214778 | AH56: -1.338827 | AI56: -1.435226 | AJ56: -1.493703
A57: 5 | B57: 2.010984 | C57: 1.551723 | D57: 1.148908 | E57: 0.827858 | F57: 0.543665 | G57: -0.380814 | H57: -0.591467 | I57: -0.776626 | J57: -0.944665 | K57: -1.080497 | L57: -1.214112 | M57: -1.323622 | N57: -1.390599 | W57: 5 | X57: 2.010984 | Y57: 1.551723 | Z57: 1.148908 | AA57: 0.827858 | AB57: 0.543665 | AC57: -0.380814 | AD57: -0.591467 | AE57: -0.776626 | AF57: -0.944665 | AG57: -1.080497 | AH57: -1.214112 | AI57: -1.323622 | AJ57: -1.390599
A58: 6 | B58: 2.257911 | C58: 1.794846 | D58: 1.393171 | E58: 1.097108 | F58: 0.801571 | G58: -0.148218 | H58: -0.373049 | I58: -0.55833 | J58: -0.738303 | K58: -0.886158 | L58: -1.036773 | M58: -1.163589 | N58: -1.242685 | W58: 6 | X58: 2.257911 | Y58: 1.794846 | Z58: 1.393171 | AA58: 1.097108 | AB58: 0.801571 | AC58: -0.148218 | AD58: -0.373049 | AE58: -0.55833 | AF58: -0.738303 | AG58: -0.886158 | AH58: -1.036773 | AI58: -1.163589 | AJ58: -1.242685
A59: 7 | B59: 2.504646 | C59: 1.999561 | D59: 1.559456 | E59: 1.224982 | F59: 0.906197 | G59: -0.051154 | H59: -0.290017 | I59: -0.493491 | J59: -0.679734 | K59: -0.83434 | L59: -0.976428 | M59: -1.112741 | N59: -1.199598 | W59: 7 | X59: 2.504646 | Y59: 1.999561 | Z59: 1.559456 | AA59: 1.224982 | AB59: 0.906197 | AC59: -0.051154 | AD59: -0.290017 | AE59: -0.493491 | AF59: -0.679734 | AG59: -0.83434 | AH59: -0.976428 | AI59: -1.112741 | AJ59: -1.199598
A60: 8 | B60: 2.83585 | C60: 2.2712 | D60: 1.7844 | E60: 1.4178 | F60: 1.058 | G60: 0.0616 | H60: -0.2074 | I60: -0.44715 | J60: -0.67025 | K60: -0.85345 | L60: -1.0531 | M60: -1.18275 | N60: -1.2485 | W60: 8 | X60: 2.83585 | Y60: 2.2712 | Z60: 1.7844 | AA60: 1.4178 | AB60: 1.058 | AC60: 0.0616 | AD60: -0.2074 | AE60: -0.44715 | AF60: -0.67025 | AG60: -0.85345 | AH60: -1.0531 | AI60: -1.18275 | AJ60: -1.2485
A61: 9 | B61: 3.173961 | C61: 2.610599 | D61: 2.118117 | E61: 1.768866 | F61: 1.409776 | G61: 0.384088 | H61: 0.109456 | I61: -0.118 | J61: -0.342072 | K61: -0.524885 | L61: -0.702095 | M61: -0.854205 | N61: -0.953328 | W61: 9 | X61: 3.173961 | Y61: 2.610599 | Z61: 2.118117 | AA61: 1.768866 | AB61: 1.409776 | AC61: 0.384088 | AD61: 0.109456 | AE61: -0.118 | AF61: -0.342072 | AG61: -0.524885 | AH61: -0.702095 | AI61: -0.854205 | AJ61: -0.953328
A62: 10 | B62: 3.475587 | C62: 2.868709 | D62: 2.337674 | E62: 1.955974 | F62: 1.570555 | G62: 0.529118 | H62: 0.236669 | I62: -0.010028 | J62: -0.245315 | K62: -0.438851 | L62: -0.616356 | M62: -0.779596 | N62: -0.886462 | W62: 10 | X62: 3.475587 | Y62: 2.868709 | Z62: 2.337674 | AA62: 1.955974 | AB62: 1.570555 | AC62: 0.529118 | AD62: 0.236669 | AE62: -0.010028 | AF62: -0.245315 | AG62: -0.438851 | AH62: -0.616356 | AI62: -0.779596 | AJ62: -0.886462
A63: 11 | B63: 3.954677 | C63: 3.321191 | D63: 2.756316 | E63: 2.36565 | F63: 1.968275 | G63: 0.87727 | H63: 0.570905 | I63: 0.322082 | J63: 0.070859 | K63: -0.130035 | L63: -0.301186 | M63: -0.475948 | N63: -0.60636 | W63: 11 | X63: 3.954677 | Y63: 3.321191 | Z63: 2.756316 | AA63: 2.36565 | AB63: 1.968275 | AC63: 0.87727 | AD63: 0.570905 | AE63: 0.322082 | AF63: 0.070859 | AG63: -0.130035 | AH63: -0.301186 | AI63: -0.475948 | AJ63: -0.60636
A64: 12 | W64: 12
A65: 13 | W65: 13
A66: 14 | W66: 14
A67: 15 | W67: 15
A68: 16 | W68: 16
A69: 17 | W69: 17
A70: 18 | W70: 18
A71: 19 | W71: 19
A72: 20 | W72: 20
J75: Linear fit
J77: Comp.# 1-11
J97: Quadratic fit
J99: Comp. # 1-11
A120: Indicator | B120: =IF(ISNUMBER(B52),1,0) -> 1 | C120: 1 | D120: 1 | E120: 1 | F120: 1 | G120: 1 | H120: 1 | I120: 1 | J120: 1 | K120: 1 | L120: =IF(ISNUMBER(L52),1,0) -> 1 | M120: 1 | N120: 1 | O120: 0 | P120: 0 | Q120: 0 | R120: 0 | S120: 0 | T120: 0 | U120: 0 | W120: Indicator | X120: =IF(ISNUMBER(X52),1,0) -> 1 | Y120: 1 | Z120: 1 | AA120: 1 | AB120: 1 | AC120: 1 | AD120: 1 | AE120: 1 | AF120: =IF(ISNUMBER(AF52),1,0) -> 1 | AG120: 1 | AH120: =IF(ISNUMBER(AH52),1,0) -> 1 | AI120: 1 | AJ120: 1 | AK120: 0 | AL120: 0 | AM120: 0 | AN120: 0 | AO120: 0 | AP120: 0
A121: x | B121: =IF(B120=1,B52,0) -> 60 | C121: 80 | D121: 100 | E121: 120 | F121: 140 | G121: 160 | H121: 180 | I121: 200 | J121: 220 | K121: 240 | L121: =IF(L120=1,L52,0) -> 260 | M121: 280 | N121: 300 | O121: 0 | P121: 0 | Q121: 0 | R121: 0 | S121: 0 | T121: 0 | U121: 0 | W121: x | X121: =IF(X120=1,X52,0) -> 60 | Y121: 80 | Z121: 100 | AA121: 120 | AB121: 140 | AC121: 160 | AD121: 180 | AE121: 200 | AF121: =IF(AF120=1,AF52,0) -> 220 | AG121: 240 | AH121: =IF(AH120=1,AH52,0) -> 260 | AI121: 280 | AJ121: 300 | AK121: 0 | AL121: 0 | AM121: 0 | AN121: 0 | AO121: 0 | AP121: 0
A122: x^2 | B122: =IF(B120=1,B121^2,0) -> 3600 | C122: =IF(C120=1,C121^2,0) -> 6400 | D122: 10000 | E122: 14400 | F122: 19600 | G122: 25600 | H122: 32400 | I122: 40000 | J122: 48400 | K122: 57600 | L122: =IF(L120=1,L121^2,0) -> 67600 | M122: 78400 | N122: 90000 | O122: 0 | P122: 0 | Q122: 0 | R122: 0 | S122: 0 | T122: 0 | U122: 0 | W122: x^2 | X122: =IF(X120=1,X121^2,0) -> 3600 | Y122: =IF(Y120=1,Y121^2,0) -> 6400 | Z122: =IF(Z120=1,Z121^2,0) -> 10000 | AA122: =IF(AA120=1,AA121^2,0) -> 14400 | AB122: =IF(AB120=1,AB121^2,0) -> 19600 | AC122: =IF(AC120=1,AC121^2,0) -> 25600 | AD122: =IF(AD120=1,AD121^2,0) -> 32400 | AE122: =IF(AE120=1,AE121^2,0) -> 40000 | AF122: =IF(AF120=1,AF121^2,0) -> 48400 | AG122: =IF(AG120=1,AG121^2,0) -> 57600 | AH122: =IF(AH120=1,AH121^2,0) -> 67600 | AI122: 78400 | AJ122: 90000 | AK122: 0 | AL122: 0 | AM122: 0 | AN122: 0 | AO122: 0 | AP122: 0
A123: x^3 | B123: =IF(B120=1,B121*B122,0) -> 216000 | C123: =IF(C120=1,C121*C122,0) -> 512000 | D123: 1000000 | E123: 1728000 | F123: 2744000 | G123: 4096000 | H123: 5832000 | I123: 8000000 | J123: 10648000 | K123: 13824000 | L123: =IF(L120=1,L121*L122,0) -> 17576000 | M123: 21952000 | N123: 27000000 | O123: 0 | P123: 0 | Q123: 0 | R123: 0 | S123: 0 | T123: 0 | U123: 0 | W123: x^3 | X123: =IF(X120=1,X121*X122,0) -> 216000 | Y123: =IF(Y120=1,Y121*Y122,0) -> 512000 | Z123: =IF(Z120=1,Z121*Z122,0) -> 1000000 | AA123: =IF(AA120=1,AA121*AA122,0) -> 1728000 | AB123: =IF(AB120=1,AB121*AB122,0) -> 2744000 | AC123: =IF(AC120=1,AC121*AC122,0) -> 4096000 | AD123: =IF(AD120=1,AD121*AD122,0) -> 5832000 | AE123: =IF(AE120=1,AE121*AE122,0) -> 8000000 | AF123: =IF(AF120=1,AF121*AF122,0) -> 10648000 | AG123: =IF(AG120=1,AG121*AG122,0) -> 13824000 | AH123: =IF(AH120=1,AH121*AH122,0) -> 17576000 | AI123: 21952000 | AJ123: 27000000 | AK123: 0 | AL123: 0 | AM123: 0 | AN123: 0 | AO123: 0 | AP123: 0
A124: =A53 -> 1 | B124: =IF(B$120=1,B53,0) -> 1.344132 | C124: 0.959597 | D124: 0.622428 | E124: 0.339486 | F124: 0.104305 | G124: -0.767258 | H124: -0.939825 | I124: -1.092523 | J124: -1.228294 | K124: =IF(K$120=1,K53,0) -> -1.337164 | L124: =IF(L$120=1,L53,0) -> -1.4493 | M124: -1.538045 | N124: -1.590736 | O124: 0 | P124: 0 | Q124: 0 | R124: 0 | S124: 0 | T124: 0 | U124: 0 | W124: =W53 -> 1 | X124: =IF(X$120=1,X53,0) -> 1.344132 | Y124: 0.959597 | Z124: 0.622428 | AA124: 0.339486 | AB124: 0.104305 | AC124: -0.767258 | AD124: -0.939825 | AE124: -1.092523 | AF124: =IF(AF$120=1,AF53,0) -> -1.228294 | AG124: -1.337164 | AH124: =IF(AH$120=1,AH53,0) -> -1.4493 | AI124: -1.538045 | AJ124: -1.590736 | AK124: 0 | AL124: 0 | AM124: 0 | AN124: 0 | AO124: 0 | AP124: 0
A125: 2 | B125: =IF(B$120=1,B54,0) -> 1.408716 | C125: 1.026247 | D125: 0.702215 | E125: 0.444922 | F125: 0.198194 | G125: -0.671992 | H125: -0.855894 | I125: -1.010763 | J125: -1.149839 | K125: -1.268822 | L125: =IF(L$120=1,L54,0) -> -1.397075 | M125: -1.504854 | N125: -1.562984 | O125: 0 | P125: 0 | Q125: 0 | R125: 0 | S125: 0 | T125: 0 | U125: 0 | W125: 2 | X125: =IF(X$120=1,X54,0) -> 1.408716 | Y125: 1.026247 | Z125: 0.702215 | AA125: 0.444922 | AB125: 0.198194 | AC125: -0.671992 | AD125: -0.855894 | AE125: -1.010763 | AF125: -1.149839 | AG125: -1.268822 | AH125: =IF(AH$120=1,AH54,0) -> -1.397075 | AI125: -1.504854 | AJ125: -1.562984 | AK125: 0 | AL125: 0 | AM125: 0 | AN125: 0 | AO125: 0 | AP125: 0
A126: 3 | B126: =IF(B$120=1,B55,0) -> 1.407025 | C126: 1.031456 | D126: 0.709182 | E126: 0.456576 | F126: 0.21727 | G126: -0.664808 | H126: -0.84489 | I126: -0.995225 | J126: -1.138173 | K126: -1.255779 | L126: =IF(L$120=1,L55,0) -> -1.389204 | M126: -1.487667 | N126: -1.542296 | O126: 0 | P126: 0 | Q126: 0 | R126: 0 | S126: 0 | T126: 0 | U126: 0 | W126: 3 | X126: =IF(X$120=1,X55,0) -> 1.407025 | Y126: 1.031456 | Z126: 0.709182 | AA126: 0.456576 | AB126: 0.21727 | AC126: -0.664808 | AD126: -0.84489 | AE126: -0.995225 | AF126: -1.138173 | AG126: -1.255779 | AH126: =IF(AH$120=1,AH55,0) -> -1.389204 | AI126: -1.487667 | AJ126: -1.542296 | AK126: 0 | AL126: 0 | AM126: 0 | AN126: 0 | AO126: 0 | AP126: 0
A127: 4 | B127: =IF(B$120=1,B56,0) -> 1.625325 | C127: 1.213609 | D127: 0.852197 | E127: 0.559054 | F127: 0.305572 | G127: -0.59194 | H127: -0.779838 | I127: -0.943907 | J127: -1.094419 | K127: -1.214778 | L127: =IF(L$120=1,L56,0) -> -1.338827 | M127: -1.435226 | N127: -1.493703 | O127: 0 | P127: 0 | Q127: 0 | R127: 0 | S127: 0 | T127: 0 | U127: 0 | W127: 4 | X127: =IF(X$120=1,X56,0) -> 1.625325 | Y127: 1.213609 | Z127: 0.852197 | AA127: 0.559054 | AB127: 0.305572 | AC127: -0.59194 | AD127: -0.779838 | AE127: -0.943907 | AF127: -1.094419 | AG127: -1.214778 | AH127: =IF(AH$120=1,AH56,0) -> -1.338827 | AI127: -1.435226 | AJ127: -1.493703 | AK127: 0 | AL127: 0 | AM127: 0 | AN127: 0 | AO127: 0 | AP127: 0
A128: 5 | B128: =IF(B$120=1,B57,0) -> 2.010984 | C128: 1.551723 | D128: 1.148908 | E128: 0.827858 | F128: 0.543665 | G128: -0.380814 | H128: -0.591467 | I128: -0.776626 | J128: -0.944665 | K128: -1.080497 | L128: =IF(L$120=1,L57,0) -> -1.214112 | M128: -1.323622 | N128: -1.390599 | O128: 0 | P128: 0 | Q128: 0 | R128: 0 | S128: 0 | T128: 0 | U128: 0 | W128: 5 | X128: =IF(X$120=1,X57,0) -> 2.010984 | Y128: 1.551723 | Z128: 1.148908 | AA128: 0.827858 | AB128: 0.543665 | AC128: -0.380814 | AD128: -0.591467 | AE128: -0.776626 | AF128: -0.944665 | AG128: -1.080497 | AH128: =IF(AH$120=1,AH57,0) -> -1.214112 | AI128: -1.323622 | AJ128: -1.390599 | AK128: 0 | AL128: 0 | AM128: 0 | AN128: 0 | AO128: 0 | AP128: 0
A129: 6 | B129: =IF(B$120=1,B58,0) -> 2.257911 | C129: 1.794846 | D129: 1.393171 | E129: 1.097108 | F129: 0.801571 | G129: -0.148218 | H129: -0.373049 | I129: -0.55833 | J129: -0.738303 | K129: -0.886158 | L129: =IF(L$120=1,L58,0) -> -1.036773 | M129: -1.163589 | N129: -1.242685 | O129: 0 | P129: 0 | Q129: 0 | R129: 0 | S129: 0 | T129: 0 | U129: 0 | W129: 6 | X129: =IF(X$120=1,X58,0) -> 2.257911 | Y129: 1.794846 | Z129: 1.393171 | AA129: 1.097108 | AB129: 0.801571 | AC129: -0.148218 | AD129: -0.373049 | AE129: -0.55833 | AF129: -0.738303 | AG129: -0.886158 | AH129: =IF(AH$120=1,AH58,0) -> -1.036773 | AI129: -1.163589 | AJ129: -1.242685 | AK129: 0 | AL129: 0 | AM129: 0 | AN129: 0 | AO129: 0 | AP129: 0
A130: 7 | B130: =IF(B$120=1,B59,0) -> 2.504646 | C130: 1.999561 | D130: 1.559456 | E130: 1.224982 | F130: 0.906197 | G130: -0.051154 | H130: -0.290017 | I130: -0.493491 | J130: -0.679734 | K130: -0.83434 | L130: =IF(L$120=1,L59,0) -> -0.976428 | M130: -1.112741 | N130: -1.199598 | O130: 0 | P130: 0 | Q130: 0 | R130: 0 | S130: 0 | T130: 0 | U130: 0 | W130: 7 | X130: =IF(X$120=1,X59,0) -> 2.504646 | Y130: 1.999561 | Z130: 1.559456 | AA130: 1.224982 | AB130: 0.906197 | AC130: -0.051154 | AD130: -0.290017 | AE130: -0.493491 | AF130: -0.679734 | AG130: -0.83434 | AH130: =IF(AH$120=1,AH59,0) -> -0.976428 | AI130: -1.112741 | AJ130: -1.199598 | AK130: 0 | AL130: 0 | AM130: 0 | AN130: 0 | AO130: 0 | AP130: 0
A131: 8 | B131: =IF(B$120=1,B60,0) -> 2.83585 | C131: 2.2712 | D131: 1.7844 | E131: 1.4178 | F131: 1.058 | G131: 0.0616 | H131: -0.2074 | I131: -0.44715 | J131: -0.67025 | K131: -0.85345 | L131: =IF(L$120=1,L60,0) -> -1.0531 | M131: -1.18275 | N131: -1.2485 | O131: 0 | P131: 0 | Q131: 0 | R131: 0 | S131: 0 | T131: 0 | U131: 0 | W131: 8 | X131: =IF(X$120=1,X60,0) -> 2.83585 | Y131: 2.2712 | Z131: 1.7844 | AA131: 1.4178 | AB131: 1.058 | AC131: 0.0616 | AD131: -0.2074 | AE131: -0.44715 | AF131: -0.67025 | AG131: -0.85345 | AH131: =IF(AH$120=1,AH60,0) -> -1.0531 | AI131: -1.18275 | AJ131: -1.2485 | AK131: 0 | AL131: 0 | AM131: 0 | AN131: 0 | AO131: 0 | AP131: 0
A132: 9 | B132: =IF(B$120=1,B61,0) -> 3.173961 | C132: 2.610599 | D132: 2.118117 | E132: 1.768866 | F132: 1.409776 | G132: 0.384088 | H132: 0.109456 | I132: -0.118 | J132: -0.342072 | K132: -0.524885 | L132: =IF(L$120=1,L61,0) -> -0.702095 | M132: -0.854205 | N132: -0.953328 | O132: 0 | P132: 0 | Q132: 0 | R132: 0 | S132: 0 | T132: 0 | U132: 0 | W132: 9 | X132: =IF(X$120=1,X61,0) -> 3.173961 | Y132: 2.610599 | Z132: 2.118117 | AA132: 1.768866 | AB132: 1.409776 | AC132: 0.384088 | AD132: 0.109456 | AE132: -0.118 | AF132: -0.342072 | AG132: -0.524885 | AH132: =IF(AH$120=1,AH61,0) -> -0.702095 | AI132: -0.854205 | AJ132: -0.953328 | AK132: 0 | AL132: 0 | AM132: 0 | AN132: 0 | AO132: 0 | AP132: 0
A133: 10 | B133: =IF(B$120=1,B62,0) -> 3.475587 | C133: =IF(C$120=1,C62,0) -> 2.868709 | D133: 2.337674 | E133: 1.955974 | F133: 1.570555 | G133: 0.529118 | H133: 0.236669 | I133: -0.010028 | J133: -0.245315 | K133: -0.438851 | L133: =IF(L$120=1,L62,0) -> -0.616356 | M133: -0.779596 | N133: -0.886462 | O133: 0 | P133: 0 | Q133: 0 | R133: 0 | S133: 0 | T133: 0 | U133: 0 | W133: 10 | X133: =IF(X$120=1,X62,0) -> 3.475587 | Y133: 2.868709 | Z133: 2.337674 | AA133: 1.955974 | AB133: 1.570555 | AC133: 0.529118 | AD133: 0.236669 | AE133: -0.010028 | AF133: -0.245315 | AG133: -0.438851 | AH133: =IF(AH$120=1,AH62,0) -> -0.616356 | AI133: -0.779596 | AJ133: -0.886462 | AK133: 0 | AL133: 0 | AM133: 0 | AN133: 0 | AO133: 0 | AP133: 0
A134: 11 | B134: =IF(B$120=1,B63,0) -> 3.954677 | C134: 3.321191 | D134: 2.756316 | E134: 2.36565 | F134: 1.968275 | G134: 0.87727 | H134: 0.570905 | I134: 0.322082 | J134: 0.070859 | K134: -0.130035 | L134: =IF(L$120=1,L63,0) -> -0.301186 | M134: -0.475948 | N134: -0.60636 | O134: 0 | P134: 0 | Q134: 0 | R134: 0 | S134: 0 | T134: 0 | U134: 0 | W134: 11 | X134: =IF(X$120=1,X63,0) -> 3.954677 | Y134: 3.321191 | Z134: 2.756316 | AA134: 2.36565 | AB134: 1.968275 | AC134: 0.87727 | AD134: 0.570905 | AE134: 0.322082 | AF134: 0.070859 | AG134: -0.130035 | AH134: =IF(AH$120=1,AH63,0) -> -0.301186 | AI134: -0.475948 | AJ134: -0.60636 | AK134: 0 | AL134: 0 | AM134: 0 | AN134: 0 | AO134: 0 | AP134: 0
A135: 12 | B135: =IF(B$120=1,B64,0) ->  | L135: =IF(L$120=1,L64,0) ->  | O135: 0 | P135: 0 | Q135: 0 | R135: 0 | S135: 0 | T135: 0 | U135: 0 | W135: 12 | X135: =IF(X$120=1,X64,0) ->  | AH135: =IF(AH$120=1,AH64,0) ->  | AK135: 0 | AL135: 0 | AM135: 0 | AN135: 0 | AO135: 0 | AP135: 0
A136: 13 | B136: =IF(B$120=1,B65,0) ->  | L136: =IF(L$120=1,L65,0) ->  | O136: 0 | P136: 0 | Q136: 0 | R136: 0 | S136: 0 | T136: 0 | U136: 0 | W136: 13 | X136: =IF(X$120=1,X65,0) ->  | AH136: =IF(AH$120=1,AH65,0) ->  | AK136: 0 | AL136: 0 | AM136: 0 | AN136: 0 | AO136: 0 | AP136: 0
A137: 14 | B137: =IF(B$120=1,B66,0) ->  | L137: =IF(L$120=1,L66,0) ->  | O137: 0 | P137: 0 | Q137: 0 | R137: 0 | S137: 0 | T137: 0 | U137: 0 | W137: 14 | X137: =IF(X$120=1,X66,0) ->  | AH137: =IF(AH$120=1,AH66,0) ->  | AK137: 0 | AL137: 0 | AM137: 0 | AN137: 0 | AO137: 0 | AP137: 0
A138: 15 | B138: =IF(B$120=1,B67,0) ->  | L138: =IF(L$120=1,L67,0) ->  | O138: 0 | P138: 0 | Q138: 0 | R138: 0 | S138: 0 | T138: 0 | U138: 0 | W138: 15 | X138: =IF(X$120=1,X67,0) ->  | AH138: =IF(AH$120=1,AH67,0) ->  | AK138: 0 | AL138: 0 | AM138: 0 | AN138: 0 | AO138: 0 | AP138: 0
A139: 16 | B139: =IF(B$120=1,B68,0) ->  | L139: =IF(L$120=1,L68,0) ->  | O139: 0 | P139: 0 | Q139: 0 | R139: 0 | S139: 0 | T139: 0 | U139: 0 | W139: 16 | X139: =IF(X$120=1,X68,0) ->  | AH139: =IF(AH$120=1,AH68,0) ->  | AK139: 0 | AL139: 0 | AM139: 0 | AN139: 0 | AO139: 0 | AP139: 0
A140: 17 | B140: =IF(B$120=1,B69,0) ->  | L140: =IF(L$120=1,L69,0) ->  | O140: 0 | P140: 0 | Q140: 0 | R140: 0 | S140: 0 | T140: 0 | U140: 0 | W140: 17 | X140: =IF(X$120=1,X69,0) ->  | AH140: =IF(AH$120=1,AH69,0) ->  | AK140: 0 | AL140: 0 | AM140: 0 | AN140: 0 | AO140: 0 | AP140: 0
A141: 18 | B141: =IF(B$120=1,B70,0) ->  | L141: =IF(L$120=1,L70,0) ->  | O141: 0 | P141: 0 | Q141: 0 | R141: 0 | S141: 0 | T141: 0 | U141: 0 | W141: 18 | X141: =IF(X$120=1,X70,0) ->  | AH141: =IF(AH$120=1,AH70,0) ->  | AK141: 0 | AL141: 0 | AM141: 0 | AN141: 0 | AO141: 0 | AP141: 0
A142: 19 | B142: =IF(B$120=1,B71,0) ->  | L142: =IF(L$120=1,L71,0) ->  | O142: 0 | P142: 0 | Q142: 0 | R142: 0 | S142: 0 | T142: 0 | U142: 0 | W142: 19 | X142: =IF(X$120=1,X71,0) ->  | AH142: =IF(AH$120=1,AH71,0) ->  | AK142: 0 | AL142: 0 | AM142: 0 | AN142: 0 | AO142: 0 | AP142: 0
A143: =A72 -> 20 | B143: =IF(B$120=1,B72,0) ->  | L143: =IF(L$120=1,L72,0) ->  | O143: 0 | P143: 0 | Q143: 0 | R143: 0 | S143: 0 | T143: 0 | U143: 0 | W143: =W72 -> 20 | X143: =IF(X$120=1,X72,0) ->  | AH143: =IF(AH$120=1,AH72,0) ->  | AK143: 0 | AL143: 0 | AM143: 0 | AN143: 0 | AO143: 0 | AP143: 0
A145: Polynomial input for Fortran Column 1 | W145: Polynomial input for Fortran Column 1
A146: o=3 | B146: x3 | C146: x2 | D146: x | E146: c | F146: o=2 | G146: x2 | H146: x | I146: c | J146: 0=1 | K146: x | L146: c | W146: o=3 | X146: x3 | Y146: x2 | Z146: x | AA146: c | AB146: o=2 | AC146: x2 | AD146: x | AE146: c | AF146: 0=1 | AG146: x | AH146: c
B147: =LINEST(B124:U124,B$120:U$123,TRUE,FALSE) -> 1.525813301e-07 | C147: -3.22927407e-05 | D147: -0.01747988771 | E147: 2.516613136 | G147: =LINEST(B124:U124,B$120:U$122,TRUE,FALSE) -> 5.010117757e-05 | H147: -0.0307849797 | I147: 3.131821059 | K147: =LINEST(B124:U124,B$120:U$121,TRUE,FALSE) -> -0.01274855577 | L147: 1.7891095 | X147: =LINEST(X124:AP124,X$120:AP$123,TRUE,FALSE) -> 1.525813301e-07 | Y147: -3.22927407e-05 | Z147: -0.01747988771 | AA147: 2.516613136 | AC147: =LINEST(X124:AP124,X$120:AP$122,TRUE,FALSE) -> 5.010117757e-05 | AD147: -0.0307849797 | AE147: 3.131821059 | AG147: =LINEST(X124:AP124,X$120:AP$121,TRUE,FALSE) -> -0.01274855577 | AH147: 1.7891095
B148: =LINEST(B125:U125,B$120:U$123,TRUE,FALSE) -> 1.605589671e-07 | C148: -3.994111794e-05 | D148: -0.01576139738 | E148: 2.49890926 | G148: =LINEST(B125:U125,B$120:U$122,TRUE,FALSE) -> 4.676072428e-05 | H148: -0.02976213931 | I148: 3.146283015 | K148: =LINEST(B125:U125,B$120:U$121,TRUE,FALSE) -> -0.01292827857 | L148: 1.893095604 | X148: =LINEST(X125:AP125,X$120:AP$123,TRUE,FALSE) -> 1.605589671e-07 | Y148: -3.994111794e-05 | Z148: -0.01576139738 | AA148: 2.49890926 | AC148: =LINEST(X125:AP125,X$120:AP$122,TRUE,FALSE) -> 4.676072428e-05 | AD148: -0.02976213931 | AE148: 3.146283015 | AG148: =LINEST(X125:AP125,X$120:AP$121,TRUE,FALSE) -> -0.01292827857 | AH148: 1.893095604
B149: =LINEST(B126:U126,B$120:U$123,TRUE,FALSE) -> 1.695947698e-07 | C149: -4.505319493e-05 | D149: -0.01483598415 | E149: 2.457757042 | G149: =LINEST(B126:U126,B$120:U$122,TRUE,FALSE) -> 4.652798077e-05 | H149: -0.02962464808 | I149: 3.141563154 | K149: =LINEST(B126:U126,B$120:U$121,TRUE,FALSE) -> -0.012874575 | L149: 1.894613269 | X149: =LINEST(X126:AP126,X$120:AP$123,TRUE,FALSE) -> 1.695947698e-07 | Y149: -4.505319493e-05 | Z149: -0.01483598415 | AA149: 2.457757042 | AC149: =LINEST(X126:AP126,X$120:AP$122,TRUE,FALSE) -> 4.652798077e-05 | AD149: -0.02962464808 | AE149: 3.141563154 | AG149: =LINEST(X126:AP126,X$120:AP$121,TRUE,FALSE) -> -0.012874575 | AH149: 1.894613269
B150: =LINEST(B127:U127,B$120:U$123,TRUE,FALSE) -> 1.542576122e-07 | C150: -3.143164055e-05 | D150: -0.01873637818 | E150: 2.867238768 | G150: =LINEST(B127:U127,B$120:U$122,TRUE,FALSE) -> 5.186747003e-05 | H150: -0.03218764196 | I150: 3.489205461 | K150: =LINEST(B127:U127,B$120:U$121,TRUE,FALSE) -> -0.01351535275 | L150: 2.099157264 | X150: =LINEST(X127:AP127,X$120:AP$123,TRUE,FALSE) -> 1.542576122e-07 | Y150: -3.143164055e-05 | Z150: -0.01873637818 | AA150: 2.867238768 | AC150: =LINEST(X127:AP127,X$120:AP$122,TRUE,FALSE) -> 5.186747003e-05 | AD150: -0.03218764196 | AE150: 3.489205461 | AG150: =LINEST(X127:AP127,X$120:AP$121,TRUE,FALSE) -> -0.01351535275 | AH150: 2.099157264
B151: =LINEST(B128:U128,B$120:U$123,TRUE,FALSE) -> 1.467477054e-07 | C151: -2.351495723e-05 | D151: -0.02191867271 | E151: 3.414773015 | G151: =LINEST(B128:U128,B$120:U$122,TRUE,FALSE) -> 5.57288037e-05 | H151: -0.03471507263 | I151: 4.006459763 | K151: =LINEST(B128:U128,B$120:U$121,TRUE,FALSE) -> -0.0146527033 | L151: 2.512927824 | X151: =LINEST(X128:AP128,X$120:AP$123,TRUE,FALSE) -> 1.467477054e-07 | Y151: -2.351495723e-05 | Z151: -0.02191867271 | AA151: 3.414773015 | AC151: =LINEST(X128:AP128,X$120:AP$122,TRUE,FALSE) -> 5.57288037e-05 | AD151: -0.03471507263 | AE151: 4.006459763 | AG151: =LINEST(X128:AP128,X$120:AP$121,TRUE,FALSE) -> -0.0146527033 | AH151: 2.512927824
B152: =LINEST(B129:U129,B$120:U$123,TRUE,FALSE) -> 1.587559003e-07 | C152: -3.239155407e-05 | D152: -0.02045525135 | E152: 3.598997582 | G152: =LINEST(B129:U129,B$120:U$122,TRUE,FALSE) -> 5.333663212e-05 | H152: -0.03429876586 | I152: 4.239101373 | K152: =LINEST(B129:U129,B$120:U$121,TRUE,FALSE) -> -0.0150975783 | L152: 2.809679632 | X152: =LINEST(X129:AP129,X$120:AP$123,TRUE,FALSE) -> 1.587559003e-07 | Y152: -3.239155407e-05 | Z152: -0.02045525135 | AA152: 3.598997582 | AC152: =LINEST(X129:AP129,X$120:AP$122,TRUE,FALSE) -> 5.333663212e-05 | AD152: -0.03429876586 | AE152: 4.239101373 | AG152: =LINEST(X129:AP129,X$120:AP$121,TRUE,FALSE) -> -0.0150975783 | AH152: 2.809679632
B153: =LINEST(B130:U130,B$120:U$123,TRUE,FALSE) -> 1.389153919e-07 | C153: -1.687880338e-05 | D153: -0.02467323854 | E153: 4.04906114 | G153: =LINEST(B130:U130,B$120:U$122,TRUE,FALSE) -> 5.813550824e-05 | H153: -0.03678666071 | I153: 4.609168 | K153: =LINEST(B130:U130,B$120:U$121,TRUE,FALSE) -> -0.01585787775 | L153: 3.051136379 | X153: =LINEST(X130:AP130,X$120:AP$123,TRUE,FALSE) -> 1.389153919e-07 | Y153: -1.687880338e-05 | Z153: -0.02467323854 | AA153: 4.04906114 | AC153: =LINEST(X130:AP130,X$120:AP$122,TRUE,FALSE) -> 5.813550824e-05 | AD153: -0.03678666071 | AE153: 4.609168 | AG153: =LINEST(X130:AP130,X$120:AP$121,TRUE,FALSE) -> -0.01585787775 | AH153: 3.051136379
B154: =LINEST(B131:U131,B$120:U$123,TRUE,FALSE) -> 1.602527681e-07 | C154: -2.463121254e-05 | D154: -0.0258681377 | E154: 4.462763886 | G154: =LINEST(B131:U131,B$120:U$122,TRUE,FALSE) -> 6.190528222e-05 | H154: -0.03984217907 | I154: 5.108903047 | K154: =LINEST(B131:U131,B$120:U$121,TRUE,FALSE) -> -0.01755627747 | L154: 3.449841484 | X154: =LINEST(X131:AP131,X$120:AP$123,TRUE,FALSE) -> 1.602527681e-07 | Y154: -2.463121254e-05 | Z154: -0.0258681377 | AA154: 4.462763886 | AC154: =LINEST(X131:AP131,X$120:AP$122,TRUE,FALSE) -> 6.190528222e-05 | AD154: -0.03984217907 | AE154: 5.108903047 | AG154: =LINEST(X131:AP131,X$120:AP$121,TRUE,FALSE) -> -0.01755627747 | AH154: 3.449841484
B155: =LINEST(B132:U132,B$120:U$123,TRUE,FALSE) -> 1.508737252e-07 | C155: -2.013585883e-05 | D155: -0.02657740224 | E155: 4.834517175 | G155: =LINEST(B132:U132,B$120:U$122,TRUE,FALSE) -> 6.13359528e-05 | H155: -0.03973359108 | I155: 5.442840035 | K155: =LINEST(B132:U132,B$120:U$121,TRUE,FALSE) -> -0.01765264808 | L155: 3.7990365 | X155: =LINEST(X132:AP132,X$120:AP$123,TRUE,FALSE) -> 1.508737252e-07 | Y155: -2.013585883e-05 | Z155: -0.02657740224 | AA155: 4.834517175 | AC155: =LINEST(X132:AP132,X$120:AP$122,TRUE,FALSE) -> 6.13359528e-05 | AD155: -0.03973359108 | AE155: 5.442840035 | AG155: =LINEST(X132:AP132,X$120:AP$121,TRUE,FALSE) -> -0.01765264808 | AH155: 3.7990365
B156: =LINEST(B133:U133,B$120:U$123,TRUE,FALSE) -> 1.372346664e-07 | C156: -8.567161901e-06 | D156: -0.03019476806 | E156: 5.314312352 | G156: =LINEST(B133:U133,B$120:U$122,TRUE,FALSE) -> 6.553955794e-05 | H156: -0.04216163097 | I156: 5.867642526 | K156: =LINEST(B133:U133,B$120:U$121,TRUE,FALSE) -> -0.01856739011 | L156: 4.111182374 | X156: =LINEST(X133:AP133,X$120:AP$123,TRUE,FALSE) -> 1.372346664e-07 | Y156: -8.567161901e-06 | Z156: -0.03019476806 | AA156: 5.314312352 | AC156: =LINEST(X133:AP133,X$120:AP$122,TRUE,FALSE) -> 6.553955794e-05 | AD156: -0.04216163097 | AE156: 5.867642526 | AG156: =LINEST(X133:AP133,X$120:AP$121,TRUE,FALSE) -> -0.01856739011 | AH156: 4.111182374
B157: =LINEST(B134:U134,B$120:U$123,TRUE,FALSE) -> 1.326394595e-07 | C157: -3.297078859e-06 | D157: -0.03237788079 | E157: 5.908936793 | G157: =LINEST(B134:U134,B$120:U$122,TRUE,FALSE) -> 6.832822927e-05 | H157: -0.04394404166 | I157: 6.443739094 | K157: =LINEST(B134:U134,B$120:U$121,TRUE,FALSE) -> -0.01934587912 | L157: 4.612542549 | X157: =LINEST(X134:AP134,X$120:AP$123,TRUE,FALSE) -> 1.326394595e-07 | Y157: -3.297078859e-06 | Z157: -0.03237788079 | AA157: 5.908936793 | AC157: =LINEST(X134:AP134,X$120:AP$122,TRUE,FALSE) -> 6.832822927e-05 | AD157: -0.04394404166 | AE157: 6.443739094 | AG157: =LINEST(X134:AP134,X$120:AP$121,TRUE,FALSE) -> -0.01934587912 | AH157: 4.612542549
B158: =LINEST(B135:U135,B$120:U$123,TRUE,FALSE) ->  | G158: =LINEST(B135:U135,B$120:U$122,TRUE,FALSE) ->  | K158: =LINEST(B135:U135,B$120:U$121,TRUE,FALSE) ->  | X158: =LINEST(X135:AP135,X$120:AP$123,TRUE,FALSE) ->  | AC158: =LINEST(X135:AP135,X$120:AP$122,TRUE,FALSE) ->  | AG158: =LINEST(X135:AP135,X$120:AP$121,TRUE,FALSE) -> 
B159: =LINEST(B136:U136,B$120:U$123,TRUE,FALSE) ->  | G159: =LINEST(B136:U136,B$120:U$122,TRUE,FALSE) ->  | K159: =LINEST(B136:U136,B$120:U$121,TRUE,FALSE) ->  | X159: =LINEST(X136:AP136,X$120:AP$123,TRUE,FALSE) ->  | AC159: =LINEST(X136:AP136,X$120:AP$122,TRUE,FALSE) ->  | AG159: =LINEST(X136:AP136,X$120:AP$121,TRUE,FALSE) -> 
B160: =LINEST(B137:U137,B$120:U$123,TRUE,FALSE) ->  | G160: =LINEST(B137:U137,B$120:U$122,TRUE,FALSE) ->  | K160: =LINEST(B137:U137,B$120:U$121,TRUE,FALSE) ->  | X160: =LINEST(X137:AP137,X$120:AP$123,TRUE,FALSE) ->  | AC160: =LINEST(X137:AP137,X$120:AP$122,TRUE,FALSE) ->  | AG160: =LINEST(X137:AP137,X$120:AP$121,TRUE,FALSE) -> 
B161: =LINEST(B138:U138,B$120:U$123,TRUE,FALSE) ->  | G161: =LINEST(B138:U138,B$120:U$122,TRUE,FALSE) ->  | K161: =LINEST(B138:U138,B$120:U$121,TRUE,FALSE) ->  | X161: =LINEST(X138:AP138,X$120:AP$123,TRUE,FALSE) ->  | AC161: =LINEST(X138:AP138,X$120:AP$122,TRUE,FALSE) ->  | AG161: =LINEST(X138:AP138,X$120:AP$121,TRUE,FALSE) -> 
B162: =LINEST(B139:U139,B$120:U$123,TRUE,FALSE) ->  | G162: =LINEST(B139:U139,B$120:U$122,TRUE,FALSE) ->  | K162: =LINEST(B139:U139,B$120:U$121,TRUE,FALSE) ->  | X162: =LINEST(X139:AP139,X$120:AP$123,TRUE,FALSE) ->  | AC162: =LINEST(X139:AP139,X$120:AP$122,TRUE,FALSE) ->  | AG162: =LINEST(X139:AP139,X$120:AP$121,TRUE,FALSE) -> 
B163: =LINEST(B140:U140,B$120:U$123,TRUE,FALSE) ->  | G163: =LINEST(B140:U140,B$120:U$122,TRUE,FALSE) ->  | K163: =LINEST(B140:U140,B$120:U$121,TRUE,FALSE) ->  | X163: =LINEST(X140:AP140,X$120:AP$123,TRUE,FALSE) ->  | AC163: =LINEST(X140:AP140,X$120:AP$122,TRUE,FALSE) ->  | AG163: =LINEST(X140:AP140,X$120:AP$121,TRUE,FALSE) -> 
B164: =LINEST(B141:U141,B$120:U$123,TRUE,FALSE) ->  | G164: =LINEST(B141:U141,B$120:U$122,TRUE,FALSE) ->  | K164: =LINEST(B141:U141,B$120:U$121,TRUE,FALSE) ->  | X164: =LINEST(X141:AP141,X$120:AP$123,TRUE,FALSE) ->  | AC164: =LINEST(X141:AP141,X$120:AP$122,TRUE,FALSE) ->  | AG164: =LINEST(X141:AP141,X$120:AP$121,TRUE,FALSE) -> 
B165: =LINEST(B142:U142,B$120:U$123,TRUE,FALSE) ->  | G165: =LINEST(B142:U142,B$120:U$122,TRUE,FALSE) ->  | K165: =LINEST(B142:U142,B$120:U$121,TRUE,FALSE) ->  | X165: =LINEST(X142:AP142,X$120:AP$123,TRUE,FALSE) ->  | AC165: =LINEST(X142:AP142,X$120:AP$122,TRUE,FALSE) ->  | AG165: =LINEST(X142:AP142,X$120:AP$121,TRUE,FALSE) -> 
B166: =LINEST(B143:U143,B$120:U$123,TRUE,FALSE) ->  | G166: =LINEST(B143:U143,B$120:U$122,TRUE,FALSE) ->  | K166: =LINEST(B143:U143,B$120:U$121,TRUE,FALSE) ->  | X166: =LINEST(X143:AP143,X$120:AP$123,TRUE,FALSE) ->  | AC166: =LINEST(X143:AP143,X$120:AP$122,TRUE,FALSE) ->  | AG166: =LINEST(X143:AP143,X$120:AP$121,TRUE,FALSE) -> 
B205: =B76-B183 -> 0

Sheet Compounds
A1: =GC!A1 -> ChromSimGC_4.0 | L1: =GC!C1 -> Author: Bo Svensmark, svensmark@plen.ku.dk, Analytical Chemistry, PLEN KU 2017-2026 | U1: Rules for replacing or adding compounds
L2: This sheet is proteted. To unprotect go to Review and click Unprotect sheet
B3: 451 organic compounds | U3: 1) Fill in all columns: Analyte to L (columns after L are optional and res not used by the workbook)
B4: 42 of which are PFAS | U4: 2) Replace compounds or add at the end
B5: For naming of PFAS see Ref. 6) | U5: 3) Data starts in cell B11 (name of first compound)
U6: 4) No blank rows in the table
U7: 5) ALL DATA MUST BE SORTED IN ASCENDING ORDER A->Z
U8: 6) Max 600 compounds (or formula has to be updated)
B9: Table 1 | L9: Table 2
B10: Analyte (Alphabetic order) | C10: E | D10: S | E10: A | F10: B | G10: V | H10: L | J10: Ref | L10: Analytes according to type | R10: References
A11: 1 | B11: (Methacryloxypropyl)trimethoxy-silane | C11: 0.048 | D11: 0.858 | E11: 0 | F11: 1.02 | H11: 6.215 | J11: 1) | Q11: 1) | R11: Sanka N. Atapattua, Kimberly Eggersa, Colin F. Poolea,.,Waruna Kiridenab, WladyslawW. Koziol
A12: 2 | B12: 1,1,2,2-Tetrachloroethane | C12: 0.596 | D12: 0.711 | E12: 0.204 | F12: 0.126 | G12: 0.88 | H12: 3.814 | J12: 7) | L12: n-Alkanes | R12: Extension of the system constants database for open-tubular columns: System
A13: 3 | B13: 1,2,3-Trimethylbenzene | C13: 0.728 | D13: 0.534 | E13: 0 | F13: 0.178 | G13: 1.1391 | H13: 4.206 | J13: 7) | M13: 2-Methylbutane | R13: maps at low and intermediate temperatures for four new columns
A14: 4 | B14: 1,2,4,5-Tetrachlorobenzene | C14: 1.037 | D14: 0.669 | E14: 0 | F14: 0.033 | G14: 1.206 | H14: 5.989 | J14: 7) | M14: 2-Methylpropane | R14: Journal of Chromatography A, 1216 (2009) 1640–1649
A15: 5 | B15: 1,2,4-Trichlorobenzene | C15: 1.021 | D15: 0.708 | E15: 0 | F15: 0.065 | G15: 1.0836 | H15: 5.255 | J15: 7) | M15: Decane | R15: 95 comp 160-240 oC 2009 ref 74
A16: 6 | B16: 1,2-Dichlorobenzene | C16: 0.87 | D16: 0.758 | E16: 0 | F16: 0.048 | G16: 0.9612 | H16: 4.542 | J16: 7) | M16: Dodecane
A17: 7 | B17: 1,2-Dichloroethane | C17: 0.42 | D17: 0.64 | E17: 0.1 | F17: 0.11 | G17: 0.6352 | H17: 2.573 | J17: 6) | M17: Dotricontane | Q17: 4) | R17: Colin F. Poole ∗, Salwa K. Poole
A18: 8 | B18: 1,2-Dicyanobenzene | C18: 0.744 | D18: 1.941 | E18: 0 | F18: 0.428 | G18: 1.0258 | H18: 5.225 | J18: 7) | M18: Heptadecane | R18: Separation characteristics of wall-coated open-tubular
A19: 9 | B19: 1,2-Dimethylbenzene | C19: 0.663 | D19: 0.539 | E19: 0 | F19: 0.167 | G19: 0.9982 | H19: 3.961 | J19: 7) | M19: Heptane | R19: columns for gas chromatography
A20: 10 | B20: 1,3-Benzothiazole | C20: 1.281 | D20: 1.124 | E20: 0 | F20: 0.518 | G20: 0.969 | H20: 5.193 | J20: 7) | M20: Hexadecane | R20: Journal of Chromatography A, 1184 (2008) 254–280
A21: 11 | B21: 1,3-Dibromobenzene | C21: 1.193 | D21: 0.775 | E21: 0 | F21: 0.079 | G21: 1.0664 | H21: 5.25 | J21: 7) | M21: Hexane
A22: 12 | B22: 1,3-Dichlorobenzene | C22: 0.847 | D22: 0.678 | E22: 0 | F22: 0.009 | G22: 0.9612 | H22: 4.443 | J22: 7) | M22: n-Butane | Q22: 5) | R22: Colin F. Poole∗, Sanka N. Atapattu, Salwa K. Poole, Andrea K. Bell
A23: 13 | B23: 1,3-Diethyl-1,3-diphenylurea | C23: 1.705 | D23: 1.229 | E23: 0 | F23: 1.354 | G23: 2.244 | H23: 7.989 | J23: 7) | M23: n-Eicosane | R23: Determination of solute descriptors by chromatographic methods
A24: 14 | B24: 1,3-Dimethylbenzene | C24: 0.621 | D24: 0.494 | E24: 0 | F24: 0.157 | G24: 0.9982 | H24: 3.864 | J24: 7) | M24: n-Nonadecane | R24: Analytica Chimica Acta 652 (2009) 32–53
A25: 15 | B25: 1,3-Dinitrobenzene | C25: 1.256 | D25: 1.795 | E25: 0 | F25: 0.459 | G25: 1.0648 | H25: 5.787 | J25: 7) | M25: n-Nonane
A26: 16 | B26: 1,4-Benzodioxan | C26: 1.094 | D26: 1.052 | E26: 0 | F26: 0.349 | G26: 1.007 | H26: 4.956 | J26: 7) | M26: Nonane | Q26: 6) | R26: Satoshi Endo, Environ. Sci. Technol. 2023, 57, 17534−17541
A27: 17 | B27: 1,4-Butanediol | C27: 0.4 | D27: 0.93 | E27: 0.72 | F27: 0.9 | G27: 0.7896 | H27: 3.795 | J27: 6) | M27: n-Pentane | R27: Intermolecular Interactions, Solute Descriptors, and Partition
A28: 18 | B28: 1,4-Dimethylbenzene | C28: 0.613 | D28: 0.486 | E28: 0 | F28: 0.163 | G28: 0.9982 | H28: 3.864 | J28: 7) | M28: Octadecane | R28: Properties of Neutral Per- and Polyfluoroalkyl Substances (PFAS)
A29: 19 | B29: 1,4-Dioxane | C29: 0.329 | D29: 0.742 | E29: 0 | F29: 0.576 | H29: 2.83 | J29: 5) | M29: Octane | R29: https://doi.org/10.1021/acs.est.3c07503
A30: 20 | B30: 1,4-Diphenylbenzene | C30: 2.143 | D30: 1.327 | E30: 0 | F30: 0.487 | G30: 1.932 | H30: 9.274 | J30: 7) | M30: Pentadecane | R30: (NA's for B are replaced with 0's)
A31: 21 | B31: 1.12-Dodecanediol | C31: 0.36 | D31: 0.806 | E31: 0.796 | F31: 0.92 | H31: 7.62 | J31: 1) | M31: Tetradecane
A32: 22 | B32: 1.2-Dicyanobenzene | C32: 0.705 | D32: 1.944 | E32: 0 | F32: 0.27 | H32: 5.266 | J32: 1) | M32: Tridecane | Q32: 7) | R32: Colin F. Pole
A33: 23 | B33: 1.3.5-Triethylbenzene | C33: 0.672 | D33: 0.418 | E33: 0 | F33: 0.19 | H33: 5.503 | J33: 1) | M33: Undecane | R33: The complete 2025 Wayne State University compound descriptor database
A34: 24 | B34: 1.3-Dinitrobenzene | C34: 1.023 | D34: 1.753 | E34: 0 | F34: 0.47 | H34: 5.934 | J34: 1) | L34: Alkynes | R34: for use with the solvation parameter model
A35: 25 | B35: 10:2 FTI | C35: 0 | D35: 0.32 | E35: 0 | F35: 0.17 | G35: 2.849 | H35: 5.02 | J35: 6) | M35: 1-Dodecyne | R35: Journal of Chromatography A 1752 (2025) 465958
A36: 26 | B36: 10:2 FTOH | C36: 0 | D36: 0.35 | E36: 0.6 | F36: 0.31 | G36: 2.65 | H36: 4.117 | J36: 6) | M36: 1-Hexyne | R36: https://doi.org/10.1016/j.chroma.2025.465958
A37: 27 | B37: 12:2 FTOH | C37: 0 | D37: 0.35 | E37: 0.6 | F37: 0.31 | G37: 3.082 | H37: 4.682 | J37: 6) | M37: 2-Octyne
A38: 28 | B38: 1-Acetonaphthone | C38: 1.517 | D38: 1.418 | E38: 0 | F38: 0.568 | G38: 1.3829 | H38: 6.677 | J38: 7) | L38: Terpenes
A39: 29 | B39: 1-Bromobutane | C39: 0.358 | D39: 0.429 | E39: 0 | F39: 0.094 | G39: 0.8472 | H39: 3.177 | J39: 7) | M39: Alpha-Pinene
A40: 30 | B40: 1-Bromodecane | C40: 0.333 | D40: 0.429 | E40: 0 | F40: 0.094 | G40: 1.6926 | H40: 6.173 | J40: 7) | M40: Beta-Pinene
A41: 31 | B41: 1-Bromododecane | C41: 0.322 | D41: 0.429 | E41: 0 | F41: 0.094 | G41: 1.9744 | H41: 7.184 | J41: 7) | M41: Limonene
A42: 32 | B42: 1-Bromoheptane | C42: 0.341 | D42: 0.429 | E42: 0 | F42: 0.094 | G42: 1.2699 | H42: 4.682 | J42: 7) | L42: Cyclic Hydrocarbons
A43: 33 | B43: 1-Bromohexane | C43: 0.348 | D43: 0.429 | E43: 0 | F43: 0.094 | G43: 1.129 | H43: 4.167 | J43: 7) | M43: cis-Hydrindane
A44: 34 | B44: 1-Bromonaphthalene | C44: 1.598 | D44: 1.035 | E44: 0 | F44: 0.148 | G44: 1.2604 | H44: 6.558 | J44: 7) | M44: Cyclohexane
A45: 35 | B45: 1-Bromononane | C45: 0.345 | D45: 0.429 | E45: 0 | F45: 0.094 | G45: 1.5517 | H45: 5.665 | J45: 7) | M45: Methylcyclohexane
A46: 36 | B46: 1-Bromooctane | C46: 0.335 | D46: 0.429 | E46: 0 | F46: 0.094 | G46: 1.4108 | H46: 5.202 | J46: 7) | M46: Phenylcyclohexane
A47: 37 | B47: 1-Bromopentane | C47: 0.35 | D47: 0.429 | E47: 0 | F47: 0.094 | G47: 0.9881 | H47: 3.658 | J47: 7) | L47: Aromatic Hydrocarbons
A48: 38 | B48: 1-Chloronaphthalene | C48: 1.42 | D48: 0.964 | E48: 0 | F48: 0.131 | G48: 1.2078 | H48: 6.185 | J48: 7) | M48: 1,2,3-Trimethylbenzene
A49: 39 | B49: 1-Dodecyne | C49: 0.135 | D49: 0.26 | E49: 0.061 | F49: 0.071 | G49: 1.7134 | H49: 5.648 | J49: 7) | M49: 1,2-Dimethylbenzene
A50: 40 | B50: 1H,1H,7H-Dodecafluoro-1-heptanol | C50: -0.648 | D50: 0.216 | E50: 0.82 | F50: 0.305 | G50: 1.3648 | H50: 3.156 | J50: 7) | M50: 1,3,5-Triethylbenzene
A51: 41 | B51: 1-Hexyne | C51: 0.167 | D51: 0.211 | E51: 0.111 | F51: 0.106 | G51: 0.868 | H51: 2.574 | J51: 7) | M51: 1,3-Dimethylbenzene
A52: 42 | B52: 1-Hydroxyanthraquinone | C52: 1.284 | D52: 1.27 | E52: 0.11 | F52: 0.575 | G52: 1.5875 | H52: 9.313 | J52: 7) | M52: 1,4-Dimethylbenzene
A53: 43 | B53: 1-Iodobutane | C53: 0.516 | D53: 0.476 | E53: 0 | F53: 0.084 | G53: 0.9305 | H53: 3.635 | J53: 7) | M53: 1,4-Diphenylbenzene
A54: 44 | B54: 1-Methylnaphthalene | C54: 1.338 | D54: 0.914 | E54: 0 | F54: 0.196 | G54: 1.2263 | H54: 5.704 | J54: 7) | M54: Benzene
A55: 45 | B55: 1-Naphthol | C55: 1.445 | D55: 1.176 | E55: 0.744 | F55: 0.321 | G55: 1.1441 | H55: 6.098 | J55: 7) | M55: Biphenyl
A56: 46 | B56: 1-Nitrobutane | C56: 0.226 | D56: 0.933 | E56: 0.045 | F56: 0.258 | G56: 0.8464 | H56: 3.348 | J56: 7) | M56: Ethylbenzene
A57: 47 | B57: 1-Nitrohexane | C57: 0.227 | D57: 0.933 | E57: 0.045 | F57: 0.258 | G57: 1.1282 | H57: 4.368 | J57: 7) | M57: Hexamethylbenzene
A58: 48 | B58: 1-Nitronaphthalene | C58: 1.492 | D58: 1.481 | E58: 0 | F58: 0.321 | G58: 1.2596 | H58: 6.778 | J58: 7) | M58: m-Xylene
A59: 49 | B59: 1-Nitropentane | C59: 0.218 | D59: 0.933 | E59: 0.045 | F59: 0.258 | G59: 0.9873 | H59: 3.865 | J59: 7) | M59: n-Butylbenzene
A60: 50 | B60: 1-Nitropropane | C60: 0.245 | D60: 0.933 | E60: 0.045 | F60: 0.258 | G60: 0.7055 | H60: 2.862 | J60: 7) | M60: n-Dodecylbenzene
A61: 51 | B61: 1-Nitropyrene | C61: 3.064 | D61: 2.106 | E61: 0 | F61: 0.381 | G61: 1.7588 | H61: 10.281 | J61: 7) | M61: n-Pentylbenzene
A62: 52 | B62: 1-Phenyl-1-propanol | C62: 0.775 | D62: 0.777 | E62: 0.343 | F62: 0.658 | G62: 1.1978 | H62: 4.908 | J62: 7) | M62: n-Propylbenzene
A63: 53 | B63: 1-Phenyl-2-propanol | C63: 0.798 | D63: 0.79 | E63: 0.311 | F63: 0.698 | G63: 1.1978 | H63: 4.838 | J63: 7) | M63: o-Xylene
A64: 54 | B64: 1-Phenylethanol | C64: 0.787 | D64: 0.713 | E64: 0.434 | F64: 0.677 | G64: 1.0569 | H64: 4.494 | J64: 7) | M64: p-Xylene
A65: 55 | B65: 2-(1-Naphthyl)ethanol | C65: 1.656 | D65: 1.235 | E65: 0.429 | F65: 0.746 | G65: 1.4259 | H65: 6.987 | J65: 7) | M65: Styrene
A66: 56 | B66: 2,3-Dimethylphenol | C66: 0.801 | D66: 0.774 | E66: 0.603 | F66: 0.381 | G66: 1.0569 | H66: 4.864 | J66: 7) | M66: Toluene
A67: 57 | B67: 2,4,6-Trimethylphenol | C67: 0.746 | D67: 0.831 | E67: 0.387 | F67: 0.338 | G67: 1.1978 | H67: 5.114 | J67: 7) | M67: t-Stilbene
A68: 58 | B68: 2,4,6-Trimethylpyridine | C68: 0.635 | D68: 0.675 | E68: 0 | F68: 0.429 | G68: 1.0981 | H68: 4.303 | J68: 7) | L68: Polycyclic Aromatic Hydrocarbons
A69: 59 | B69: 2,4-Dimethylaniline | C69: 0.95 | D69: 0.872 | E69: 0.245 | F69: 0.642 | G69: 1.098 | H69: 4.965 | J69: 7) | M69: 1-Methylnaphthalene
A70: 60 | B70: 2,4-Dinitroaniline | C70: 1.734 | D70: 2.475 | E70: 0.349 | F70: 0.441 | G70: 1.1646 | H70: 7.477 | J70: 7) | M70: 2-Methylnaphthalene
A71: 61 | B71: 2,5-Dimethylphenol | C71: 0.797 | D71: 0.765 | E71: 0.581 | F71: 0.38 | G71: 1.0569 | H71: 4.752 | J71: 7) | M71: 9,10-Dimethylanthracene
A72: 62 | B72: 2,6-Dichloro-4-nitroaniline | C72: 1.119 | D72: 1.223 | E72: 0.52 | F72: 0.361 | G72: 1.2352 | H72: 7.429 | J72: 7) | M72: Acenaphthene
A73: 63 | B73: 2,6-Dimethylaniline | C73: 0.972 | D73: 0.978 | E73: 0.131 | F73: 0.521 | G73: 1.098 | H73: 4.955 | J73: 7) | M73: Acenaphthylene
A74: 64 | B74: 2,6-Dimethylphenol | C74: 0.726 | D74: 0.752 | E74: 0.439 | F74: 0.405 | G74: 1.0569 | H74: 4.64 | J74: 7) | M74: Anthracene
A75: 65 | B75: 2-Acetonaphthone | C75: 1.384 | D75: 1.481 | E75: 0 | F75: 0.537 | G75: 1.3829 | H75: 6.784 | J75: 7) | M75: Azulene
A76: 66 | B76: 2-Chloroacetamide | C76: 0.694 | D76: 1.322 | E76: 0.3 | F76: 0.578 | G76: 0.6283 | H76: 3.26 | J76: 7) | M76: Benz[a]anthracene
A77: 67 | B77: 2-Chloroaniline | C77: 1.031 | D77: 1.016 | E77: 0.234 | F77: 0.307 | G77: 0.9386 | H77: 4.67 | J77: 7) | M77: Benzo[a]pyrene
A78: 68 | B78: 2-Chlorophenol | C78: 0.853 | D78: 0.687 | E78: 0.517 | F78: 0.341 | G78: 0.8975 | H78: 4.096 | J78: 7) | M78: Benzo[e]pyrene
A79: 69 | B79: 2-Ethoxyethanol | C79: 0.237 | D79: 0.6 | E79: 0.291 | F79: 0.776 | G79: 0.7759 | H79: 2.754 | J79: 7) | M79: Benzo[g,h,i]perylene
A80: 70 | B80: 2-Methoxycinnamaldehyde | C80: 1.145 | D80: 1.497 | E80: 0 | F80: 0.616 | G80: 1.3114 | H80: 6.347 | J80: 7) | M80: Chrysene
A81: 71 | B81: 2-Methoxyethanol | C81: 0.269 | D81: 0.672 | E81: 0.31 | F81: 0.718 | G81: 0.6487 | H81: 2.271 | J81: 7) | M81: Dibenz[a,h]anthracene
A82: 72 | B82: 2-Methoxynaphthalene | C82: 1.434 | D82: 1.166 | E82: 0 | F82: 0.351 | G82: 1.285 | H82: 6.243 | J82: 7) | M82: Dibenzo[a,i]pyrene
A83: 73 | B83: 2-Methyl-1-propanol | C83: 0.21 | D83: 0.354 | E83: 0.382 | F83: 0.526 | G83: 0.7309 | H83: 2.399 | J83: 7) | M83: Fluoranthene
A84: 74 | B84: 2-Methylaniline | C84: 0.964 | D84: 1.046 | E84: 0.17 | F84: 0.496 | G84: 0.9571 | H84: 4.278 | J84: 7) | M84: Fluorene
A85: 75 | B85: 2-Methylbenzaldehyde | C85: 0.879 | D85: 0.976 | E85: 0 | F85: 0.417 | G85: 1.0139 | H85: 4.711 | J85: 7) | M85: Naphthalene
A86: 76 | B86: 2-Methylbenzothiazole | C86: 1.266 | D86: 0.959 | E86: 0 | F86: 0.576 | G86: 1.1099 | H86: 5.68 | J86: 7) | M86: Perylene
A87: 77 | B87: 2-Methylbutan-1-ol | C87: 0.218 | D87: 0.389 | E87: 0.362 | F87: 0.523 | G87: 0.8718 | H87: 3 | J87: 7) | M87: Phenanthrene
A88: 78 | B88: 2-Methylbutan-2-ol | C88: 0.193 | D88: 0.318 | E88: 0.284 | F88: 0.659 | G88: 0.8718 | H88: 2.571 | J88: 7) | M88: Pyrene
A89: 79 | B89: 2-Methylbutane | C89: 0 | D89: 0 | E89: 0 | F89: 0 | G89: 0.8131 | H89: 2.013 | J89: 6) | M89: Triphenylene
A90: 80 | B90: 2-Methylnaphthalene | C90: 1.315 | D90: 0.939 | E90: 0 | F90: 0.181 | G90: 1.2263 | H90: 5.722 | J90: 7) | M90: Triphenylmethane
A91: 81 | B91: 2-Methylpentan-2-ol | C91: 0.172 | D91: 0.308 | E91: 0.278 | F91: 0.628 | G91: 1.0127 | H91: 3.08 | J91: 7) | L91: Aliphatic alcohols
A92: 82 | B92: 2-Methylphenol | C92: 0.755 | D92: 0.734 | E92: 0.63 | F92: 0.353 | G92: 0.916 | H92: 4.272 | J92: 7) | M92: 1,4-Butanediol
A93: 83 | B93: 2-Methylpropanal | C93: 0.145 | D93: 0.438 | E93: 0 | F93: 0.519 | G93: 0.6879 | H93: 2.516 | J93: 7) | M93: 1,12-Dodecanediol
A94: 84 | B94: 2-Methylpropane | C94: 0 | D94: 0 | E94: 0 | F94: 0 | G94: 0.6722 | H94: 1.409 | J94: 6) | M94: 1H,1H,7H-Dodecafluoro-1-heptanol
A95: 85 | B95: 2-Naphthaldehyde | C95: 1.606 | D95: 1.506 | E95: 0 | F95: 0.419 | G95: 1.242 | H95: 7.058 | J95: 7) | M95: 2-Ethoxyethanol
A96: 86 | B96: 2-Naphthol | C96: 1.516 | D96: 1.235 | E96: 0.754 | F96: 0.346 | G96: 1.1441 | H96: 6.118 | J96: 7) | M96: 2-Methoxyethanol
A97: 87 | B97: 2-Nitroaniline | C97: 1.157 | D97: 1.454 | E97: 0.351 | F97: 0.35 | G97: 0.9904 | H97: 5.776 | J97: 7) | M97: 2-Methyl-1-propanol
A98: 88 | B98: 2-Nitrophenol | C98: 0.87 | D98: 1.073 | E98: 0.063 | F98: 0.373 | G98: 0.9493 | H98: 4.74 | J98: 7) | M98: 2-Methylbutan-1-ol
A99: 89 | B99: 2-Nitropropane | C99: 0.217 | D99: 0.903 | E99: 0.013 | F99: 0.264 | G99: 0.7055 | H99: 2.69 | J99: 7) | M99: 2-Methylbutan-2-ol
A100: 90 | B100: 2-Nitrotoluene | C100: 0.877 | D100: 1.096 | E100: 0 | F100: 0.288 | G100: 1.0315 | H100: 4.955 | J100: 7) | M100: 2-Methylpentan-2-ol
A101: 91 | B101: 2-Octyne | C101: 0.234 | D101: 0.279 | E101: 0 | F101: 0.162 | G101: 1.1498 | H101: 3.904 | J101: 7) | M101: 3-Methylbutan-1-ol
A102: 92 | B102: 2-Phenyl-1-propanol | C102: 0.811 | D102: 0.857 | E102: 0.324 | F102: 0.645 | G102: 1.1978 | H102: 4.951 | J102: 7) | M102: Borneol
A103: 93 | B103: 2-Phenylacetamide | C103: 1.257 | D103: 1.633 | E103: 0.416 | F103: 0.945 | G103: 1.1137 | H103: 5.431 | J103: 7) | M103: Butan-1-ol
A104: 94 | B104: 2-Phenylethanol | C104: 0.81 | D104: 0.808 | E104: 0.427 | F104: 0.63 | G104: 1.0569 | H104: 4.699 | J104: 7) | M104: Cyclohexanol
A105: 95 | B105: 2-Phenylpropan-1-ol | C105: 0.811 | D105: 0.853 | E105: 0.332 | F105: 0.64 | H105: 4.936 | J105: 4) | M105: Decan-1-ol
A106: 96 | B106: 2-Undecanone | C106: 0.105 | D106: 0.661 | E106: 0 | F106: 0.51 | H106: 5.735 | J106: 1) | M106: Dodecan-1,12-diol
A107: 97 | B107: 3-(Glycidoxypropyl)trimethoxy-silane | C107: 0.133 | D107: 1.088 | E107: 0 | F107: 0.97 | H107: 6.221 | J107: 1) | M107: Dodecan-1-ol
A108: 98 | B108: 3,3′-Dichlorobenzidine | C108: 1.664 | D108: 2.088 | E108: 0.772 | F108: 0.258 | G108: 1.7686 | H108: 9.81 | J108: 7) | M108: Ethanol
A109: 99 | B109: 3,4-Dichloroaniline | C109: 1.267 | D109: 1.262 | E109: 0.415 | F109: 0.212 | G109: 1.061 | H109: 5.916 | J109: 7) | M109: Geraniol
A110: 100 | B110: 3,5-Dimethylphenol | C110: 0.768 | D110: 0.793 | E110: 0.656 | F110: 0.348 | G110: 1.0569 | H110: 4.768 | J110: 7) | M110: Heptan-1-ol
A111: 101 | B111: 3.4-Dichloroaniline | C111: 1.214 | D111: 1.146 | E111: 0.538 | F111: 0.24 | H111: 6.017 | J111: 1) | M111: Hexan-1-ol
A112: 102 | B112: 3.5-Dimethylphenol | C112: 0.82 | D112: 0.776 | E112: 0.649 | F112: 0.37 | H112: 4.79 | J112: 1) | M112: Linalool
A113: 103 | B113: 3:1 FTOH | C113: 0 | D113: 0.3 | E113: 0.84 | F113: 0.14 | G113: 0.995 | H113: 1.542 | J113: 6) | M113: Nonan-1-ol
A114: 104 | B114: 3:3 FTOH | C114: 0 | D114: 0.53 | E114: 0.52 | F114: 0.39 | G114: 1.277 | H114: 2.71 | J114: 6) | M114: Octan-1-ol
A115: 105 | B115: 3-Aminopropyltriethoxysilane | C115: -0.021 | D115: 0.463 | E115: 0.172 | F115: 1.33 | G115: 1.8983 | H115: 5.566 | J115: 7) | M115: Octan-2-ol
A116: 106 | B116: 3-Bromophenol | C116: 1.18 | D116: 0.825 | E116: 0.925 | F116: 0.206 | G116: 0.9501 | H116: 5.246 | J116: 7) | M116: Pentan-1-ol
A117: 107 | B117: 3-Glycidyloxypropyltimethoxysilane | C117: 0.067 | D117: 1.101 | E117: 0 | F117: 1.091 | G117: 1.8073 | H117: 6.24 | J117: 7) | M117: Pentan-2-ol
A118: 108 | B118: 3-Methacryloxypropyltrimethoxysilane | C118: 0.046 | D118: 0.879 | E118: 0 | F118: 1.041 | G118: 1.9708 | H118: 6.2 | J118: 7) | M118: Pentan-3-ol
A119: 109 | B119: 3-Methylaniline | C119: 0.942 | D119: 1.031 | E119: 0.213 | F119: 0.479 | G119: 0.9571 | H119: 4.398 | J119: 7) | M119: Propan-1-ol
A120: 110 | B120: 3-Methylbutan-1-ol | C120: 0.198 | D120: 0.37 | E120: 0.385 | F120: 0.521 | G120: 0.8718 | H120: 2.993 | J120: 7) | M120: Propan-2-ol
A121: 111 | B121: 3-Methylphenol | C121: 0.714 | D121: 0.745 | E121: 0.72 | F121: 0.326 | G121: 0.916 | H121: 4.339 | J121: 7) | M121: Terpinen-4-ol
A122: 112 | B122: 3-Nitroaniline | C122: 1.278 | D122: 1.592 | E122: 0.476 | F122: 0.392 | G122: 0.9904 | H122: 5.889 | J122: 7) | M122: trans-Cyclohexane-1,2-diol
A123: 113 | B123: 3-Nitrophenol | C123: 1.173 | D123: 1.193 | E123: 1.018 | F123: 0.257 | G123: 0.9493 | H123: 5.744 | J123: 7) | M123: Undecan-1-ol
A124: 114 | B124: 3-Nitrotoluene | C124: 0.874 | D124: 1.111 | E124: 0 | F124: 0.266 | G124: 1.0315 | H124: 5.133 | J124: 7) | L124: Aromatic alcohols
A125: 115 | B125: 3-Phenyl-1-propanol | C125: 0.812 | D125: 0.861 | E125: 0.397 | F125: 0.663 | G125: 1.1978 | H125: 5.183 | J125: 7) | M125: 1-Phenyl-1-propanol
A126: 116 | B126: 4-(Dimethylamino)azobenzene | C126: 1.809 | D126: 1.639 | E126: 0 | F126: 1.544 | G126: 1.8624 | H126: 8.695 | J126: 7) | M126: 1-Phenyl-2-propanol
A127: 117 | B127: 4,4′-Dibromobiphenyl | C127: 2.094 | D127: 1.155 | E127: 0 | F127: 0.256 | G127: 1.6742 | H127: 8.731 | J127: 7) | M127: 1-Phenylethanol
A128: 118 | B128: 4,4′-Methylenedianiline | C128: 1.979 | D128: 1.654 | E128: 0.574 | F128: 1.107 | G128: 1.6647 | H128: 8.681 | J128: 7) | M128: 2-(1-Naphthyl)ethanol
A129: 119 | B129: 4:2 FTI | C129: 0 | D129: 0.32 | E129: 0 | F129: 0.17 | G129: 1.552 | H129: 3.325 | J129: 6) | M129: 2-Phenyl-1-propanol
A130: 120 | B130: 4:2 FTOH | C130: 0 | D130: 0.35 | E130: 0.6 | F130: 0.31 | G130: 1.352 | H130: 2.421 | J130: 6) | M130: 2-Phenylethanol
A131: 121 | B131: 4:4 FTOH | C131: 0 | D131: 0.52 | E131: 0.51 | F131: 0.44 | G131: 1.634 | H131: 3.499 | J131: 6) | M131: 2-Phenylpropan-1-ol
A132: 122 | B132: 4-Acetylbiphenyl | C132: 1.531 | D132: 1.504 | E132: 0 | F132: 0.64 | G132: 1.6217 | H132: 7.66 | J132: 7) | M132: 3-Phenyl-1-propanol
A133: 123 | B133: 4-Bromoacetanilide | C133: 1.05 | D133: 1.48 | E133: 0.808 | F133: 0.476 | G133: 1.2887 | H133: 6.917 | J133: 7) | M133: 4-Methoxybenzyl alcohol
A134: 124 | B134: 4-Bromophenol | C134: 1.167 | D134: 1.114 | E134: 0.697 | F134: 0.195 | G134: 0.9501 | H134: 5.157 | J134: 7) | M134: 4-Nitrobenzyl alcohol
A135: 125 | B135: 4-Chloro-2-nitroaniline | C135: 0.983 | D135: 1.418 | E135: 0.462 | F135: 0.182 | G135: 1.1128 | H135: 6.763 | J135: 7) | M135: 4-Phenyl-1-butanol
A136: 126 | B136: 4-Chloro-3-methylphenol | C136: 1.056 | D136: 0.882 | E136: 0.784 | F136: 0.221 | G136: 1.0384 | H136: 5.259 | J136: 7) | M136: Benzyl alcohol
A137: 127 | B137: 4-Chloroaniline | C137: 0.93 | D137: 1.108 | E137: 0.356 | F137: 0.295 | G137: 0.9386 | H137: 4.977 | J137: 7) | M137: Cinnamyl alcohol
A138: 128 | B138: 4-Chlorophenol | C138: 1.077 | D138: 0.834 | E138: 0.848 | F138: 0.204 | G138: 0.8975 | H138: 4.777 | J138: 7) | M138: m-Cresol
A139: 129 | B139: 4-Cyanophenol | C139: 1.166 | D139: 1.276 | E139: 0.834 | F139: 0.384 | G139: 0.9298 | H139: 5.469 | J139: 7) | M139: o-Cresol
A140: 130 | B140: 4-Fluoroaniline | C140: 0.776 | D140: 0.967 | E140: 0.329 | F140: 0.406 | G140: 0.8338 | H140: 4.064 | J140: 7) | M140: p-Cresol
A141: 131 | B141: 4-Hydroxybenzaldehyde | C141: 1.178 | D141: 1.261 | E141: 0.892 | F141: 0.474 | G141: 0.9317 | H141: 5.269 | J141: 7) | L141: Aliphatic aldehydes
A142: 132 | B142: 4-Hydroxybenzyl alcohol | C142: 1.196 | D142: 1.271 | E142: 0.96 | F142: 0.767 | G142: 0.9747 | H142: 5.136 | J142: 7) | M142: 2-Methylpropanal
A143: 133 | B143: 4-Methoxy – 2- nitroaniline | C143: 1.415 | D143: 1.558 | E143: 0.311 | F143: 0.528 | G143: 1.19 | H143: 6.761 | J143: 7) | M143: Butanal
A144: 134 | B144: 4-Methoxybenzyl alcohol | C144: 0.888 | D144: 0.979 | E144: 0.531 | F144: 0.779 | G144: 1.1156 | H144: 5.317 | J144: 7) | M144: Citronellal
A145: 135 | B145: 4-Methylaniline | C145: 0.866 | D145: 1.024 | E145: 0.191 | F145: 0.506 | G145: 0.9571 | H145: 4.371 | J145: 7) | M145: Geranial
A146: 136 | B146: 4-Methylphenol | C146: 0.812 | D146: 0.766 | E146: 0.684 | F146: 0.353 | G146: 0.916 | H146: 4.33 | J146: 7) | M146: Heptanal
A147: 137 | B147: 4-Nitroaniline | C147: 1.189 | D147: 1.793 | E147: 0.618 | F147: 0.344 | G147: 0.9904 | H147: 6.369 | J147: 7) | M147: Hexanal
A148: 138 | B148: 4-Nitroanisole | C148: 0.98 | D148: 1.49 | E148: 0 | F148: 0.37 | G148: 1.0902 | H148: 5.62 | J148: 6) | M148: Hydroxycitronellal
A149: 139 | B149: 4-Nitrobenzyl alcohol | C149: 1.02 | D149: 1.353 | E149: 0.52 | F149: 0.586 | G149: 1.0902 | H149: 6.338 | J149: 7) | M149: Neral
A150: 140 | B150: 4-Nitrotoluene | C150: 0.921 | D150: 1.162 | E150: 0 | F150: 0.276 | G150: 1.0315 | H150: 5.226 | J150: 7) | M150: Nonanal
A151: 141 | B151: 4-Phenylphenol | C151: 1.488 | D151: 1.191 | E151: 0.811 | F151: 0.436 | G151: 1.3829 | H151: 7.042 | J151: 7) | M151: Octanal
A152: 142 | B152: 4‑tert-Butylphenol | C152: 0.74 | D152: 0.936 | E152: 0.515 | F152: 0.347 | G152: 1.3387 | H152: 5.264 | J152: 7) | M152: Pentanal
A153: 143 | B153: 5:2s FTOH | C153: 0 | D153: 0.39 | E153: 0.62 | F153: 0.19 | G153: 1.568 | H153: 2.296 | J153: 6) | L153: Aromatic aldehydes
A154: 144 | B154: 6:1 FTI | C154: 0 | D154: 0.27 | E154: 0.13 | F154: 0.11 | G154: 1.843 | H154: 3.382 | J154: 6) | M154: 2-Methoxybenzaldehyde
A155: 145 | B155: 6:1 FTI-7H | C155: 0 | D155: 0.63 | E155: 0.24 | F155: 0.14 | G155: 1.806 | H155: 3.887 | J155: 6) | M155: 2-Methoxycinnamaldehyde
A156: 146 | B156: 6:2 FTI | C156: 0 | D156: 0.32 | E156: 0 | F156: 0.17 | G156: 1.984 | H156: 3.892 | J156: 6) | M156: 2-Methylbenzaldehyde
A157: 147 | B157: 6:2 FTOH | C157: 0 | D157: 0.35 | E157: 0.6 | F157: 0.31 | G157: 1.785 | H157: 2.997 | J157: 6) | M157: 2-Naphthaldehyde
A158: 148 | B158: 7:1 FTOH | C158: 0 | D158: 0.3 | E158: 0.84 | F158: 0.14 | G158: 1.86 | H158: 2.715 | J158: 6) | M158: 4-Methylbenzaldehyde
A159: 149 | B159: 8:2 FTI | C159: 0 | D159: 0.32 | E159: 0 | F159: 0.17 | G159: 2.417 | H159: 4.455 | J159: 6) | M159: Amyl cinnamal
A160: 150 | B160: 8:2 FTOH | C160: 0 | D160: 0.35 | E160: 0.6 | F160: 0.31 | G160: 2.217 | H160: 3.554 | J160: 6) | M160: Benzaldehyde
A161: 151 | B161: 8-Hydroxyquinoline | C161: 1 | D161: 1.115 | E161: 0.112 | F161: 0.596 | G161: 1.103 | H161: 5.986 | J161: 7) | M161: Cinnamaldehyde
A162: 152 | B162: 9,10-Dimethylanthracene | C162: 2.16 | D162: 1.271 | E162: 0 | F162: 0.405 | G162: 1.7362 | H162: 9.233 | J162: 7) | M162: lilial
A163: 153 | B163: Acenaphthene | C163: 1.605 | D163: 0.999 | E163: 0 | F163: 0.212 | G163: 1.2586 | H163: 6.66 | J163: 7) | L163: Aliphatic amines (see also Variable B compounds)
A164: 154 | B164: Acenaphthylene | C164: 1.611 | D164: 1.169 | E164: 0 | F164: 0.208 | G164: 1.2156 | H164: 6.353 | J164: 7) | M164: Dicyclohexylamine
A165: 155 | B165: Acetamide | C165: 0.357 | D165: 1.278 | E165: 0.492 | F165: 0.757 | G165: 0.5059 | H165: 2.66 | J165: 7) | M165: Hexadecylamine
A166: 156 | B166: Acetanilide | C166: 1.043 | D166: 1.248 | E166: 0.515 | F166: 0.701 | G166: 1.1137 | H166: 5.916 | J166: 7) | M166: n-Pentylamine
A167: 157 | B167: Acetoacetanilide | C167: 0.795 | D167: 0.439 | E167: 0.491 | F167: 1.528 | G167: 1.4112 | H167: 4.613 | J167: 7) | M167: Triethylamine
A168: 158 | B168: Acetone | C168: 0.18 | D168: 0.7 | E168: 0.04 | F168: 0.49 | G168: 0.547 | H168: 1.696 | J168: 6) | M168: Triisopropanolamine
A169: 159 | B169: Acetonitrile | C169: 0.238 | D169: 0.858 | E169: 0.152 | F169: 0.294 | G169: 0.4042 | H169: 1.511 | J169: 7) | M169: Tri-n-butylamine
A170: 160 | B170: Acetophenone | C170: 0.822 | D170: 1.022 | E170: 0 | F170: 0.505 | G170: 1.0139 | H170: 4.546 | J170: 7) | L170: Aromatic amines (see also Variable B compounds)
A171: 161 | B171: AFOE | C171: 0 | D171: 0.3 | E171: 0 | F171: 0 | G171: 2.24 | H171: 3.584 | J171: 6) | M171: 3.4-Dichloroaniline
A172: 162 | B172: Alpha-Pinene | C172: 0.447 | D172: 0.238 | E172: 0 | F172: 0.171 | G172: 1.2574 | H172: 4.32 | J172: 7) | M172: Tribenzylamine
A173: 163 | B173: Amyl cinnamal | C173: 1.064 | D173: 1.032 | E173: 0 | F173: 0.682 | G173: 1.8163 | H173: 7.166 | J173: 7) | M173: Triphenylamine
A174: 164 | B174: Androsterone | C174: 1.516 | D174: 1.584 | E174: 0.535 | F174: 1.432 | G174: 2.4257 | H174: 10.708 | J174: 7) | L174: Aliphatic amides and related compounds
A175: 165 | B175: Aniline | C175: 0.955 | D175: 1.015 | E175: 0.232 | F175: 0.427 | G175: 0.8162 | H175: 3.952 | J175: 7) | M175: 2-Chloroacetamide
A176: 166 | B176: Anisole | C176: 0.712 | D176: 0.768 | E176: 0 | F176: 0.311 | H176: 3.808 | J176: 5) | M176: Acetamide
A177: 167 | B177: Anthracene | C177: 1.985 | D177: 1.341 | E177: 0 | F177: 0.227 | G177: 1.4544 | H177: 7.678 | J177: 7) | M177: Dibutylformamide
A178: 168 | B178: Anthraquinone | C178: 1.839 | D178: 1.451 | E178: 0 | F178: 0.603 | G178: 1.5288 | H178: 8.551 | J178: 7) | M178: Dimethylformamide
A179: 169 | B179: APFIPE | C179: 0 | D179: 0.15 | E179: 0 | F179: 0 | G179: 1.234 | H179: 1.717 | J179: 6) | M179: N,N-Diethyldodecanamide
A180: 170 | B180: Azulene | C180: 1.495 | D180: 1.105 | E180: 0 | F180: 0.212 | G180: 1.0854 | H180: 5.71 | J180: 7) | M180: N,N-Dimethylacetamide
A181: 171 | B181: Benz[a]anthracene | C181: 2.464 | D181: 1.572 | E181: 0 | F181: 0.381 | G181: 1.8234 | H181: 10.278 | J181: 7) | M181: N-Methylacetamide
A182: 172 | B182: Benzaldehyde | C182: 0.816 | D182: 1.018 | E182: 0 | F182: 0.399 | G182: 0.873 | H182: 4.014 | J182: 7) | M182: Thioacetamide
A183: 173 | B183: Benzamide | C183: 1.379 | D183: 1.393 | E183: 0.62 | F183: 0.673 | G183: 0.9728 | H183: 5.217 | J183: 7) | L183: Aromatic amides and related compounds
A184: 174 | B184: Benzene | C184: 0.607 | D184: 0.508 | E184: 0 | F184: 0.144 | G184: 0.7164 | H184: 2.777 | J184: 7) | M184: 1,3-Diethyl-1,3-diphenylurea
A185: 175 | B185: Benzenesulfonamide | C185: 1.022 | D185: 1.784 | E185: 0.715 | F185: 0.663 | G185: 1.0971 | H185: 6.109 | J185: 7) | M185: 2-Phenylacetamide
A186: 176 | B186: Benzidine | C186: 1.392 | D186: 1.615 | E186: 0.197 | F186: 1.088 | G186: 1.5238 | H186: 8.99 | J186: 7) | M186: 4-Bromoacetanilide
A187: 177 | B187: Benzo[a]pyrene | C187: 2.941 | D187: 1.816 | E187: 0 | F187: 0.417 | G187: 1.9536 | H187: 11.556 | J187: 7) | M187: Acetanilide
A188: 178 | B188: Benzo[e]pyrene | C188: 3.137 | D188: 1.887 | E188: 0 | F188: 0.396 | G188: 1.9536 | H188: 11.37 | J188: 7) | M188: Acetoacetanilide
A189: 179 | B189: Benzo[g,h,i]perylene | C189: 3.664 | D189: 2.028 | E189: 0 | F189: 0.478 | G189: 2.0838 | H189: 12.787 | J189: 7) | M189: Benzamide
A190: 180 | B190: Benzofuran | C190: 0.926 | D190: 0.844 | E190: 0 | F190: 0.182 | G190: 0.9053 | H190: 4.255 | J190: 7) | M190: Benzenesulfonamide
A191: 181 | B191: Benzonitrile | C191: 0.745 | D191: 1.133 | E191: 0 | F191: 0.334 | G191: 0.8711 | H191: 4.055 | J191: 7) | M191: Ethyl carbamate
A192: 182 | B192: Benzophenone | C192: 1.159 | D192: 1.303 | E192: 0 | F192: 0.576 | G192: 1.4808 | H192: 7.054 | J192: 7) | M192: N-Methylbenzamide
A193: 183 | B193: Benzyl 2-ethylhexyl phthalate | C193: 1.256 | D193: 1.287 | E193: 0 | F193: 1.319 | G193: 3.0229 | H193: 10.858 | J193: 7) | L193: Haloaliphatic hydrocarbons
A194: 184 | B194: Benzyl alcohol | C194: 0.804 | D194: 0.851 | E194: 0.434 | F194: 0.563 | G194: 0.916 | H194: 4.259 | J194: 7) | M194: 1,1,2,2-Tetrachloroethane
A195: 185 | B195: Benzyl benzoate | C195: 1.264 | D195: 1.305 | E195: 0 | F195: 0.584 | G195: 1.6804 | H195: 7.465 | J195: 7) | M195: 1,2-Dichloroethane
A196: 186 | B196: Benzyl cinnamate | C196: 1.483 | D196: 1.496 | E196: 0 | F196: 0.648 | G196: 1.9192 | H196: 8.851 | J196: 7) | M196: 1-Bromobutane
A197: 187 | B197: Benzyl salicylate | C197: 1.392 | D197: 1.18 | E197: 0.119 | F197: 0.457 | G197: 1.7391 | H197: 8.063 | J197: 7) | M197: 1-Bromodecane
A198: 188 | B198: Beta-Pinene | C198: 0.521 | D198: 0.202 | E198: 0 | F198: 0.21 | G198: 1.2574 | H198: 4.597 | J198: 7) | M198: 1-Bromododecane
A199: 189 | B199: Biphenyl | C199: 1.307 | D199: 0.96 | E199: 0 | F199: 0.277 | G199: 1.3242 | H199: 6.015 | J199: 7) | M199: 1-Bromoheptane
A200: 190 | B200: Bis(2-Butoxyethyl) phthalate | C200: 0.641 | D200: 1.534 | E200: 0 | F200: 1.529 | G200: 2.9552 | H200: 10.622 | J200: 7) | M200: 1-Bromohexane
... 318 more rows

Sheet Columns
A1: =GC!A1 -> ChromSimGC_4.0 | N1: =GC!C1 -> Author: Bo Svensmark, svensmark@plen.ku.dk, Analytical Chemistry, PLEN KU 2017-2026
X2: To add a column or change data for existing colums
K3: Table 1 | Y3: 1) Enter the data for the new column in column A-J or edit the column data
K4: c-term = c(mean): 0 | N4: C-term for columns | Y4: 2) Same data format as the existing column data
A5: Selected reference column 1: | D5: =B11 -> HP-5 | E5: =D11 -> 5 % diphenylsiloxane | K5: c-term = c(litt): 1 | N5: Due to discontinueties in the literature data a mean may be used | Y5: 3) Max 80 columns of max 20 temperatures
A6: Parameters | B6: =SPmodel!B31 -> 60 | C6: =SPmodel!C31 -> -0.103 | D6: =SPmodel!D31 -> 0.432 | E6: =SPmodel!E31 -> 0.375 | F6: =SPmodel!F31 -> 0 | G6: =SPmodel!G31 -> 0.709 | H6: =SPmodel!H31 -> -1.879 | K6: Column 1 | L6: Column 2 | N6: Which method is best (litterature or mean) is not established yet. | Y6: 4) Press the button Update columns
A7: Norm | C7: =C6/$I$7 -> -0.1123461749 | D7: 0.4711994906 | E7: 0.4090273356 | F7: 0 | G7: 0.7733343492 | H7: -2.049499636 | I7: =SQRT(C6^2+D6^2+E6^2+F6^2+G6^2) -> 0.9168091404 | K7: 1 | L7: 1 | Y7: This sheet is proteted. To update unprotect, Update, Protect: To unprotect:Go to Review and click Unprotect sheet
A9: Column 1 | B9: Name: | C9: =GC!E29 -> HP-5 | E9: Index: | F9: =VLOOKUP(C9,V10:AI89,13,FALSE) -> 63 | G9: Length: | H9: =VLOOKUP(C9,V10:AI89,14,FALSE) -> 13 | J9: Column 2 | K9: Name: | L9: =GC!E31 -> HP-5 | N9: Index: | O9: =VLOOKUP(L9,V10:AI89,13,FALSE) -> 63 | P9: Length: | Q9: =VLOOKUP(L9,V10:AI89,14,FALSE) -> 13 | S9: Length | T9: q | U9: d | V9: Name | X9: Description | AF9: Beta | AG9: No | AH9: Index | AI9: Length | AK9: References
A10: Column | B10: T | C10: e | D10: s | E10: a | F10: b | G10: l | H10: c(sim) | J10: Column | K10: T | L10: e | M10: s | N10: a | O10: b | P10: l | Q10: c(sim) | S10: =IF($AH10="","",INDEX($N$42:$P$641,$AH10,1)) -> 0.7945231274 | T10: =IF($AH10="","",INDEX($N$42:$P$641,$AH10,2)) -> 9.432023273 | U10: =IF($AH10="","",INDEX($N$42:$P$641,$AH10,3)) -> 0.1644279614 | V10: =IF(AH10="",NA(),INDEX($D$41:$F$640,$AH10,1)) -> DB-1 | X10: =IF(AH10="","",INDEX($D$41:$F$640,$AH10,3)) -> Poly(dimethylsiloxane) | AF10: =IF(AH10="","",INDEX($P$41:$P$640,$AH10,1)) -> 0.003132339507 | AG10: 1 | AH10: 1 | AI10: 5
A11: Name | B11: =INDEX($D$41:$K$639,$F$9,1) -> HP-5 | D11: =INDEX($D$41:$K$639,$F$9,3) -> 5 % diphenylsiloxane | J11: Name | K11: =INDEX($D$41:$K$639,$O$9,1) -> HP-5 | M11: =INDEX($D$41:$K$639,$O$9,3) -> 5 % diphenylsiloxane | S11: =IF($AH11="","",INDEX($N$42:$P$641,$AH11,1)) -> 0.8923754815 | T11: =IF($AH11="","",INDEX($N$42:$P$641,$AH11,2)) -> 5.61159332 | U11: =IF($AH11="","",INDEX($N$42:$P$641,$AH11,3)) -> 0.09789142426 | V11: =IF(AH11="",NA(),INDEX($D$41:$F$640,$AH11,1)) -> SolGel-1 | X11: =IF(AH11="","",INDEX($D$41:$F$640,$AH11,3)) -> Poly(dimethylsiloxane) | AF11: =IF(AH11="","",INDEX($P$41:$P$640,$AH11,1)) -> 0.01261817175 | AG11: 2 | AH11: 8 | AI11: 5
A12: 1 | B12: =IF($A12>$H$9,"",INDEX($D$41:$K$639,$F$9+$A12,2)) -> 60 | C12: =IF($A12>$H$9,"",INDEX($D$41:$K$639,$F$9+$A12,3)) -> -0.103 | D12: =IF($A12>$H$9,"",INDEX($D$41:$K$639,$F$9+$A12,4)) -> 0.432 | E12: =IF($A12>$H$9,"",INDEX($D$41:$K$639,$F$9+$A12,5)) -> 0.375 | F12: =IF($A12>$H$9,"",INDEX($D$41:$K$639,$F$9+$A12,6)) -> 0 | G12: =IF($A12>$H$9,"",INDEX($D$41:$K$639,$F$9+$A12,7)) -> 0.709 | H12: =IF($A12>$H$9,"",INDEX($D$41:$L$639,$F$9+$A12,8+$K$7)) -> -1.879 | J12: 1 | K12: =IF($J12>$Q$9,"",INDEX($D$41:$K$639,$O$9+$J12,2)) -> 60 | L12: =IF($J12>$Q$9,"",INDEX($D$41:$K$639,$O$9+$J12,3)) -> -0.103 | M12: =IF($J12>$Q$9,"",INDEX($D$41:$K$639,$O$9+$J12,4)) -> 0.432 | N12: =IF($J12>$Q$9,"",INDEX($D$41:$K$639,$O$9+$J12,5)) -> 0.375 | O12: =IF($J12>$Q$9,"",INDEX($D$41:$K$639,$O$9+$J12,6)) -> 0 | P12: =IF($J12>$Q$9,"",INDEX($D$41:$K$639,$O$9+$J12,7)) -> 0.709 | Q12: =IF($J12>$Q$9,"",INDEX($D$41:$L$639,$O$9+$J12,8+$L$7)) -> -1.879 | S12: =IF($AH12="","",INDEX($N$42:$P$641,$AH12,1)) -> 0.7818324629 | T12: =IF($AH12="","",INDEX($N$42:$P$641,$AH12,2)) -> 33.62502226 | U12: =IF($AH12="","",INDEX($N$42:$P$641,$AH12,3)) -> 0.5784799329 | V12: =IF(AH12="",NA(),INDEX($D$41:$F$640,$AH12,1)) -> SPB-Octyl | X12: =IF(AH12="","",INDEX($D$41:$F$640,$AH12,3)) -> Poly(methyloctylsiloxane) | AF12: =IF(AH12="","",INDEX($P$41:$P$640,$AH12,1)) -> 0.01261817175 | AG12: 3 | AH12: 15 | AI12: 11 | AK12: 1) | AL12: Colin F. Poole
A13: 2 | B13: =IF($A13>$H$9,"",INDEX($D$41:$K$639,$F$9+$A13,2)) -> 80 | C13: =IF($A13>$H$9,"",INDEX($D$41:$K$639,$F$9+$A13,3)) -> -0.06 | D13: =IF($A13>$H$9,"",INDEX($D$41:$K$639,$F$9+$A13,4)) -> 0.379 | E13: =IF($A13>$H$9,"",INDEX($D$41:$K$639,$F$9+$A13,5)) -> 0.317 | F13: =IF($A13>$H$9,"",INDEX($D$41:$K$639,$F$9+$A13,6)) -> 0 | G13: =IF($A13>$H$9,"",INDEX($D$41:$K$639,$F$9+$A13,7)) -> 0.628 | H13: =IF($A13>$H$9,"",INDEX($D$41:$L$639,$F$9+$A13,8+$K$7)) -> -1.905 | J13: 2 | K13: =IF($J13>$Q$9,"",INDEX($D$41:$K$639,$O$9+$J13,2)) -> 80 | L13: =IF($J13>$Q$9,"",INDEX($D$41:$K$639,$O$9+$J13,3)) -> -0.06 | M13: =IF($J13>$Q$9,"",INDEX($D$41:$K$639,$O$9+$J13,4)) -> 0.379 | N13: =IF($J13>$Q$9,"",INDEX($D$41:$K$639,$O$9+$J13,5)) -> 0.317 | O13: =IF($J13>$Q$9,"",INDEX($D$41:$K$639,$O$9+$J13,6)) -> 0 | P13: =IF($J13>$Q$9,"",INDEX($D$41:$K$639,$O$9+$J13,7)) -> 0.628 | Q13: =IF($J13>$Q$9,"",INDEX($D$41:$L$639,$O$9+$J13,8+$L$7)) -> -1.905 | S13: =IF($AH13="","",INDEX($N$42:$P$641,$AH13,1)) -> 0.8292363957 | T13: =IF($AH13="","",INDEX($N$42:$P$641,$AH13,2)) -> 6.850279581 | U13: =IF($AH13="","",INDEX($N$42:$P$641,$AH13,3)) -> 0.119480366 | V13: =IF(AH13="",NA(),INDEX($D$41:$F$640,$AH13,1)) -> G-PDMS | X13: =IF(AH13="","",INDEX($D$41:$F$640,$AH13,3)) -> Generic-Poly(dimethylsiloxane) [c = -2.000] | AF13: =IF(AH13="","",INDEX($P$41:$P$640,$AH13,1)) -> 0 | AG13: 4 | AH13: 28 | AI13: 5 | AL13: Update and expansion of a system constant database for open-tubular
A14: 3 | B14: =IF($A14>$H$9,"",INDEX($D$41:$K$639,$F$9+$A14,2)) -> 100 | C14: =IF($A14>$H$9,"",INDEX($D$41:$K$639,$F$9+$A14,3)) -> -0.033 | D14: =IF($A14>$H$9,"",INDEX($D$41:$K$639,$F$9+$A14,4)) -> 0.34 | E14: =IF($A14>$H$9,"",INDEX($D$41:$K$639,$F$9+$A14,5)) -> 0.254 | F14: =IF($A14>$H$9,"",INDEX($D$41:$K$639,$F$9+$A14,6)) -> 0 | G14: =IF($A14>$H$9,"",INDEX($D$41:$K$639,$F$9+$A14,7)) -> 0.556 | H14: =IF($A14>$H$9,"",INDEX($D$41:$L$639,$F$9+$A14,8+$K$7)) -> -1.913 | J14: 3 | K14: =IF($J14>$Q$9,"",INDEX($D$41:$K$639,$O$9+$J14,2)) -> 100 | L14: =IF($J14>$Q$9,"",INDEX($D$41:$K$639,$O$9+$J14,3)) -> -0.033 | M14: =IF($J14>$Q$9,"",INDEX($D$41:$K$639,$O$9+$J14,4)) -> 0.34 | N14: =IF($J14>$Q$9,"",INDEX($D$41:$K$639,$O$9+$J14,5)) -> 0.254 | O14: =IF($J14>$Q$9,"",INDEX($D$41:$K$639,$O$9+$J14,6)) -> 0 | P14: =IF($J14>$Q$9,"",INDEX($D$41:$K$639,$O$9+$J14,7)) -> 0.556 | Q14: =IF($J14>$Q$9,"",INDEX($D$41:$L$639,$O$9+$J14,8+$L$7)) -> -1.913 | S14: =IF($AH14="","",INDEX($N$42:$P$641,$AH14,1)) -> 0.9121595255 | T14: =IF($AH14="","",INDEX($N$42:$P$641,$AH14,2)) -> 1.096107524 | U14: =IF($AH14="","",INDEX($N$42:$P$641,$AH14,3)) -> 0.01907804907 | V14: =IF(AH14="",NA(),INDEX($D$41:$F$640,$AH14,1)) -> G-PDMPS-5 | X14: =IF(AH14="","",INDEX($D$41:$F$640,$AH14,3)) -> Generic-Poly(dimethyldiphenylsiloxane) [c = -2.000] | AF14: =IF(AH14="","",INDEX($P$41:$P$640,$AH14,1)) -> 0 | AG14: 5 | AH14: 35 | AI14: 5 | AL14: columns used in gas chromatography
A15: 4 | B15: =IF($A15>$H$9,"",INDEX($D$41:$K$639,$F$9+$A15,2)) -> 120 | C15: =IF($A15>$H$9,"",INDEX($D$41:$K$639,$F$9+$A15,3)) -> 0 | D15: =IF($A15>$H$9,"",INDEX($D$41:$K$639,$F$9+$A15,4)) -> 0.314 | E15: =IF($A15>$H$9,"",INDEX($D$41:$K$639,$F$9+$A15,5)) -> 0.19 | F15: =IF($A15>$H$9,"",INDEX($D$41:$K$639,$F$9+$A15,6)) -> 0 | G15: =IF($A15>$H$9,"",INDEX($D$41:$K$639,$F$9+$A15,7)) -> 0.512 | H15: =IF($A15>$H$9,"",INDEX($D$41:$L$639,$F$9+$A15,8+$K$7)) -> -1.987 | J15: 4 | K15: =IF($J15>$Q$9,"",INDEX($D$41:$K$639,$O$9+$J15,2)) -> 120 | L15: =IF($J15>$Q$9,"",INDEX($D$41:$K$639,$O$9+$J15,3)) -> 0 | M15: =IF($J15>$Q$9,"",INDEX($D$41:$K$639,$O$9+$J15,4)) -> 0.314 | N15: =IF($J15>$Q$9,"",INDEX($D$41:$K$639,$O$9+$J15,5)) -> 0.19 | O15: =IF($J15>$Q$9,"",INDEX($D$41:$K$639,$O$9+$J15,6)) -> 0 | P15: =IF($J15>$Q$9,"",INDEX($D$41:$K$639,$O$9+$J15,7)) -> 0.512 | Q15: =IF($J15>$Q$9,"",INDEX($D$41:$L$639,$O$9+$J15,8+$L$7)) -> -1.987 | S15: =IF($AH15="","",INDEX($N$42:$P$641,$AH15,1)) -> 1.102155615 | T15: =IF($AH15="","",INDEX($N$42:$P$641,$AH15,2)) -> 42.58662362 | U15: =IF($AH15="","",INDEX($N$42:$P$641,$AH15,3)) -> 0.7262835647 | V15: =IF(AH15="",NA(),INDEX($D$41:$F$640,$AH15,1)) -> G-PMPS | X15: =IF(AH15="","",INDEX($D$41:$F$640,$AH15,3)) -> Generc-Poly(methylphenylsiloxane) [c = -2.000] | AF15: =IF(AH15="","",INDEX($P$41:$P$640,$AH15,1)) -> 0 | AG15: 6 | AH15: 42 | AI15: 5 | AL15: Journal of Chromatography A 1766 (2026) 466595
A16: 5 | B16: =IF($A16>$H$9,"",INDEX($D$41:$K$639,$F$9+$A16,2)) -> 140 | C16: =IF($A16>$H$9,"",INDEX($D$41:$K$639,$F$9+$A16,3)) -> 0.033 | D16: =IF($A16>$H$9,"",INDEX($D$41:$K$639,$F$9+$A16,4)) -> 0.273 | E16: =IF($A16>$H$9,"",INDEX($D$41:$K$639,$F$9+$A16,5)) -> 0.167 | F16: =IF($A16>$H$9,"",INDEX($D$41:$K$639,$F$9+$A16,6)) -> 0 | G16: =IF($A16>$H$9,"",INDEX($D$41:$K$639,$F$9+$A16,7)) -> 0.46 | H16: =IF($A16>$H$9,"",INDEX($D$41:$L$639,$F$9+$A16,8+$K$7)) -> -2.001 | J16: 5 | K16: =IF($J16>$Q$9,"",INDEX($D$41:$K$639,$O$9+$J16,2)) -> 140 | L16: =IF($J16>$Q$9,"",INDEX($D$41:$K$639,$O$9+$J16,3)) -> 0.033 | M16: =IF($J16>$Q$9,"",INDEX($D$41:$K$639,$O$9+$J16,4)) -> 0.273 | N16: =IF($J16>$Q$9,"",INDEX($D$41:$K$639,$O$9+$J16,5)) -> 0.167 | O16: =IF($J16>$Q$9,"",INDEX($D$41:$K$639,$O$9+$J16,6)) -> 0 | P16: =IF($J16>$Q$9,"",INDEX($D$41:$K$639,$O$9+$J16,7)) -> 0.46 | Q16: =IF($J16>$Q$9,"",INDEX($D$41:$L$639,$O$9+$J16,8+$L$7)) -> -2.001 | S16: =IF($AH16="","",INDEX($N$42:$P$641,$AH16,1)) -> 0.945168239 | T16: =IF($AH16="","",INDEX($N$42:$P$641,$AH16,2)) -> 1.31653118 | U16: =IF($AH16="","",INDEX($N$42:$P$641,$AH16,3)) -> 0.0229337358 | V16: =IF(AH16="",NA(),INDEX($D$41:$F$640,$AH16,1)) -> G-ASA-5 | X16: =IF(AH16="","",INDEX($D$41:$F$640,$AH16,3)) -> Generic-Silarylene-siloxane copolymer [c = -2.000] | AF16: =IF(AH16="","",INDEX($P$41:$P$640,$AH16,1)) -> 0 | AG16: 7 | AH16: 49 | AI16: 5 | AL16: https://doi.org/10.1016/j.chroma.2025.466595
A17: 6 | B17: =IF($A17>$H$9,"",INDEX($D$41:$K$639,$F$9+$A17,2)) -> 160 | C17: =IF($A17>$H$9,"",INDEX($D$41:$K$639,$F$9+$A17,3)) -> 0.018 | D17: =IF($A17>$H$9,"",INDEX($D$41:$K$639,$F$9+$A17,4)) -> 0.266 | E17: =IF($A17>$H$9,"",INDEX($D$41:$K$639,$F$9+$A17,5)) -> 0.142 | F17: =IF($A17>$H$9,"",INDEX($D$41:$K$639,$F$9+$A17,6)) -> 0 | G17: =IF($A17>$H$9,"",INDEX($D$41:$K$639,$F$9+$A17,7)) -> 0.404 | H17: =IF($A17>$H$9,"",INDEX($D$41:$L$639,$F$9+$A17,8+$K$7)) -> -2.625 | J17: 6 | K17: =IF($J17>$Q$9,"",INDEX($D$41:$K$639,$O$9+$J17,2)) -> 160 | L17: =IF($J17>$Q$9,"",INDEX($D$41:$K$639,$O$9+$J17,3)) -> 0.018 | M17: =IF($J17>$Q$9,"",INDEX($D$41:$K$639,$O$9+$J17,4)) -> 0.266 | N17: =IF($J17>$Q$9,"",INDEX($D$41:$K$639,$O$9+$J17,5)) -> 0.142 | O17: =IF($J17>$Q$9,"",INDEX($D$41:$K$639,$O$9+$J17,6)) -> 0 | P17: =IF($J17>$Q$9,"",INDEX($D$41:$K$639,$O$9+$J17,7)) -> 0.404 | Q17: =IF($J17>$Q$9,"",INDEX($D$41:$L$639,$O$9+$J17,8+$L$7)) -> -2.625 | S17: =IF($AH17="","",INDEX($N$42:$P$641,$AH17,1)) -> 3.271541838 | T17: =IF($AH17="","",INDEX($N$42:$P$641,$AH17,2)) -> 43.87719031 | U17: =IF($AH17="","",INDEX($N$42:$P$641,$AH17,3)) -> 0.7472240618 | V17: =IF(AH17="",NA(),INDEX($D$41:$F$640,$AH17,1)) -> G-PEG | X17: =IF(AH17="","",INDEX($D$41:$F$640,$AH17,3)) -> Generic Polyethyleneglycol [c = -2.000] | AF17: =IF(AH17="","",INDEX($P$41:$P$640,$AH17,1)) -> 0 | AG17: 8 | AH17: 56 | AI17: 5
A18: 7 | B18: =IF($A18>$H$9,"",INDEX($D$41:$K$639,$F$9+$A18,2)) -> 180 | C18: =IF($A18>$H$9,"",INDEX($D$41:$K$639,$F$9+$A18,3)) -> 0.037 | D18: =IF($A18>$H$9,"",INDEX($D$41:$K$639,$F$9+$A18,4)) -> 0.237 | E18: =IF($A18>$H$9,"",INDEX($D$41:$K$639,$F$9+$A18,5)) -> 0.129 | F18: =IF($A18>$H$9,"",INDEX($D$41:$K$639,$F$9+$A18,6)) -> 0 | G18: =IF($A18>$H$9,"",INDEX($D$41:$K$639,$F$9+$A18,7)) -> 0.364 | H18: =IF($A18>$H$9,"",INDEX($D$41:$L$639,$F$9+$A18,8+$K$7)) -> -2.628 | J18: 7 | K18: =IF($J18>$Q$9,"",INDEX($D$41:$K$639,$O$9+$J18,2)) -> 180 | L18: =IF($J18>$Q$9,"",INDEX($D$41:$K$639,$O$9+$J18,3)) -> 0.037 | M18: =IF($J18>$Q$9,"",INDEX($D$41:$K$639,$O$9+$J18,4)) -> 0.237 | N18: =IF($J18>$Q$9,"",INDEX($D$41:$K$639,$O$9+$J18,5)) -> 0.129 | O18: =IF($J18>$Q$9,"",INDEX($D$41:$K$639,$O$9+$J18,6)) -> 0 | P18: =IF($J18>$Q$9,"",INDEX($D$41:$K$639,$O$9+$J18,7)) -> 0.364 | Q18: =IF($J18>$Q$9,"",INDEX($D$41:$L$639,$O$9+$J18,8+$L$7)) -> -2.628 | S18: =IF($AH18="","",INDEX($N$42:$P$641,$AH18,1)) -> 0.9168091404 | T18: =IF($AH18="","",INDEX($N$42:$P$641,$AH18,2)) -> 0.08102847521 | U18: =IF($AH18="","",INDEX($N$42:$P$641,$AH18,3)) -> 0 | V18: =IF(AH18="",NA(),INDEX($D$41:$F$640,$AH18,1)) -> HP-5 | X18: =IF(AH18="","",INDEX($D$41:$F$640,$AH18,3)) -> 5 % diphenylsiloxane | AF18: =IF(AH18="","",INDEX($P$41:$P$640,$AH18,1)) -> 0.00160192205 | AG18: 9 | AH18: 63 | AI18: 13 | AK18: 2) | AL18: Sanka N. Atapattua, Kimberly Eggersa, Colin F. Poolea,.,Waruna Kiridenab, WladyslawW. Koziol
A19: 8 | B19: =IF($A19>$H$9,"",INDEX($D$41:$K$639,$F$9+$A19,2)) -> 200 | C19: =IF($A19>$H$9,"",INDEX($D$41:$K$639,$F$9+$A19,3)) -> 0.064 | D19: =IF($A19>$H$9,"",INDEX($D$41:$K$639,$F$9+$A19,4)) -> 0.214 | E19: =IF($A19>$H$9,"",INDEX($D$41:$K$639,$F$9+$A19,5)) -> 0.108 | F19: =IF($A19>$H$9,"",INDEX($D$41:$K$639,$F$9+$A19,6)) -> 0 | G19: =IF($A19>$H$9,"",INDEX($D$41:$K$639,$F$9+$A19,7)) -> 0.329 | H19: =IF($A19>$H$9,"",INDEX($D$41:$L$639,$F$9+$A19,8+$K$7)) -> -2.635 | J19: 8 | K19: =IF($J19>$Q$9,"",INDEX($D$41:$K$639,$O$9+$J19,2)) -> 200 | L19: =IF($J19>$Q$9,"",INDEX($D$41:$K$639,$O$9+$J19,3)) -> 0.064 | M19: =IF($J19>$Q$9,"",INDEX($D$41:$K$639,$O$9+$J19,4)) -> 0.214 | N19: =IF($J19>$Q$9,"",INDEX($D$41:$K$639,$O$9+$J19,5)) -> 0.108 | O19: =IF($J19>$Q$9,"",INDEX($D$41:$K$639,$O$9+$J19,6)) -> 0 | P19: =IF($J19>$Q$9,"",INDEX($D$41:$K$639,$O$9+$J19,7)) -> 0.329 | Q19: =IF($J19>$Q$9,"",INDEX($D$41:$L$639,$O$9+$J19,8+$L$7)) -> -2.635 | S19: =IF($AH19="","",INDEX($N$42:$P$641,$AH19,1)) -> 0.7624211435 | T19: =IF($AH19="","",INDEX($N$42:$P$641,$AH19,2)) -> 5.144160165 | U19: =IF($AH19="","",INDEX($N$42:$P$641,$AH19,3)) -> 0.08974123736 | V19: =IF(AH19="",NA(),INDEX($D$41:$F$640,$AH19,1)) -> DB-5 | X19: =IF(AH19="","",INDEX($D$41:$F$640,$AH19,3)) -> 5 % diphenylsiloxane | AF19: =IF(AH19="","",INDEX($P$41:$P$640,$AH19,1)) -> 0.01619406868 | AG19: 10 | AH19: 78 | AI19: 5 | AL19: Extension of the system constants database for open-tubular columns: System
A20: 9 | B20: =IF($A20>$H$9,"",INDEX($D$41:$K$639,$F$9+$A20,2)) -> 220 | C20: =IF($A20>$H$9,"",INDEX($D$41:$K$639,$F$9+$A20,3)) -> 0.069 | D20: =IF($A20>$H$9,"",INDEX($D$41:$K$639,$F$9+$A20,4)) -> 0.207 | E20: =IF($A20>$H$9,"",INDEX($D$41:$K$639,$F$9+$A20,5)) -> 0.097 | F20: =IF($A20>$H$9,"",INDEX($D$41:$K$639,$F$9+$A20,6)) -> 0 | G20: =IF($A20>$H$9,"",INDEX($D$41:$K$639,$F$9+$A20,7)) -> 0.295 | H20: =IF($A20>$H$9,"",INDEX($D$41:$L$639,$F$9+$A20,8+$K$7)) -> -2.632 | J20: 9 | K20: =IF($J20>$Q$9,"",INDEX($D$41:$K$639,$O$9+$J20,2)) -> 220 | L20: =IF($J20>$Q$9,"",INDEX($D$41:$K$639,$O$9+$J20,3)) -> 0.069 | M20: =IF($J20>$Q$9,"",INDEX($D$41:$K$639,$O$9+$J20,4)) -> 0.207 | N20: =IF($J20>$Q$9,"",INDEX($D$41:$K$639,$O$9+$J20,5)) -> 0.097 | O20: =IF($J20>$Q$9,"",INDEX($D$41:$K$639,$O$9+$J20,6)) -> 0 | P20: =IF($J20>$Q$9,"",INDEX($D$41:$K$639,$O$9+$J20,7)) -> 0.295 | Q20: =IF($J20>$Q$9,"",INDEX($D$41:$L$639,$O$9+$J20,8+$L$7)) -> -2.632 | S20: =IF($AH20="","",INDEX($N$42:$P$641,$AH20,1)) -> 0.9129835705 | T20: =IF($AH20="","",INDEX($N$42:$P$641,$AH20,2)) -> 2.024606116 | U20: =IF($AH20="","",INDEX($N$42:$P$641,$AH20,3)) -> 0.03530589186 | V20: =IF(AH20="",NA(),INDEX($D$41:$F$640,$AH20,1)) -> OV-5 | X20: =IF(AH20="","",INDEX($D$41:$F$640,$AH20,3)) -> 5 % diphenylsiloxane | AF20: =IF(AH20="","",INDEX($P$41:$P$640,$AH20,1)) -> 0.01141760493 | AG20: 11 | AH20: 85 | AI20: 10 | AL20: maps at low and intermediate temperatures for four new columns
A21: 10 | B21: =IF($A21>$H$9,"",INDEX($D$41:$K$639,$F$9+$A21,2)) -> 240 | C21: =IF($A21>$H$9,"",INDEX($D$41:$K$639,$F$9+$A21,3)) -> 0.082 | D21: =IF($A21>$H$9,"",INDEX($D$41:$K$639,$F$9+$A21,4)) -> 0.191 | E21: =IF($A21>$H$9,"",INDEX($D$41:$K$639,$F$9+$A21,5)) -> 0.093 | F21: =IF($A21>$H$9,"",INDEX($D$41:$K$639,$F$9+$A21,6)) -> 0 | G21: =IF($A21>$H$9,"",INDEX($D$41:$K$639,$F$9+$A21,7)) -> 0.267 | H21: =IF($A21>$H$9,"",INDEX($D$41:$L$639,$F$9+$A21,8+$K$7)) -> -2.629 | J21: 10 | K21: =IF($J21>$Q$9,"",INDEX($D$41:$K$639,$O$9+$J21,2)) -> 240 | L21: =IF($J21>$Q$9,"",INDEX($D$41:$K$639,$O$9+$J21,3)) -> 0.082 | M21: =IF($J21>$Q$9,"",INDEX($D$41:$K$639,$O$9+$J21,4)) -> 0.191 | N21: =IF($J21>$Q$9,"",INDEX($D$41:$K$639,$O$9+$J21,5)) -> 0.093 | O21: =IF($J21>$Q$9,"",INDEX($D$41:$K$639,$O$9+$J21,6)) -> 0 | P21: =IF($J21>$Q$9,"",INDEX($D$41:$K$639,$O$9+$J21,7)) -> 0.267 | Q21: =IF($J21>$Q$9,"",INDEX($D$41:$L$639,$O$9+$J21,8+$L$7)) -> -2.629 | S21: =IF($AH21="","",INDEX($N$42:$P$641,$AH21,1)) -> 0.8944372532 | T21: =IF($AH21="","",INDEX($N$42:$P$641,$AH21,2)) -> 1.805408147 | U21: =IF($AH21="","",INDEX($N$42:$P$641,$AH21,3)) -> 0.03147725996 | V21: =IF(AH21="",NA(),INDEX($D$41:$F$640,$AH21,1)) -> PTE-5 | X21: =IF(AH21="","",INDEX($D$41:$F$640,$AH21,3)) -> 5 % diphenylsiloxane | AF21: =IF(AH21="","",INDEX($P$41:$P$640,$AH21,1)) -> 0.00401203208 | AG21: 12 | AH21: 97 | AI21: 5 | AL21: Journal of Chromatography A, 1216 (2009) 1640–1649 | AN21: DOI 10.1007/s10337-014-2790-x
A22: 11 | B22: =IF($A22>$H$9,"",INDEX($D$41:$K$639,$F$9+$A22,2)) -> 260 | C22: =IF($A22>$H$9,"",INDEX($D$41:$K$639,$F$9+$A22,3)) -> 0.091 | D22: =IF($A22>$H$9,"",INDEX($D$41:$K$639,$F$9+$A22,4)) -> 0.2 | E22: =IF($A22>$H$9,"",INDEX($D$41:$K$639,$F$9+$A22,5)) -> 0.112 | F22: =IF($A22>$H$9,"",INDEX($D$41:$K$639,$F$9+$A22,6)) -> 0 | G22: =IF($A22>$H$9,"",INDEX($D$41:$K$639,$F$9+$A22,7)) -> 0.246 | H22: =IF($A22>$H$9,"",INDEX($D$41:$L$639,$F$9+$A22,8+$K$7)) -> -2.689 | J22: 11 | K22: =IF($J22>$Q$9,"",INDEX($D$41:$K$639,$O$9+$J22,2)) -> 260 | L22: =IF($J22>$Q$9,"",INDEX($D$41:$K$639,$O$9+$J22,3)) -> 0.091 | M22: =IF($J22>$Q$9,"",INDEX($D$41:$K$639,$O$9+$J22,4)) -> 0.2 | N22: =IF($J22>$Q$9,"",INDEX($D$41:$K$639,$O$9+$J22,5)) -> 0.112 | O22: =IF($J22>$Q$9,"",INDEX($D$41:$K$639,$O$9+$J22,6)) -> 0 | P22: =IF($J22>$Q$9,"",INDEX($D$41:$K$639,$O$9+$J22,7)) -> 0.246 | Q22: =IF($J22>$Q$9,"",INDEX($D$41:$L$639,$O$9+$J22,8+$L$7)) -> -2.689 | S22: =IF($AH22="","",INDEX($N$42:$P$641,$AH22,1)) -> 1.085267709 | T22: =IF($AH22="","",INDEX($N$42:$P$641,$AH22,2)) -> 13.11723264 | U22: =IF($AH22="","",INDEX($N$42:$P$641,$AH22,3)) -> 0.2284348742 | V22: =IF(AH22="",NA(),INDEX($D$41:$F$640,$AH22,1)) -> Rtx-20 | X22: =IF(AH22="","",INDEX($D$41:$F$640,$AH22,3)) -> 20 % diphenylsiloxane | AF22: =IF(AH22="","",INDEX($P$41:$P$640,$AH22,1)) -> 0.008048257286 | AG22: 13 | AH22: 104 | AI22: 5
A23: 12 | B23: =IF($A23>$H$9,"",INDEX($D$41:$K$639,$F$9+$A23,2)) -> 280 | C23: =IF($A23>$H$9,"",INDEX($D$41:$K$639,$F$9+$A23,3)) -> 0.105 | D23: =IF($A23>$H$9,"",INDEX($D$41:$K$639,$F$9+$A23,4)) -> 0.162 | E23: =IF($A23>$H$9,"",INDEX($D$41:$K$639,$F$9+$A23,5)) -> 0.112 | F23: =IF($A23>$H$9,"",INDEX($D$41:$K$639,$F$9+$A23,6)) -> 0 | G23: =IF($A23>$H$9,"",INDEX($D$41:$K$639,$F$9+$A23,7)) -> 0.225 | H23: =IF($A23>$H$9,"",INDEX($D$41:$L$639,$F$9+$A23,8+$K$7)) -> -2.679 | J23: 12 | K23: =IF($J23>$Q$9,"",INDEX($D$41:$K$639,$O$9+$J23,2)) -> 280 | L23: =IF($J23>$Q$9,"",INDEX($D$41:$K$639,$O$9+$J23,3)) -> 0.105 | M23: =IF($J23>$Q$9,"",INDEX($D$41:$K$639,$O$9+$J23,4)) -> 0.162 | N23: =IF($J23>$Q$9,"",INDEX($D$41:$K$639,$O$9+$J23,5)) -> 0.112 | O23: =IF($J23>$Q$9,"",INDEX($D$41:$K$639,$O$9+$J23,6)) -> 0 | P23: =IF($J23>$Q$9,"",INDEX($D$41:$K$639,$O$9+$J23,7)) -> 0.225 | Q23: =IF($J23>$Q$9,"",INDEX($D$41:$L$639,$O$9+$J23,8+$L$7)) -> -2.679 | S23: =IF($AH23="","",INDEX($N$42:$P$641,$AH23,1)) -> 1.156287162 | T23: =IF($AH23="","",INDEX($N$42:$P$641,$AH23,2)) -> 18.64253096 | U23: =IF($AH23="","",INDEX($N$42:$P$641,$AH23,3)) -> 0.3239370811 | V23: =IF(AH23="",NA(),INDEX($D$41:$F$640,$AH23,1)) -> DB-35 | X23: =IF(AH23="","",INDEX($D$41:$F$640,$AH23,3)) -> 35 % diphenylsiloxane | AF23: =IF(AH23="","",INDEX($P$41:$P$640,$AH23,1)) -> 0.008048257286 | AG23: 14 | AH23: 111 | AI23: 5 | AK23: 3) | AL23: Colin F. Poole ∗, Salwa K. Poole
A24: 13 | B24: =IF($A24>$H$9,"",INDEX($D$41:$K$639,$F$9+$A24,2)) -> 300 | C24: =IF($A24>$H$9,"",INDEX($D$41:$K$639,$F$9+$A24,3)) -> 0.101 | D24: =IF($A24>$H$9,"",INDEX($D$41:$K$639,$F$9+$A24,4)) -> 0.137 | E24: =IF($A24>$H$9,"",INDEX($D$41:$K$639,$F$9+$A24,5)) -> 0.102 | F24: =IF($A24>$H$9,"",INDEX($D$41:$K$639,$F$9+$A24,6)) -> 0 | G24: =IF($A24>$H$9,"",INDEX($D$41:$K$639,$F$9+$A24,7)) -> 0.21 | H24: =IF($A24>$H$9,"",INDEX($D$41:$L$639,$F$9+$A24,8+$K$7)) -> -2.645 | J24: 13 | K24: =IF($J24>$Q$9,"",INDEX($D$41:$K$639,$O$9+$J24,2)) -> 300 | L24: =IF($J24>$Q$9,"",INDEX($D$41:$K$639,$O$9+$J24,3)) -> 0.101 | M24: =IF($J24>$Q$9,"",INDEX($D$41:$K$639,$O$9+$J24,4)) -> 0.137 | N24: =IF($J24>$Q$9,"",INDEX($D$41:$K$639,$O$9+$J24,5)) -> 0.102 | O24: =IF($J24>$Q$9,"",INDEX($D$41:$K$639,$O$9+$J24,6)) -> 0 | P24: =IF($J24>$Q$9,"",INDEX($D$41:$K$639,$O$9+$J24,7)) -> 0.21 | Q24: =IF($J24>$Q$9,"",INDEX($D$41:$L$639,$O$9+$J24,8+$L$7)) -> -2.645 | S24: =IF($AH24="","",INDEX($N$42:$P$641,$AH24,1)) -> 1.324299437 | T24: =IF($AH24="","",INDEX($N$42:$P$641,$AH24,2)) -> 21.99417785 | U24: =IF($AH24="","",INDEX($N$42:$P$641,$AH24,3)) -> 0.3815156204 | V24: =IF(AH24="",NA(),INDEX($D$41:$F$640,$AH24,1)) -> Rxi-17 | X24: =IF(AH24="","",INDEX($D$41:$F$640,$AH24,3)) -> 50 % diphenylsiloxane | AF24: =IF(AH24="","",INDEX($P$41:$P$640,$AH24,1)) -> 0.008048257286 | AG24: 15 | AH24: 118 | AI24: 5 | AL24: Separation characteristics of wall-coated open-tubular
A25: 14 | B25: =IF($A25>$H$9,"",INDEX($D$41:$K$639,$F$9+$A25,2)) ->  | C25: =IF($A25>$H$9,"",INDEX($D$41:$K$639,$F$9+$A25,3)) ->  | D25: =IF($A25>$H$9,"",INDEX($D$41:$K$639,$F$9+$A25,4)) ->  | E25: =IF($A25>$H$9,"",INDEX($D$41:$K$639,$F$9+$A25,5)) ->  | F25: =IF($A25>$H$9,"",INDEX($D$41:$K$639,$F$9+$A25,6)) ->  | G25: =IF($A25>$H$9,"",INDEX($D$41:$K$639,$F$9+$A25,7)) ->  | H25: =IF($A25>$H$9,"",INDEX($D$41:$L$639,$F$9+$A25,8+$K$7)) ->  | J25: 14 | K25: =IF($J25>$Q$9,"",INDEX($D$41:$K$639,$O$9+$J25,2)) ->  | L25: =IF($J25>$Q$9,"",INDEX($D$41:$K$639,$O$9+$J25,3)) ->  | M25: =IF($J25>$Q$9,"",INDEX($D$41:$K$639,$O$9+$J25,4)) ->  | N25: =IF($J25>$Q$9,"",INDEX($D$41:$K$639,$O$9+$J25,5)) ->  | O25: =IF($J25>$Q$9,"",INDEX($D$41:$K$639,$O$9+$J25,6)) ->  | P25: =IF($J25>$Q$9,"",INDEX($D$41:$K$639,$O$9+$J25,7)) ->  | Q25: =IF($J25>$Q$9,"",INDEX($D$41:$L$639,$O$9+$J25,8+$L$7)) ->  | S25: =IF($AH25="","",INDEX($N$42:$P$641,$AH25,1)) -> 1.331199084 | T25: =IF($AH25="","",INDEX($N$42:$P$641,$AH25,2)) -> 22.25833115 | U25: =IF($AH25="","",INDEX($N$42:$P$641,$AH25,3)) -> 0.386040318 | V25: =IF(AH25="",NA(),INDEX($D$41:$F$640,$AH25,1)) -> Rxi-17-240 | X25: =IF(AH25="","",INDEX($D$41:$F$640,$AH25,3)) -> 50% poly(dimethyldiphenylsiloxane) Extended temperature range | AF25: =IF(AH25="","",INDEX($P$41:$P$640,$AH25,1)) -> 0 | AG25: 16 | AH25: 125 | AI25: 10 | AL25: columns for gas chromatography
A26: 15 | B26: =IF($A26>$H$9,"",INDEX($D$41:$K$639,$F$9+$A26,2)) ->  | C26: =IF($A26>$H$9,"",INDEX($D$41:$K$639,$F$9+$A26,3)) ->  | D26: =IF($A26>$H$9,"",INDEX($D$41:$K$639,$F$9+$A26,4)) ->  | E26: =IF($A26>$H$9,"",INDEX($D$41:$K$639,$F$9+$A26,5)) ->  | F26: =IF($A26>$H$9,"",INDEX($D$41:$K$639,$F$9+$A26,6)) ->  | G26: =IF($A26>$H$9,"",INDEX($D$41:$K$639,$F$9+$A26,7)) ->  | H26: =IF($A26>$H$9,"",INDEX($D$41:$L$639,$F$9+$A26,8+$K$7)) ->  | J26: 15 | K26: =IF($J26>$Q$9,"",INDEX($D$41:$K$639,$O$9+$J26,2)) ->  | L26: =IF($J26>$Q$9,"",INDEX($D$41:$K$639,$O$9+$J26,3)) ->  | M26: =IF($J26>$Q$9,"",INDEX($D$41:$K$639,$O$9+$J26,4)) ->  | N26: =IF($J26>$Q$9,"",INDEX($D$41:$K$639,$O$9+$J26,5)) ->  | O26: =IF($J26>$Q$9,"",INDEX($D$41:$K$639,$O$9+$J26,6)) ->  | P26: =IF($J26>$Q$9,"",INDEX($D$41:$K$639,$O$9+$J26,7)) ->  | Q26: =IF($J26>$Q$9,"",INDEX($D$41:$L$639,$O$9+$J26,8+$L$7)) ->  | S26: =IF($AH26="","",INDEX($N$42:$P$641,$AH26,1)) -> 1.362451467 | T26: =IF($AH26="","",INDEX($N$42:$P$641,$AH26,2)) -> 25.30031737 | U26: =IF($AH26="","",INDEX($N$42:$P$641,$AH26,3)) -> 0.4379927341 | V26: =IF(AH26="",NA(),INDEX($D$41:$F$640,$AH26,1)) -> Rtx-65 | X26: =IF(AH26="","",INDEX($D$41:$F$640,$AH26,3)) -> 65 % diphenylsiloxane | AF26: =IF(AH26="","",INDEX($P$41:$P$640,$AH26,1)) -> 0 | AG26: 17 | AH26: 136 | AI26: 5 | AL26: Journal of Chromatography A, 1184 (2008) 254–280
A27: 16 | B27: =IF($A27>$H$9,"",INDEX($D$41:$K$639,$F$9+$A27,2)) ->  | C27: =IF($A27>$H$9,"",INDEX($D$41:$K$639,$F$9+$A27,3)) ->  | D27: =IF($A27>$H$9,"",INDEX($D$41:$K$639,$F$9+$A27,4)) ->  | E27: =IF($A27>$H$9,"",INDEX($D$41:$K$639,$F$9+$A27,5)) ->  | F27: =IF($A27>$H$9,"",INDEX($D$41:$K$639,$F$9+$A27,6)) ->  | G27: =IF($A27>$H$9,"",INDEX($D$41:$K$639,$F$9+$A27,7)) ->  | H27: =IF($A27>$H$9,"",INDEX($D$41:$L$639,$F$9+$A27,8+$K$7)) ->  | J27: 16 | K27: =IF($J27>$Q$9,"",INDEX($D$41:$K$639,$O$9+$J27,2)) ->  | L27: =IF($J27>$Q$9,"",INDEX($D$41:$K$639,$O$9+$J27,3)) ->  | M27: =IF($J27>$Q$9,"",INDEX($D$41:$K$639,$O$9+$J27,4)) ->  | N27: =IF($J27>$Q$9,"",INDEX($D$41:$K$639,$O$9+$J27,5)) ->  | O27: =IF($J27>$Q$9,"",INDEX($D$41:$K$639,$O$9+$J27,6)) ->  | P27: =IF($J27>$Q$9,"",INDEX($D$41:$K$639,$O$9+$J27,7)) ->  | Q27: =IF($J27>$Q$9,"",INDEX($D$41:$L$639,$O$9+$J27,8+$L$7)) ->  | S27: =IF($AH27="","",INDEX($N$42:$P$641,$AH27,1)) -> 1.319258883 | T27: =IF($AH27="","",INDEX($N$42:$P$641,$AH27,2)) -> 23.78165727 | U27: =IF($AH27="","",INDEX($N$42:$P$641,$AH27,3)) -> 0.4120926781 | V27: =IF(AH27="",NA(),INDEX($D$41:$F$640,$AH27,1)) -> Rtx-50 | X27: =IF(AH27="","",INDEX($D$41:$F$640,$AH27,3)) -> (iii) Poly(methylphenylsiloxane) | AF27: =IF(AH27="","",INDEX($P$41:$P$640,$AH27,1)) -> 0.008048257286 | AG27: 18 | AH27: 143 | AI27: 5
A28: 17 | B28: =IF($A28>$H$9,"",INDEX($D$41:$K$639,$F$9+$A28,2)) ->  | C28: =IF($A28>$H$9,"",INDEX($D$41:$K$639,$F$9+$A28,3)) ->  | D28: =IF($A28>$H$9,"",INDEX($D$41:$K$639,$F$9+$A28,4)) ->  | E28: =IF($A28>$H$9,"",INDEX($D$41:$K$639,$F$9+$A28,5)) ->  | F28: =IF($A28>$H$9,"",INDEX($D$41:$K$639,$F$9+$A28,6)) ->  | G28: =IF($A28>$H$9,"",INDEX($D$41:$K$639,$F$9+$A28,7)) ->  | H28: =IF($A28>$H$9,"",INDEX($D$41:$L$639,$F$9+$A28,8+$K$7)) ->  | J28: 17 | K28: =IF($J28>$Q$9,"",INDEX($D$41:$K$639,$O$9+$J28,2)) ->  | L28: =IF($J28>$Q$9,"",INDEX($D$41:$K$639,$O$9+$J28,3)) ->  | M28: =IF($J28>$Q$9,"",INDEX($D$41:$K$639,$O$9+$J28,4)) ->  | N28: =IF($J28>$Q$9,"",INDEX($D$41:$K$639,$O$9+$J28,5)) ->  | O28: =IF($J28>$Q$9,"",INDEX($D$41:$K$639,$O$9+$J28,6)) ->  | P28: =IF($J28>$Q$9,"",INDEX($D$41:$K$639,$O$9+$J28,7)) ->  | Q28: =IF($J28>$Q$9,"",INDEX($D$41:$L$639,$O$9+$J28,8+$L$7)) ->  | S28: =IF($AH28="","",INDEX($N$42:$P$641,$AH28,1)) -> 1.299426412 | T28: =IF($AH28="","",INDEX($N$42:$P$641,$AH28,2)) -> 22.86887419 | U28: =IF($AH28="","",INDEX($N$42:$P$641,$AH28,3)) -> 0.3964904529 | V28: =IF(AH28="",NA(),INDEX($D$41:$F$640,$AH28,1)) -> Rxi-50 | X28: =IF(AH28="","",INDEX($D$41:$F$640,$AH28,3)) -> (iii) Poly(methylphenylsiloxane) | AF28: =IF(AH28="","",INDEX($P$41:$P$640,$AH28,1)) -> 0.008048257286 | AG28: 19 | AH28: 150 | AI28: 5
A29: 18 | B29: =IF($A29>$H$9,"",INDEX($D$41:$K$639,$F$9+$A29,2)) ->  | C29: =IF($A29>$H$9,"",INDEX($D$41:$K$639,$F$9+$A29,3)) ->  | D29: =IF($A29>$H$9,"",INDEX($D$41:$K$639,$F$9+$A29,4)) ->  | E29: =IF($A29>$H$9,"",INDEX($D$41:$K$639,$F$9+$A29,5)) ->  | F29: =IF($A29>$H$9,"",INDEX($D$41:$K$639,$F$9+$A29,6)) ->  | G29: =IF($A29>$H$9,"",INDEX($D$41:$K$639,$F$9+$A29,7)) ->  | H29: =IF($A29>$H$9,"",INDEX($D$41:$L$639,$F$9+$A29,8+$K$7)) ->  | J29: 18 | K29: =IF($J29>$Q$9,"",INDEX($D$41:$K$639,$O$9+$J29,2)) ->  | L29: =IF($J29>$Q$9,"",INDEX($D$41:$K$639,$O$9+$J29,3)) ->  | M29: =IF($J29>$Q$9,"",INDEX($D$41:$K$639,$O$9+$J29,4)) ->  | N29: =IF($J29>$Q$9,"",INDEX($D$41:$K$639,$O$9+$J29,5)) ->  | O29: =IF($J29>$Q$9,"",INDEX($D$41:$K$639,$O$9+$J29,6)) ->  | P29: =IF($J29>$Q$9,"",INDEX($D$41:$K$639,$O$9+$J29,7)) ->  | Q29: =IF($J29>$Q$9,"",INDEX($D$41:$L$639,$O$9+$J29,8+$L$7)) ->  | S29: =IF($AH29="","",INDEX($N$42:$P$641,$AH29,1)) -> 1.317180701 | T29: =IF($AH29="","",INDEX($N$42:$P$641,$AH29,2)) -> 23.74026458 | U29: =IF($AH29="","",INDEX($N$42:$P$641,$AH29,3)) -> 0.4113857104 | V29: =IF(AH29="",NA(),INDEX($D$41:$F$640,$AH29,1)) -> Rxi-50-240 | X29: =IF(AH29="","",INDEX($D$41:$F$640,$AH29,3)) -> 50% poly(dimethyldiphenylsiloxane) Extended temperature range | AF29: =IF(AH29="","",INDEX($P$41:$P$640,$AH29,1)) -> 0.006279419424 | AG29: 20 | AH29: 157 | AI29: 10
A30: 19 | B30: =IF($A30>$H$9,"",INDEX($D$41:$K$639,$F$9+$A30,2)) ->  | C30: =IF($A30>$H$9,"",INDEX($D$41:$K$639,$F$9+$A30,3)) ->  | D30: =IF($A30>$H$9,"",INDEX($D$41:$K$639,$F$9+$A30,4)) ->  | E30: =IF($A30>$H$9,"",INDEX($D$41:$K$639,$F$9+$A30,5)) ->  | F30: =IF($A30>$H$9,"",INDEX($D$41:$K$639,$F$9+$A30,6)) ->  | G30: =IF($A30>$H$9,"",INDEX($D$41:$K$639,$F$9+$A30,7)) ->  | H30: =IF($A30>$H$9,"",INDEX($D$41:$L$639,$F$9+$A30,8+$K$7)) ->  | J30: 19 | K30: =IF($J30>$Q$9,"",INDEX($D$41:$K$639,$O$9+$J30,2)) ->  | L30: =IF($J30>$Q$9,"",INDEX($D$41:$K$639,$O$9+$J30,3)) ->  | M30: =IF($J30>$Q$9,"",INDEX($D$41:$K$639,$O$9+$J30,4)) ->  | N30: =IF($J30>$Q$9,"",INDEX($D$41:$K$639,$O$9+$J30,5)) ->  | O30: =IF($J30>$Q$9,"",INDEX($D$41:$K$639,$O$9+$J30,6)) ->  | P30: =IF($J30>$Q$9,"",INDEX($D$41:$K$639,$O$9+$J30,7)) ->  | Q30: =IF($J30>$Q$9,"",INDEX($D$41:$L$639,$O$9+$J30,8+$L$7)) ->  | S30: =IF($AH30="","",INDEX($N$42:$P$641,$AH30,1)) -> 1.241003626 | T30: =IF($AH30="","",INDEX($N$42:$P$641,$AH30,2)) -> 22.47636982 | U30: =IF($AH30="","",INDEX($N$42:$P$641,$AH30,3)) -> 0.3897735703 | V30: =IF(AH30="",NA(),INDEX($D$41:$F$640,$AH30,1)) -> HP-50+ | X30: =IF(AH30="","",INDEX($D$41:$F$640,$AH30,3)) -> (iii) Poly(methylphenylsiloxane) | AF30: =IF(AH30="","",INDEX($P$41:$P$640,$AH30,1)) -> 0 | AG30: 21 | AH30: 168 | AI30: 5
A31: 20 | B31: =IF($A31>$H$9,"",INDEX($D$41:$K$639,$F$9+$A31,2)) ->  | C31: =IF($A31>$H$9,"",INDEX($D$41:$K$639,$F$9+$A31,3)) ->  | D31: =IF($A31>$H$9,"",INDEX($D$41:$K$639,$F$9+$A31,4)) ->  | E31: =IF($A31>$H$9,"",INDEX($D$41:$K$639,$F$9+$A31,5)) ->  | F31: =IF($A31>$H$9,"",INDEX($D$41:$K$639,$F$9+$A31,6)) ->  | G31: =IF($A31>$H$9,"",INDEX($D$41:$K$639,$F$9+$A31,7)) ->  | H31: =IF($A31>$H$9,"",INDEX($D$41:$L$639,$F$9+$A31,8+$K$7)) ->  | J31: 20 | K31: =IF($J31>$Q$9,"",INDEX($D$41:$K$639,$O$9+$J31,2)) ->  | L31: =IF($J31>$Q$9,"",INDEX($D$41:$K$639,$O$9+$J31,3)) ->  | M31: =IF($J31>$Q$9,"",INDEX($D$41:$K$639,$O$9+$J31,4)) ->  | N31: =IF($J31>$Q$9,"",INDEX($D$41:$K$639,$O$9+$J31,5)) ->  | O31: =IF($J31>$Q$9,"",INDEX($D$41:$K$639,$O$9+$J31,6)) ->  | P31: =IF($J31>$Q$9,"",INDEX($D$41:$K$639,$O$9+$J31,7)) ->  | Q31: =IF($J31>$Q$9,"",INDEX($D$41:$L$639,$O$9+$J31,8+$L$7)) ->  | S31: =IF($AH31="","",INDEX($N$42:$P$641,$AH31,1)) -> 0.9224131395 | T31: =IF($AH31="","",INDEX($N$42:$P$641,$AH31,2)) -> 0.6689785746 | U31: =IF($AH31="","",INDEX($N$42:$P$641,$AH31,3)) -> 0.01158984883 | V31: =IF(AH31="",NA(),INDEX($D$41:$F$640,$AH31,1)) -> DB-5ms | X31: =IF(AH31="","",INDEX($D$41:$F$640,$AH31,3)) -> 5 % 1,4-bis(dimethylsiloxane)phenylene | AF31: =IF(AH31="","",INDEX($P$41:$P$640,$AH31,1)) -> 0.01619406868 | AG31: 22 | AH31: 175 | AI31: 5
S32: =IF($AH32="","",INDEX($N$42:$P$641,$AH32,1)) -> 0.9207230854 | T32: =IF($AH32="","",INDEX($N$42:$P$641,$AH32,2)) -> 0.9424154449 | U32: =IF($AH32="","",INDEX($N$42:$P$641,$AH32,3)) -> 0.01638715682 | V32: =IF(AH32="",NA(),INDEX($D$41:$F$640,$AH32,1)) -> ZB-5MS | X32: =IF(AH32="","",INDEX($D$41:$F$640,$AH32,3)) -> (iv) Silarylene-siloxane and similar copolymers | AF32: =IF(AH32="","",INDEX($P$41:$P$640,$AH32,1)) -> 0.008048257286 | AG32: 23 | AH32: 182 | AI32: 5
S33: =IF($AH33="","",INDEX($N$42:$P$641,$AH33,1)) -> 0.9725785315 | T33: =IF($AH33="","",INDEX($N$42:$P$641,$AH33,2)) -> 2.268475888 | U33: =IF($AH33="","",INDEX($N$42:$P$641,$AH33,3)) -> 0.03956452023 | V33: =IF(AH33="",NA(),INDEX($D$41:$F$640,$AH33,1)) -> HP-5TA | X33: =IF(AH33="","",INDEX($D$41:$F$640,$AH33,3)) -> (iv) Silarylene-siloxane and similar copolymers | AF33: =IF(AH33="","",INDEX($P$41:$P$640,$AH33,1)) -> 0.00160192205 | AG33: 24 | AH33: 189 | AI33: 5
S34: =IF($AH34="","",INDEX($N$42:$P$641,$AH34,1)) -> 1.042357904 | T34: =IF($AH34="","",INDEX($N$42:$P$641,$AH34,2)) -> 8.076727622 | U34: =IF($AH34="","",INDEX($N$42:$P$641,$AH34,3)) -> 0.1408417036 | V34: =IF(AH34="",NA(),INDEX($D$41:$F$640,$AH34,1)) -> Rxi-5Sil MS | X34: =IF(AH34="","",INDEX($D$41:$F$640,$AH34,3)) -> (iv) Silarylene-siloxane and similar copolymers | AF34: =IF(AH34="","",INDEX($P$41:$P$640,$AH34,1)) -> 0.008048257286 | AG34: 25 | AH34: 196 | AI34: 13
S35: =IF($AH35="","",INDEX($N$42:$P$641,$AH35,1)) -> 1.246414458 | T35: =IF($AH35="","",INDEX($N$42:$P$641,$AH35,2)) -> 18.8725435 | U35: =IF($AH35="","",INDEX($N$42:$P$641,$AH35,3)) -> 0.3278979308 | V35: =IF(AH35="",NA(),INDEX($D$41:$F$640,$AH35,1)) -> DB-35ms | X35: =IF(AH35="","",INDEX($D$41:$F$640,$AH35,3)) -> 35 % 1,4-bis(dimethylsiloxane)phenylene | AF35: =IF(AH35="","",INDEX($P$41:$P$640,$AH35,1)) -> 0.008048257286 | AG35: 26 | AH35: 211 | AI35: 5
S36: =IF($AH36="","",INDEX($N$42:$P$641,$AH36,1)) -> 1.344338499 | T36: =IF($AH36="","",INDEX($N$42:$P$641,$AH36,2)) -> 23.2260907 | U36: =IF($AH36="","",INDEX($N$42:$P$641,$AH36,3)) -> 0.4025994158 | V36: =IF(AH36="",NA(),INDEX($D$41:$F$640,$AH36,1)) -> DB-17ms | X36: =IF(AH36="","",INDEX($D$41:$F$640,$AH36,3)) -> 50 % 1,4-bis(dimethylsiloxane)phenylene | AF36: =IF(AH36="","",INDEX($P$41:$P$640,$AH36,1)) -> 0.00401203208 | AG36: 27 | AH36: 218 | AI36: 5
S37: =IF($AH37="","",INDEX($N$42:$P$641,$AH37,1)) -> 1.031973837 | T37: =IF($AH37="","",INDEX($N$42:$P$641,$AH37,2)) -> 13.82472367 | U37: =IF($AH37="","",INDEX($N$42:$P$641,$AH37,3)) -> 0.2406979016 | V37: =IF(AH37="",NA(),INDEX($D$41:$F$640,$AH37,1)) -> Stx-500 | X37: =IF(AH37="","",INDEX($D$41:$F$640,$AH37,3)) -> Carborane-siloxane copolymer containing 5 % phenyl | AF37: =IF(AH37="","",INDEX($P$41:$P$640,$AH37,1)) -> 0.002404326922 | AG37: 28 | AH37: 225 | AI37: 5
A38: Column type | D38: Column | F38: Stationary phase | N38: d, mm | O38: h, µm | P38: Beta | S38: =IF($AH38="","",INDEX($N$42:$P$641,$AH38,1)) -> 1.580354707 | T38: =IF($AH38="","",INDEX($N$42:$P$641,$AH38,2)) -> 35.64839608 | U38: =IF($AH38="","",INDEX($N$42:$P$641,$AH38,3)) -> 0.6121931579 | V38: =IF(AH38="",NA(),INDEX($D$41:$F$640,$AH38,1)) -> DB-200 | X38: =IF(AH38="","",INDEX($D$41:$F$640,$AH38,3)) -> 35 % 3,3,3-trifluoropropylmethylsiloxane | AF38: =IF(AH38="","",INDEX($P$41:$P$640,$AH38,1)) -> 0.008048257286 | AG38: 29 | AH38: 232 | AI38: 5
E39: T | F39: e | G39: s | H39: a | I39: b | J39: l | K39: c(mean) | L39: c(litt) | M39: Ref | N39: Length | O39: q | P39: d | S39: =IF($AH39="","",INDEX($N$42:$P$641,$AH39,1)) -> 1.673360989 | T39: =IF($AH39="","",INDEX($N$42:$P$641,$AH39,2)) -> 39.63733471 | U39: =IF($AH39="","",INDEX($N$42:$P$641,$AH39,3)) -> 0.6780874204 | V39: =IF(AH39="",NA(),INDEX($D$41:$F$640,$AH39,1)) -> DB-210 | X39: =IF(AH39="","",INDEX($D$41:$F$640,$AH39,3)) -> 50 % 3,3,3-trifluoropropylmethylsiloxane | AF39: =IF(AH39="","",INDEX($P$41:$P$640,$AH39,1)) -> 0.003132339507 | AG39: 30 | AH39: 239 | AI39: 6
A40: Poly(dialkylsiloxane) | S40: =IF($AH40="","",INDEX($N$42:$P$641,$AH40,1)) -> 1.011716363 | T40: =IF($AH40="","",INDEX($N$42:$P$641,$AH40,2)) -> 5.768947616 | U40: =IF($AH40="","",INDEX($N$42:$P$641,$AH40,3)) -> 0.1006346677 | V40: =IF(AH40="",NA(),INDEX($D$41:$F$640,$AH40,1)) -> DB-XLB | X40: =IF(AH40="","",INDEX($D$41:$F$640,$AH40,3)) -> Proprietary (similar to DB-5 ms but more dipolar/polarizable) | AF40: =IF(AH40="","",INDEX($P$41:$P$640,$AH40,1)) -> 0.008048257286 | AG40: 31 | AH40: 247 | AI40: 5
D41: DB-1 | F41: Poly(dimethylsiloxane) | N41: 0.32 | O41: 0.25 | P41: 0.003132339507 | S41: =IF($AH41="","",INDEX($N$42:$P$641,$AH41,1)) -> 0.8463450833 | T41: =IF($AH41="","",INDEX($N$42:$P$641,$AH41,2)) -> 6.967794261 | U41: =IF($AH41="","",INDEX($N$42:$P$641,$AH41,3)) -> 0.1215277982 | V41: =IF(AH41="",NA(),INDEX($D$41:$F$640,$AH41,1)) -> DB-VRX | X41: =IF(AH41="","",INDEX($D$41:$F$640,$AH41,3)) -> Proprietary (similar to DB-5) | AF41: =IF(AH41="","",INDEX($P$41:$P$640,$AH41,1)) -> 0.008048257286 | AG41: 32 | AH41: 254 | AI41: 5
E42: 60 | F42: -0.077 | G42: 0.268 | H42: 0.295 | I42: 0 | J42: 0.683 | K42: -1.9894 | L42: -1.879 | M42: 1) | N42: =SQRT(F42^2+G42^2+H42^2+I42^2+J42^2) -> 0.7945231274 | O42: =ACOS(($C$6*F42+$D$6*G42+$E$6*H42+$F$6*I42+$G$6*J42)/($I$7*N42)-0.000001)*180/PI() -> 9.432023273 | P42: =SQRT(($C$7-F42/N42)^2+($D$7-G42/N42)^2+($E$7-H42/N42)^2+($F$7-I42/N42)^2+($G$7-J42/N42)^2) -> 0.1644279614 | S42: =IF($AH42="","",INDEX($N$42:$P$641,$AH42,1)) -> 1.045088513 | T42: =IF($AH42="","",INDEX($N$42:$P$641,$AH42,2)) -> 6.890102819 | U42: =IF($AH42="","",INDEX($N$42:$P$641,$AH42,3)) -> 0.1201742122 | V42: =IF(AH42="",NA(),INDEX($D$41:$F$640,$AH42,1)) -> Rtx-440 | X42: =IF(AH42="","",INDEX($D$41:$F$640,$AH42,3)) -> Proprietary (for non-hydrogen-bond acids similar to DB-XLB) | AF42: =IF(AH42="","",INDEX($P$41:$P$640,$AH42,1)) -> 0.008048257286 | AG42: 33 | AH42: 261 | AI42: 13
E43: 80 | F43: -0.045 | G43: 0.257 | H43: 0.287 | I43: 0 | J43: 0.617 | K43: -1.9894 | L43: -1.958 | S43: =IF($AH43="","",INDEX($N$42:$P$641,$AH43,1)) -> 1.354141425 | T43: =IF($AH43="","",INDEX($N$42:$P$641,$AH43,2)) -> 21.24821461 | U43: =IF($AH43="","",INDEX($N$42:$P$641,$AH43,3)) -> 0.3687271004 | V43: =IF(AH43="",NA(),INDEX($D$41:$F$640,$AH43,1)) -> Rtx-VGC | X43: =IF(AH43="","",INDEX($D$41:$F$640,$AH43,3)) -> Proprietary (for non-hydrogen bond acids similar to DB-1701) | AF43: =IF(AH43="","",INDEX($P$41:$P$640,$AH43,1)) -> 0.02278201946 | AG43: 34 | AH43: 276 | AI43: 5
E44: 100 | F44: -0.023 | G44: 0.237 | H44: 0.227 | I44: 0 | J44: 0.555 | K44: -1.9894 | L44: -1.998 | S44: =IF($AH44="","",INDEX($N$42:$P$641,$AH44,1)) -> 1.021927101 | T44: =IF($AH44="","",INDEX($N$42:$P$641,$AH44,2)) -> 9.142006518 | U44: =IF($AH44="","",INDEX($N$42:$P$641,$AH44,3)) -> 0.1593826372 | V44: =IF(AH44="",NA(),INDEX($D$41:$F$640,$AH44,1)) -> Rtx-Volatiles | X44: =IF(AH44="","",INDEX($D$41:$F$640,$AH44,3)) -> Poly(dimethyldiphenylsiloxane) estimated to contain ÷ 15-16 % diphenylsiloxane monomer | AF44: =IF(AH44="","",INDEX($P$41:$P$640,$AH44,1)) -> 0.008048257286 | AG44: 35 | AH44: 283 | AI44: 5
E45: 120 | F45: 0 | G45: 0.217 | H45: 0.182 | I45: 0 | J45: 0.502 | K45: -1.9894 | L45: -2.038 | S45: =IF($AH45="","",INDEX($N$42:$P$641,$AH45,1)) -> 1.330603622 | T45: =IF($AH45="","",INDEX($N$42:$P$641,$AH45,2)) -> 22.99974682 | U45: =IF($AH45="","",INDEX($N$42:$P$641,$AH45,3)) -> 0.3987290307 | V45: =IF(AH45="",NA(),INDEX($D$41:$F$640,$AH45,1)) -> DB-608 | X45: =IF(AH45="","",INDEX($D$41:$F$640,$AH45,3)) -> Poly(dimethyldiphenylsiloxane) estimated to contain ÷ 50-65 % diphenylsiloxane monomer | AF45: =IF(AH45="","",INDEX($P$41:$P$640,$AH45,1)) -> 0.00401203208 | AG45: 36 | AH45: 290 | AI45: 5
E46: 140 | F46: 0.018 | G46: 0.208 | H46: 0.143 | I46: 0 | J46: 0.455 | K46: -1.9894 | L46: -2.074 | S46: =IF($AH46="","",INDEX($N$42:$P$641,$AH46,1)) -> 0.8425669113 | T46: =IF($AH46="","",INDEX($N$42:$P$641,$AH46,2)) -> 2.220082152 | U46: =IF($AH46="","",INDEX($N$42:$P$641,$AH46,3)) -> 0.03871950112 | V46: =IF(AH46="",NA(),INDEX($D$41:$F$640,$AH46,1)) -> Rtx-TNT | X46: =IF(AH46="","",INDEX($D$41:$F$640,$AH46,3)) -> Poly(dimethyldiphenylsiloxane) estimated to contain 5 % | AF46: =IF(AH46="","",INDEX($P$41:$P$640,$AH46,1)) -> 0.01141760493 | AG46: 37 | AH46: 297 | AI46: 9
S47: =IF($AH47="","",INDEX($N$42:$P$641,$AH47,1)) -> 1.389925538 | T47: =IF($AH47="","",INDEX($N$42:$P$641,$AH47,2)) -> 31.28520753 | U47: =IF($AH47="","",INDEX($N$42:$P$641,$AH47,3)) -> 0.5392700072 | V47: =IF(AH47="",NA(),INDEX($D$41:$F$640,$AH47,1)) -> Rtx-TNT2 | X47: =IF(AH47="","",INDEX($D$41:$F$640,$AH47,3)) -> Poly(dimethylmethyltrifluoropropylsiloxane)-type phase | AF47: =IF(AH47="","",INDEX($P$41:$P$640,$AH47,1)) -> 0.01141760493 | AG47: 38 | AH47: 308 | AI47: 8
D48: SolGel-1 | F48: Poly(dimethylsiloxane) | N48: 0.32 | O48: 1 | P48: 0.01261817175 | S48: =IF($AH48="","",INDEX($N$42:$P$641,$AH48,1)) -> 1.238558033 | T48: =IF($AH48="","",INDEX($N$42:$P$641,$AH48,2)) -> 25.77997111 | U48: =IF($AH48="","",INDEX($N$42:$P$641,$AH48,3)) -> 0.4461572364 | V48: =IF(AH48="",NA(),INDEX($D$41:$F$640,$AH48,1)) -> Rtx-CLPesticides | X48: =IF(AH48="","",INDEX($D$41:$F$640,$AH48,3)) -> Poly(dimethylmethyltrifluoropropylsiloxane)-type phase | AF48: =IF(AH48="","",INDEX($P$41:$P$640,$AH48,1)) -> 0.00401203208 | AG48: 39 | AH48: 318 | AI48: 5
E49: 60 | F49: -0.11 | G49: 0.348 | H49: 0.411 | I49: 0 | J49: 0.703 | K49: -2.5436 | L49: -2.369 | M49: 1) | N49: =SQRT(F49^2+G49^2+H49^2+I49^2+J49^2) -> 0.8923754815 | O49: =ACOS(($C$6*F49+$D$6*G49+$E$6*H49+$F$6*I49+$G$6*J49)/($I$7*N49)-0.000001)*180/PI() -> 5.61159332 | P49: =SQRT(($C$7-F49/N49)^2+($D$7-G49/N49)^2+($E$7-H49/N49)^2+($F$7-I49/N49)^2+($G$7-J49/N49)^2) -> 0.09789142426 | S49: =IF($AH49="","",INDEX($N$42:$P$641,$AH49,1)) -> 1.441887305 | T49: =IF($AH49="","",INDEX($N$42:$P$641,$AH49,2)) -> 31.01894387 | U49: =IF($AH49="","",INDEX($N$42:$P$641,$AH49,3)) -> 0.5347934829 | V49: =IF(AH49="",NA(),INDEX($D$41:$F$640,$AH49,1)) -> Rtx-OPPesticides | X49: =IF(AH49="","",INDEX($D$41:$F$640,$AH49,3)) -> Poly(dimethylmethyltrifluoropropylsiloxane)-type phase | AF49: =IF(AH49="","",INDEX($P$41:$P$640,$AH49,1)) -> 0.006279419424 | AG49: 40 | AH49: 325 | AI49: 13
E50: 80 | F50: -0.067 | G50: 0.311 | H50: 0.335 | I50: 0 | J50: 0.644 | K50: -2.5436 | L50: -2.481 | S50: =IF($AH50="","",INDEX($N$42:$P$641,$AH50,1)) -> 1.038489769 | T50: =IF($AH50="","",INDEX($N$42:$P$641,$AH50,2)) -> 17.04804813 | U50: =IF($AH50="","",INDEX($N$42:$P$641,$AH50,3)) -> 0.2964448098 | V50: =IF(AH50="",NA(),INDEX($D$41:$F$640,$AH50,1)) -> Rtx-Dioxin | X50: =IF(AH50="","",INDEX($D$41:$F$640,$AH50,3)) -> Similar to Stx-500 (carborane-dimethylsiloxane with 5 % phenyl) | AF50: =IF(AH50="","",INDEX($P$41:$P$640,$AH50,1)) -> 0.002404326922 | AG50: 41 | AH50: 340 | AI50: 5
E51: 100 | F51: -0.026 | G51: 0.272 | H51: 0.279 | I51: 0 | J51: 0.595 | K51: -2.5436 | L51: -2.602 | S51: =IF($AH51="","",INDEX($N$42:$P$641,$AH51,1)) -> 1.051351511 | T51: =IF($AH51="","",INDEX($N$42:$P$641,$AH51,2)) -> 6.243231761 | U51: =IF($AH51="","",INDEX($N$42:$P$641,$AH51,3)) -> 0.1089018685 | V51: =IF(AH51="",NA(),INDEX($D$41:$F$640,$AH51,1)) -> DB-Dioxin2 | X51: =IF(AH51="","",INDEX($D$41:$F$640,$AH51,3)) -> Similar to DB-XLB and Rtx-Volatiles | AF51: =IF(AH51="","",INDEX($P$41:$P$640,$AH51,1)) -> 0.00401203208 | AG51: 42 | AH51: 347 | AI51: 5
E52: 120 | F52: 0 | G52: 0.229 | H52: 0.224 | I52: 0 | J52: 0.536 | K52: -2.5436 | L52: -2.611 | S52: =IF($AH52="","",INDEX($N$42:$P$641,$AH52,1)) -> 2.648233751 | T52: =IF($AH52="","",INDEX($N$42:$P$641,$AH52,2)) -> 38.70395734 | U52: =IF($AH52="","",INDEX($N$42:$P$641,$AH52,3)) -> 0.6627394347 | V52: =IF(AH52="",NA(),INDEX($D$41:$F$640,$AH52,1)) -> DB-23 | X52: =IF(AH52="","",INDEX($D$41:$F$640,$AH52,3)) -> 100 % 3-cyanopropylmethylsiloxane | AF52: =IF(AH52="","",INDEX($P$41:$P$640,$AH52,1)) -> 0.00401203208 | AG52: 43 | AH52: 354 | AI52: 5
E53: 140 | F53: 0 | G53: 0.232 | H53: 0.187 | I53: 0 | J53: 0.486 | K53: -2.5436 | L53: -2.655 | S53: =IF($AH53="","",INDEX($N$42:$P$641,$AH53,1)) -> 1.135976232 | T53: =IF($AH53="","",INDEX($N$42:$P$641,$AH53,2)) -> 13.65896446 | U53: =IF($AH53="","",INDEX($N$42:$P$641,$AH53,3)) -> 0.2378255852 | V53: =IF(AH53="",NA(),INDEX($D$41:$F$640,$AH53,1)) -> DB-1301 | X53: =IF(AH53="","",INDEX($D$41:$F$640,$AH53,3)) -> 6 % 3-cyanopropylphenylsiloxane | AF53: =IF(AH53="","",INDEX($P$41:$P$640,$AH53,1)) -> 0.01619406868 | AG53: 44 | AH53: 361 | AI53: 5
S54: =IF($AH54="","",INDEX($N$42:$P$641,$AH54,1)) -> 1.154275097 | T54: =IF($AH54="","",INDEX($N$42:$P$641,$AH54,2)) -> 14.68550979 | U54: =IF($AH54="","",INDEX($N$42:$P$641,$AH54,3)) -> 0.2556055645 | V54: =IF(AH54="",NA(),INDEX($D$41:$F$640,$AH54,1)) -> DB-624 | X54: =IF(AH54="","",INDEX($D$41:$F$640,$AH54,3)) -> 6 % 3-cyanopropylphenylsiloxane | AF54: =IF(AH54="","",INDEX($P$41:$P$640,$AH54,1)) -> 0.02278201946 | AG54: 45 | AH54: 368 | AI54: 5
D55: SPB-Octyl | F55: Poly(methyloctylsiloxane) | N55: 0.32 | O55: 1 | P55: 0.01261817175 | S55: =IF($AH55="","",INDEX($N$42:$P$641,$AH55,1)) -> 1.504482968 | T55: =IF($AH55="","",INDEX($N$42:$P$641,$AH55,2)) -> 23.39446835 | U55: =IF($AH55="","",INDEX($N$42:$P$641,$AH55,3)) -> 0.4054775845 | V55: =IF(AH55="",NA(),INDEX($D$41:$F$640,$AH55,1)) -> DB-1701 | X55: =IF(AH55="","",INDEX($D$41:$F$640,$AH55,3)) -> 14 % 3-cyanopropylphenylsiloxane | AF55: =IF(AH55="","",INDEX($P$41:$P$640,$AH55,1)) -> 0.003132339507 | AG55: 46 | AH55: 375 | AI55: 11
E56: 60 | F56: 0.117 | G56: 0.094 | H56: 0.071 | I56: 0 | J56: 0.764 | K56: -2.319272727 | L56: -2.548 | M56: 1) | N56: =SQRT(F56^2+G56^2+H56^2+I56^2+J56^2) -> 0.7818324629 | O56: =ACOS(($C$6*F56+$D$6*G56+$E$6*H56+$F$6*I56+$G$6*J56)/($I$7*N56)-0.000001)*180/PI() -> 33.62502226 | P56: =SQRT(($C$7-F56/N56)^2+($D$7-G56/N56)^2+($E$7-H56/N56)^2+($F$7-I56/N56)^2+($G$7-J56/N56)^2) -> 0.5784799329 | S56: =IF($AH56="","",INDEX($N$42:$P$641,$AH56,1)) -> 2.333668571 | T56: =IF($AH56="","",INDEX($N$42:$P$641,$AH56,2)) -> 35.50021385 | U56: =IF($AH56="","",INDEX($N$42:$P$641,$AH56,3)) -> 0.6097305127 | V56: =IF(AH56="",NA(),INDEX($D$41:$F$640,$AH56,1)) -> DB-225 | X56: =IF(AH56="","",INDEX($D$41:$F$640,$AH56,3)) -> 50 % 3-cyanopropylphenylsiloxane | AF56: =IF(AH56="","",INDEX($P$41:$P$640,$AH56,1)) -> 0.003132339507 | AG56: 47 | AH56: 388 | AI56: 10
E57: 80 | F57: 0.151 | G57: 0.087 | H57: 0 | I57: 0 | J57: 0.698 | K57: -2.319272727 | L57: -2.639 | S57: =IF($AH57="","",INDEX($N$42:$P$641,$AH57,1)) -> 3.047202816 | T57: =IF($AH57="","",INDEX($N$42:$P$641,$AH57,2)) -> 42.17157035 | U57: =IF($AH57="","",INDEX($N$42:$P$641,$AH57,3)) -> 0.7195292812 | V57: =IF(AH57="",NA(),INDEX($D$41:$F$640,$AH57,1)) -> SP-2340 | X57: =IF(AH57="","",INDEX($D$41:$F$640,$AH57,3)) -> (viii) Poly(biscyanopropylsiloxane) | AF57: =IF(AH57="","",INDEX($P$41:$P$640,$AH57,1)) -> 0.003207696417 | AG57: 48 | AH57: 400 | AI57: 5
E58: 100 | F58: 0.184 | G58: 0.087 | H58: 0 | I58: 0 | J58: 0.637 | K58: -2.319272727 | L58: -2.726 | S58: =IF($AH58="","",INDEX($N$42:$P$641,$AH58,1)) -> 3.002968365 | T58: =IF($AH58="","",INDEX($N$42:$P$641,$AH58,2)) -> 41.43775463 | U58: =IF($AH58="","",INDEX($N$42:$P$641,$AH58,3)) -> 0.7075646397 | V58: =IF(AH58="",NA(),INDEX($D$41:$F$640,$AH58,1)) -> HP-88 | X58: =IF(AH58="","",INDEX($D$41:$F$640,$AH58,3)) -> 88 % biscyanopropylsiloxane | AF58: =IF(AH58="","",INDEX($P$41:$P$640,$AH58,1)) -> 0.003207696417 | AG58: 49 | AH58: 407 | AI58: 10
E59: 120 | F59: 0.191 | G59: 0.071 | H59: 0 | I59: 0 | J59: 0.586 | K59: -2.319272727 | L59: -2.79 | S59: =IF($AH59="","",INDEX($N$42:$P$641,$AH59,1)) -> 3.172677576 | T59: =IF($AH59="","",INDEX($N$42:$P$641,$AH59,2)) -> 42.49687559 | U59: =IF($AH59="","",INDEX($N$42:$P$641,$AH59,3)) -> 0.724823873 | V59: =IF(AH59="",NA(),INDEX($D$41:$F$640,$AH59,1)) -> BPX-90 | X59: =IF(AH59="","",INDEX($D$41:$F$640,$AH59,3)) -> 90 % biscyanopropylsiloxane | AF59: =IF(AH59="","",INDEX($P$41:$P$640,$AH59,1)) -> 0.00401203208 | AG59: 50 | AH59: 419 | AI59: 5
E60: 140 | F60: 0.199 | G60: 0.083 | H60: 0 | I60: 0 | J60: 0.525 | K60: -2.319272727 | L60: -2.785 | S60: =IF($AH60="","",INDEX($N$42:$P$641,$AH60,1)) -> 3.184014761 | T60: =IF($AH60="","",INDEX($N$42:$P$641,$AH60,2)) -> 43.19122278 | U60: =IF($AH60="","",INDEX($N$42:$P$641,$AH60,3)) -> 0.736105311 | V60: =IF(AH60="",NA(),INDEX($D$41:$F$640,$AH60,1)) -> SolGel-Wax | X60: =IF(AH60="","",INDEX($D$41:$F$640,$AH60,3)) -> (x) Poly(ethylene glycol) | AF60: =IF(AH60="","",INDEX($P$41:$P$640,$AH60,1)) -> 0.00401203208 | AG60: 51 | AH60: 426 | AI60: 5
E61: 160 | F61: 0.17 | G61: 0.065 | H61: 0 | I61: 0 | J61: 0.433 | K61: -2.319272727 | L61: -1.995 | S61: =IF($AH61="","",INDEX($N$42:$P$641,$AH61,1)) -> 3.217490482 | T61: =IF($AH61="","",INDEX($N$42:$P$641,$AH61,2)) -> 43.66687964 | U61: =IF($AH61="","",INDEX($N$42:$P$641,$AH61,3)) -> 0.7438179937 | V61: =IF(AH61="",NA(),INDEX($D$41:$F$640,$AH61,1)) -> HP-INNOWax | X61: =IF(AH61="","",INDEX($D$41:$F$640,$AH61,3)) -> (x) Poly(ethylene glycol) | AF61: =IF(AH61="","",INDEX($P$41:$P$640,$AH61,1)) -> 0.008048257286 | AG61: 52 | AH61: 433 | AI61: 9
E62: 180 | F62: 0.184 | G62: 0.056 | H62: 0 | I62: 0 | J62: 0.389 | K62: -2.319272727 | L62: -1.987 | S62: =IF($AH62="","",INDEX($N$42:$P$641,$AH62,1)) -> 3.20518221 | T62: =IF($AH62="","",INDEX($N$42:$P$641,$AH62,2)) -> 43.89264495 | U62: =IF($AH62="","",INDEX($N$42:$P$641,$AH62,3)) -> 0.7474742568 | V62: =IF(AH62="",NA(),INDEX($D$41:$F$640,$AH62,1)) -> DB-WAXetr | X62: =IF(AH62="","",INDEX($D$41:$F$640,$AH62,3)) -> (x) Poly(ethylene glycol) | AF62: =IF(AH62="","",INDEX($P$41:$P$640,$AH62,1)) -> 0.008048257286 | AG62: 53 | AH62: 444 | AI62: 5
E63: 200 | F63: 0.17 | G63: 0.057 | H63: 0 | I63: 0 | J63: 0.35 | K63: -2.319272727 | L63: -1.959 | S63: =IF($AH63="","",INDEX($N$42:$P$641,$AH63,1)) -> 3.384718748 | T63: =IF($AH63="","",INDEX($N$42:$P$641,$AH63,2)) -> 43.99598611 | U63: =IF($AH63="","",INDEX($N$42:$P$641,$AH63,3)) -> 0.7491468971 | V63: =IF(AH63="",NA(),INDEX($D$41:$F$640,$AH63,1)) -> EC-Wax | X63: =IF(AH63="","",INDEX($D$41:$F$640,$AH63,3)) -> (x) Poly(ethylene glycol) | AF63: =IF(AH63="","",INDEX($P$41:$P$640,$AH63,1)) -> 0.00401203208 | AG63: 54 | AH63: 451 | AI63: 5
E64: 220 | F64: 0.182 | G64: 0.049 | H64: 0 | I64: 0 | J64: 0.344 | K64: -2.319272727 | L64: -2.085 | S64: =IF($AH64="","",INDEX($N$42:$P$641,$AH64,1)) -> 3.283612949 | T64: =IF($AH64="","",INDEX($N$42:$P$641,$AH64,2)) -> 43.78835257 | U64: =IF($AH64="","",INDEX($N$42:$P$641,$AH64,3)) -> 0.7457856042 | V64: =IF(AH64="",NA(),INDEX($D$41:$F$640,$AH64,1)) -> HP-20M | X64: =IF(AH64="","",INDEX($D$41:$F$640,$AH64,3)) -> (x) Poly(ethylene glycol) | AF64: =IF(AH64="","",INDEX($P$41:$P$640,$AH64,1)) -> 0.003760573304 | AG64: 55 | AH64: 458 | AI64: 5
E65: 240 | F65: 0.185 | G65: 0.047 | H65: 0 | I65: 0 | J65: 0.291 | K65: -2.319272727 | L65: -1.989 | S65: =IF($AH65="","",INDEX($N$42:$P$641,$AH65,1)) -> 3.354606087 | T65: =IF($AH65="","",INDEX($N$42:$P$641,$AH65,2)) -> 44.73470314 | U65: =IF($AH65="","",INDEX($N$42:$P$641,$AH65,3)) -> 0.7610856607 | V65: =IF(AH65="",NA(),INDEX($D$41:$F$640,$AH65,1)) -> AT-Wax | X65: =IF(AH65="","",INDEX($D$41:$F$640,$AH65,3)) -> (x) Poly(ethylene glycol) | AF65: =IF(AH65="","",INDEX($P$41:$P$640,$AH65,1)) -> 0.00401203208 | AG65: 56 | AH65: 465 | AI65: 5
E66: 260 | F66: 0.197 | G66: 0.038 | H66: 0 | I66: 0 | J66: 0.264 | K66: -2.319272727 | L66: -2.009 | S66: =IF($AH66="","",INDEX($N$42:$P$641,$AH66,1)) -> 3.406527264 | T66: =IF($AH66="","",INDEX($N$42:$P$641,$AH66,2)) -> 44.62502017 | U66: =IF($AH66="","",INDEX($N$42:$P$641,$AH66,3)) -> 0.7593150085 | V66: =IF(AH66="",NA(),INDEX($D$41:$F$640,$AH66,1)) -> DB-FFAP | X66: =IF(AH66="","",INDEX($D$41:$F$640,$AH66,3)) -> Modified with nitroterephthalic acid | AF66: =IF(AH66="","",INDEX($P$41:$P$640,$AH66,1)) -> 0.003132339507 | AG66: 57 | AH66: 472 | AI66: 5
A67: Generic column types | S67: =IF($AH67="","",INDEX($N$42:$P$641,$AH67,1)) -> 3.199638573 | T67: =IF($AH67="","",INDEX($N$42:$P$641,$AH67,2)) -> 43.31382996 | U67: =IF($AH67="","",INDEX($N$42:$P$641,$AH67,3)) -> 0.7380945809 | V67: =IF(AH67="",NA(),INDEX($D$41:$F$640,$AH67,1)) -> PAG | X67: =IF(AH67="","",INDEX($D$41:$F$640,$AH67,3)) -> Ethylene glycol-propylene glycol copolymer | AF67: =IF(AH67="","",INDEX($P$41:$P$640,$AH67,1)) -> 0.00401203208 | AG67: 58 | AH67: 479 | AI67: 5
D68: G-PDMS | F68: Generic-Poly(dimethylsiloxane) [c = -2.000] | S68: =IF($AH68="","",INDEX($N$42:$P$641,$AH68,1)) -> 1.153633391 | T68: =IF($AH68="","",INDEX($N$42:$P$641,$AH68,2)) -> 20.82688024 | U68: =IF($AH68="","",INDEX($N$42:$P$641,$AH68,3)) -> 0.3614969556 | V68: =IF(AH68="",NA(),INDEX($D$41:$F$640,$AH68,1)) -> DX-1 | X68: =IF(AH68="","",INDEX($D$41:$F$640,$AH68,3)) -> poly(dimethylsiloxane) 90 % + poly(ethylene glycol) 10 % | AF68: =IF(AH68="","",INDEX($P$41:$P$640,$AH68,1)) -> 0.01619406868 | AG68: 59 | AH68: 486 | AI68: 5
E69: 60 | F69: -0.094 | G69: 0.308 | H69: 0.322 | I69: 0 | J69: 0.693 | K69: -2 | L69: -2 | M69: 1) | N69: =SQRT(F69^2+G69^2+H69^2+I69^2+J69^2) -> 0.8292363957 | O69: =ACOS(($C$6*F69+$D$6*G69+$E$6*H69+$F$6*I69+$G$6*J69)/($I$7*N69)-0.000001)*180/PI() -> 6.850279581 | P69: =SQRT(($C$7-F69/N69)^2+($D$7-G69/N69)^2+($E$7-H69/N69)^2+($F$7-I69/N69)^2+($G$7-J69/N69)^2) -> 0.119480366 | S69: =IF($AH69="","",INDEX($N$42:$P$641,$AH69,1)) -> 2.553011947 | T69: =IF($AH69="","",INDEX($N$42:$P$641,$AH69,2)) -> 39.63553456 | U69: =IF($AH69="","",INDEX($N$42:$P$641,$AH69,3)) -> 0.6780578627 | V69: =IF(AH69="",NA(),INDEX($D$41:$F$640,$AH69,1)) -> DX-3 | X69: =IF(AH69="","",INDEX($D$41:$F$640,$AH69,3)) -> poly(dimethylsiloxane) 50 % + poly(ethylene glycol) 50 % | AF69: =IF(AH69="","",INDEX($P$41:$P$640,$AH69,1)) -> 0.00401203208 | AG69: 60 | AH69: 493 | AI69: 5
E70: 80 | F70: -0.056 | G70: 0.284 | H70: 0.299 | I70: 0 | J70: 0.631 | K70: -2 | L70: -2 | S70: =IF($AH70="","",INDEX($N$42:$P$641,$AH70,1)) -> 2.742936018 | T70: =IF($AH70="","",INDEX($N$42:$P$641,$AH70,2)) -> 41.9711544 | U70: =IF($AH70="","",INDEX($N$42:$P$641,$AH70,3)) -> 0.7162644685 | V70: =IF(AH70="",NA(),INDEX($D$41:$F$640,$AH70,1)) -> DX-4 | X70: =IF(AH70="","",INDEX($D$41:$F$640,$AH70,3)) -> poly(dimethylsiloxane) 15 % + poly(ethylene glycol) 85 % | AF70: =IF(AH70="","",INDEX($P$41:$P$640,$AH70,1)) -> 0.00401203208 | AG70: 61 | AH70: 500 | AI70: 5
E71: 100 | F71: -0.025 | G71: 0.255 | H71: 0.253 | I71: 0 | J71: 0.575 | K71: -2 | L71: -2 | S71: =IF($AH71="","",INDEX($N$42:$P$641,$AH71,1)) -> 2.059795864 | T71: =IF($AH71="","",INDEX($N$42:$P$641,$AH71,2)) -> 34.02448033 | U71: =IF($AH71="","",INDEX($N$42:$P$641,$AH71,3)) -> 0.5851502801 | V71: =IF(AH71="",NA(),INDEX($D$41:$F$640,$AH71,1)) -> Cyclodex-B | X71: =IF(AH71="","",INDEX($D$41:$F$640,$AH71,3)) -> DB-1701 89.5 % + permethylated ?-cyclodextrin 10.5 % | AF71: =IF(AH71="","",INDEX($P$41:$P$640,$AH71,1)) -> 0.00401203208 | AG71: 62 | AH71: 507 | AI71: 5
E72: 120 | F72: 0 | G72: 0.233 | H72: 0.203 | I72: 0 | J72: 0.519 | K72: -2 | L72: -2 | S72: =IF($AH72="","",INDEX($N$42:$P$641,$AH72,1)) -> 2.172383253 | T72: =IF($AH72="","",INDEX($N$42:$P$641,$AH72,2)) -> 36.26999648 | U72: =IF($AH72="","",INDEX($N$42:$P$641,$AH72,3)) -> 0.6225123525 | V72: =IF(AH72="",NA(),INDEX($D$41:$F$640,$AH72,1)) -> CycloSil-B | X72: =IF(AH72="","",INDEX($D$41:$F$640,$AH72,3)) -> DB-1701 70 % + heptakis(2,3-di-O-methyl-6-O-t-butyldimethylsilyl)-β-cyclodextrin 30 % | AF72: =IF(AH72="","",INDEX($P$41:$P$640,$AH72,1)) -> 0.00401203208 | AG72: 63 | AH72: 514 | AI72: 5
E73: 140 | F73: 0.009 | G73: 0.22 | H73: 0.165 | I73: 0 | J73: 0.471 | K73: -2 | L73: -2 | S73: =IF($AH73="","",INDEX($N$42:$P$641,$AH73,1)) -> 2.303374264 | T73: =IF($AH73="","",INDEX($N$42:$P$641,$AH73,2)) -> 38.66929267 | U73: =IF($AH73="","",INDEX($N$42:$P$641,$AH73,3)) -> 0.6621685732 | V73: =IF(AH73="",NA(),INDEX($D$41:$F$640,$AH73,1)) -> SLB-IL60 | X73: =IF(AH73="","",INDEX($D$41:$F$640,$AH73,3)) -> 1,12-Di(tripropylphosphonium)dodecane bis(trifluoromethylsulfonyl)imide | AF73: =IF(AH73="","",INDEX($P$41:$P$640,$AH73,1)) -> 0.003207696417 | AG73: 64 | AH73: 521 | AI73: 11
S74: =IF($AH74="","",INDEX($N$42:$P$641,$AH74,1)) -> 2.432183998 | T74: =IF($AH74="","",INDEX($N$42:$P$641,$AH74,2)) -> 39.64730279 | U74: =IF($AH74="","",INDEX($N$42:$P$641,$AH74,3)) -> 0.6782510896 | V74: =IF(AH74="",NA(),INDEX($D$41:$F$640,$AH74,1)) -> SLB-IL61 | X74: =IF(AH74="","",INDEX($D$41:$F$640,$AH74,3)) -> 1,12-Di(tripropylphosphonium)dodecane bis(trifluoromethylsulfonyl)imide trifluoromethylsulfonate | AF74: =IF(AH74="","",INDEX($P$41:$P$640,$AH74,1)) -> 0.003207696417 | AG74: 65 | AH74: 534 | AI74: 10
D75: G-PDMPS-5 | F75: Generic-Poly(dimethyldiphenylsiloxane) [c = -2.000] | S75: =IF($AH75="","",INDEX($N$42:$P$641,$AH75,1)) -> 2.498222968 | T75: =IF($AH75="","",INDEX($N$42:$P$641,$AH75,2)) -> 41.70957486 | U75: =IF($AH75="","",INDEX($N$42:$P$641,$AH75,3)) -> 0.7119999954 | V75: =IF(AH75="",NA(),INDEX($D$41:$F$640,$AH75,1)) -> SLB-IL76 | X75: =IF(AH75="","",INDEX($D$41:$F$640,$AH75,3)) -> Tri(tripropylphosphoniumhexamide)triethylamine bis(trifluoromethylsulfonyl)imide | AF75: =IF(AH75="","",INDEX($P$41:$P$640,$AH75,1)) -> 0.003207696417 | AG75: 66 | AH75: 546 | AI75: 9
E76: 60 | F76: -0.097 | G76: 0.421 | H76: 0.387 | I76: 0 | J76: 0.704 | K76: -2 | L76: -2 | M76: 1) | N76: =SQRT(F76^2+G76^2+H76^2+I76^2+J76^2) -> 0.9121595255 | O76: =ACOS(($C$6*F76+$D$6*G76+$E$6*H76+$F$6*I76+$G$6*J76)/($I$7*N76)-0.000001)*180/PI() -> 1.096107524 | P76: =SQRT(($C$7-F76/N76)^2+($D$7-G76/N76)^2+($E$7-H76/N76)^2+($F$7-I76/N76)^2+($G$7-J76/N76)^2) -> 0.01907804907 | S76: =IF($AH76="","",INDEX($N$42:$P$641,$AH76,1)) -> 2.729456356 | T76: =IF($AH76="","",INDEX($N$42:$P$641,$AH76,2)) -> 43.97565683 | U76: =IF($AH76="","",INDEX($N$42:$P$641,$AH76,3)) -> 0.7488179032 | V76: =IF(AH76="",NA(),INDEX($D$41:$F$640,$AH76,1)) -> SLB-IL100 | X76: =IF(AH76="","",INDEX($D$41:$F$640,$AH76,3)) -> 1,9-Di(3-vinylimidazolium)nonane bis(trifluoromethylsulfonyl)imide | AF76: =IF(AH76="","",INDEX($P$41:$P$640,$AH76,1)) -> 0.003207696417 | AG76: 67 | AH76: 557 | AI76: 8
E77: 80 | F77: -0.054 | G77: 0.371 | H77: 0.308 | I77: 0 | J77: 0.629 | K77: -2 | L77: -2 | S77: =IF($AH77="","",INDEX($N$42:$P$641,$AH77,1)) ->  | T77: =IF($AH77="","",INDEX($N$42:$P$641,$AH77,2)) ->  | U77: =IF($AH77="","",INDEX($N$42:$P$641,$AH77,3)) ->  | V77: =IF(AH77="",NA(),INDEX($D$41:$F$640,$AH77,1)) ->  | X77: =IF(AH77="","",INDEX($D$41:$F$640,$AH77,3)) ->  | AF77: =IF(AH77="","",INDEX($P$41:$P$640,$AH77,1)) -> 
E78: 100 | F78: -0.024 | G78: 0.333 | H78: 0.25 | I78: 0 | J78: 0.566 | K78: -2 | L78: -2 | S78: =IF($AH78="","",INDEX($N$42:$P$641,$AH78,1)) ->  | T78: =IF($AH78="","",INDEX($N$42:$P$641,$AH78,2)) ->  | U78: =IF($AH78="","",INDEX($N$42:$P$641,$AH78,3)) ->  | V78: =IF(AH78="",NA(),INDEX($D$41:$F$640,$AH78,1)) ->  | X78: =IF(AH78="","",INDEX($D$41:$F$640,$AH78,3)) ->  | AF78: =IF(AH78="","",INDEX($P$41:$P$640,$AH78,1)) -> 
E79: 120 | F79: 0 | G79: 0.309 | H79: 0.202 | I79: 0 | J79: 0.513 | K79: -2 | L79: -2 | S79: =IF($AH79="","",INDEX($N$42:$P$641,$AH79,1)) ->  | T79: =IF($AH79="","",INDEX($N$42:$P$641,$AH79,2)) ->  | U79: =IF($AH79="","",INDEX($N$42:$P$641,$AH79,3)) ->  | V79: =IF(AH79="",NA(),INDEX($D$41:$F$640,$AH79,1)) ->  | X79: =IF(AH79="","",INDEX($D$41:$F$640,$AH79,3)) ->  | AF79: =IF(AH79="","",INDEX($P$41:$P$640,$AH79,1)) -> 
E80: 140 | F80: 0.026 | G80: 0.276 | H80: 0.176 | I80: 0 | J80: 0.465 | K80: -2 | L80: -2 | S80: =IF($AH80="","",INDEX($N$42:$P$641,$AH80,1)) ->  | T80: =IF($AH80="","",INDEX($N$42:$P$641,$AH80,2)) ->  | U80: =IF($AH80="","",INDEX($N$42:$P$641,$AH80,3)) ->  | V80: =IF(AH80="",NA(),INDEX($D$41:$F$640,$AH80,1)) ->  | X80: =IF(AH80="","",INDEX($D$41:$F$640,$AH80,3)) ->  | AF80: =IF(AH80="","",INDEX($P$41:$P$640,$AH80,1)) -> 
S81: =IF($AH81="","",INDEX($N$42:$P$641,$AH81,1)) ->  | T81: =IF($AH81="","",INDEX($N$42:$P$641,$AH81,2)) ->  | U81: =IF($AH81="","",INDEX($N$42:$P$641,$AH81,3)) ->  | V81: =IF(AH81="",NA(),INDEX($D$41:$F$640,$AH81,1)) ->  | X81: =IF(AH81="","",INDEX($D$41:$F$640,$AH81,3)) ->  | AF81: =IF(AH81="","",INDEX($P$41:$P$640,$AH81,1)) -> 
D82: G-PMPS | F82: Generc-Poly(methylphenylsiloxane) [c = -2.000] | S82: =IF($AH82="","",INDEX($N$42:$P$641,$AH82,1)) ->  | T82: =IF($AH82="","",INDEX($N$42:$P$641,$AH82,2)) ->  | U82: =IF($AH82="","",INDEX($N$42:$P$641,$AH82,3)) ->  | V82: =IF(AH82="",NA(),INDEX($D$41:$F$640,$AH82,1)) ->  | X82: =IF(AH82="","",INDEX($D$41:$F$640,$AH82,3)) ->  | AF82: =IF(AH82="","",INDEX($P$41:$P$640,$AH82,1)) -> 
E83: 60 | F83: -0.097 | G83: 0.011 | H83: 0.969 | I83: 0 | J83: 0.516 | K83: -2 | L83: -2 | M83: 1) | N83: =SQRT(F83^2+G83^2+H83^2+I83^2+J83^2) -> 1.102155615 | O83: =ACOS(($C$6*F83+$D$6*G83+$E$6*H83+$F$6*I83+$G$6*J83)/($I$7*N83)-0.000001)*180/PI() -> 42.58662362 | P83: =SQRT(($C$7-F83/N83)^2+($D$7-G83/N83)^2+($E$7-H83/N83)^2+($F$7-I83/N83)^2+($G$7-J83/N83)^2) -> 0.7262835647 | S83: =IF($AH83="","",INDEX($N$42:$P$641,$AH83,1)) ->  | T83: =IF($AH83="","",INDEX($N$42:$P$641,$AH83,2)) ->  | U83: =IF($AH83="","",INDEX($N$42:$P$641,$AH83,3)) ->  | V83: =IF(AH83="",NA(),INDEX($D$41:$F$640,$AH83,1)) ->  | X83: =IF(AH83="","",INDEX($D$41:$F$640,$AH83,3)) ->  | AF83: =IF(AH83="","",INDEX($P$41:$P$640,$AH83,1)) -> 
E84: 80 | F84: 0.046 | G84: 0.88 | H84: 0.446 | I84: 0 | J84: 0.607 | K84: -2 | L84: -2 | S84: =IF($AH84="","",INDEX($N$42:$P$641,$AH84,1)) ->  | T84: =IF($AH84="","",INDEX($N$42:$P$641,$AH84,2)) ->  | U84: =IF($AH84="","",INDEX($N$42:$P$641,$AH84,3)) ->  | V84: =IF(AH84="",NA(),INDEX($D$41:$F$640,$AH84,1)) ->  | X84: =IF(AH84="","",INDEX($D$41:$F$640,$AH84,3)) ->  | AF84: =IF(AH84="","",INDEX($P$41:$P$640,$AH84,1)) -> 
E85: 100 | F85: 0.081 | G85: 0.805 | H85: 0.381 | I85: 0 | J85: 0.556 | K85: -2 | L85: -2 | S85: =IF($AH85="","",INDEX($N$42:$P$641,$AH85,1)) ->  | T85: =IF($AH85="","",INDEX($N$42:$P$641,$AH85,2)) ->  | U85: =IF($AH85="","",INDEX($N$42:$P$641,$AH85,3)) ->  | V85: =IF(AH85="",NA(),INDEX($D$41:$F$640,$AH85,1)) ->  | X85: =IF(AH85="","",INDEX($D$41:$F$640,$AH85,3)) ->  | AF85: =IF(AH85="","",INDEX($P$41:$P$640,$AH85,1)) -> 
E86: 120 | F86: 0.112 | G86: 0.729 | H86: 0.332 | I86: 0 | J86: 0.503 | K86: -2 | L86: -2 | S86: =IF($AH86="","",INDEX($N$42:$P$641,$AH86,1)) ->  | T86: =IF($AH86="","",INDEX($N$42:$P$641,$AH86,2)) ->  | U86: =IF($AH86="","",INDEX($N$42:$P$641,$AH86,3)) ->  | V86: =IF(AH86="",NA(),INDEX($D$41:$F$640,$AH86,1)) ->  | X86: =IF(AH86="","",INDEX($D$41:$F$640,$AH86,3)) ->  | AF86: =IF(AH86="","",INDEX($P$41:$P$640,$AH86,1)) -> 
E87: 140 | F87: 0.137 | G87: 0.673 | H87: 0.283 | I87: 0 | J87: 0.456 | K87: -2 | L87: -2 | S87: =IF($AH87="","",INDEX($N$42:$P$641,$AH87,1)) ->  | T87: =IF($AH87="","",INDEX($N$42:$P$641,$AH87,2)) ->  | U87: =IF($AH87="","",INDEX($N$42:$P$641,$AH87,3)) ->  | V87: =IF(AH87="",NA(),INDEX($D$41:$F$640,$AH87,1)) ->  | X87: =IF(AH87="","",INDEX($D$41:$F$640,$AH87,3)) ->  | AF87: =IF(AH87="","",INDEX($P$41:$P$640,$AH87,1)) -> 
S88: =IF($AH88="","",INDEX($N$42:$P$641,$AH88,1)) ->  | T88: =IF($AH88="","",INDEX($N$42:$P$641,$AH88,2)) ->  | U88: =IF($AH88="","",INDEX($N$42:$P$641,$AH88,3)) ->  | V88: =IF(AH88="",NA(),INDEX($D$41:$F$640,$AH88,1)) ->  | X88: =IF(AH88="","",INDEX($D$41:$F$640,$AH88,3)) ->  | AF88: =IF(AH88="","",INDEX($P$41:$P$640,$AH88,1)) -> 
D89: G-ASA-5 | F89: Generic-Silarylene-siloxane copolymer [c = -2.000] | S89: =IF($AH89="","",INDEX($N$42:$P$641,$AH89,1)) ->  | T89: =IF($AH89="","",INDEX($N$42:$P$641,$AH89,2)) ->  | U89: =IF($AH89="","",INDEX($N$42:$P$641,$AH89,3)) ->  | V89: =IF(AH89="",NA(),INDEX($D$41:$F$640,$AH89,1)) ->  | X89: =IF(AH89="","",INDEX($D$41:$F$640,$AH89,3)) ->  | AF89: =IF(AH89="","",INDEX($P$41:$P$640,$AH89,1)) -> 
E90: 60 | F90: -0.109 | G90: 0.458 | H90: 0.397 | I90: 0 | J90: 0.717 | K90: -2 | L90: -2 | M90: 1) | N90: =SQRT(F90^2+G90^2+H90^2+I90^2+J90^2) -> 0.945168239 | O90: =ACOS(($C$6*F90+$D$6*G90+$E$6*H90+$F$6*I90+$G$6*J90)/($I$7*N90)-0.000001)*180/PI() -> 1.31653118 | P90: =SQRT(($C$7-F90/N90)^2+($D$7-G90/N90)^2+($E$7-H90/N90)^2+($F$7-I90/N90)^2+($G$7-J90/N90)^2) -> 0.0229337358 | S90: =SQRT(K90^2+L90^2+M90^2+N90^2+O90^2) ->  | T90: =ACOS(($C$6*K90+$D$6*L90+$E$6*M90+$F$6*N90+$G$6*O90)/($I$7*S90)-0.000001)*180/PI() ->  | U90: =SQRT(($C$7-K90/S90)^2+($D$7-L90/S90)^2+($E$7-M90/S90)^2+($F$7-N90/S90)^2+($G$7-O90/S90)^2) ->  | V90: Don't change this line (hidden formulas)
E91: 80 | F91: -0.07 | G91: 0.419 | H91: 0.352 | I91: 0 | J91: 0.661 | K91: -2 | L91: -2
E92: 100 | F92: -0.029 | G92: 0.376 | H92: 0.288 | I92: 0 | J92: 0.606 | K92: -2 | L92: -2
E93: 120 | F93: 0.003 | G93: 0.339 | H93: 0.247 | I93: 0 | J93: 0.558 | K93: -2 | L93: -2
E94: 140 | F94: 0.02 | G94: 0.32 | H94: 0.197 | I94: 0 | J94: 0.502 | K94: -2 | L94: -2
D96: G-PEG | F96: Generic Polyethyleneglycol [c = -2.000]
E97: 60 | F97: 0.217 | G97: 1.689 | H97: 2.726 | I97: 0 | J97: 0.61 | K97: -2 | L97: -2 | M97: 1) | N97: =SQRT(F97^2+G97^2+H97^2+I97^2+J97^2) -> 3.271541838 | O97: =ACOS(($C$6*F97+$D$6*G97+$E$6*H97+$F$6*I97+$G$6*J97)/($I$7*N97)-0.000001)*180/PI() -> 43.87719031 | P97: =SQRT(($C$7-F97/N97)^2+($D$7-G97/N97)^2+($E$7-H97/N97)^2+($F$7-I97/N97)^2+($G$7-J97/N97)^2) -> 0.7472240618
E98: 80 | F98: 0.225 | G98: 1.568 | H98: 2.428 | I98: 0 | J98: 0.56 | K98: -2 | L98: -2
E99: 100 | F99: 0.232 | G99: 1.442 | H99: 2.16 | I99: 0 | J99: 0.509 | K99: -2 | L99: -2
E100: 120 | F100: 0.239 | G100: 1.327 | H100: 1.929 | I100: 0 | J100: 0.464 | K100: -2 | L100: -2
E101: 140 | F101: 0.243 | G101: 1.225 | H101: 1.717 | I101: 0 | J101: 0.425 | K101: -2 | L101: -2
A102: (ii) Poly(dimethyldiphenylsiloxane)
D103: HP-5 | F103: 5 % diphenylsiloxane | N103: 0.25 | O103: 0.1 | P103: 0.00160192205
E104: 60 | F104: -0.103 | G104: 0.432 | H104: 0.375 | I104: 0 | J104: 0.709 | K104: -2.372846154 | L104: -1.879 | M104: 1) | N104: =SQRT(F104^2+G104^2+H104^2+I104^2+J104^2) -> 0.9168091404 | O104: =ACOS(($C$6*F104+$D$6*G104+$E$6*H104+$F$6*I104+$G$6*J104)/($I$7*N104)-0.000001)*180/PI() -> 0.08102847521 | P104: =SQRT(($C$7-F104/N104)^2+($D$7-G104/N104)^2+($E$7-H104/N104)^2+($F$7-I104/N104)^2+($G$7-J104/N104)^2) -> 0
E105: 80 | F105: -0.06 | G105: 0.379 | H105: 0.317 | I105: 0 | J105: 0.628 | K105: -2.372846154 | L105: -1.905
E106: 100 | F106: -0.033 | G106: 0.34 | H106: 0.254 | I106: 0 | J106: 0.556 | K106: -2.372846154 | L106: -1.913
E107: 120 | F107: 0 | G107: 0.314 | H107: 0.19 | I107: 0 | J107: 0.512 | K107: -2.372846154 | L107: -1.987
E108: 140 | F108: 0.033 | G108: 0.273 | H108: 0.167 | I108: 0 | J108: 0.46 | K108: -2.372846154 | L108: -2.001
E109: 160 | F109: 0.018 | G109: 0.266 | H109: 0.142 | I109: 0 | J109: 0.404 | K109: -2.372846154 | L109: -2.625
E110: 180 | F110: 0.037 | G110: 0.237 | H110: 0.129 | I110: 0 | J110: 0.364 | K110: -2.372846154 | L110: -2.628
E111: 200 | F111: 0.064 | G111: 0.214 | H111: 0.108 | I111: 0 | J111: 0.329 | K111: -2.372846154 | L111: -2.635
E112: 220 | F112: 0.069 | G112: 0.207 | H112: 0.097 | I112: 0 | J112: 0.295 | K112: -2.372846154 | L112: -2.632
E113: 240 | F113: 0.082 | G113: 0.191 | H113: 0.093 | I113: 0 | J113: 0.267 | K113: -2.372846154 | L113: -2.629
E114: 260 | F114: 0.091 | G114: 0.2 | H114: 0.112 | I114: 0 | J114: 0.246 | K114: -2.372846154 | L114: -2.689
E115: 280 | F115: 0.105 | G115: 0.162 | H115: 0.112 | I115: 0 | J115: 0.225 | K115: -2.372846154 | L115: -2.679
E116: 300 | F116: 0.101 | G116: 0.137 | H116: 0.102 | I116: 0 | J116: 0.21 | K116: -2.372846154 | L116: -2.645
D118: DB-5 | F118: 5 % diphenylsiloxane | N118: 0.25 | O118: 1 | P118: 0.01619406868
E119: 80 | F119: -0.049 | G119: 0.354 | H119: 0.263 | I119: 0 | J119: 0.62 | K119: -1.9208 | L119: -1.85 | M119: 1) | N119: =SQRT(F119^2+G119^2+H119^2+I119^2+J119^2) -> 0.7624211435 | O119: =ACOS(($C$6*F119+$D$6*G119+$E$6*H119+$F$6*I119+$G$6*J119)/($I$7*N119)-0.000001)*180/PI() -> 5.144160165 | P119: =SQRT(($C$7-F119/N119)^2+($D$7-G119/N119)^2+($E$7-H119/N119)^2+($F$7-I119/N119)^2+($G$7-J119/N119)^2) -> 0.08974123736
E120: 100 | F120: -0.019 | G120: 0.32 | H120: 0.222 | I120: 0 | J120: 0.56 | K120: -1.9208 | L120: -1.897
E121: 120 | F121: 0 | G121: 0.294 | H121: 0.172 | I121: 0 | J121: 0.504 | K121: -1.9208 | L121: -1.923
E122: 140 | F122: 0.028 | G122: 0.262 | H122: 0.156 | I122: 0 | J122: 0.457 | K122: -1.9208 | L122: -1.958
E123: 160 | F123: 0.044 | G123: 0.244 | H123: 0.136 | I123: 0 | J123: 0.414 | K123: -1.9208 | L123: -1.976
D125: OV-5 | F125: 5 % diphenylsiloxane | N125: 0.53 | O125: 1.5 | P125: 0.01141760493
E126: 60 | F126: -0.099 | G126: 0.411 | H126: 0.399 | I126: 0 | J126: 0.704 | K126: -2.2734 | L126: -2.071 | M126: 1) | N126: =SQRT(F126^2+G126^2+H126^2+I126^2+J126^2) -> 0.9129835705 | O126: =ACOS(($C$6*F126+$D$6*G126+$E$6*H126+$F$6*I126+$G$6*J126)/($I$7*N126)-0.000001)*180/PI() -> 2.024606116 | P126: =SQRT(($C$7-F126/N126)^2+($D$7-G126/N126)^2+($E$7-H126/N126)^2+($F$7-I126/N126)^2+($G$7-J126/N126)^2) -> 0.03530589186
E127: 80 | F127: -0.054 | G127: 0.36 | H127: 0.33 | I127: 0 | J127: 0.63 | K127: -2.2734 | L127: -2.112
E128: 100 | F128: -0.022 | G128: 0.33 | H128: 0.258 | I128: 0 | J128: 0.571 | K128: -2.2734 | L128: -2.169
E129: 120 | F129: 0 | G129: 0.303 | H129: 0.225 | I129: 0 | J129: 0.516 | K129: -2.2734 | L129: -2.209
E130: 140 | F130: 0.029 | G130: 0.274 | H130: 0.186 | I130: 0 | J130: 0.467 | K130: -2.2734 | L130: -2.243
E131: 60 | F131: -0.1 | G131: 0.436 | H131: 0.392 | I131: 0 | J131: 0.706 | K131: -2.2734 | L131: -2.281
E132: 80 | F132: -0.056 | G132: 0.395 | H132: 0.308 | I132: 0 | J132: 0.638 | K132: -2.2734 | L132: -2.351
E133: 100 | F133: -0.023 | G133: 0.349 | H133: 0.26 | I133: 0 | J133: 0.573 | K133: -2.2734 | L133: -2.383
E134: 120 | F134: 0 | G134: 0.33 | H134: 0.211 | I134: 0 | J134: 0.52 | K134: -2.2734 | L134: -2.439
E135: 140 | F135: 0.021 | G135: 0.295 | H135: 0.185 | I135: 0 | J135: 0.473 | K135: -2.2734 | L135: -2.476
D137: PTE-5 | F137: 5 % diphenylsiloxane | N137: 0.25 | O137: 0.25 | P137: 0.00401203208
E138: 60 | F138: -0.085 | G138: 0.404 | H138: 0.381 | I138: 0 | J138: 0.696 | K138: -2.5288 | L138: -2.424 | M138: 1) | N138: =SQRT(F138^2+G138^2+H138^2+I138^2+J138^2) -> 0.8944372532 | O138: =ACOS(($C$6*F138+$D$6*G138+$E$6*H138+$F$6*I138+$G$6*J138)/($I$7*N138)-0.000001)*180/PI() -> 1.805408147 | P138: =SQRT(($C$7-F138/N138)^2+($D$7-G138/N138)^2+($E$7-H138/N138)^2+($F$7-I138/N138)^2+($G$7-J138/N138)^2) -> 0.03147725996
E139: 80 | F139: -0.053 | G139: 0.367 | H139: 0.321 | I139: 0 | J139: 0.63 | K139: -2.5288 | L139: -2.497
E140: 100 | F140: -0.023 | G140: 0.325 | H140: 0.255 | I140: 0 | J140: 0.57 | K140: -2.5288 | L140: -2.544
E141: 120 | F141: 0 | G141: 0.303 | H141: 0.213 | I141: 0 | J141: 0.511 | K141: -2.5288 | L141: -2.563
E142: 140 | F142: 0.02 | G142: 0.278 | H142: 0.185 | I142: 0 | J142: 0.467 | K142: -2.5288 | L142: -2.616
D144: Rtx-20 | F144: 20 % diphenylsiloxane | N144: 0.25 | O144: 0.5 | P144: 0.008048257286
E145: 60 | F145: -0.082 | G145: 0.711 | H145: 0.419 | I145: 0 | J145: 0.7 | K145: -2.4178 | L145: -2.253 | M145: 1) | N145: =SQRT(F145^2+G145^2+H145^2+I145^2+J145^2) -> 1.085267709 | O145: =ACOS(($C$6*F145+$D$6*G145+$E$6*H145+$F$6*I145+$G$6*J145)/($I$7*N145)-0.000001)*180/PI() -> 13.11723264 | P145: =SQRT(($C$7-F145/N145)^2+($D$7-G145/N145)^2+($E$7-H145/N145)^2+($F$7-I145/N145)^2+($G$7-J145/N145)^2) -> 0.2284348742
E146: 80 | F146: -0.034 | G146: 0.639 | H146: 0.36 | I146: 0 | J146: 0.64 | K146: -2.4178 | L146: -2.348
E147: 100 | F147: 0 | G147: 0.587 | H147: 0.305 | I147: 0 | J147: 0.587 | K147: -2.4178 | L147: -2.432
E148: 120 | F148: 0.034 | G148: 0.538 | H148: 0.263 | I148: 0 | J148: 0.54 | K148: -2.4178 | L148: -2.505
E149: 140 | F149: 0.069 | G149: 0.49 | H149: 0.221 | I149: 0 | J149: 0.493 | K149: -2.4178 | L149: -2.551
D151: DB-35 | F151: 35 % diphenylsiloxane | N151: 0.25 | O151: 0.5 | P151: 0.008048257286
E152: 60 | F152: 0 | G152: 0.822 | H152: 0.446 | I152: 0 | J152: 0.68 | K152: -2.4346 | L152: -2.263 | M152: 1) | N152: =SQRT(F152^2+G152^2+H152^2+I152^2+J152^2) -> 1.156287162 | O152: =ACOS(($C$6*F152+$D$6*G152+$E$6*H152+$F$6*I152+$G$6*J152)/($I$7*N152)-0.000001)*180/PI() -> 18.64253096 | P152: =SQRT(($C$7-F152/N152)^2+($D$7-G152/N152)^2+($E$7-H152/N152)^2+($F$7-I152/N152)^2+($G$7-J152/N152)^2) -> 0.3239370811
E153: 80 | F153: 0 | G153: 0.76 | H153: 0.403 | I153: 0 | J153: 0.625 | K153: -2.4346 | L153: -2.363
E154: 100 | F154: 0.051 | G154: 0.691 | H154: 0.35 | I154: 0 | J154: 0.574 | K154: -2.4346 | L154: -2.452
E155: 120 | F155: 0.084 | G155: 0.631 | H155: 0.302 | I155: 0 | J155: 0.527 | K155: -2.4346 | L155: -2.522
E156: 140 | F156: 0.116 | G156: 0.578 | H156: 0.262 | I156: 0 | J156: 0.482 | K156: -2.4346 | L156: -2.573
D158: Rxi-17 | F158: 50 % diphenylsiloxane | N158: 0.25 | O158: 0.5 | P158: 0.008048257286
E159: 60 | F159: 0 | G159: 0.958 | H159: 0.609 | I159: 0 | J159: 0.682 | K159: -2.6174 | L159: -2.353 | M159: 1) | N159: =SQRT(F159^2+G159^2+H159^2+I159^2+J159^2) -> 1.324299437 | O159: =ACOS(($C$6*F159+$D$6*G159+$E$6*H159+$F$6*I159+$G$6*J159)/($I$7*N159)-0.000001)*180/PI() -> 21.99417785 | P159: =SQRT(($C$7-F159/N159)^2+($D$7-G159/N159)^2+($E$7-H159/N159)^2+($F$7-I159/N159)^2+($G$7-J159/N159)^2) -> 0.3815156204
E160: 80 | F160: 0.043 | G160: 0.904 | H160: 0.511 | I160: 0 | J160: 0.638 | K160: -2.6174 | L160: -2.545
E161: 100 | F161: 0.081 | G161: 0.85 | H161: 0.416 | I161: 0 | J161: 0.593 | K161: -2.6174 | L161: -2.669
E162: 120 | F162: 0.113 | G162: 0.793 | H162: 0.347 | I162: 0 | J162: 0.55 | K162: -2.6174 | L162: -2.77
E163: 140 | F163: 0.148 | G163: 0.707 | H163: 0.306 | I163: 0 | J163: 0.493 | K163: -2.6174 | L163: -2.75
D165: Rxi-17-240 | F165: 50% poly(dimethyldiphenylsiloxane) Extended temperature range | M165: 2)
E166: 60 | F166: 0.046 | G166: 0.951 | H166: 0.617 | I166: 0.057 | J166: 0.694 | K166: -2.6196 | L166: -2.429 | N166: =SQRT(F166^2+G166^2+H166^2+I166^2+J166^2) -> 1.331199084 | O166: =ACOS(($C$6*F166+$D$6*G166+$E$6*H166+$F$6*I166+$G$6*J166)/($I$7*N166)-0.000001)*180/PI() -> 22.25833115 | P166: =SQRT(($C$7-F166/N166)^2+($D$7-G166/N166)^2+($E$7-H166/N166)^2+($F$7-I166/N166)^2+($G$7-J166/N166)^2) -> 0.386040318
E167: 80 | F167: 0.051 | G167: 0.907 | H167: 0.463 | I167: 0.026 | J167: 0.641 | K167: -2.6196 | L167: -2.556
E168: 100 | F168: 0.108 | G168: 0.823 | H168: 0.381 | I168: 0.063 | J168: 0.6 | K168: -2.6196 | L168: -2.708
E169: 120 | F169: 0.14 | G169: 0.759 | H169: 0.317 | I169: 0.05 | J169: 0.553 | K169: -2.6196 | L169: -2.78
E170: 140 | F170: 0.183 | G170: 0.678 | H170: 0.275 | I170: 0.071 | J170: 0.503 | K170: -2.6196 | L170: -2.805
E171: 160 | F171: 0.18 | G171: 0.512 | H171: 0.269 | I171: 0.102 | J171: 0.398 | K171: -2.6196 | L171: -2.491
E172: 180 | F172: 0.199 | G172: 0.491 | H172: 0.244 | I172: 0.089 | J172: 0.368 | K172: -2.6196 | L172: -2.571
E173: 200 | F173: 0.204 | G173: 0.457 | H173: 0.227 | I173: 0.082 | J173: 0.342 | K173: -2.6196 | L173: -2.632
E174: 220 | F174: 0.2 | G174: 0.432 | H174: 0.208 | I174: 0.049 | J174: 0.307 | K174: -2.6196 | L174: -2.595
E175: 240 | F175: 0.199 | G175: 0.413 | H175: 0.198 | I175: 0.021 | J175: 0.284 | K175: -2.6196 | L175: -2.629
C176: DB-65 ? | D176: Rtx-65 | F176: 65 % diphenylsiloxane
E177: 60 | F177: 0 | G177: 1.069 | H177: 0.517 | I177: 0 | J177: 0.668 | K177: -2.7146 | L177: -2.522 | M177: 1) | N177: =SQRT(F177^2+G177^2+H177^2+I177^2+J177^2) -> 1.362451467 | O177: =ACOS(($C$6*F177+$D$6*G177+$E$6*H177+$F$6*I177+$G$6*J177)/($I$7*N177)-0.000001)*180/PI() -> 25.30031737 | P177: =SQRT(($C$7-F177/N177)^2+($D$7-G177/N177)^2+($E$7-H177/N177)^2+($F$7-I177/N177)^2+($G$7-J177/N177)^2) -> 0.4379927341
E178: 80 | F178: 0.055 | G178: 0.965 | H178: 0.47 | I178: 0 | J178: 0.612 | K178: -2.7146 | L178: -2.62
E179: 100 | F179: 0.097 | G179: 0.886 | H179: 0.415 | I179: 0 | J179: 0.565 | K179: -2.7146 | L179: -2.721
E180: 120 | F180: 0.129 | G180: 0.828 | H180: 0.365 | I180: 0 | J180: 0.521 | K180: -2.7146 | L180: -2.811
E181: 140 | F181: 0.167 | G181: 0.766 | H181: 0.329 | I181: 0 | J181: 0.484 | K181: -2.7146 | L181: -2.899
A182: (iii) Poly(methylphenylsiloxane)
D183: Rtx-50 | F183: (iii) Poly(methylphenylsiloxane) | N183: 0.25 | O183: 0.5 | P183: 0.008048257286
